Workbook

Sheet Liste
A1: tt0108169 | B1: nm0000097 | C1: =_xlfn.XLOOKUP($A1,_xlfn.CHOOSECOLS(_xlfn.ANCHORARRAY(Filme!$G$1),2),_xlfn.CHOOSECOLS(_xlfn.ANCHORARRAY(Filme!$G$1),3),"",0,2) -> Snapdragon | D1: =_xlfn.XLOOKUP($A1,_xlfn.CHOOSECOLS(_xlfn.ANCHORARRAY(Filme!$G$1),2),_xlfn.CHOOSECOLS(_xlfn.ANCHORARRAY(Filme!$G$1),4),"",0,2) -> 1993-12-01 | E1: =_xlfn.XLOOKUP($B1,_xlfn.CHOOSECOLS(_xlfn.ANCHORARRAY(Leute!$F$1),2),_xlfn.CHOOSECOLS(_xlfn.ANCHORARRAY(Leute!$F$1),3),"x",0,2) -> Pamela Anderson | F1: =_xlfn.XLOOKUP($B1,_xlfn.CHOOSECOLS(_xlfn.ANCHORARRAY(Leute!$F$1),2),_xlfn.CHOOSECOLS(_xlfn.ANCHORARRAY(Leute!$F$1),4),"x",0,2) -> 1967-07-01 | G1: =RANK(F1,F$1:F1,0) -> 1 | H1: =DATEDIF(F1,D1,"Y") -> 26 | I1: =DATEDIF(F1,D1,"YD") -> 153 | J1: =D1-F1 -> 9650 | K1: ="MRS "&TEXT(J1,"00000")&" "&SUBSTITUTE(C1,":","")&" ("&TEXT(D1,"TT.MM.JJJJ")&") - "&E1&" ("&TEXT(F1,"TT.MM.JJJJ")&") "&H1&"-"&I1 -> MRS 09650 Snapdragon (01.12.1993) - Pamela Anderson (01.07.1967) 26-153
A2: tt0110948 | B2: nm0000097 | C2: =_xlfn.XLOOKUP($A2,_xlfn.CHOOSECOLS(_xlfn.ANCHORARRAY(Filme!$G$1),2),_xlfn.CHOOSECOLS(_xlfn.ANCHORARRAY(Filme!$G$1),3),"",0,2) -> Raw Justice | D2: =_xlfn.XLOOKUP($A2,_xlfn.CHOOSECOLS(_xlfn.ANCHORARRAY(Filme!$G$1),2),_xlfn.CHOOSECOLS(_xlfn.ANCHORARRAY(Filme!$G$1),4),"",0,2) -> 1994-05-31 | E2: =_xlfn.XLOOKUP($B2,_xlfn.CHOOSECOLS(_xlfn.ANCHORARRAY(Leute!$F$1),2),_xlfn.CHOOSECOLS(_xlfn.ANCHORARRAY(Leute!$F$1),3),"x",0,2) -> Pamela Anderson | F2: =_xlfn.XLOOKUP($B2,_xlfn.CHOOSECOLS(_xlfn.ANCHORARRAY(Leute!$F$1),2),_xlfn.CHOOSECOLS(_xlfn.ANCHORARRAY(Leute!$F$1),4),"x",0,2) -> 1967-07-01 | G2: =RANK(F2,F$1:F2,0) -> 1 | H2: =DATEDIF(F2,D2,"Y") -> 26 | I2: =DATEDIF(F2,D2,"YD") -> 335 | J2: =D2-F2 -> 9831 | K2: ="MRS "&TEXT(J2,"00000")&" "&SUBSTITUTE(C2,":","")&" ("&TEXT(D2,"TT.MM.JJJJ")&") - "&E2&" ("&TEXT(F2,"TT.MM.JJJJ")&") "&H2&"-"&I2 -> MRS 09831 Raw Justice (31.05.1994) - Pamela Anderson (01.07.1967) 26-335
A3: tt0113926 | B3: nm0000097 | C3: =_xlfn.XLOOKUP($A3,_xlfn.CHOOSECOLS(_xlfn.ANCHORARRAY(Filme!$G$1),2),_xlfn.CHOOSECOLS(_xlfn.ANCHORARRAY(Filme!$G$1),3),"",0,2) -> Naked Souls | D3: =_xlfn.XLOOKUP($A3,_xlfn.CHOOSECOLS(_xlfn.ANCHORARRAY(Filme!$G$1),2),_xlfn.CHOOSECOLS(_xlfn.ANCHORARRAY(Filme!$G$1),4),"",0,2) -> 1996-05-18 | E3: =_xlfn.XLOOKUP($B3,_xlfn.CHOOSECOLS(_xlfn.ANCHORARRAY(Leute!$F$1),2),_xlfn.CHOOSECOLS(_xlfn.ANCHORARRAY(Leute!$F$1),3),"x",0,2) -> Pamela Anderson | F3: =_xlfn.XLOOKUP($B3,_xlfn.CHOOSECOLS(_xlfn.ANCHORARRAY(Leute!$F$1),2),_xlfn.CHOOSECOLS(_xlfn.ANCHORARRAY(Leute!$F$1),4),"x",0,2) -> 1967-07-01 | G3: =RANK(F3,F$1:F3,0) -> 1 | H3: =DATEDIF(F3,D3,"Y") -> 28 | I3: =DATEDIF(F3,D3,"YD") -> 322 | J3: =D3-F3 -> 10549 | K3: ="MRS "&TEXT(J3,"00000")&" "&SUBSTITUTE(C3,":","")&" ("&TEXT(D3,"TT.MM.JJJJ")&") - "&E3&" ("&TEXT(F3,"TT.MM.JJJJ")&") "&H3&"-"&I3 -> MRS 10549 Naked Souls (18.05.1996) - Pamela Anderson (01.07.1967) 28-322
A4: tt0115624 | B4: nm0000097 | C4: =_xlfn.XLOOKUP($A4,_xlfn.CHOOSECOLS(_xlfn.ANCHORARRAY(Filme!$G$1),2),_xlfn.CHOOSECOLS(_xlfn.ANCHORARRAY(Filme!$G$1),3),"",0,2) -> Barb Wire | D4: =_xlfn.XLOOKUP($A4,_xlfn.CHOOSECOLS(_xlfn.ANCHORARRAY(Filme!$G$1),2),_xlfn.CHOOSECOLS(_xlfn.ANCHORARRAY(Filme!$G$1),4),"",0,2) -> 1996-10-24 | E4: =_xlfn.XLOOKUP($B4,_xlfn.CHOOSECOLS(_xlfn.ANCHORARRAY(Leute!$F$1),2),_xlfn.CHOOSECOLS(_xlfn.ANCHORARRAY(Leute!$F$1),3),"x",0,2) -> Pamela Anderson | F4: =_xlfn.XLOOKUP($B4,_xlfn.CHOOSECOLS(_xlfn.ANCHORARRAY(Leute!$F$1),2),_xlfn.CHOOSECOLS(_xlfn.ANCHORARRAY(Leute!$F$1),4),"x",0,2) -> 1967-07-01 | G4: =RANK(F4,F$1:F4,0) -> 1 | H4: =DATEDIF(F4,D4,"Y") -> 29 | I4: =DATEDIF(F4,D4,"YD") -> 115 | J4: =D4-F4 -> 10708 | K4: ="MRS "&TEXT(J4,"00000")&" "&SUBSTITUTE(C4,":","")&" ("&TEXT(D4,"TT.MM.JJJJ")&") - "&E4&" ("&TEXT(F4,"TT.MM.JJJJ")&") "&H4&"-"&I4 -> MRS 10708 Barb Wire (24.10.1996) - Pamela Anderson (01.07.1967) 29-115
A5: tt0158062 | B5: nm0000097 | C5: =_xlfn.XLOOKUP($A5,_xlfn.CHOOSECOLS(_xlfn.ANCHORARRAY(Filme!$G$1),2),_xlfn.CHOOSECOLS(_xlfn.ANCHORARRAY(Filme!$G$1),3),"",0,2) -> Pam & Tommy Lee: Stolen Honeymoon | D5: =_xlfn.XLOOKUP($A5,_xlfn.CHOOSECOLS(_xlfn.ANCHORARRAY(Filme!$G$1),2),_xlfn.CHOOSECOLS(_xlfn.ANCHORARRAY(Filme!$G$1),4),"",0,2) -> 1998-12-31 | E5: =_xlfn.XLOOKUP($B5,_xlfn.CHOOSECOLS(_xlfn.ANCHORARRAY(Leute!$F$1),2),_xlfn.CHOOSECOLS(_xlfn.ANCHORARRAY(Leute!$F$1),3),"x",0,2) -> Pamela Anderson | F5: =_xlfn.XLOOKUP($B5,_xlfn.CHOOSECOLS(_xlfn.ANCHORARRAY(Leute!$F$1),2),_xlfn.CHOOSECOLS(_xlfn.ANCHORARRAY(Leute!$F$1),4),"x",0,2) -> 1967-07-01 | G5: =RANK(F5,F$1:F5,0) -> 1 | H5: =DATEDIF(F5,D5,"Y") -> 31 | I5: =DATEDIF(F5,D5,"YD") -> 183 | J5: =D5-F5 -> 11506 | K5: ="MRS "&TEXT(J5,"00000")&" "&SUBSTITUTE(C5,":","")&" ("&TEXT(D5,"TT.MM.JJJJ")&") - "&E5&" ("&TEXT(F5,"TT.MM.JJJJ")&") "&H5&"-"&I5 -> MRS 11506 Pam & Tommy Lee Stolen Honeymoon (31.12.1998) - Pamela Anderson (01.07.1967) 31-183
A6: tt0306047 | B6: nm0000097 | C6: =_xlfn.XLOOKUP($A6,_xlfn.CHOOSECOLS(_xlfn.ANCHORARRAY(Filme!$G$1),2),_xlfn.CHOOSECOLS(_xlfn.ANCHORARRAY(Filme!$G$1),3),"",0,2) -> Scary Movie 3 | D6: =_xlfn.XLOOKUP($A6,_xlfn.CHOOSECOLS(_xlfn.ANCHORARRAY(Filme!$G$1),2),_xlfn.CHOOSECOLS(_xlfn.ANCHORARRAY(Filme!$G$1),4),"",0,2) -> 2004-02-26 | E6: =_xlfn.XLOOKUP($B6,_xlfn.CHOOSECOLS(_xlfn.ANCHORARRAY(Leute!$F$1),2),_xlfn.CHOOSECOLS(_xlfn.ANCHORARRAY(Leute!$F$1),3),"x",0,2) -> Pamela Anderson | F6: =_xlfn.XLOOKUP($B6,_xlfn.CHOOSECOLS(_xlfn.ANCHORARRAY(Leute!$F$1),2),_xlfn.CHOOSECOLS(_xlfn.ANCHORARRAY(Leute!$F$1),4),"x",0,2) -> 1967-07-01 | G6: =RANK(F6,F$1:F6,0) -> 1 | H6: =DATEDIF(F6,D6,"Y") -> 36 | I6: =DATEDIF(F6,D6,"YD") -> 240 | J6: =D6-F6 -> 13389 | K6: ="MRS "&TEXT(J6,"00000")&" "&SUBSTITUTE(C6,":","")&" ("&TEXT(D6,"TT.MM.JJJJ")&") - "&E6&" ("&TEXT(F6,"TT.MM.JJJJ")&") "&H6&"-"&I6 -> MRS 13389 Scary Movie 3 (26.02.2004) - Pamela Anderson (01.07.1967) 36-240
A7: tt0356569 | B7: nm0000097 | C7: =_xlfn.XLOOKUP($A7,_xlfn.CHOOSECOLS(_xlfn.ANCHORARRAY(Filme!$G$1),2),_xlfn.CHOOSECOLS(_xlfn.ANCHORARRAY(Filme!$G$1),3),"",0,2) -> Edenquest: Pamela Anderson | D7: =_xlfn.XLOOKUP($A7,_xlfn.CHOOSECOLS(_xlfn.ANCHORARRAY(Filme!$G$1),2),_xlfn.CHOOSECOLS(_xlfn.ANCHORARRAY(Filme!$G$1),4),"",0,2) -> 00:00:00 | E7: =_xlfn.XLOOKUP($B7,_xlfn.CHOOSECOLS(_xlfn.ANCHORARRAY(Leute!$F$1),2),_xlfn.CHOOSECOLS(_xlfn.ANCHORARRAY(Leute!$F$1),3),"x",0,2) -> Pamela Anderson | F7: =_xlfn.XLOOKUP($B7,_xlfn.CHOOSECOLS(_xlfn.ANCHORARRAY(Leute!$F$1),2),_xlfn.CHOOSECOLS(_xlfn.ANCHORARRAY(Leute!$F$1),4),"x",0,2) -> 1967-07-01 | G7: =RANK(F7,F$1:F7,0) -> 1 | H7: =DATEDIF(F7,D7,"Y") ->  | I7: =DATEDIF(F7,D7,"YD") ->  | J7: =D7-F7 -> -24654 | K7: ="MRS "&TEXT(J7,"00000")&" "&SUBSTITUTE(C7,":","")&" ("&TEXT(D7,"TT.MM.JJJJ")&") - "&E7&" ("&TEXT(F7,"TT.MM.JJJJ")&") "&H7&"-"&I7 -> 
A8: tt1284760 | B8: nm0000097 | C8: =_xlfn.XLOOKUP($A8,_xlfn.CHOOSECOLS(_xlfn.ANCHORARRAY(Filme!$G$1),2),_xlfn.CHOOSECOLS(_xlfn.ANCHORARRAY(Filme!$G$1),3),"",0,2) -> The Girls Next Door | D8: =_xlfn.XLOOKUP($A8,_xlfn.CHOOSECOLS(_xlfn.ANCHORARRAY(Filme!$G$1),2),_xlfn.CHOOSECOLS(_xlfn.ANCHORARRAY(Filme!$G$1),4),"",0,2) -> 2008-08-18 | E8: =_xlfn.XLOOKUP($B8,_xlfn.CHOOSECOLS(_xlfn.ANCHORARRAY(Leute!$F$1),2),_xlfn.CHOOSECOLS(_xlfn.ANCHORARRAY(Leute!$F$1),3),"x",0,2) -> Pamela Anderson | F8: =_xlfn.XLOOKUP($B8,_xlfn.CHOOSECOLS(_xlfn.ANCHORARRAY(Leute!$F$1),2),_xlfn.CHOOSECOLS(_xlfn.ANCHORARRAY(Leute!$F$1),4),"x",0,2) -> 1967-07-01 | G8: =RANK(F8,F$1:F8,0) -> 1 | H8: =DATEDIF(F8,D8,"Y") -> 41 | I8: =DATEDIF(F8,D8,"YD") -> 48 | J8: =D8-F8 -> 15024 | K8: ="MRS "&TEXT(J8,"00000")&" "&SUBSTITUTE(C8,":","")&" ("&TEXT(D8,"TT.MM.JJJJ")&") - "&E8&" ("&TEXT(F8,"TT.MM.JJJJ")&") "&H8&"-"&I8 -> MRS 15024 The Girls Next Door (18.08.2008) - Pamela Anderson (01.07.1967) 41-48
A9: tt18376122 | B9: nm0000097 | C9: =_xlfn.XLOOKUP($A9,_xlfn.CHOOSECOLS(_xlfn.ANCHORARRAY(Filme!$G$1),2),_xlfn.CHOOSECOLS(_xlfn.ANCHORARRAY(Filme!$G$1),3),"",0,2) -> Pamela, a Love Story | D9: =_xlfn.XLOOKUP($A9,_xlfn.CHOOSECOLS(_xlfn.ANCHORARRAY(Filme!$G$1),2),_xlfn.CHOOSECOLS(_xlfn.ANCHORARRAY(Filme!$G$1),4),"",0,2) -> 2023-01-31 | E9: =_xlfn.XLOOKUP($B9,_xlfn.CHOOSECOLS(_xlfn.ANCHORARRAY(Leute!$F$1),2),_xlfn.CHOOSECOLS(_xlfn.ANCHORARRAY(Leute!$F$1),3),"x",0,2) -> Pamela Anderson | F9: =_xlfn.XLOOKUP($B9,_xlfn.CHOOSECOLS(_xlfn.ANCHORARRAY(Leute!$F$1),2),_xlfn.CHOOSECOLS(_xlfn.ANCHORARRAY(Leute!$F$1),4),"x",0,2) -> 1967-07-01 | G9: =RANK(F9,F$1:F9,0) -> 1 | H9: =DATEDIF(F9,D9,"Y") -> 55 | I9: =DATEDIF(F9,D9,"YD") -> 214 | J9: =D9-F9 -> 20303 | K9: ="MRS "&TEXT(J9,"00000")&" "&SUBSTITUTE(C9,":","")&" ("&TEXT(D9,"TT.MM.JJJJ")&") - "&E9&" ("&TEXT(F9,"TT.MM.JJJJ")&") "&H9&"-"&I9 -> MRS 20303 Pamela, a Love Story (31.01.2023) - Pamela Anderson (01.07.1967) 55-214
A10: tt4254562 | B10: nm0000097 | C10: =_xlfn.XLOOKUP($A10,_xlfn.CHOOSECOLS(_xlfn.ANCHORARRAY(Filme!$G$1),2),_xlfn.CHOOSECOLS(_xlfn.ANCHORARRAY(Filme!$G$1),3),"",0,2) -> The People Garden | D10: =_xlfn.XLOOKUP($A10,_xlfn.CHOOSECOLS(_xlfn.ANCHORARRAY(Filme!$G$1),2),_xlfn.CHOOSECOLS(_xlfn.ANCHORARRAY(Filme!$G$1),4),"",0,2) -> 2016-09-12 | E10: =_xlfn.XLOOKUP($B10,_xlfn.CHOOSECOLS(_xlfn.ANCHORARRAY(Leute!$F$1),2),_xlfn.CHOOSECOLS(_xlfn.ANCHORARRAY(Leute!$F$1),3),"x",0,2) -> Pamela Anderson | F10: =_xlfn.XLOOKUP($B10,_xlfn.CHOOSECOLS(_xlfn.ANCHORARRAY(Leute!$F$1),2),_xlfn.CHOOSECOLS(_xlfn.ANCHORARRAY(Leute!$F$1),4),"x",0,2) -> 1967-07-01 | G10: =RANK(F10,F$1:F10,0) -> 1 | H10: =DATEDIF(F10,D10,"Y") -> 49 | I10: =DATEDIF(F10,D10,"YD") -> 73 | J10: =D10-F10 -> 17971 | K10: ="MRS "&TEXT(J10,"00000")&" "&SUBSTITUTE(C10,":","")&" ("&TEXT(D10,"TT.MM.JJJJ")&") - "&E10&" ("&TEXT(F10,"TT.MM.JJJJ")&") "&H10&"-"&I10 -> MRS 17971 The People Garden (12.09.2016) - Pamela Anderson (01.07.1967) 49-73
A11: tt4696764 | B11: nm0000097 | C11: =_xlfn.XLOOKUP($A11,_xlfn.CHOOSECOLS(_xlfn.ANCHORARRAY(Filme!$G$1),2),_xlfn.CHOOSECOLS(_xlfn.ANCHORARRAY(Filme!$G$1),3),"",0,2) -> Connected | D11: =_xlfn.XLOOKUP($A11,_xlfn.CHOOSECOLS(_xlfn.ANCHORARRAY(Filme!$G$1),2),_xlfn.CHOOSECOLS(_xlfn.ANCHORARRAY(Filme!$G$1),4),"",0,2) -> 00:00:00 | E11: =_xlfn.XLOOKUP($B11,_xlfn.CHOOSECOLS(_xlfn.ANCHORARRAY(Leute!$F$1),2),_xlfn.CHOOSECOLS(_xlfn.ANCHORARRAY(Leute!$F$1),3),"x",0,2) -> Pamela Anderson | F11: =_xlfn.XLOOKUP($B11,_xlfn.CHOOSECOLS(_xlfn.ANCHORARRAY(Leute!$F$1),2),_xlfn.CHOOSECOLS(_xlfn.ANCHORARRAY(Leute!$F$1),4),"x",0,2) -> 1967-07-01 | G11: =RANK(F11,F$1:F11,0) -> 1 | H11: =DATEDIF(F11,D11,"Y") ->  | I11: =DATEDIF(F11,D11,"YD") ->  | J11: =D11-F11 -> -24654 | K11: ="MRS "&TEXT(J11,"00000")&" "&SUBSTITUTE(C11,":","")&" ("&TEXT(D11,"TT.MM.JJJJ")&") - "&E11&" ("&TEXT(F11,"TT.MM.JJJJ")&") "&H11&"-"&I11 -> 
A12: tt0279113 | B12: nm0000098 | C12: =_xlfn.XLOOKUP($A12,_xlfn.CHOOSECOLS(_xlfn.ANCHORARRAY(Filme!$G$1),2),_xlfn.CHOOSECOLS(_xlfn.ANCHORARRAY(Filme!$G$1),3),"",0,2) -> The Good Girl | D12: =_xlfn.XLOOKUP($A12,_xlfn.CHOOSECOLS(_xlfn.ANCHORARRAY(Filme!$G$1),2),_xlfn.CHOOSECOLS(_xlfn.ANCHORARRAY(Filme!$G$1),4),"",0,2) -> 2002-08-30 | E12: =_xlfn.XLOOKUP($B12,_xlfn.CHOOSECOLS(_xlfn.ANCHORARRAY(Leute!$F$1),2),_xlfn.CHOOSECOLS(_xlfn.ANCHORARRAY(Leute!$F$1),3),"x",0,2) -> Jennifer Aniston | F12: =_xlfn.XLOOKUP($B12,_xlfn.CHOOSECOLS(_xlfn.ANCHORARRAY(Leute!$F$1),2),_xlfn.CHOOSECOLS(_xlfn.ANCHORARRAY(Leute!$F$1),4),"x",0,2) -> 1969-02-11 | G12: =RANK(F12,F$1:F12,0) -> 1 | H12: =DATEDIF(F12,D12,"Y") -> 33 | I12: =DATEDIF(F12,D12,"YD") -> 200 | J12: =D12-F12 -> 12253 | K12: ="MRS "&TEXT(J12,"00000")&" "&SUBSTITUTE(C12,":","")&" ("&TEXT(D12,"TT.MM.JJJJ")&") - "&E12&" ("&TEXT(F12,"TT.MM.JJJJ")&") "&H12&"-"&I12 -> MRS 12253 The Good Girl (30.08.2002) - Jennifer Aniston (11.02.1969) 33-200
A13: tt0452594 | B13: nm0000098 | C13: =_xlfn.XLOOKUP($A13,_xlfn.CHOOSECOLS(_xlfn.ANCHORARRAY(Filme!$G$1),2),_xlfn.CHOOSECOLS(_xlfn.ANCHORARRAY(Filme!$G$1),3),"",0,2) -> The Break-Up | D13: =_xlfn.XLOOKUP($A13,_xlfn.CHOOSECOLS(_xlfn.ANCHORARRAY(Filme!$G$1),2),_xlfn.CHOOSECOLS(_xlfn.ANCHORARRAY(Filme!$G$1),4),"",0,2) -> 2006-08-10 | E13: =_xlfn.XLOOKUP($B13,_xlfn.CHOOSECOLS(_xlfn.ANCHORARRAY(Leute!$F$1),2),_xlfn.CHOOSECOLS(_xlfn.ANCHORARRAY(Leute!$F$1),3),"x",0,2) -> Jennifer Aniston | F13: =_xlfn.XLOOKUP($B13,_xlfn.CHOOSECOLS(_xlfn.ANCHORARRAY(Leute!$F$1),2),_xlfn.CHOOSECOLS(_xlfn.ANCHORARRAY(Leute!$F$1),4),"x",0,2) -> 1969-02-11 | G13: =RANK(F13,F$1:F13,0) -> 1 | H13: =DATEDIF(F13,D13,"Y") -> 37 | I13: =DATEDIF(F13,D13,"YD") -> 180 | J13: =D13-F13 -> 13694 | K13: ="MRS "&TEXT(J13,"00000")&" "&SUBSTITUTE(C13,":","")&" ("&TEXT(D13,"TT.MM.JJJJ")&") - "&E13&" ("&TEXT(F13,"TT.MM.JJJJ")&") "&H13&"-"&I13 -> MRS 13694 The Break-Up (10.08.2006) - Jennifer Aniston (11.02.1969) 37-180
A14: tt26921534 | B14: nm0000098 | C14: =_xlfn.XLOOKUP($A14,_xlfn.CHOOSECOLS(_xlfn.ANCHORARRAY(Filme!$G$1),2),_xlfn.CHOOSECOLS(_xlfn.ANCHORARRAY(Filme!$G$1),3),"",0,2) -> The Morning Show | D14: =_xlfn.XLOOKUP($A14,_xlfn.CHOOSECOLS(_xlfn.ANCHORARRAY(Filme!$G$1),2),_xlfn.CHOOSECOLS(_xlfn.ANCHORARRAY(Filme!$G$1),4),"",0,2) -> 2023-10-11 | E14: =_xlfn.XLOOKUP($B14,_xlfn.CHOOSECOLS(_xlfn.ANCHORARRAY(Leute!$F$1),2),_xlfn.CHOOSECOLS(_xlfn.ANCHORARRAY(Leute!$F$1),3),"x",0,2) -> Jennifer Aniston | F14: =_xlfn.XLOOKUP($B14,_xlfn.CHOOSECOLS(_xlfn.ANCHORARRAY(Leute!$F$1),2),_xlfn.CHOOSECOLS(_xlfn.ANCHORARRAY(Leute!$F$1),4),"x",0,2) -> 1969-02-11 | G14: =RANK(F14,F$1:F14,0) -> 1 | H14: =DATEDIF(F14,D14,"Y") -> 54 | I14: =DATEDIF(F14,D14,"YD") -> 242 | J14: =D14-F14 -> 19965 | K14: ="MRS "&TEXT(J14,"00000")&" "&SUBSTITUTE(C14,":","")&" ("&TEXT(D14,"TT.MM.JJJJ")&") - "&E14&" ("&TEXT(F14,"TT.MM.JJJJ")&") "&H14&"-"&I14 -> MRS 19965 The Morning Show (11.10.2023) - Jennifer Aniston (11.02.1969) 54-242
A15: tt0096270 | B15: nm0000099 | C15: =_xlfn.XLOOKUP($A15,_xlfn.CHOOSECOLS(_xlfn.ANCHORARRAY(Filme!$G$1),2),_xlfn.CHOOSECOLS(_xlfn.ANCHORARRAY(Filme!$G$1),3),"",0,2) -> Time Out | D15: =_xlfn.XLOOKUP($A15,_xlfn.CHOOSECOLS(_xlfn.ANCHORARRAY(Filme!$G$1),2),_xlfn.CHOOSECOLS(_xlfn.ANCHORARRAY(Filme!$G$1),4),"",0,2) -> 1988-02-12 | E15: =_xlfn.XLOOKUP($B15,_xlfn.CHOOSECOLS(_xlfn.ANCHORARRAY(Leute!$F$1),2),_xlfn.CHOOSECOLS(_xlfn.ANCHORARRAY(Leute!$F$1),3),"x",0,2) -> Patricia Arquette | F15: =_xlfn.XLOOKUP($B15,_xlfn.CHOOSECOLS(_xlfn.ANCHORARRAY(Leute!$F$1),2),_xlfn.CHOOSECOLS(_xlfn.ANCHORARRAY(Leute!$F$1),4),"x",0,2) -> 1968-04-08 | G15: =RANK(F15,F$1:F15,0) -> 4 | H15: =DATEDIF(F15,D15,"Y") -> 19 | I15: =DATEDIF(F15,D15,"YD") -> 310 | J15: =D15-F15 -> 7249 | K15: ="MRS "&TEXT(J15,"00000")&" "&SUBSTITUTE(C15,":","")&" ("&TEXT(D15,"TT.MM.JJJJ")&") - "&E15&" ("&TEXT(F15,"TT.MM.JJJJ")&") "&H15&"-"&I15 -> MRS 07249 Time Out (12.02.1988) - Patricia Arquette (08.04.1968) 19-310
A16: tt0103266 | B16: nm0000099 | C16: =_xlfn.XLOOKUP($A16,_xlfn.CHOOSECOLS(_xlfn.ANCHORARRAY(Filme!$G$1),2),_xlfn.CHOOSECOLS(_xlfn.ANCHORARRAY(Filme!$G$1),3),"",0,2) -> Wildflower | D16: =_xlfn.XLOOKUP($A16,_xlfn.CHOOSECOLS(_xlfn.ANCHORARRAY(Filme!$G$1),2),_xlfn.CHOOSECOLS(_xlfn.ANCHORARRAY(Filme!$G$1),4),"",0,2) -> 1996-06-04 | E16: =_xlfn.XLOOKUP($B16,_xlfn.CHOOSECOLS(_xlfn.ANCHORARRAY(Leute!$F$1),2),_xlfn.CHOOSECOLS(_xlfn.ANCHORARRAY(Leute!$F$1),3),"x",0,2) -> Patricia Arquette | F16: =_xlfn.XLOOKUP($B16,_xlfn.CHOOSECOLS(_xlfn.ANCHORARRAY(Leute!$F$1),2),_xlfn.CHOOSECOLS(_xlfn.ANCHORARRAY(Leute!$F$1),4),"x",0,2) -> 1968-04-08 | G16: =RANK(F16,F$1:F16,0) -> 4 | H16: =DATEDIF(F16,D16,"Y") -> 28 | I16: =DATEDIF(F16,D16,"YD") -> 57 | J16: =D16-F16 -> 10284 | K16: ="MRS "&TEXT(J16,"00000")&" "&SUBSTITUTE(C16,":","")&" ("&TEXT(D16,"TT.MM.JJJJ")&") - "&E16&" ("&TEXT(F16,"TT.MM.JJJJ")&") "&H16&"-"&I16 -> MRS 10284 Wildflower (04.06.1996) - Patricia Arquette (08.04.1968) 28-57
A17: tt0108399 | B17: nm0000099 | C17: =_xlfn.XLOOKUP($A17,_xlfn.CHOOSECOLS(_xlfn.ANCHORARRAY(Filme!$G$1),2),_xlfn.CHOOSECOLS(_xlfn.ANCHORARRAY(Filme!$G$1),3),"",0,2) -> True Romance | D17: =_xlfn.XLOOKUP($A17,_xlfn.CHOOSECOLS(_xlfn.ANCHORARRAY(Filme!$G$1),2),_xlfn.CHOOSECOLS(_xlfn.ANCHORARRAY(Filme!$G$1),4),"",0,2) -> 1994-01-27 | E17: =_xlfn.XLOOKUP($B17,_xlfn.CHOOSECOLS(_xlfn.ANCHORARRAY(Leute!$F$1),2),_xlfn.CHOOSECOLS(_xlfn.ANCHORARRAY(Leute!$F$1),3),"x",0,2) -> Patricia Arquette | F17: =_xlfn.XLOOKUP($B17,_xlfn.CHOOSECOLS(_xlfn.ANCHORARRAY(Leute!$F$1),2),_xlfn.CHOOSECOLS(_xlfn.ANCHORARRAY(Leute!$F$1),4),"x",0,2) -> 1968-04-08 | G17: =RANK(F17,F$1:F17,0) -> 4 | H17: =DATEDIF(F17,D17,"Y") -> 25 | I17: =DATEDIF(F17,D17,"YD") -> 294 | J17: =D17-F17 -> 9425 | K17: ="MRS "&TEXT(J17,"00000")&" "&SUBSTITUTE(C17,":","")&" ("&TEXT(D17,"TT.MM.JJJJ")&") - "&E17&" ("&TEXT(F17,"TT.MM.JJJJ")&") "&H17&"-"&I17 -> MRS 09425 True Romance (27.01.1994) - Patricia Arquette (08.04.1968) 25-294
A18: tt0116922 | B18: nm0000099 | C18: =_xlfn.XLOOKUP($A18,_xlfn.CHOOSECOLS(_xlfn.ANCHORARRAY(Filme!$G$1),2),_xlfn.CHOOSECOLS(_xlfn.ANCHORARRAY(Filme!$G$1),3),"",0,2) -> Lost Highway | D18: =_xlfn.XLOOKUP($A18,_xlfn.CHOOSECOLS(_xlfn.ANCHORARRAY(Filme!$G$1),2),_xlfn.CHOOSECOLS(_xlfn.ANCHORARRAY(Filme!$G$1),4),"",0,2) -> 1997-04-10 | E18: =_xlfn.XLOOKUP($B18,_xlfn.CHOOSECOLS(_xlfn.ANCHORARRAY(Leute!$F$1),2),_xlfn.CHOOSECOLS(_xlfn.ANCHORARRAY(Leute!$F$1),3),"x",0,2) -> Patricia Arquette | F18: =_xlfn.XLOOKUP($B18,_xlfn.CHOOSECOLS(_xlfn.ANCHORARRAY(Leute!$F$1),2),_xlfn.CHOOSECOLS(_xlfn.ANCHORARRAY(Leute!$F$1),4),"x",0,2) -> 1968-04-08 | G18: =RANK(F18,F$1:F18,0) -> 4 | H18: =DATEDIF(F18,D18,"Y") -> 29 | I18: =DATEDIF(F18,D18,"YD") -> 2 | J18: =D18-F18 -> 10594 | K18: ="MRS "&TEXT(J18,"00000")&" "&SUBSTITUTE(C18,":","")&" ("&TEXT(D18,"TT.MM.JJJJ")&") - "&E18&" ("&TEXT(F18,"TT.MM.JJJJ")&") "&H18&"-"&I18 -> MRS 10594 Lost Highway (10.04.1997) - Patricia Arquette (08.04.1968) 29-2
A19: tt0145531 | B19: nm0000099 | C19: =_xlfn.XLOOKUP($A19,_xlfn.CHOOSECOLS(_xlfn.ANCHORARRAY(Filme!$G$1),2),_xlfn.CHOOSECOLS(_xlfn.ANCHORARRAY(Filme!$G$1),3),"",0,2) -> Stigmata | D19: =_xlfn.XLOOKUP($A19,_xlfn.CHOOSECOLS(_xlfn.ANCHORARRAY(Filme!$G$1),2),_xlfn.CHOOSECOLS(_xlfn.ANCHORARRAY(Filme!$G$1),4),"",0,2) -> 2000-01-13 | E19: =_xlfn.XLOOKUP($B19,_xlfn.CHOOSECOLS(_xlfn.ANCHORARRAY(Leute!$F$1),2),_xlfn.CHOOSECOLS(_xlfn.ANCHORARRAY(Leute!$F$1),3),"x",0,2) -> Patricia Arquette | F19: =_xlfn.XLOOKUP($B19,_xlfn.CHOOSECOLS(_xlfn.ANCHORARRAY(Leute!$F$1),2),_xlfn.CHOOSECOLS(_xlfn.ANCHORARRAY(Leute!$F$1),4),"x",0,2) -> 1968-04-08 | G19: =RANK(F19,F$1:F19,0) -> 4 | H19: =DATEDIF(F19,D19,"Y") -> 31 | I19: =DATEDIF(F19,D19,"YD") -> 280 | J19: =D19-F19 -> 11602 | K19: ="MRS "&TEXT(J19,"00000")&" "&SUBSTITUTE(C19,":","")&" ("&TEXT(D19,"TT.MM.JJJJ")&") - "&E19&" ("&TEXT(F19,"TT.MM.JJJJ")&") "&H19&"-"&I19 -> MRS 11602 Stigmata (13.01.2000) - Patricia Arquette (08.04.1968) 31-280
A20: tt0219822 | B20: nm0000099 | C20: =_xlfn.XLOOKUP($A20,_xlfn.CHOOSECOLS(_xlfn.ANCHORARRAY(Filme!$G$1),2),_xlfn.CHOOSECOLS(_xlfn.ANCHORARRAY(Filme!$G$1),3),"",0,2) -> Human Nature | D20: =_xlfn.XLOOKUP($A20,_xlfn.CHOOSECOLS(_xlfn.ANCHORARRAY(Filme!$G$1),2),_xlfn.CHOOSECOLS(_xlfn.ANCHORARRAY(Filme!$G$1),4),"",0,2) -> 2004-06-10 | E20: =_xlfn.XLOOKUP($B20,_xlfn.CHOOSECOLS(_xlfn.ANCHORARRAY(Leute!$F$1),2),_xlfn.CHOOSECOLS(_xlfn.ANCHORARRAY(Leute!$F$1),3),"x",0,2) -> Patricia Arquette | F20: =_xlfn.XLOOKUP($B20,_xlfn.CHOOSECOLS(_xlfn.ANCHORARRAY(Leute!$F$1),2),_xlfn.CHOOSECOLS(_xlfn.ANCHORARRAY(Leute!$F$1),4),"x",0,2) -> 1968-04-08 | G20: =RANK(F20,F$1:F20,0) -> 4 | H20: =DATEDIF(F20,D20,"Y") -> 36 | I20: =DATEDIF(F20,D20,"YD") -> 63 | J20: =D20-F20 -> 13212 | K20: ="MRS "&TEXT(J20,"00000")&" "&SUBSTITUTE(C20,":","")&" ("&TEXT(D20,"TT.MM.JJJJ")&") - "&E20&" ("&TEXT(F20,"TT.MM.JJJJ")&") "&H20&"-"&I20 -> MRS 13212 Human Nature (10.06.2004) - Patricia Arquette (08.04.1968) 36-63
A21: tt6967186 | B21: nm0000099 | C21: =_xlfn.XLOOKUP($A21,_xlfn.CHOOSECOLS(_xlfn.ANCHORARRAY(Filme!$G$1),2),_xlfn.CHOOSECOLS(_xlfn.ANCHORARRAY(Filme!$G$1),3),"",0,2) -> Escape at Dannemora | D21: =_xlfn.XLOOKUP($A21,_xlfn.CHOOSECOLS(_xlfn.ANCHORARRAY(Filme!$G$1),2),_xlfn.CHOOSECOLS(_xlfn.ANCHORARRAY(Filme!$G$1),4),"",0,2) -> 2018-12-19 | E21: =_xlfn.XLOOKUP($B21,_xlfn.CHOOSECOLS(_xlfn.ANCHORARRAY(Leute!$F$1),2),_xlfn.CHOOSECOLS(_xlfn.ANCHORARRAY(Leute!$F$1),3),"x",0,2) -> Patricia Arquette | F21: =_xlfn.XLOOKUP($B21,_xlfn.CHOOSECOLS(_xlfn.ANCHORARRAY(Leute!$F$1),2),_xlfn.CHOOSECOLS(_xlfn.ANCHORARRAY(Leute!$F$1),4),"x",0,2) -> 1968-04-08 | G21: =RANK(F21,F$1:F21,0) -> 4 | H21: =DATEDIF(F21,D21,"Y") -> 50 | I21: =DATEDIF(F21,D21,"YD") -> 255 | J21: =D21-F21 -> 18517 | K21: ="MRS "&TEXT(J21,"00000")&" "&SUBSTITUTE(C21,":","")&" ("&TEXT(D21,"TT.MM.JJJJ")&") - "&E21&" ("&TEXT(F21,"TT.MM.JJJJ")&") "&H21&"-"&I21 -> MRS 18517 Escape at Dannemora (19.12.2018) - Patricia Arquette (08.04.1968) 50-255
A22: tt0396271 | B22: nm0000117 | C22: =_xlfn.XLOOKUP($A22,_xlfn.CHOOSECOLS(_xlfn.ANCHORARRAY(Filme!$G$1),2),_xlfn.CHOOSECOLS(_xlfn.ANCHORARRAY(Filme!$G$1),3),"",0,2) -> When Will I Be Loved | D22: =_xlfn.XLOOKUP($A22,_xlfn.CHOOSECOLS(_xlfn.ANCHORARRAY(Filme!$G$1),2),_xlfn.CHOOSECOLS(_xlfn.ANCHORARRAY(Filme!$G$1),4),"",0,2) -> 2005-06-24 | E22: =_xlfn.XLOOKUP($B22,_xlfn.CHOOSECOLS(_xlfn.ANCHORARRAY(Leute!$F$1),2),_xlfn.CHOOSECOLS(_xlfn.ANCHORARRAY(Leute!$F$1),3),"x",0,2) -> Neve Campbell | F22: =_xlfn.XLOOKUP($B22,_xlfn.CHOOSECOLS(_xlfn.ANCHORARRAY(Leute!$F$1),2),_xlfn.CHOOSECOLS(_xlfn.ANCHORARRAY(Leute!$F$1),4),"x",0,2) -> 1973-10-03 | G22: =RANK(F22,F$1:F22,0) -> 1 | H22: =DATEDIF(F22,D22,"Y") -> 31 | I22: =DATEDIF(F22,D22,"YD") -> 264 | J22: =D22-F22 -> 11587 | K22: ="MRS "&TEXT(J22,"00000")&" "&SUBSTITUTE(C22,":","")&" ("&TEXT(D22,"TT.MM.JJJJ")&") - "&E22&" ("&TEXT(F22,"TT.MM.JJJJ")&") "&H22&"-"&I22 -> MRS 11587 When Will I Be Loved (24.06.2005) - Neve Campbell (03.10.1973) 31-264
A23: tt0831299 | B23: nm0000117 | C23: =_xlfn.XLOOKUP($A23,_xlfn.CHOOSECOLS(_xlfn.ANCHORARRAY(Filme!$G$1),2),_xlfn.CHOOSECOLS(_xlfn.ANCHORARRAY(Filme!$G$1),3),"",0,2) -> I Really Hate My Job | D23: =_xlfn.XLOOKUP($A23,_xlfn.CHOOSECOLS(_xlfn.ANCHORARRAY(Filme!$G$1),2),_xlfn.CHOOSECOLS(_xlfn.ANCHORARRAY(Filme!$G$1),4),"",0,2) -> 2007-09-21 | E23: =_xlfn.XLOOKUP($B23,_xlfn.CHOOSECOLS(_xlfn.ANCHORARRAY(Leute!$F$1),2),_xlfn.CHOOSECOLS(_xlfn.ANCHORARRAY(Leute!$F$1),3),"x",0,2) -> Neve Campbell | F23: =_xlfn.XLOOKUP($B23,_xlfn.CHOOSECOLS(_xlfn.ANCHORARRAY(Leute!$F$1),2),_xlfn.CHOOSECOLS(_xlfn.ANCHORARRAY(Leute!$F$1),4),"x",0,2) -> 1973-10-03 | G23: =RANK(F23,F$1:F23,0) -> 1 | H23: =DATEDIF(F23,D23,"Y") -> 33 | I23: =DATEDIF(F23,D23,"YD") -> 353 | J23: =D23-F23 -> 12406 | K23: ="MRS "&TEXT(J23,"00000")&" "&SUBSTITUTE(C23,":","")&" ("&TEXT(D23,"TT.MM.JJJJ")&") - "&E23&" ("&TEXT(F23,"TT.MM.JJJJ")&") "&H23&"-"&I23 -> MRS 12406 I Really Hate My Job (21.09.2007) - Neve Campbell (03.10.1973) 33-353
A24: tt0099797 | B24: nm0000124 | C24: =_xlfn.XLOOKUP($A24,_xlfn.CHOOSECOLS(_xlfn.ANCHORARRAY(Filme!$G$1),2),_xlfn.CHOOSECOLS(_xlfn.ANCHORARRAY(Filme!$G$1),3),"",0,2) -> The Hot Spot | D24: =_xlfn.XLOOKUP($A24,_xlfn.CHOOSECOLS(_xlfn.ANCHORARRAY(Filme!$G$1),2),_xlfn.CHOOSECOLS(_xlfn.ANCHORARRAY(Filme!$G$1),4),"",0,2) -> 1991-01-17 | E24: =_xlfn.XLOOKUP($B24,_xlfn.CHOOSECOLS(_xlfn.ANCHORARRAY(Leute!$F$1),2),_xlfn.CHOOSECOLS(_xlfn.ANCHORARRAY(Leute!$F$1),3),"x",0,2) -> Jennifer Connelly | F24: =_xlfn.XLOOKUP($B24,_xlfn.CHOOSECOLS(_xlfn.ANCHORARRAY(Leute!$F$1),2),_xlfn.CHOOSECOLS(_xlfn.ANCHORARRAY(Leute!$F$1),4),"x",0,2) -> 1970-12-12 | G24: =RANK(F24,F$1:F24,0) -> 3 | H24: =DATEDIF(F24,D24,"Y") -> 20 | I24: =DATEDIF(F24,D24,"YD") -> 36 | J24: =D24-F24 -> 7341 | K24: ="MRS "&TEXT(J24,"00000")&" "&SUBSTITUTE(C24,":","")&" ("&TEXT(D24,"TT.MM.JJJJ")&") - "&E24&" ("&TEXT(F24,"TT.MM.JJJJ")&") "&H24&"-"&I24 -> MRS 07341 The Hot Spot (17.01.1991) - Jennifer Connelly (12.12.1970) 20-36
A25: tt0110712 | B25: nm0000124 | C25: =_xlfn.XLOOKUP($A25,_xlfn.CHOOSECOLS(_xlfn.ANCHORARRAY(Filme!$G$1),2),_xlfn.CHOOSECOLS(_xlfn.ANCHORARRAY(Filme!$G$1),3),"",0,2) -> Of Love and Shadows | D25: =_xlfn.XLOOKUP($A25,_xlfn.CHOOSECOLS(_xlfn.ANCHORARRAY(Filme!$G$1),2),_xlfn.CHOOSECOLS(_xlfn.ANCHORARRAY(Filme!$G$1),4),"",0,2) -> 1994-10-06 | E25: =_xlfn.XLOOKUP($B25,_xlfn.CHOOSECOLS(_xlfn.ANCHORARRAY(Leute!$F$1),2),_xlfn.CHOOSECOLS(_xlfn.ANCHORARRAY(Leute!$F$1),3),"x",0,2) -> Jennifer Connelly | F25: =_xlfn.XLOOKUP($B25,_xlfn.CHOOSECOLS(_xlfn.ANCHORARRAY(Leute!$F$1),2),_xlfn.CHOOSECOLS(_xlfn.ANCHORARRAY(Leute!$F$1),4),"x",0,2) -> 1970-12-12 | G25: =RANK(F25,F$1:F25,0) -> 3 | H25: =DATEDIF(F25,D25,"Y") -> 23 | I25: =DATEDIF(F25,D25,"YD") -> 298 | J25: =D25-F25 -> 8699 | K25: ="MRS "&TEXT(J25,"00000")&" "&SUBSTITUTE(C25,":","")&" ("&TEXT(D25,"TT.MM.JJJJ")&") - "&E25&" ("&TEXT(F25,"TT.MM.JJJJ")&") "&H25&"-"&I25 -> MRS 08699 Of Love and Shadows (06.10.1994) - Jennifer Connelly (12.12.1970) 23-298
A26: tt0117107 | B26: nm0000124 | C26: =_xlfn.XLOOKUP($A26,_xlfn.CHOOSECOLS(_xlfn.ANCHORARRAY(Filme!$G$1),2),_xlfn.CHOOSECOLS(_xlfn.ANCHORARRAY(Filme!$G$1),3),"",0,2) -> Mulholland Falls | D26: =_xlfn.XLOOKUP($A26,_xlfn.CHOOSECOLS(_xlfn.ANCHORARRAY(Filme!$G$1),2),_xlfn.CHOOSECOLS(_xlfn.ANCHORARRAY(Filme!$G$1),4),"",0,2) -> 1996-10-17 | E26: =_xlfn.XLOOKUP($B26,_xlfn.CHOOSECOLS(_xlfn.ANCHORARRAY(Leute!$F$1),2),_xlfn.CHOOSECOLS(_xlfn.ANCHORARRAY(Leute!$F$1),3),"x",0,2) -> Jennifer Connelly | F26: =_xlfn.XLOOKUP($B26,_xlfn.CHOOSECOLS(_xlfn.ANCHORARRAY(Leute!$F$1),2),_xlfn.CHOOSECOLS(_xlfn.ANCHORARRAY(Leute!$F$1),4),"x",0,2) -> 1970-12-12 | G26: =RANK(F26,F$1:F26,0) -> 3 | H26: =DATEDIF(F26,D26,"Y") -> 25 | I26: =DATEDIF(F26,D26,"YD") -> 309 | J26: =D26-F26 -> 9441 | K26: ="MRS "&TEXT(J26,"00000")&" "&SUBSTITUTE(C26,":","")&" ("&TEXT(D26,"TT.MM.JJJJ")&") - "&E26&" ("&TEXT(F26,"TT.MM.JJJJ")&") "&H26&"-"&I26 -> MRS 09441 Mulholland Falls (17.10.1996) - Jennifer Connelly (12.12.1970) 25-309
A27: tt0119381 | B27: nm0000124 | C27: =_xlfn.XLOOKUP($A27,_xlfn.CHOOSECOLS(_xlfn.ANCHORARRAY(Filme!$G$1),2),_xlfn.CHOOSECOLS(_xlfn.ANCHORARRAY(Filme!$G$1),3),"",0,2) -> Inventing the Abbotts | D27: =_xlfn.XLOOKUP($A27,_xlfn.CHOOSECOLS(_xlfn.ANCHORARRAY(Filme!$G$1),2),_xlfn.CHOOSECOLS(_xlfn.ANCHORARRAY(Filme!$G$1),4),"",0,2) -> 1999-04-05 | E27: =_xlfn.XLOOKUP($B27,_xlfn.CHOOSECOLS(_xlfn.ANCHORARRAY(Leute!$F$1),2),_xlfn.CHOOSECOLS(_xlfn.ANCHORARRAY(Leute!$F$1),3),"x",0,2) -> Jennifer Connelly | F27: =_xlfn.XLOOKUP($B27,_xlfn.CHOOSECOLS(_xlfn.ANCHORARRAY(Leute!$F$1),2),_xlfn.CHOOSECOLS(_xlfn.ANCHORARRAY(Leute!$F$1),4),"x",0,2) -> 1970-12-12 | G27: =RANK(F27,F$1:F27,0) -> 3 | H27: =DATEDIF(F27,D27,"Y") -> 28 | I27: =DATEDIF(F27,D27,"YD") -> 114 | J27: =D27-F27 -> 10341 | K27: ="MRS "&TEXT(J27,"00000")&" "&SUBSTITUTE(C27,":","")&" ("&TEXT(D27,"TT.MM.JJJJ")&") - "&E27&" ("&TEXT(F27,"TT.MM.JJJJ")&") "&H27&"-"&I27 -> MRS 10341 Inventing the Abbotts (05.04.1999) - Jennifer Connelly (12.12.1970) 28-114
A28: tt0127349 | B28: nm0000124 | C28: =_xlfn.XLOOKUP($A28,_xlfn.CHOOSECOLS(_xlfn.ANCHORARRAY(Filme!$G$1),2),_xlfn.CHOOSECOLS(_xlfn.ANCHORARRAY(Filme!$G$1),3),"",0,2) -> Waking the Dead | D28: =_xlfn.XLOOKUP($A28,_xlfn.CHOOSECOLS(_xlfn.ANCHORARRAY(Filme!$G$1),2),_xlfn.CHOOSECOLS(_xlfn.ANCHORARRAY(Filme!$G$1),4),"",0,2) -> 2000-03-24 | E28: =_xlfn.XLOOKUP($B28,_xlfn.CHOOSECOLS(_xlfn.ANCHORARRAY(Leute!$F$1),2),_xlfn.CHOOSECOLS(_xlfn.ANCHORARRAY(Leute!$F$1),3),"x",0,2) -> Jennifer Connelly | F28: =_xlfn.XLOOKUP($B28,_xlfn.CHOOSECOLS(_xlfn.ANCHORARRAY(Leute!$F$1),2),_xlfn.CHOOSECOLS(_xlfn.ANCHORARRAY(Leute!$F$1),4),"x",0,2) -> 1970-12-12 | G28: =RANK(F28,F$1:F28,0) -> 3 | H28: =DATEDIF(F28,D28,"Y") -> 29 | I28: =DATEDIF(F28,D28,"YD") -> 102 | J28: =D28-F28 -> 10695 | K28: ="MRS "&TEXT(J28,"00000")&" "&SUBSTITUTE(C28,":","")&" ("&TEXT(D28,"TT.MM.JJJJ")&") - "&E28&" ("&TEXT(F28,"TT.MM.JJJJ")&") "&H28&"-"&I28 -> MRS 10695 Waking the Dead (24.03.2000) - Jennifer Connelly (12.12.1970) 29-102
A29: tt0180093 | B29: nm0000124 | C29: =_xlfn.XLOOKUP($A29,_xlfn.CHOOSECOLS(_xlfn.ANCHORARRAY(Filme!$G$1),2),_xlfn.CHOOSECOLS(_xlfn.ANCHORARRAY(Filme!$G$1),3),"",0,2) -> Requiem for a Dream | D29: =_xlfn.XLOOKUP($A29,_xlfn.CHOOSECOLS(_xlfn.ANCHORARRAY(Filme!$G$1),2),_xlfn.CHOOSECOLS(_xlfn.ANCHORARRAY(Filme!$G$1),4),"",0,2) -> 2002-01-03 | E29: =_xlfn.XLOOKUP($B29,_xlfn.CHOOSECOLS(_xlfn.ANCHORARRAY(Leute!$F$1),2),_xlfn.CHOOSECOLS(_xlfn.ANCHORARRAY(Leute!$F$1),3),"x",0,2) -> Jennifer Connelly | F29: =_xlfn.XLOOKUP($B29,_xlfn.CHOOSECOLS(_xlfn.ANCHORARRAY(Leute!$F$1),2),_xlfn.CHOOSECOLS(_xlfn.ANCHORARRAY(Leute!$F$1),4),"x",0,2) -> 1970-12-12 | G29: =RANK(F29,F$1:F29,0) -> 3 | H29: =DATEDIF(F29,D29,"Y") -> 31 | I29: =DATEDIF(F29,D29,"YD") -> 22 | J29: =D29-F29 -> 11345 | K29: ="MRS "&TEXT(J29,"00000")&" "&SUBSTITUTE(C29,":","")&" ("&TEXT(D29,"TT.MM.JJJJ")&") - "&E29&" ("&TEXT(F29,"TT.MM.JJJJ")&") "&H29&"-"&I29 -> MRS 11345 Requiem for a Dream (03.01.2002) - Jennifer Connelly (12.12.1970) 31-22
A30: tt0315983 | B30: nm0000124 | C30: =_xlfn.XLOOKUP($A30,_xlfn.CHOOSECOLS(_xlfn.ANCHORARRAY(Filme!$G$1),2),_xlfn.CHOOSECOLS(_xlfn.ANCHORARRAY(Filme!$G$1),3),"",0,2) -> House of Sand and Fog | D30: =_xlfn.XLOOKUP($A30,_xlfn.CHOOSECOLS(_xlfn.ANCHORARRAY(Filme!$G$1),2),_xlfn.CHOOSECOLS(_xlfn.ANCHORARRAY(Filme!$G$1),4),"",0,2) -> 2005-02-17 | E30: =_xlfn.XLOOKUP($B30,_xlfn.CHOOSECOLS(_xlfn.ANCHORARRAY(Leute!$F$1),2),_xlfn.CHOOSECOLS(_xlfn.ANCHORARRAY(Leute!$F$1),3),"x",0,2) -> Jennifer Connelly | F30: =_xlfn.XLOOKUP($B30,_xlfn.CHOOSECOLS(_xlfn.ANCHORARRAY(Leute!$F$1),2),_xlfn.CHOOSECOLS(_xlfn.ANCHORARRAY(Leute!$F$1),4),"x",0,2) -> 1970-12-12 | G30: =RANK(F30,F$1:F30,0) -> 3 | H30: =DATEDIF(F30,D30,"Y") -> 34 | I30: =DATEDIF(F30,D30,"YD") -> 67 | J30: =D30-F30 -> 12486 | K30: ="MRS "&TEXT(J30,"00000")&" "&SUBSTITUTE(C30,":","")&" ("&TEXT(D30,"TT.MM.JJJJ")&") - "&E30&" ("&TEXT(F30,"TT.MM.JJJJ")&") "&H30&"-"&I30 -> MRS 12486 House of Sand and Fog (17.02.2005) - Jennifer Connelly (12.12.1970) 34-67
A31: tt0376479 | B31: nm0000124 | C31: =_xlfn.XLOOKUP($A31,_xlfn.CHOOSECOLS(_xlfn.ANCHORARRAY(Filme!$G$1),2),_xlfn.CHOOSECOLS(_xlfn.ANCHORARRAY(Filme!$G$1),3),"",0,2) -> American Pastoral | D31: =_xlfn.XLOOKUP($A31,_xlfn.CHOOSECOLS(_xlfn.ANCHORARRAY(Filme!$G$1),2),_xlfn.CHOOSECOLS(_xlfn.ANCHORARRAY(Filme!$G$1),4),"",0,2) -> 2016-11-17 | E31: =_xlfn.XLOOKUP($B31,_xlfn.CHOOSECOLS(_xlfn.ANCHORARRAY(Leute!$F$1),2),_xlfn.CHOOSECOLS(_xlfn.ANCHORARRAY(Leute!$F$1),3),"x",0,2) -> Jennifer Connelly | F31: =_xlfn.XLOOKUP($B31,_xlfn.CHOOSECOLS(_xlfn.ANCHORARRAY(Leute!$F$1),2),_xlfn.CHOOSECOLS(_xlfn.ANCHORARRAY(Leute!$F$1),4),"x",0,2) -> 1970-12-12 | G31: =RANK(F31,F$1:F31,0) -> 3 | H31: =DATEDIF(F31,D31,"Y") -> 45 | I31: =DATEDIF(F31,D31,"YD") -> 340 | J31: =D31-F31 -> 16777 | K31: ="MRS "&TEXT(J31,"00000")&" "&SUBSTITUTE(C31,":","")&" ("&TEXT(D31,"TT.MM.JJJJ")&") - "&E31&" ("&TEXT(F31,"TT.MM.JJJJ")&") "&H31&"-"&I31 -> MRS 16777 American Pastoral (17.11.2016) - Jennifer Connelly (12.12.1970) 45-340
A32: tt3136112 | B32: nm0000124 | C32: =_xlfn.XLOOKUP($A32,_xlfn.CHOOSECOLS(_xlfn.ANCHORARRAY(Filme!$G$1),2),_xlfn.CHOOSECOLS(_xlfn.ANCHORARRAY(Filme!$G$1),3),"",0,2) -> Shelter | D32: =_xlfn.XLOOKUP($A32,_xlfn.CHOOSECOLS(_xlfn.ANCHORARRAY(Filme!$G$1),2),_xlfn.CHOOSECOLS(_xlfn.ANCHORARRAY(Filme!$G$1),4),"",0,2) -> 2015-12-11 | E32: =_xlfn.XLOOKUP($B32,_xlfn.CHOOSECOLS(_xlfn.ANCHORARRAY(Leute!$F$1),2),_xlfn.CHOOSECOLS(_xlfn.ANCHORARRAY(Leute!$F$1),3),"x",0,2) -> Jennifer Connelly | F32: =_xlfn.XLOOKUP($B32,_xlfn.CHOOSECOLS(_xlfn.ANCHORARRAY(Leute!$F$1),2),_xlfn.CHOOSECOLS(_xlfn.ANCHORARRAY(Leute!$F$1),4),"x",0,2) -> 1970-12-12 | G32: =RANK(F32,F$1:F32,0) -> 3 | H32: =DATEDIF(F32,D32,"Y") -> 44 | I32: =DATEDIF(F32,D32,"YD") -> 364 | J32: =D32-F32 -> 16435 | K32: ="MRS "&TEXT(J32,"00000")&" "&SUBSTITUTE(C32,":","")&" ("&TEXT(D32,"TT.MM.JJJJ")&") - "&E32&" ("&TEXT(F32,"TT.MM.JJJJ")&") "&H32&"-"&I32 -> MRS 16435 Shelter (11.12.2015) - Jennifer Connelly (12.12.1970) 44-364
A33: tt0116289 | B33: nm0000139 | C33: =_xlfn.XLOOKUP($A33,_xlfn.CHOOSECOLS(_xlfn.ANCHORARRAY(Filme!$G$1),2),_xlfn.CHOOSECOLS(_xlfn.ANCHORARRAY(Filme!$G$1),3),"",0,2) -> Feeling Minnesota | D33: =_xlfn.XLOOKUP($A33,_xlfn.CHOOSECOLS(_xlfn.ANCHORARRAY(Filme!$G$1),2),_xlfn.CHOOSECOLS(_xlfn.ANCHORARRAY(Filme!$G$1),4),"",0,2) -> 1996-09-13 | E33: =_xlfn.XLOOKUP($B33,_xlfn.CHOOSECOLS(_xlfn.ANCHORARRAY(Leute!$F$1),2),_xlfn.CHOOSECOLS(_xlfn.ANCHORARRAY(Leute!$F$1),3),"x",0,2) -> Cameron Diaz | F33: =_xlfn.XLOOKUP($B33,_xlfn.CHOOSECOLS(_xlfn.ANCHORARRAY(Leute!$F$1),2),_xlfn.CHOOSECOLS(_xlfn.ANCHORARRAY(Leute!$F$1),4),"x",0,2) -> 1972-08-30 | G33: =RANK(F33,F$1:F33,0) -> 3 | H33: =DATEDIF(F33,D33,"Y") -> 24 | I33: =DATEDIF(F33,D33,"YD") -> 14 | J33: =D33-F33 -> 8780 | K33: ="MRS "&TEXT(J33,"00000")&" "&SUBSTITUTE(C33,":","")&" ("&TEXT(D33,"TT.MM.JJJJ")&") - "&E33&" ("&TEXT(F33,"TT.MM.JJJJ")&") "&H33&"-"&I33 -> MRS 08780 Feeling Minnesota (13.09.1996) - Cameron Diaz (30.08.1972) 24-14
A34: tt0217505 | B34: nm0000139 | C34: =_xlfn.XLOOKUP($A34,_xlfn.CHOOSECOLS(_xlfn.ANCHORARRAY(Filme!$G$1),2),_xlfn.CHOOSECOLS(_xlfn.ANCHORARRAY(Filme!$G$1),3),"",0,2) -> Gangs of New York | D34: =_xlfn.XLOOKUP($A34,_xlfn.CHOOSECOLS(_xlfn.ANCHORARRAY(Filme!$G$1),2),_xlfn.CHOOSECOLS(_xlfn.ANCHORARRAY(Filme!$G$1),4),"",0,2) -> 2003-02-20 | E34: =_xlfn.XLOOKUP($B34,_xlfn.CHOOSECOLS(_xlfn.ANCHORARRAY(Leute!$F$1),2),_xlfn.CHOOSECOLS(_xlfn.ANCHORARRAY(Leute!$F$1),3),"x",0,2) -> Cameron Diaz | F34: =_xlfn.XLOOKUP($B34,_xlfn.CHOOSECOLS(_xlfn.ANCHORARRAY(Leute!$F$1),2),_xlfn.CHOOSECOLS(_xlfn.ANCHORARRAY(Leute!$F$1),4),"x",0,2) -> 1972-08-30 | G34: =RANK(F34,F$1:F34,0) -> 3 | H34: =DATEDIF(F34,D34,"Y") -> 30 | I34: =DATEDIF(F34,D34,"YD") -> 174 | J34: =D34-F34 -> 11131 | K34: ="MRS "&TEXT(J34,"00000")&" "&SUBSTITUTE(C34,":","")&" ("&TEXT(D34,"TT.MM.JJJJ")&") - "&E34&" ("&TEXT(F34,"TT.MM.JJJJ")&") "&H34&"-"&I34 -> MRS 11131 Gangs of New York (20.02.2003) - Cameron Diaz (30.08.1972) 30-174
A35: tt0259711 | B35: nm0000139 | C35: =_xlfn.XLOOKUP($A35,_xlfn.CHOOSECOLS(_xlfn.ANCHORARRAY(Filme!$G$1),2),_xlfn.CHOOSECOLS(_xlfn.ANCHORARRAY(Filme!$G$1),3),"",0,2) -> Vanilla Sky | D35: =_xlfn.XLOOKUP($A35,_xlfn.CHOOSECOLS(_xlfn.ANCHORARRAY(Filme!$G$1),2),_xlfn.CHOOSECOLS(_xlfn.ANCHORARRAY(Filme!$G$1),4),"",0,2) -> 2002-01-24 | E35: =_xlfn.XLOOKUP($B35,_xlfn.CHOOSECOLS(_xlfn.ANCHORARRAY(Leute!$F$1),2),_xlfn.CHOOSECOLS(_xlfn.ANCHORARRAY(Leute!$F$1),3),"x",0,2) -> Cameron Diaz | F35: =_xlfn.XLOOKUP($B35,_xlfn.CHOOSECOLS(_xlfn.ANCHORARRAY(Leute!$F$1),2),_xlfn.CHOOSECOLS(_xlfn.ANCHORARRAY(Leute!$F$1),4),"x",0,2) -> 1972-08-30 | G35: =RANK(F35,F$1:F35,0) -> 3 | H35: =DATEDIF(F35,D35,"Y") -> 29 | I35: =DATEDIF(F35,D35,"YD") -> 147 | J35: =D35-F35 -> 10739 | K35: ="MRS "&TEXT(J35,"00000")&" "&SUBSTITUTE(C35,":","")&" ("&TEXT(D35,"TT.MM.JJJJ")&") - "&E35&" ("&TEXT(F35,"TT.MM.JJJJ")&") "&H35&"-"&I35 -> MRS 10739 Vanilla Sky (24.01.2002) - Cameron Diaz (30.08.1972) 29-147
A36: tt1956620 | B36: nm0000139 | C36: =_xlfn.XLOOKUP($A36,_xlfn.CHOOSECOLS(_xlfn.ANCHORARRAY(Filme!$G$1),2),_xlfn.CHOOSECOLS(_xlfn.ANCHORARRAY(Filme!$G$1),3),"",0,2) -> Sex Tape | D36: =_xlfn.XLOOKUP($A36,_xlfn.CHOOSECOLS(_xlfn.ANCHORARRAY(Filme!$G$1),2),_xlfn.CHOOSECOLS(_xlfn.ANCHORARRAY(Filme!$G$1),4),"",0,2) -> 2014-09-11 | E36: =_xlfn.XLOOKUP($B36,_xlfn.CHOOSECOLS(_xlfn.ANCHORARRAY(Leute!$F$1),2),_xlfn.CHOOSECOLS(_xlfn.ANCHORARRAY(Leute!$F$1),3),"x",0,2) -> Cameron Diaz | F36: =_xlfn.XLOOKUP($B36,_xlfn.CHOOSECOLS(_xlfn.ANCHORARRAY(Leute!$F$1),2),_xlfn.CHOOSECOLS(_xlfn.ANCHORARRAY(Leute!$F$1),4),"x",0,2) -> 1972-08-30 | G36: =RANK(F36,F$1:F36,0) -> 3 | H36: =DATEDIF(F36,D36,"Y") -> 42 | I36: =DATEDIF(F36,D36,"YD") -> 12 | J36: =D36-F36 -> 15352 | K36: ="MRS "&TEXT(J36,"00000")&" "&SUBSTITUTE(C36,":","")&" ("&TEXT(D36,"TT.MM.JJJJ")&") - "&E36&" ("&TEXT(F36,"TT.MM.JJJJ")&") "&H36&"-"&I36 -> MRS 15352 Sex Tape (11.09.2014) - Cameron Diaz (30.08.1972) 42-12
A37: tt2193215 | B37: nm0000139 | C37: =_xlfn.XLOOKUP($A37,_xlfn.CHOOSECOLS(_xlfn.ANCHORARRAY(Filme!$G$1),2),_xlfn.CHOOSECOLS(_xlfn.ANCHORARRAY(Filme!$G$1),3),"",0,2) -> The Counselor | D37: =_xlfn.XLOOKUP($A37,_xlfn.CHOOSECOLS(_xlfn.ANCHORARRAY(Filme!$G$1),2),_xlfn.CHOOSECOLS(_xlfn.ANCHORARRAY(Filme!$G$1),4),"",0,2) -> 2013-11-28 | E37: =_xlfn.XLOOKUP($B37,_xlfn.CHOOSECOLS(_xlfn.ANCHORARRAY(Leute!$F$1),2),_xlfn.CHOOSECOLS(_xlfn.ANCHORARRAY(Leute!$F$1),3),"x",0,2) -> Cameron Diaz | F37: =_xlfn.XLOOKUP($B37,_xlfn.CHOOSECOLS(_xlfn.ANCHORARRAY(Leute!$F$1),2),_xlfn.CHOOSECOLS(_xlfn.ANCHORARRAY(Leute!$F$1),4),"x",0,2) -> 1972-08-30 | G37: =RANK(F37,F$1:F37,0) -> 3 | H37: =DATEDIF(F37,D37,"Y") -> 41 | I37: =DATEDIF(F37,D37,"YD") -> 90 | J37: =D37-F37 -> 15065 | K37: ="MRS "&TEXT(J37,"00000")&" "&SUBSTITUTE(C37,":","")&" ("&TEXT(D37,"TT.MM.JJJJ")&") - "&E37&" ("&TEXT(F37,"TT.MM.JJJJ")&") "&H37&"-"&I37 -> MRS 15065 The Counselor (28.11.2013) - Cameron Diaz (30.08.1972) 41-90
A38: tt0094087 | B38: nm0000153 | C38: =_xlfn.XLOOKUP($A38,_xlfn.CHOOSECOLS(_xlfn.ANCHORARRAY(Filme!$G$1),2),_xlfn.CHOOSECOLS(_xlfn.ANCHORARRAY(Filme!$G$1),3),"",0,2) -> Sweet Revenge | D38: =_xlfn.XLOOKUP($A38,_xlfn.CHOOSECOLS(_xlfn.ANCHORARRAY(Filme!$G$1),2),_xlfn.CHOOSECOLS(_xlfn.ANCHORARRAY(Filme!$G$1),4),"",0,2) -> 1987-02-28 | E38: =_xlfn.XLOOKUP($B38,_xlfn.CHOOSECOLS(_xlfn.ANCHORARRAY(Leute!$F$1),2),_xlfn.CHOOSECOLS(_xlfn.ANCHORARRAY(Leute!$F$1),3),"x",0,2) -> Gina Gershon | F38: =_xlfn.XLOOKUP($B38,_xlfn.CHOOSECOLS(_xlfn.ANCHORARRAY(Leute!$F$1),2),_xlfn.CHOOSECOLS(_xlfn.ANCHORARRAY(Leute!$F$1),4),"x",0,2) -> 1962-06-10 | G38: =RANK(F38,F$1:F38,0) -> 38 | H38: =DATEDIF(F38,D38,"Y") -> 24 | I38: =DATEDIF(F38,D38,"YD") -> 263 | J38: =D38-F38 -> 9029 | K38: ="MRS "&TEXT(J38,"00000")&" "&SUBSTITUTE(C38,":","")&" ("&TEXT(D38,"TT.MM.JJJJ")&") - "&E38&" ("&TEXT(F38,"TT.MM.JJJJ")&") "&H38&"-"&I38 -> MRS 09029 Sweet Revenge (28.02.1987) - Gina Gershon (10.06.1962) 24-263
A39: tt0094889 | B39: nm0000153 | C39: =_xlfn.XLOOKUP($A39,_xlfn.CHOOSECOLS(_xlfn.ANCHORARRAY(Filme!$G$1),2),_xlfn.CHOOSECOLS(_xlfn.ANCHORARRAY(Filme!$G$1),3),"",0,2) -> Cocktail | D39: =_xlfn.XLOOKUP($A39,_xlfn.CHOOSECOLS(_xlfn.ANCHORARRAY(Filme!$G$1),2),_xlfn.CHOOSECOLS(_xlfn.ANCHORARRAY(Filme!$G$1),4),"",0,2) -> 1989-01-12 | E39: =_xlfn.XLOOKUP($B39,_xlfn.CHOOSECOLS(_xlfn.ANCHORARRAY(Leute!$F$1),2),_xlfn.CHOOSECOLS(_xlfn.ANCHORARRAY(Leute!$F$1),3),"x",0,2) -> Gina Gershon | F39: =_xlfn.XLOOKUP($B39,_xlfn.CHOOSECOLS(_xlfn.ANCHORARRAY(Leute!$F$1),2),_xlfn.CHOOSECOLS(_xlfn.ANCHORARRAY(Leute!$F$1),4),"x",0,2) -> 1962-06-10 | G39: =RANK(F39,F$1:F39,0) -> 38 | H39: =DATEDIF(F39,D39,"Y") -> 26 | I39: =DATEDIF(F39,D39,"YD") -> 216 | J39: =D39-F39 -> 9713 | K39: ="MRS "&TEXT(J39,"00000")&" "&SUBSTITUTE(C39,":","")&" ("&TEXT(D39,"TT.MM.JJJJ")&") - "&E39&" ("&TEXT(F39,"TT.MM.JJJJ")&") "&H39&"-"&I39 -> MRS 09713 Cocktail (12.01.1989) - Gina Gershon (10.06.1962) 26-216
A40: tt0107449 | B40: nm0000153 | C40: =_xlfn.XLOOKUP($A40,_xlfn.CHOOSECOLS(_xlfn.ANCHORARRAY(Filme!$G$1),2),_xlfn.CHOOSECOLS(_xlfn.ANCHORARRAY(Filme!$G$1),3),"",0,2) -> Love Matters | D40: =_xlfn.XLOOKUP($A40,_xlfn.CHOOSECOLS(_xlfn.ANCHORARRAY(Filme!$G$1),2),_xlfn.CHOOSECOLS(_xlfn.ANCHORARRAY(Filme!$G$1),4),"",0,2) -> 1993-10-03 | E40: =_xlfn.XLOOKUP($B40,_xlfn.CHOOSECOLS(_xlfn.ANCHORARRAY(Leute!$F$1),2),_xlfn.CHOOSECOLS(_xlfn.ANCHORARRAY(Leute!$F$1),3),"x",0,2) -> Gina Gershon | F40: =_xlfn.XLOOKUP($B40,_xlfn.CHOOSECOLS(_xlfn.ANCHORARRAY(Leute!$F$1),2),_xlfn.CHOOSECOLS(_xlfn.ANCHORARRAY(Leute!$F$1),4),"x",0,2) -> 1962-06-10 | G40: =RANK(F40,F$1:F40,0) -> 38 | H40: =DATEDIF(F40,D40,"Y") -> 31 | I40: =DATEDIF(F40,D40,"YD") -> 115 | J40: =D40-F40 -> 11438 | K40: ="MRS "&TEXT(J40,"00000")&" "&SUBSTITUTE(C40,":","")&" ("&TEXT(D40,"TT.MM.JJJJ")&") - "&E40&" ("&TEXT(F40,"TT.MM.JJJJ")&") "&H40&"-"&I40 -> MRS 11438 Love Matters (03.10.1993) - Gina Gershon (10.06.1962) 31-115
A41: tt0114436 | B41: nm0000153 | C41: =_xlfn.XLOOKUP($A41,_xlfn.CHOOSECOLS(_xlfn.ANCHORARRAY(Filme!$G$1),2),_xlfn.CHOOSECOLS(_xlfn.ANCHORARRAY(Filme!$G$1),3),"",0,2) -> Showgirls | D41: =_xlfn.XLOOKUP($A41,_xlfn.CHOOSECOLS(_xlfn.ANCHORARRAY(Filme!$G$1),2),_xlfn.CHOOSECOLS(_xlfn.ANCHORARRAY(Filme!$G$1),4),"",0,2) -> 1996-01-25 | E41: =_xlfn.XLOOKUP($B41,_xlfn.CHOOSECOLS(_xlfn.ANCHORARRAY(Leute!$F$1),2),_xlfn.CHOOSECOLS(_xlfn.ANCHORARRAY(Leute!$F$1),3),"x",0,2) -> Gina Gershon | F41: =_xlfn.XLOOKUP($B41,_xlfn.CHOOSECOLS(_xlfn.ANCHORARRAY(Leute!$F$1),2),_xlfn.CHOOSECOLS(_xlfn.ANCHORARRAY(Leute!$F$1),4),"x",0,2) -> 1962-06-10 | G41: =RANK(F41,F$1:F41,0) -> 38 | H41: =DATEDIF(F41,D41,"Y") -> 33 | I41: =DATEDIF(F41,D41,"YD") -> 229 | J41: =D41-F41 -> 12282 | K41: ="MRS "&TEXT(J41,"00000")&" "&SUBSTITUTE(C41,":","")&" ("&TEXT(D41,"TT.MM.JJJJ")&") - "&E41&" ("&TEXT(F41,"TT.MM.JJJJ")&") "&H41&"-"&I41 -> MRS 12282 Showgirls (25.01.1996) - Gina Gershon (10.06.1962) 33-229
A42: tt0115736 | B42: nm0000153 | C42: =_xlfn.XLOOKUP($A42,_xlfn.CHOOSECOLS(_xlfn.ANCHORARRAY(Filme!$G$1),2),_xlfn.CHOOSECOLS(_xlfn.ANCHORARRAY(Filme!$G$1),3),"",0,2) -> Bound | D42: =_xlfn.XLOOKUP($A42,_xlfn.CHOOSECOLS(_xlfn.ANCHORARRAY(Filme!$G$1),2),_xlfn.CHOOSECOLS(_xlfn.ANCHORARRAY(Filme!$G$1),4),"",0,2) -> 1996-10-31 | E42: =_xlfn.XLOOKUP($B42,_xlfn.CHOOSECOLS(_xlfn.ANCHORARRAY(Leute!$F$1),2),_xlfn.CHOOSECOLS(_xlfn.ANCHORARRAY(Leute!$F$1),3),"x",0,2) -> Gina Gershon | F42: =_xlfn.XLOOKUP($B42,_xlfn.CHOOSECOLS(_xlfn.ANCHORARRAY(Leute!$F$1),2),_xlfn.CHOOSECOLS(_xlfn.ANCHORARRAY(Leute!$F$1),4),"x",0,2) -> 1962-06-10 | G42: =RANK(F42,F$1:F42,0) -> 38 | H42: =DATEDIF(F42,D42,"Y") -> 34 | I42: =DATEDIF(F42,D42,"YD") -> 143 | J42: =D42-F42 -> 12562 | K42: ="MRS "&TEXT(J42,"00000")&" "&SUBSTITUTE(C42,":","")&" ("&TEXT(D42,"TT.MM.JJJJ")&") - "&E42&" ("&TEXT(F42,"TT.MM.JJJJ")&") "&H42&"-"&I42 -> MRS 12562 Bound (31.10.1996) - Gina Gershon (10.06.1962) 34-143
A43: tt0117898 | B43: nm0000153 | C43: =_xlfn.XLOOKUP($A43,_xlfn.CHOOSECOLS(_xlfn.ANCHORARRAY(Filme!$G$1),2),_xlfn.CHOOSECOLS(_xlfn.ANCHORARRAY(Filme!$G$1),3),"",0,2) -> This World, Then the Fireworks | D43: =_xlfn.XLOOKUP($A43,_xlfn.CHOOSECOLS(_xlfn.ANCHORARRAY(Filme!$G$1),2),_xlfn.CHOOSECOLS(_xlfn.ANCHORARRAY(Filme!$G$1),4),"",0,2) -> 1997-07-11 | E43: =_xlfn.XLOOKUP($B43,_xlfn.CHOOSECOLS(_xlfn.ANCHORARRAY(Leute!$F$1),2),_xlfn.CHOOSECOLS(_xlfn.ANCHORARRAY(Leute!$F$1),3),"x",0,2) -> Gina Gershon | F43: =_xlfn.XLOOKUP($B43,_xlfn.CHOOSECOLS(_xlfn.ANCHORARRAY(Leute!$F$1),2),_xlfn.CHOOSECOLS(_xlfn.ANCHORARRAY(Leute!$F$1),4),"x",0,2) -> 1962-06-10 | G43: =RANK(F43,F$1:F43,0) -> 38 | H43: =DATEDIF(F43,D43,"Y") -> 35 | I43: =DATEDIF(F43,D43,"YD") -> 31 | J43: =D43-F43 -> 12815 | K43: ="MRS "&TEXT(J43,"00000")&" "&SUBSTITUTE(C43,":","")&" ("&TEXT(D43,"TT.MM.JJJJ")&") - "&E43&" ("&TEXT(F43,"TT.MM.JJJJ")&") "&H43&"-"&I43 -> MRS 12815 This World, Then the Fireworks (11.07.1997) - Gina Gershon (10.06.1962) 35-31
A44: tt0149898 | B44: nm0000153 | C44: =_xlfn.XLOOKUP($A44,_xlfn.CHOOSECOLS(_xlfn.ANCHORARRAY(Filme!$G$1),2),_xlfn.CHOOSECOLS(_xlfn.ANCHORARRAY(Filme!$G$1),3),"",0,2) -> Black and White | D44: =_xlfn.XLOOKUP($A44,_xlfn.CHOOSECOLS(_xlfn.ANCHORARRAY(Filme!$G$1),2),_xlfn.CHOOSECOLS(_xlfn.ANCHORARRAY(Filme!$G$1),4),"",0,2) -> 2001-04-25 | E44: =_xlfn.XLOOKUP($B44,_xlfn.CHOOSECOLS(_xlfn.ANCHORARRAY(Leute!$F$1),2),_xlfn.CHOOSECOLS(_xlfn.ANCHORARRAY(Leute!$F$1),3),"x",0,2) -> Gina Gershon | F44: =_xlfn.XLOOKUP($B44,_xlfn.CHOOSECOLS(_xlfn.ANCHORARRAY(Leute!$F$1),2),_xlfn.CHOOSECOLS(_xlfn.ANCHORARRAY(Leute!$F$1),4),"x",0,2) -> 1962-06-10 | G44: =RANK(F44,F$1:F44,0) -> 38 | H44: =DATEDIF(F44,D44,"Y") -> 38 | I44: =DATEDIF(F44,D44,"YD") -> 319 | J44: =D44-F44 -> 14199 | K44: ="MRS "&TEXT(J44,"00000")&" "&SUBSTITUTE(C44,":","")&" ("&TEXT(D44,"TT.MM.JJJJ")&") - "&E44&" ("&TEXT(F44,"TT.MM.JJJJ")&") "&H44&"-"&I44 -> MRS 14199 Black and White (25.04.2001) - Gina Gershon (10.06.1962) 38-319
A45: tt1726669 | B45: nm0000153 | C45: =_xlfn.XLOOKUP($A45,_xlfn.CHOOSECOLS(_xlfn.ANCHORARRAY(Filme!$G$1),2),_xlfn.CHOOSECOLS(_xlfn.ANCHORARRAY(Filme!$G$1),3),"",0,2) -> Killer Joe | D45: =_xlfn.XLOOKUP($A45,_xlfn.CHOOSECOLS(_xlfn.ANCHORARRAY(Filme!$G$1),2),_xlfn.CHOOSECOLS(_xlfn.ANCHORARRAY(Filme!$G$1),4),"",0,2) -> 2012-06-29 | E45: =_xlfn.XLOOKUP($B45,_xlfn.CHOOSECOLS(_xlfn.ANCHORARRAY(Leute!$F$1),2),_xlfn.CHOOSECOLS(_xlfn.ANCHORARRAY(Leute!$F$1),3),"x",0,2) -> Gina Gershon | F45: =_xlfn.XLOOKUP($B45,_xlfn.CHOOSECOLS(_xlfn.ANCHORARRAY(Leute!$F$1),2),_xlfn.CHOOSECOLS(_xlfn.ANCHORARRAY(Leute!$F$1),4),"x",0,2) -> 1962-06-10 | G45: =RANK(F45,F$1:F45,0) -> 38 | H45: =DATEDIF(F45,D45,"Y") -> 50 | I45: =DATEDIF(F45,D45,"YD") -> 19 | J45: =D45-F45 -> 18282 | K45: ="MRS "&TEXT(J45,"00000")&" "&SUBSTITUTE(C45,":","")&" ("&TEXT(D45,"TT.MM.JJJJ")&") - "&E45&" ("&TEXT(F45,"TT.MM.JJJJ")&") "&H45&"-"&I45 -> MRS 18282 Killer Joe (29.06.2012) - Gina Gershon (10.06.1962) 50-19
A46: tt2531344 | B46: nm0000153 | C46: =_xlfn.XLOOKUP($A46,_xlfn.CHOOSECOLS(_xlfn.ANCHORARRAY(Filme!$G$1),2),_xlfn.CHOOSECOLS(_xlfn.ANCHORARRAY(Filme!$G$1),3),"",0,2) -> Blockers | D46: =_xlfn.XLOOKUP($A46,_xlfn.CHOOSECOLS(_xlfn.ANCHORARRAY(Filme!$G$1),2),_xlfn.CHOOSECOLS(_xlfn.ANCHORARRAY(Filme!$G$1),4),"",0,2) -> 2018-04-12 | E46: =_xlfn.XLOOKUP($B46,_xlfn.CHOOSECOLS(_xlfn.ANCHORARRAY(Leute!$F$1),2),_xlfn.CHOOSECOLS(_xlfn.ANCHORARRAY(Leute!$F$1),3),"x",0,2) -> Gina Gershon | F46: =_xlfn.XLOOKUP($B46,_xlfn.CHOOSECOLS(_xlfn.ANCHORARRAY(Leute!$F$1),2),_xlfn.CHOOSECOLS(_xlfn.ANCHORARRAY(Leute!$F$1),4),"x",0,2) -> 1962-06-10 | G46: =RANK(F46,F$1:F46,0) -> 38 | H46: =DATEDIF(F46,D46,"Y") -> 55 | I46: =DATEDIF(F46,D46,"YD") -> 306 | J46: =D46-F46 -> 20395 | K46: ="MRS "&TEXT(J46,"00000")&" "&SUBSTITUTE(C46,":","")&" ("&TEXT(D46,"TT.MM.JJJJ")&") - "&E46&" ("&TEXT(F46,"TT.MM.JJJJ")&") "&H46&"-"&I46 -> MRS 20395 Blockers (12.04.2018) - Gina Gershon (10.06.1962) 55-306
A47: tt0092220 | B47: nm0000173 | C47: =_xlfn.XLOOKUP($A47,_xlfn.CHOOSECOLS(_xlfn.ANCHORARRAY(Filme!$G$1),2),_xlfn.CHOOSECOLS(_xlfn.ANCHORARRAY(Filme!$G$1),3),"",0,2) -> Windrider | D47: =_xlfn.XLOOKUP($A47,_xlfn.CHOOSECOLS(_xlfn.ANCHORARRAY(Filme!$G$1),2),_xlfn.CHOOSECOLS(_xlfn.ANCHORARRAY(Filme!$G$1),4),"",0,2) -> 1986-12-26 | E47: =_xlfn.XLOOKUP($B47,_xlfn.CHOOSECOLS(_xlfn.ANCHORARRAY(Leute!$F$1),2),_xlfn.CHOOSECOLS(_xlfn.ANCHORARRAY(Leute!$F$1),3),"x",0,2) -> Nicole Kidman | F47: =_xlfn.XLOOKUP($B47,_xlfn.CHOOSECOLS(_xlfn.ANCHORARRAY(Leute!$F$1),2),_xlfn.CHOOSECOLS(_xlfn.ANCHORARRAY(Leute!$F$1),4),"x",0,2) -> 1967-06-20 | G47: =RANK(F47,F$1:F47,0) -> 38 | H47: =DATEDIF(F47,D47,"Y") -> 19 | I47: =DATEDIF(F47,D47,"YD") -> 189 | J47: =D47-F47 -> 7129 | K47: ="MRS "&TEXT(J47,"00000")&" "&SUBSTITUTE(C47,":","")&" ("&TEXT(D47,"TT.MM.JJJJ")&") - "&E47&" ("&TEXT(F47,"TT.MM.JJJJ")&") "&H47&"-"&I47 -> MRS 07129 Windrider (26.12.1986) - Nicole Kidman (20.06.1967) 19-189
A48: tt0097162 | B48: nm0000173 | C48: =_xlfn.XLOOKUP($A48,_xlfn.CHOOSECOLS(_xlfn.ANCHORARRAY(Filme!$G$1),2),_xlfn.CHOOSECOLS(_xlfn.ANCHORARRAY(Filme!$G$1),3),"",0,2) -> Dead Calm | D48: =_xlfn.XLOOKUP($A48,_xlfn.CHOOSECOLS(_xlfn.ANCHORARRAY(Filme!$G$1),2),_xlfn.CHOOSECOLS(_xlfn.ANCHORARRAY(Filme!$G$1),4),"",0,2) -> 1989-07-27 | E48: =_xlfn.XLOOKUP($B48,_xlfn.CHOOSECOLS(_xlfn.ANCHORARRAY(Leute!$F$1),2),_xlfn.CHOOSECOLS(_xlfn.ANCHORARRAY(Leute!$F$1),3),"x",0,2) -> Nicole Kidman | F48: =_xlfn.XLOOKUP($B48,_xlfn.CHOOSECOLS(_xlfn.ANCHORARRAY(Leute!$F$1),2),_xlfn.CHOOSECOLS(_xlfn.ANCHORARRAY(Leute!$F$1),4),"x",0,2) -> 1967-06-20 | G48: =RANK(F48,F$1:F48,0) -> 38 | H48: =DATEDIF(F48,D48,"Y") -> 22 | I48: =DATEDIF(F48,D48,"YD") -> 37 | J48: =D48-F48 -> 8073 | K48: ="MRS "&TEXT(J48,"00000")&" "&SUBSTITUTE(C48,":","")&" ("&TEXT(D48,"TT.MM.JJJJ")&") - "&E48&" ("&TEXT(F48,"TT.MM.JJJJ")&") "&H48&"-"&I48 -> MRS 08073 Dead Calm (27.07.1989) - Nicole Kidman (20.06.1967) 22-37
A49: tt0101453 | B49: nm0000173 | C49: =_xlfn.XLOOKUP($A49,_xlfn.CHOOSECOLS(_xlfn.ANCHORARRAY(Filme!$G$1),2),_xlfn.CHOOSECOLS(_xlfn.ANCHORARRAY(Filme!$G$1),3),"",0,2) -> Billy Bathgate | D49: =_xlfn.XLOOKUP($A49,_xlfn.CHOOSECOLS(_xlfn.ANCHORARRAY(Filme!$G$1),2),_xlfn.CHOOSECOLS(_xlfn.ANCHORARRAY(Filme!$G$1),4),"",0,2) -> 1992-02-20 | E49: =_xlfn.XLOOKUP($B49,_xlfn.CHOOSECOLS(_xlfn.ANCHORARRAY(Leute!$F$1),2),_xlfn.CHOOSECOLS(_xlfn.ANCHORARRAY(Leute!$F$1),3),"x",0,2) -> Nicole Kidman | F49: =_xlfn.XLOOKUP($B49,_xlfn.CHOOSECOLS(_xlfn.ANCHORARRAY(Leute!$F$1),2),_xlfn.CHOOSECOLS(_xlfn.ANCHORARRAY(Leute!$F$1),4),"x",0,2) -> 1967-06-20 | G49: =RANK(F49,F$1:F49,0) -> 38 | H49: =DATEDIF(F49,D49,"Y") -> 24 | I49: =DATEDIF(F49,D49,"YD") -> 245 | J49: =D49-F49 -> 9011 | K49: ="MRS "&TEXT(J49,"00000")&" "&SUBSTITUTE(C49,":","")&" ("&TEXT(D49,"TT.MM.JJJJ")&") - "&E49&" ("&TEXT(F49,"TT.MM.JJJJ")&") "&H49&"-"&I49 -> MRS 09011 Billy Bathgate (20.02.1992) - Nicole Kidman (20.06.1967) 24-245
A50: tt0107497 | B50: nm0000173 | C50: =_xlfn.XLOOKUP($A50,_xlfn.CHOOSECOLS(_xlfn.ANCHORARRAY(Filme!$G$1),2),_xlfn.CHOOSECOLS(_xlfn.ANCHORARRAY(Filme!$G$1),3),"",0,2) -> Malice | D50: =_xlfn.XLOOKUP($A50,_xlfn.CHOOSECOLS(_xlfn.ANCHORARRAY(Filme!$G$1),2),_xlfn.CHOOSECOLS(_xlfn.ANCHORARRAY(Filme!$G$1),4),"",0,2) -> 1994-05-19 | E50: =_xlfn.XLOOKUP($B50,_xlfn.CHOOSECOLS(_xlfn.ANCHORARRAY(Leute!$F$1),2),_xlfn.CHOOSECOLS(_xlfn.ANCHORARRAY(Leute!$F$1),3),"x",0,2) -> Nicole Kidman | F50: =_xlfn.XLOOKUP($B50,_xlfn.CHOOSECOLS(_xlfn.ANCHORARRAY(Leute!$F$1),2),_xlfn.CHOOSECOLS(_xlfn.ANCHORARRAY(Leute!$F$1),4),"x",0,2) -> 1967-06-20 | G50: =RANK(F50,F$1:F50,0) -> 38 | H50: =DATEDIF(F50,D50,"Y") -> 26 | I50: =DATEDIF(F50,D50,"YD") -> 334 | J50: =D50-F50 -> 9830 | K50: ="MRS "&TEXT(J50,"00000")&" "&SUBSTITUTE(C50,":","")&" ("&TEXT(D50,"TT.MM.JJJJ")&") - "&E50&" ("&TEXT(F50,"TT.MM.JJJJ")&") "&H50&"-"&I50 -> MRS 09830 Malice (19.05.1994) - Nicole Kidman (20.06.1967) 26-334
A51: tt0117364 | B51: nm0000173 | C51: =_xlfn.XLOOKUP($A51,_xlfn.CHOOSECOLS(_xlfn.ANCHORARRAY(Filme!$G$1),2),_xlfn.CHOOSECOLS(_xlfn.ANCHORARRAY(Filme!$G$1),3),"",0,2) -> The Portrait of a Lady | D51: =_xlfn.XLOOKUP($A51,_xlfn.CHOOSECOLS(_xlfn.ANCHORARRAY(Filme!$G$1),2),_xlfn.CHOOSECOLS(_xlfn.ANCHORARRAY(Filme!$G$1),4),"",0,2) -> 1997-01-09 | E51: =_xlfn.XLOOKUP($B51,_xlfn.CHOOSECOLS(_xlfn.ANCHORARRAY(Leute!$F$1),2),_xlfn.CHOOSECOLS(_xlfn.ANCHORARRAY(Leute!$F$1),3),"x",0,2) -> Nicole Kidman | F51: =_xlfn.XLOOKUP($B51,_xlfn.CHOOSECOLS(_xlfn.ANCHORARRAY(Leute!$F$1),2),_xlfn.CHOOSECOLS(_xlfn.ANCHORARRAY(Leute!$F$1),4),"x",0,2) -> 1967-06-20 | G51: =RANK(F51,F$1:F51,0) -> 38 | H51: =DATEDIF(F51,D51,"Y") -> 29 | I51: =DATEDIF(F51,D51,"YD") -> 203 | J51: =D51-F51 -> 10796 | K51: ="MRS "&TEXT(J51,"00000")&" "&SUBSTITUTE(C51,":","")&" ("&TEXT(D51,"TT.MM.JJJJ")&") - "&E51&" ("&TEXT(F51,"TT.MM.JJJJ")&") "&H51&"-"&I51 -> MRS 10796 The Portrait of a Lady (09.01.1997) - Nicole Kidman (20.06.1967) 29-203
A52: tt0120663 | B52: nm0000173 | C52: =_xlfn.XLOOKUP($A52,_xlfn.CHOOSECOLS(_xlfn.ANCHORARRAY(Filme!$G$1),2),_xlfn.CHOOSECOLS(_xlfn.ANCHORARRAY(Filme!$G$1),3),"",0,2) -> Eyes Wide Shut | D52: =_xlfn.XLOOKUP($A52,_xlfn.CHOOSECOLS(_xlfn.ANCHORARRAY(Filme!$G$1),2),_xlfn.CHOOSECOLS(_xlfn.ANCHORARRAY(Filme!$G$1),4),"",0,2) -> 1999-09-09 | E52: =_xlfn.XLOOKUP($B52,_xlfn.CHOOSECOLS(_xlfn.ANCHORARRAY(Leute!$F$1),2),_xlfn.CHOOSECOLS(_xlfn.ANCHORARRAY(Leute!$F$1),3),"x",0,2) -> Nicole Kidman | F52: =_xlfn.XLOOKUP($B52,_xlfn.CHOOSECOLS(_xlfn.ANCHORARRAY(Leute!$F$1),2),_xlfn.CHOOSECOLS(_xlfn.ANCHORARRAY(Leute!$F$1),4),"x",0,2) -> 1967-06-20 | G52: =RANK(F52,F$1:F52,0) -> 38 | H52: =DATEDIF(F52,D52,"Y") -> 32 | I52: =DATEDIF(F52,D52,"YD") -> 81 | J52: =D52-F52 -> 11769 | K52: ="MRS "&TEXT(J52,"00000")&" "&SUBSTITUTE(C52,":","")&" ("&TEXT(D52,"TT.MM.JJJJ")&") - "&E52&" ("&TEXT(F52,"TT.MM.JJJJ")&") "&H52&"-"&I52 -> MRS 11769 Eyes Wide Shut (09.09.1999) - Nicole Kidman (20.06.1967) 32-81
A53: tt0159365 | B53: nm0000173 | C53: =_xlfn.XLOOKUP($A53,_xlfn.CHOOSECOLS(_xlfn.ANCHORARRAY(Filme!$G$1),2),_xlfn.CHOOSECOLS(_xlfn.ANCHORARRAY(Filme!$G$1),3),"",0,2) -> Cold Mountain | D53: =_xlfn.XLOOKUP($A53,_xlfn.CHOOSECOLS(_xlfn.ANCHORARRAY(Filme!$G$1),2),_xlfn.CHOOSECOLS(_xlfn.ANCHORARRAY(Filme!$G$1),4),"",0,2) -> 2004-02-19 | E53: =_xlfn.XLOOKUP($B53,_xlfn.CHOOSECOLS(_xlfn.ANCHORARRAY(Leute!$F$1),2),_xlfn.CHOOSECOLS(_xlfn.ANCHORARRAY(Leute!$F$1),3),"x",0,2) -> Nicole Kidman | F53: =_xlfn.XLOOKUP($B53,_xlfn.CHOOSECOLS(_xlfn.ANCHORARRAY(Leute!$F$1),2),_xlfn.CHOOSECOLS(_xlfn.ANCHORARRAY(Leute!$F$1),4),"x",0,2) -> 1967-06-20 | G53: =RANK(F53,F$1:F53,0) -> 38 | H53: =DATEDIF(F53,D53,"Y") -> 36 | I53: =DATEDIF(F53,D53,"YD") -> 244 | J53: =D53-F53 -> 13393 | K53: ="MRS "&TEXT(J53,"00000")&" "&SUBSTITUTE(C53,":","")&" ("&TEXT(D53,"TT.MM.JJJJ")&") - "&E53&" ("&TEXT(F53,"TT.MM.JJJJ")&") "&H53&"-"&I53 -> MRS 13393 Cold Mountain (19.02.2004) - Nicole Kidman (20.06.1967) 36-244
A54: tt0188453 | B54: nm0000173 | C54: =_xlfn.XLOOKUP($A54,_xlfn.CHOOSECOLS(_xlfn.ANCHORARRAY(Filme!$G$1),2),_xlfn.CHOOSECOLS(_xlfn.ANCHORARRAY(Filme!$G$1),3),"",0,2) -> Birthday Girl | D54: =_xlfn.XLOOKUP($A54,_xlfn.CHOOSECOLS(_xlfn.ANCHORARRAY(Filme!$G$1),2),_xlfn.CHOOSECOLS(_xlfn.ANCHORARRAY(Filme!$G$1),4),"",0,2) -> 2002-08-29 | E54: =_xlfn.XLOOKUP($B54,_xlfn.CHOOSECOLS(_xlfn.ANCHORARRAY(Leute!$F$1),2),_xlfn.CHOOSECOLS(_xlfn.ANCHORARRAY(Leute!$F$1),3),"x",0,2) -> Nicole Kidman | F54: =_xlfn.XLOOKUP($B54,_xlfn.CHOOSECOLS(_xlfn.ANCHORARRAY(Leute!$F$1),2),_xlfn.CHOOSECOLS(_xlfn.ANCHORARRAY(Leute!$F$1),4),"x",0,2) -> 1967-06-20 | G54: =RANK(F54,F$1:F54,0) -> 38 | H54: =DATEDIF(F54,D54,"Y") -> 35 | I54: =DATEDIF(F54,D54,"YD") -> 70 | J54: =D54-F54 -> 12854 | K54: ="MRS "&TEXT(J54,"00000")&" "&SUBSTITUTE(C54,":","")&" ("&TEXT(D54,"TT.MM.JJJJ")&") - "&E54&" ("&TEXT(F54,"TT.MM.JJJJ")&") "&H54&"-"&I54 -> MRS 12854 Birthday Girl (29.08.2002) - Nicole Kidman (20.06.1967) 35-70
A55: tt0203009 | B55: nm0000173 | C55: =_xlfn.XLOOKUP($A55,_xlfn.CHOOSECOLS(_xlfn.ANCHORARRAY(Filme!$G$1),2),_xlfn.CHOOSECOLS(_xlfn.ANCHORARRAY(Filme!$G$1),3),"",0,2) -> Moulin Rouge! | D55: =_xlfn.XLOOKUP($A55,_xlfn.CHOOSECOLS(_xlfn.ANCHORARRAY(Filme!$G$1),2),_xlfn.CHOOSECOLS(_xlfn.ANCHORARRAY(Filme!$G$1),4),"",0,2) -> 2001-10-18 | E55: =_xlfn.XLOOKUP($B55,_xlfn.CHOOSECOLS(_xlfn.ANCHORARRAY(Leute!$F$1),2),_xlfn.CHOOSECOLS(_xlfn.ANCHORARRAY(Leute!$F$1),3),"x",0,2) -> Nicole Kidman | F55: =_xlfn.XLOOKUP($B55,_xlfn.CHOOSECOLS(_xlfn.ANCHORARRAY(Leute!$F$1),2),_xlfn.CHOOSECOLS(_xlfn.ANCHORARRAY(Leute!$F$1),4),"x",0,2) -> 1967-06-20 | G55: =RANK(F55,F$1:F55,0) -> 38 | H55: =DATEDIF(F55,D55,"Y") -> 34 | I55: =DATEDIF(F55,D55,"YD") -> 120 | J55: =D55-F55 -> 12539 | K55: ="MRS "&TEXT(J55,"00000")&" "&SUBSTITUTE(C55,":","")&" ("&TEXT(D55,"TT.MM.JJJJ")&") - "&E55&" ("&TEXT(F55,"TT.MM.JJJJ")&") "&H55&"-"&I55 -> MRS 12539 Moulin Rouge! (18.10.2001) - Nicole Kidman (20.06.1967) 34-120
A56: tt0308383 | B56: nm0000173 | C56: =_xlfn.XLOOKUP($A56,_xlfn.CHOOSECOLS(_xlfn.ANCHORARRAY(Filme!$G$1),2),_xlfn.CHOOSECOLS(_xlfn.ANCHORARRAY(Filme!$G$1),3),"",0,2) -> The Human Stain | D56: =_xlfn.XLOOKUP($A56,_xlfn.CHOOSECOLS(_xlfn.ANCHORARRAY(Filme!$G$1),2),_xlfn.CHOOSECOLS(_xlfn.ANCHORARRAY(Filme!$G$1),4),"",0,2) -> 2003-12-18 | E56: =_xlfn.XLOOKUP($B56,_xlfn.CHOOSECOLS(_xlfn.ANCHORARRAY(Leute!$F$1),2),_xlfn.CHOOSECOLS(_xlfn.ANCHORARRAY(Leute!$F$1),3),"x",0,2) -> Nicole Kidman | F56: =_xlfn.XLOOKUP($B56,_xlfn.CHOOSECOLS(_xlfn.ANCHORARRAY(Leute!$F$1),2),_xlfn.CHOOSECOLS(_xlfn.ANCHORARRAY(Leute!$F$1),4),"x",0,2) -> 1967-06-20 | G56: =RANK(F56,F$1:F56,0) -> 38 | H56: =DATEDIF(F56,D56,"Y") -> 36 | I56: =DATEDIF(F56,D56,"YD") -> 181 | J56: =D56-F56 -> 13330 | K56: ="MRS "&TEXT(J56,"00000")&" "&SUBSTITUTE(C56,":","")&" ("&TEXT(D56,"TT.MM.JJJJ")&") - "&E56&" ("&TEXT(F56,"TT.MM.JJJJ")&") "&H56&"-"&I56 -> MRS 13330 The Human Stain (18.12.2003) - Nicole Kidman (20.06.1967) 36-181
A57: tt0337876 | B57: nm0000173 | C57: =_xlfn.XLOOKUP($A57,_xlfn.CHOOSECOLS(_xlfn.ANCHORARRAY(Filme!$G$1),2),_xlfn.CHOOSECOLS(_xlfn.ANCHORARRAY(Filme!$G$1),3),"",0,2) -> Birth | D57: =_xlfn.XLOOKUP($A57,_xlfn.CHOOSECOLS(_xlfn.ANCHORARRAY(Filme!$G$1),2),_xlfn.CHOOSECOLS(_xlfn.ANCHORARRAY(Filme!$G$1),4),"",0,2) -> 2004-12-23 | E57: =_xlfn.XLOOKUP($B57,_xlfn.CHOOSECOLS(_xlfn.ANCHORARRAY(Leute!$F$1),2),_xlfn.CHOOSECOLS(_xlfn.ANCHORARRAY(Leute!$F$1),3),"x",0,2) -> Nicole Kidman | F57: =_xlfn.XLOOKUP($B57,_xlfn.CHOOSECOLS(_xlfn.ANCHORARRAY(Leute!$F$1),2),_xlfn.CHOOSECOLS(_xlfn.ANCHORARRAY(Leute!$F$1),4),"x",0,2) -> 1967-06-20 | G57: =RANK(F57,F$1:F57,0) -> 38 | H57: =DATEDIF(F57,D57,"Y") -> 37 | I57: =DATEDIF(F57,D57,"YD") -> 186 | J57: =D57-F57 -> 13701 | K57: ="MRS "&TEXT(J57,"00000")&" "&SUBSTITUTE(C57,":","")&" ("&TEXT(D57,"TT.MM.JJJJ")&") - "&E57&" ("&TEXT(F57,"TT.MM.JJJJ")&") "&H57&"-"&I57 -> MRS 13701 Birth (23.12.2004) - Nicole Kidman (20.06.1967) 37-186
A58: tt0422295 | B58: nm0000173 | C58: =_xlfn.XLOOKUP($A58,_xlfn.CHOOSECOLS(_xlfn.ANCHORARRAY(Filme!$G$1),2),_xlfn.CHOOSECOLS(_xlfn.ANCHORARRAY(Filme!$G$1),3),"",0,2) -> Fur: An Imaginary Portrait of Diane Arbus | D58: =_xlfn.XLOOKUP($A58,_xlfn.CHOOSECOLS(_xlfn.ANCHORARRAY(Filme!$G$1),2),_xlfn.CHOOSECOLS(_xlfn.ANCHORARRAY(Filme!$G$1),4),"",0,2) -> 2006-10-20 | E58: =_xlfn.XLOOKUP($B58,_xlfn.CHOOSECOLS(_xlfn.ANCHORARRAY(Leute!$F$1),2),_xlfn.CHOOSECOLS(_xlfn.ANCHORARRAY(Leute!$F$1),3),"x",0,2) -> Nicole Kidman | F58: =_xlfn.XLOOKUP($B58,_xlfn.CHOOSECOLS(_xlfn.ANCHORARRAY(Leute!$F$1),2),_xlfn.CHOOSECOLS(_xlfn.ANCHORARRAY(Leute!$F$1),4),"x",0,2) -> 1967-06-20 | G58: =RANK(F58,F$1:F58,0) -> 38 | H58: =DATEDIF(F58,D58,"Y") -> 39 | I58: =DATEDIF(F58,D58,"YD") -> 122 | J58: =D58-F58 -> 14367 | K58: ="MRS "&TEXT(J58,"00000")&" "&SUBSTITUTE(C58,":","")&" ("&TEXT(D58,"TT.MM.JJJJ")&") - "&E58&" ("&TEXT(F58,"TT.MM.JJJJ")&") "&H58&"-"&I58 -> MRS 14367 Fur An Imaginary Portrait of Diane Arbus (20.10.2006) - Nicole Kidman (20.06.1967) 39-122
A59: tt0423455 | B59: nm0000173 | C59: =_xlfn.XLOOKUP($A59,_xlfn.CHOOSECOLS(_xlfn.ANCHORARRAY(Filme!$G$1),2),_xlfn.CHOOSECOLS(_xlfn.ANCHORARRAY(Filme!$G$1),3),"",0,2) -> Hemingway & Gellhorn | D59: =_xlfn.XLOOKUP($A59,_xlfn.CHOOSECOLS(_xlfn.ANCHORARRAY(Filme!$G$1),2),_xlfn.CHOOSECOLS(_xlfn.ANCHORARRAY(Filme!$G$1),4),"",0,2) -> 2012-12-21 | E59: =_xlfn.XLOOKUP($B59,_xlfn.CHOOSECOLS(_xlfn.ANCHORARRAY(Leute!$F$1),2),_xlfn.CHOOSECOLS(_xlfn.ANCHORARRAY(Leute!$F$1),3),"x",0,2) -> Nicole Kidman | F59: =_xlfn.XLOOKUP($B59,_xlfn.CHOOSECOLS(_xlfn.ANCHORARRAY(Leute!$F$1),2),_xlfn.CHOOSECOLS(_xlfn.ANCHORARRAY(Leute!$F$1),4),"x",0,2) -> 1967-06-20 | G59: =RANK(F59,F$1:F59,0) -> 38 | H59: =DATEDIF(F59,D59,"Y") -> 45 | I59: =DATEDIF(F59,D59,"YD") -> 184 | J59: =D59-F59 -> 16621 | K59: ="MRS "&TEXT(J59,"00000")&" "&SUBSTITUTE(C59,":","")&" ("&TEXT(D59,"TT.MM.JJJJ")&") - "&E59&" ("&TEXT(F59,"TT.MM.JJJJ")&") "&H59&"-"&I59 -> MRS 16621 Hemingway & Gellhorn (21.12.2012) - Nicole Kidman (20.06.1967) 45-184
A60: tt0455824 | B60: nm0000173 | C60: =_xlfn.XLOOKUP($A60,_xlfn.CHOOSECOLS(_xlfn.ANCHORARRAY(Filme!$G$1),2),_xlfn.CHOOSECOLS(_xlfn.ANCHORARRAY(Filme!$G$1),3),"",0,2) -> Australia | D60: =_xlfn.XLOOKUP($A60,_xlfn.CHOOSECOLS(_xlfn.ANCHORARRAY(Filme!$G$1),2),_xlfn.CHOOSECOLS(_xlfn.ANCHORARRAY(Filme!$G$1),4),"",0,2) -> 2008-12-25 | E60: =_xlfn.XLOOKUP($B60,_xlfn.CHOOSECOLS(_xlfn.ANCHORARRAY(Leute!$F$1),2),_xlfn.CHOOSECOLS(_xlfn.ANCHORARRAY(Leute!$F$1),3),"x",0,2) -> Nicole Kidman | F60: =_xlfn.XLOOKUP($B60,_xlfn.CHOOSECOLS(_xlfn.ANCHORARRAY(Leute!$F$1),2),_xlfn.CHOOSECOLS(_xlfn.ANCHORARRAY(Leute!$F$1),4),"x",0,2) -> 1967-06-20 | G60: =RANK(F60,F$1:F60,0) -> 38 | H60: =DATEDIF(F60,D60,"Y") -> 41 | I60: =DATEDIF(F60,D60,"YD") -> 188 | J60: =D60-F60 -> 15164 | K60: ="MRS "&TEXT(J60,"00000")&" "&SUBSTITUTE(C60,":","")&" ("&TEXT(D60,"TT.MM.JJJJ")&") - "&E60&" ("&TEXT(F60,"TT.MM.JJJJ")&") "&H60&"-"&I60 -> MRS 15164 Australia (25.12.2008) - Nicole Kidman (20.06.1967) 41-188
A61: tt12758346 | B61: nm0000173 | C61: =_xlfn.XLOOKUP($A61,_xlfn.CHOOSECOLS(_xlfn.ANCHORARRAY(Filme!$G$1),2),_xlfn.CHOOSECOLS(_xlfn.ANCHORARRAY(Filme!$G$1),3),"",0,2) -> Nine Perfect Strangers | D61: =_xlfn.XLOOKUP($A61,_xlfn.CHOOSECOLS(_xlfn.ANCHORARRAY(Filme!$G$1),2),_xlfn.CHOOSECOLS(_xlfn.ANCHORARRAY(Filme!$G$1),4),"",0,2) -> 2021-08-25 | E61: =_xlfn.XLOOKUP($B61,_xlfn.CHOOSECOLS(_xlfn.ANCHORARRAY(Leute!$F$1),2),_xlfn.CHOOSECOLS(_xlfn.ANCHORARRAY(Leute!$F$1),3),"x",0,2) -> Nicole Kidman | F61: =_xlfn.XLOOKUP($B61,_xlfn.CHOOSECOLS(_xlfn.ANCHORARRAY(Leute!$F$1),2),_xlfn.CHOOSECOLS(_xlfn.ANCHORARRAY(Leute!$F$1),4),"x",0,2) -> 1967-06-20 | G61: =RANK(F61,F$1:F61,0) -> 38 | H61: =DATEDIF(F61,D61,"Y") -> 54 | I61: =DATEDIF(F61,D61,"YD") -> 66 | J61: =D61-F61 -> 19790 | K61: ="MRS "&TEXT(J61,"00000")&" "&SUBSTITUTE(C61,":","")&" ("&TEXT(D61,"TT.MM.JJJJ")&") - "&E61&" ("&TEXT(F61,"TT.MM.JJJJ")&") "&H61&"-"&I61 -> MRS 19790 Nine Perfect Strangers (25.08.2021) - Nicole Kidman (20.06.1967) 54-66
A62: tt2325977 | B62: nm0000173 | C62: =_xlfn.XLOOKUP($A62,_xlfn.CHOOSECOLS(_xlfn.ANCHORARRAY(Filme!$G$1),2),_xlfn.CHOOSECOLS(_xlfn.ANCHORARRAY(Filme!$G$1),3),"",0,2) -> Strangerland | D62: =_xlfn.XLOOKUP($A62,_xlfn.CHOOSECOLS(_xlfn.ANCHORARRAY(Filme!$G$1),2),_xlfn.CHOOSECOLS(_xlfn.ANCHORARRAY(Filme!$G$1),4),"",0,2) -> 2016-02-05 | E62: =_xlfn.XLOOKUP($B62,_xlfn.CHOOSECOLS(_xlfn.ANCHORARRAY(Leute!$F$1),2),_xlfn.CHOOSECOLS(_xlfn.ANCHORARRAY(Leute!$F$1),3),"x",0,2) -> Nicole Kidman | F62: =_xlfn.XLOOKUP($B62,_xlfn.CHOOSECOLS(_xlfn.ANCHORARRAY(Leute!$F$1),2),_xlfn.CHOOSECOLS(_xlfn.ANCHORARRAY(Leute!$F$1),4),"x",0,2) -> 1967-06-20 | G62: =RANK(F62,F$1:F62,0) -> 38 | H62: =DATEDIF(F62,D62,"Y") -> 48 | I62: =DATEDIF(F62,D62,"YD") -> 230 | J62: =D62-F62 -> 17762 | K62: ="MRS "&TEXT(J62,"00000")&" "&SUBSTITUTE(C62,":","")&" ("&TEXT(D62,"TT.MM.JJJJ")&") - "&E62&" ("&TEXT(F62,"TT.MM.JJJJ")&") "&H62&"-"&I62 -> MRS 17762 Strangerland (05.02.2016) - Nicole Kidman (20.06.1967) 48-230
A63: tt4817386 | B63: nm0000173 | C63: =_xlfn.XLOOKUP($A63,_xlfn.CHOOSECOLS(_xlfn.ANCHORARRAY(Filme!$G$1),2),_xlfn.CHOOSECOLS(_xlfn.ANCHORARRAY(Filme!$G$1),3),"",0,2) -> Big Little Lies | D63: =_xlfn.XLOOKUP($A63,_xlfn.CHOOSECOLS(_xlfn.ANCHORARRAY(Filme!$G$1),2),_xlfn.CHOOSECOLS(_xlfn.ANCHORARRAY(Filme!$G$1),4),"",0,2) -> 2017-04-13 | E63: =_xlfn.XLOOKUP($B63,_xlfn.CHOOSECOLS(_xlfn.ANCHORARRAY(Leute!$F$1),2),_xlfn.CHOOSECOLS(_xlfn.ANCHORARRAY(Leute!$F$1),3),"x",0,2) -> Nicole Kidman | F63: =_xlfn.XLOOKUP($B63,_xlfn.CHOOSECOLS(_xlfn.ANCHORARRAY(Leute!$F$1),2),_xlfn.CHOOSECOLS(_xlfn.ANCHORARRAY(Leute!$F$1),4),"x",0,2) -> 1967-06-20 | G63: =RANK(F63,F$1:F63,0) -> 38 | H63: =DATEDIF(F63,D63,"Y") -> 49 | I63: =DATEDIF(F63,D63,"YD") -> 298 | J63: =D63-F63 -> 18195 | K63: ="MRS "&TEXT(J63,"00000")&" "&SUBSTITUTE(C63,":","")&" ("&TEXT(D63,"TT.MM.JJJJ")&") - "&E63&" ("&TEXT(F63,"TT.MM.JJJJ")&") "&H63&"-"&I63 -> MRS 18195 Big Little Lies (13.04.2017) - Nicole Kidman (20.06.1967) 49-298
A64: tt5715874 | B64: nm0000173 | C64: =_xlfn.XLOOKUP($A64,_xlfn.CHOOSECOLS(_xlfn.ANCHORARRAY(Filme!$G$1),2),_xlfn.CHOOSECOLS(_xlfn.ANCHORARRAY(Filme!$G$1),3),"",0,2) -> The Killing of a Sacred Deer | D64: =_xlfn.XLOOKUP($A64,_xlfn.CHOOSECOLS(_xlfn.ANCHORARRAY(Filme!$G$1),2),_xlfn.CHOOSECOLS(_xlfn.ANCHORARRAY(Filme!$G$1),4),"",0,2) -> 2017-12-28 | E64: =_xlfn.XLOOKUP($B64,_xlfn.CHOOSECOLS(_xlfn.ANCHORARRAY(Leute!$F$1),2),_xlfn.CHOOSECOLS(_xlfn.ANCHORARRAY(Leute!$F$1),3),"x",0,2) -> Nicole Kidman | F64: =_xlfn.XLOOKUP($B64,_xlfn.CHOOSECOLS(_xlfn.ANCHORARRAY(Leute!$F$1),2),_xlfn.CHOOSECOLS(_xlfn.ANCHORARRAY(Leute!$F$1),4),"x",0,2) -> 1967-06-20 | G64: =RANK(F64,F$1:F64,0) -> 38 | H64: =DATEDIF(F64,D64,"Y") -> 50 | I64: =DATEDIF(F64,D64,"YD") -> 191 | J64: =D64-F64 -> 18454 | K64: ="MRS "&TEXT(J64,"00000")&" "&SUBSTITUTE(C64,":","")&" ("&TEXT(D64,"TT.MM.JJJJ")&") - "&E64&" ("&TEXT(F64,"TT.MM.JJJJ")&") "&H64&"-"&I64 -> MRS 18454 The Killing of a Sacred Deer (28.12.2017) - Nicole Kidman (20.06.1967) 50-191
A65: tt0086973 | B65: nm0000193 | C65: =_xlfn.XLOOKUP($A65,_xlfn.CHOOSECOLS(_xlfn.ANCHORARRAY(Filme!$G$1),2),_xlfn.CHOOSECOLS(_xlfn.ANCHORARRAY(Filme!$G$1),3),"",0,2) -> Blame It on Rio | D65: =_xlfn.XLOOKUP($A65,_xlfn.CHOOSECOLS(_xlfn.ANCHORARRAY(Filme!$G$1),2),_xlfn.CHOOSECOLS(_xlfn.ANCHORARRAY(Filme!$G$1),4),"",0,2) -> 1985-03-01 | E65: =_xlfn.XLOOKUP($B65,_xlfn.CHOOSECOLS(_xlfn.ANCHORARRAY(Leute!$F$1),2),_xlfn.CHOOSECOLS(_xlfn.ANCHORARRAY(Leute!$F$1),3),"x",0,2) -> Demi Moore | F65: =_xlfn.XLOOKUP($B65,_xlfn.CHOOSECOLS(_xlfn.ANCHORARRAY(Leute!$F$1),2),_xlfn.CHOOSECOLS(_xlfn.ANCHORARRAY(Leute!$F$1),4),"x",0,2) -> 1962-11-11 | G65: =RANK(F65,F$1:F65,0) -> 56 | H65: =DATEDIF(F65,D65,"Y") -> 22 | I65: =DATEDIF(F65,D65,"YD") -> 110 | J65: =D65-F65 -> 8146 | K65: ="MRS "&TEXT(J65,"00000")&" "&SUBSTITUTE(C65,":","")&" ("&TEXT(D65,"TT.MM.JJJJ")&") - "&E65&" ("&TEXT(F65,"TT.MM.JJJJ")&") "&H65&"-"&I65 -> MRS 08146 Blame It on Rio (01.03.1985) - Demi Moore (11.11.1962) 22-110
A66: tt0087810 | B66: nm0000193 | C66: =_xlfn.XLOOKUP($A66,_xlfn.CHOOSECOLS(_xlfn.ANCHORARRAY(Filme!$G$1),2),_xlfn.CHOOSECOLS(_xlfn.ANCHORARRAY(Filme!$G$1),3),"",0,2) -> No Small Affair | D66: =_xlfn.XLOOKUP($A66,_xlfn.CHOOSECOLS(_xlfn.ANCHORARRAY(Filme!$G$1),2),_xlfn.CHOOSECOLS(_xlfn.ANCHORARRAY(Filme!$G$1),4),"",0,2) -> 1985-05-17 | E66: =_xlfn.XLOOKUP($B66,_xlfn.CHOOSECOLS(_xlfn.ANCHORARRAY(Leute!$F$1),2),_xlfn.CHOOSECOLS(_xlfn.ANCHORARRAY(Leute!$F$1),3),"x",0,2) -> Demi Moore | F66: =_xlfn.XLOOKUP($B66,_xlfn.CHOOSECOLS(_xlfn.ANCHORARRAY(Leute!$F$1),2),_xlfn.CHOOSECOLS(_xlfn.ANCHORARRAY(Leute!$F$1),4),"x",0,2) -> 1962-11-11 | G66: =RANK(F66,F$1:F66,0) -> 56 | H66: =DATEDIF(F66,D66,"Y") -> 22 | I66: =DATEDIF(F66,D66,"YD") -> 187 | J66: =D66-F66 -> 8223 | K66: ="MRS "&TEXT(J66,"00000")&" "&SUBSTITUTE(C66,":","")&" ("&TEXT(D66,"TT.MM.JJJJ")&") - "&E66&" ("&TEXT(F66,"TT.MM.JJJJ")&") "&H66&"-"&I66 -> MRS 08223 No Small Affair (17.05.1985) - Demi Moore (11.11.1962) 22-187
A67: tt0090583 | B67: nm0000193 | C67: =_xlfn.XLOOKUP($A67,_xlfn.CHOOSECOLS(_xlfn.ANCHORARRAY(Filme!$G$1),2),_xlfn.CHOOSECOLS(_xlfn.ANCHORARRAY(Filme!$G$1),3),"",0,2) -> About Last Night... | D67: =_xlfn.XLOOKUP($A67,_xlfn.CHOOSECOLS(_xlfn.ANCHORARRAY(Filme!$G$1),2),_xlfn.CHOOSECOLS(_xlfn.ANCHORARRAY(Filme!$G$1),4),"",0,2) -> 1986-09-25 | E67: =_xlfn.XLOOKUP($B67,_xlfn.CHOOSECOLS(_xlfn.ANCHORARRAY(Leute!$F$1),2),_xlfn.CHOOSECOLS(_xlfn.ANCHORARRAY(Leute!$F$1),3),"x",0,2) -> Demi Moore | F67: =_xlfn.XLOOKUP($B67,_xlfn.CHOOSECOLS(_xlfn.ANCHORARRAY(Leute!$F$1),2),_xlfn.CHOOSECOLS(_xlfn.ANCHORARRAY(Leute!$F$1),4),"x",0,2) -> 1962-11-11 | G67: =RANK(F67,F$1:F67,0) -> 56 | H67: =DATEDIF(F67,D67,"Y") -> 23 | I67: =DATEDIF(F67,D67,"YD") -> 318 | J67: =D67-F67 -> 8719 | K67: ="MRS "&TEXT(J67,"00000")&" "&SUBSTITUTE(C67,":","")&" ("&TEXT(D67,"TT.MM.JJJJ")&") - "&E67&" ("&TEXT(F67,"TT.MM.JJJJ")&") "&H67&"-"&I67 -> MRS 08719 About Last Night... (25.09.1986) - Demi Moore (11.11.1962) 23-318
A68: tt0098625 | B68: nm0000193 | C68: =_xlfn.XLOOKUP($A68,_xlfn.CHOOSECOLS(_xlfn.ANCHORARRAY(Filme!$G$1),2),_xlfn.CHOOSECOLS(_xlfn.ANCHORARRAY(Filme!$G$1),3),"",0,2) -> We're No Angels | D68: =_xlfn.XLOOKUP($A68,_xlfn.CHOOSECOLS(_xlfn.ANCHORARRAY(Filme!$G$1),2),_xlfn.CHOOSECOLS(_xlfn.ANCHORARRAY(Filme!$G$1),4),"",0,2) -> 1989-12-15 | E68: =_xlfn.XLOOKUP($B68,_xlfn.CHOOSECOLS(_xlfn.ANCHORARRAY(Leute!$F$1),2),_xlfn.CHOOSECOLS(_xlfn.ANCHORARRAY(Leute!$F$1),3),"x",0,2) -> Demi Moore | F68: =_xlfn.XLOOKUP($B68,_xlfn.CHOOSECOLS(_xlfn.ANCHORARRAY(Leute!$F$1),2),_xlfn.CHOOSECOLS(_xlfn.ANCHORARRAY(Leute!$F$1),4),"x",0,2) -> 1962-11-11 | G68: =RANK(F68,F$1:F68,0) -> 56 | H68: =DATEDIF(F68,D68,"Y") -> 27 | I68: =DATEDIF(F68,D68,"YD") -> 34 | J68: =D68-F68 -> 9896 | K68: ="MRS "&TEXT(J68,"00000")&" "&SUBSTITUTE(C68,":","")&" ("&TEXT(D68,"TT.MM.JJJJ")&") - "&E68&" ("&TEXT(F68,"TT.MM.JJJJ")&") "&H68&"-"&I68 -> MRS 09896 We're No Angels (15.12.1989) - Demi Moore (11.11.1962) 27-34
A69: tt0107211 | B69: nm0000193 | C69: =_xlfn.XLOOKUP($A69,_xlfn.CHOOSECOLS(_xlfn.ANCHORARRAY(Filme!$G$1),2),_xlfn.CHOOSECOLS(_xlfn.ANCHORARRAY(Filme!$G$1),3),"",0,2) -> Indecent Proposal | D69: =_xlfn.XLOOKUP($A69,_xlfn.CHOOSECOLS(_xlfn.ANCHORARRAY(Filme!$G$1),2),_xlfn.CHOOSECOLS(_xlfn.ANCHORARRAY(Filme!$G$1),4),"",0,2) -> 1993-05-20 | E69: =_xlfn.XLOOKUP($B69,_xlfn.CHOOSECOLS(_xlfn.ANCHORARRAY(Leute!$F$1),2),_xlfn.CHOOSECOLS(_xlfn.ANCHORARRAY(Leute!$F$1),3),"x",0,2) -> Demi Moore | F69: =_xlfn.XLOOKUP($B69,_xlfn.CHOOSECOLS(_xlfn.ANCHORARRAY(Leute!$F$1),2),_xlfn.CHOOSECOLS(_xlfn.ANCHORARRAY(Leute!$F$1),4),"x",0,2) -> 1962-11-11 | G69: =RANK(F69,F$1:F69,0) -> 56 | H69: =DATEDIF(F69,D69,"Y") -> 30 | I69: =DATEDIF(F69,D69,"YD") -> 190 | J69: =D69-F69 -> 11148 | K69: ="MRS "&TEXT(J69,"00000")&" "&SUBSTITUTE(C69,":","")&" ("&TEXT(D69,"TT.MM.JJJJ")&") - "&E69&" ("&TEXT(F69,"TT.MM.JJJJ")&") "&H69&"-"&I69 -> MRS 11148 Indecent Proposal (20.05.1993) - Demi Moore (11.11.1962) 30-190
A70: tt0114345 | B70: nm0000193 | C70: =_xlfn.XLOOKUP($A70,_xlfn.CHOOSECOLS(_xlfn.ANCHORARRAY(Filme!$G$1),2),_xlfn.CHOOSECOLS(_xlfn.ANCHORARRAY(Filme!$G$1),3),"",0,2) -> The Scarlet Letter | D70: =_xlfn.XLOOKUP($A70,_xlfn.CHOOSECOLS(_xlfn.ANCHORARRAY(Filme!$G$1),2),_xlfn.CHOOSECOLS(_xlfn.ANCHORARRAY(Filme!$G$1),4),"",0,2) -> 1996-04-18 | E70: =_xlfn.XLOOKUP($B70,_xlfn.CHOOSECOLS(_xlfn.ANCHORARRAY(Leute!$F$1),2),_xlfn.CHOOSECOLS(_xlfn.ANCHORARRAY(Leute!$F$1),3),"x",0,2) -> Demi Moore | F70: =_xlfn.XLOOKUP($B70,_xlfn.CHOOSECOLS(_xlfn.ANCHORARRAY(Leute!$F$1),2),_xlfn.CHOOSECOLS(_xlfn.ANCHORARRAY(Leute!$F$1),4),"x",0,2) -> 1962-11-11 | G70: =RANK(F70,F$1:F70,0) -> 56 | H70: =DATEDIF(F70,D70,"Y") -> 33 | I70: =DATEDIF(F70,D70,"YD") -> 158 | J70: =D70-F70 -> 12212 | K70: ="MRS "&TEXT(J70,"00000")&" "&SUBSTITUTE(C70,":","")&" ("&TEXT(D70,"TT.MM.JJJJ")&") - "&E70&" ("&TEXT(F70,"TT.MM.JJJJ")&") "&H70&"-"&I70 -> MRS 12212 The Scarlet Letter (18.04.1996) - Demi Moore (11.11.1962) 33-158
A71: tt0117765 | B71: nm0000193 | C71: =_xlfn.XLOOKUP($A71,_xlfn.CHOOSECOLS(_xlfn.ANCHORARRAY(Filme!$G$1),2),_xlfn.CHOOSECOLS(_xlfn.ANCHORARRAY(Filme!$G$1),3),"",0,2) -> Striptease | D71: =_xlfn.XLOOKUP($A71,_xlfn.CHOOSECOLS(_xlfn.ANCHORARRAY(Filme!$G$1),2),_xlfn.CHOOSECOLS(_xlfn.ANCHORARRAY(Filme!$G$1),4),"",0,2) -> 1996-08-15 | E71: =_xlfn.XLOOKUP($B71,_xlfn.CHOOSECOLS(_xlfn.ANCHORARRAY(Leute!$F$1),2),_xlfn.CHOOSECOLS(_xlfn.ANCHORARRAY(Leute!$F$1),3),"x",0,2) -> Demi Moore | F71: =_xlfn.XLOOKUP($B71,_xlfn.CHOOSECOLS(_xlfn.ANCHORARRAY(Leute!$F$1),2),_xlfn.CHOOSECOLS(_xlfn.ANCHORARRAY(Leute!$F$1),4),"x",0,2) -> 1962-11-11 | G71: =RANK(F71,F$1:F71,0) -> 56 | H71: =DATEDIF(F71,D71,"Y") -> 33 | I71: =DATEDIF(F71,D71,"YD") -> 277 | J71: =D71-F71 -> 12331 | K71: ="MRS "&TEXT(J71,"00000")&" "&SUBSTITUTE(C71,":","")&" ("&TEXT(D71,"TT.MM.JJJJ")&") - "&E71&" ("&TEXT(F71,"TT.MM.JJJJ")&") "&H71&"-"&I71 -> MRS 12331 Striptease (15.08.1996) - Demi Moore (11.11.1962) 33-277
A72: tt0119173 | B72: nm0000193 | C72: =_xlfn.XLOOKUP($A72,_xlfn.CHOOSECOLS(_xlfn.ANCHORARRAY(Filme!$G$1),2),_xlfn.CHOOSECOLS(_xlfn.ANCHORARRAY(Filme!$G$1),3),"",0,2) -> G.I. Jane | D72: =_xlfn.XLOOKUP($A72,_xlfn.CHOOSECOLS(_xlfn.ANCHORARRAY(Filme!$G$1),2),_xlfn.CHOOSECOLS(_xlfn.ANCHORARRAY(Filme!$G$1),4),"",0,2) -> 1998-02-26 | E72: =_xlfn.XLOOKUP($B72,_xlfn.CHOOSECOLS(_xlfn.ANCHORARRAY(Leute!$F$1),2),_xlfn.CHOOSECOLS(_xlfn.ANCHORARRAY(Leute!$F$1),3),"x",0,2) -> Demi Moore | F72: =_xlfn.XLOOKUP($B72,_xlfn.CHOOSECOLS(_xlfn.ANCHORARRAY(Leute!$F$1),2),_xlfn.CHOOSECOLS(_xlfn.ANCHORARRAY(Leute!$F$1),4),"x",0,2) -> 1962-11-11 | G72: =RANK(F72,F$1:F72,0) -> 56 | H72: =DATEDIF(F72,D72,"Y") -> 35 | I72: =DATEDIF(F72,D72,"YD") -> 107 | J72: =D72-F72 -> 12891 | K72: ="MRS "&TEXT(J72,"00000")&" "&SUBSTITUTE(C72,":","")&" ("&TEXT(D72,"TT.MM.JJJJ")&") - "&E72&" ("&TEXT(F72,"TT.MM.JJJJ")&") "&H72&"-"&I72 -> MRS 12891 G.I. Jane (26.02.1998) - Demi Moore (11.11.1962) 35-107
A73: tt17526714 | B73: nm0000193 | C73: =_xlfn.XLOOKUP($A73,_xlfn.CHOOSECOLS(_xlfn.ANCHORARRAY(Filme!$G$1),2),_xlfn.CHOOSECOLS(_xlfn.ANCHORARRAY(Filme!$G$1),3),"",0,2) -> The Substance | D73: =_xlfn.XLOOKUP($A73,_xlfn.CHOOSECOLS(_xlfn.ANCHORARRAY(Filme!$G$1),2),_xlfn.CHOOSECOLS(_xlfn.ANCHORARRAY(Filme!$G$1),4),"",0,2) -> 2024-09-19 | E73: =_xlfn.XLOOKUP($B73,_xlfn.CHOOSECOLS(_xlfn.ANCHORARRAY(Leute!$F$1),2),_xlfn.CHOOSECOLS(_xlfn.ANCHORARRAY(Leute!$F$1),3),"x",0,2) -> Demi Moore | F73: =_xlfn.XLOOKUP($B73,_xlfn.CHOOSECOLS(_xlfn.ANCHORARRAY(Leute!$F$1),2),_xlfn.CHOOSECOLS(_xlfn.ANCHORARRAY(Leute!$F$1),4),"x",0,2) -> 1962-11-11 | G73: =RANK(F73,F$1:F73,0) -> 56 | H73: =DATEDIF(F73,D73,"Y") -> 61 | I73: =DATEDIF(F73,D73,"YD") -> 312 | J73: =D73-F73 -> 22593 | K73: ="MRS "&TEXT(J73,"00000")&" "&SUBSTITUTE(C73,":","")&" ("&TEXT(D73,"TT.MM.JJJJ")&") - "&E73&" ("&TEXT(F73,"TT.MM.JJJJ")&") "&H73&"-"&I73 -> MRS 22593 The Substance (19.09.2024) - Demi Moore (11.11.1962) 61-312
A74: tt0376541 | B74: nm0000204 | C74: =_xlfn.XLOOKUP($A74,_xlfn.CHOOSECOLS(_xlfn.ANCHORARRAY(Filme!$G$1),2),_xlfn.CHOOSECOLS(_xlfn.ANCHORARRAY(Filme!$G$1),3),"",0,2) -> Closer | D74: =_xlfn.XLOOKUP($A74,_xlfn.CHOOSECOLS(_xlfn.ANCHORARRAY(Filme!$G$1),2),_xlfn.CHOOSECOLS(_xlfn.ANCHORARRAY(Filme!$G$1),4),"",0,2) -> 2005-01-13 | E74: =_xlfn.XLOOKUP($B74,_xlfn.CHOOSECOLS(_xlfn.ANCHORARRAY(Leute!$F$1),2),_xlfn.CHOOSECOLS(_xlfn.ANCHORARRAY(Leute!$F$1),3),"x",0,2) -> Natalie Portman | F74: =_xlfn.XLOOKUP($B74,_xlfn.CHOOSECOLS(_xlfn.ANCHORARRAY(Leute!$F$1),2),_xlfn.CHOOSECOLS(_xlfn.ANCHORARRAY(Leute!$F$1),4),"x",0,2) -> 1981-06-09 | G74: =RANK(F74,F$1:F74,0) -> 1 | H74: =DATEDIF(F74,D74,"Y") -> 23 | I74: =DATEDIF(F74,D74,"YD") -> 218 | J74: =D74-F74 -> 8619 | K74: ="MRS "&TEXT(J74,"00000")&" "&SUBSTITUTE(C74,":","")&" ("&TEXT(D74,"TT.MM.JJJJ")&") - "&E74&" ("&TEXT(F74,"TT.MM.JJJJ")&") "&H74&"-"&I74 -> MRS 08619 Closer (13.01.2005) - Natalie Portman (09.06.1981) 23-218
A75: tt0434409 | B75: nm0000204 | C75: =_xlfn.XLOOKUP($A75,_xlfn.CHOOSECOLS(_xlfn.ANCHORARRAY(Filme!$G$1),2),_xlfn.CHOOSECOLS(_xlfn.ANCHORARRAY(Filme!$G$1),3),"",0,2) -> V for Vendetta | D75: =_xlfn.XLOOKUP($A75,_xlfn.CHOOSECOLS(_xlfn.ANCHORARRAY(Filme!$G$1),2),_xlfn.CHOOSECOLS(_xlfn.ANCHORARRAY(Filme!$G$1),4),"",0,2) -> 2006-03-16 | E75: =_xlfn.XLOOKUP($B75,_xlfn.CHOOSECOLS(_xlfn.ANCHORARRAY(Leute!$F$1),2),_xlfn.CHOOSECOLS(_xlfn.ANCHORARRAY(Leute!$F$1),3),"x",0,2) -> Natalie Portman | F75: =_xlfn.XLOOKUP($B75,_xlfn.CHOOSECOLS(_xlfn.ANCHORARRAY(Leute!$F$1),2),_xlfn.CHOOSECOLS(_xlfn.ANCHORARRAY(Leute!$F$1),4),"x",0,2) -> 1981-06-09 | G75: =RANK(F75,F$1:F75,0) -> 1 | H75: =DATEDIF(F75,D75,"Y") -> 24 | I75: =DATEDIF(F75,D75,"YD") -> 280 | J75: =D75-F75 -> 9046 | K75: ="MRS "&TEXT(J75,"00000")&" "&SUBSTITUTE(C75,":","")&" ("&TEXT(D75,"TT.MM.JJJJ")&") - "&E75&" ("&TEXT(F75,"TT.MM.JJJJ")&") "&H75&"-"&I75 -> MRS 09046 V for Vendetta (16.03.2006) - Natalie Portman (09.06.1981) 24-280
A76: tt0455957 | B76: nm0000204 | C76: =_xlfn.XLOOKUP($A76,_xlfn.CHOOSECOLS(_xlfn.ANCHORARRAY(Filme!$G$1),2),_xlfn.CHOOSECOLS(_xlfn.ANCHORARRAY(Filme!$G$1),3),"",0,2) -> Goya's Ghosts | D76: =_xlfn.XLOOKUP($A76,_xlfn.CHOOSECOLS(_xlfn.ANCHORARRAY(Filme!$G$1),2),_xlfn.CHOOSECOLS(_xlfn.ANCHORARRAY(Filme!$G$1),4),"",0,2) -> 2006-11-23 | E76: =_xlfn.XLOOKUP($B76,_xlfn.CHOOSECOLS(_xlfn.ANCHORARRAY(Leute!$F$1),2),_xlfn.CHOOSECOLS(_xlfn.ANCHORARRAY(Leute!$F$1),3),"x",0,2) -> Natalie Portman | F76: =_xlfn.XLOOKUP($B76,_xlfn.CHOOSECOLS(_xlfn.ANCHORARRAY(Leute!$F$1),2),_xlfn.CHOOSECOLS(_xlfn.ANCHORARRAY(Leute!$F$1),4),"x",0,2) -> 1981-06-09 | G76: =RANK(F76,F$1:F76,0) -> 1 | H76: =DATEDIF(F76,D76,"Y") -> 25 | I76: =DATEDIF(F76,D76,"YD") -> 167 | J76: =D76-F76 -> 9298 | K76: ="MRS "&TEXT(J76,"00000")&" "&SUBSTITUTE(C76,":","")&" ("&TEXT(D76,"TT.MM.JJJJ")&") - "&E76&" ("&TEXT(F76,"TT.MM.JJJJ")&") "&H76&"-"&I76 -> MRS 09298 Goya's Ghosts (23.11.2006) - Natalie Portman (09.06.1981) 25-167
A77: tt1094249 | B77: nm0000204 | C77: =_xlfn.XLOOKUP($A77,_xlfn.CHOOSECOLS(_xlfn.ANCHORARRAY(Filme!$G$1),2),_xlfn.CHOOSECOLS(_xlfn.ANCHORARRAY(Filme!$G$1),3),"",0,2) -> Hotel Chevalier | D77: =_xlfn.XLOOKUP($A77,_xlfn.CHOOSECOLS(_xlfn.ANCHORARRAY(Filme!$G$1),2),_xlfn.CHOOSECOLS(_xlfn.ANCHORARRAY(Filme!$G$1),4),"",0,2) -> 2008-01-03 | E77: =_xlfn.XLOOKUP($B77,_xlfn.CHOOSECOLS(_xlfn.ANCHORARRAY(Leute!$F$1),2),_xlfn.CHOOSECOLS(_xlfn.ANCHORARRAY(Leute!$F$1),3),"x",0,2) -> Natalie Portman | F77: =_xlfn.XLOOKUP($B77,_xlfn.CHOOSECOLS(_xlfn.ANCHORARRAY(Leute!$F$1),2),_xlfn.CHOOSECOLS(_xlfn.ANCHORARRAY(Leute!$F$1),4),"x",0,2) -> 1981-06-09 | G77: =RANK(F77,F$1:F77,0) -> 1 | H77: =DATEDIF(F77,D77,"Y") -> 26 | I77: =DATEDIF(F77,D77,"YD") -> 208 | J77: =D77-F77 -> 9704 | K77: ="MRS "&TEXT(J77,"00000")&" "&SUBSTITUTE(C77,":","")&" ("&TEXT(D77,"TT.MM.JJJJ")&") - "&E77&" ("&TEXT(F77,"TT.MM.JJJJ")&") "&H77&"-"&I77 -> MRS 09704 Hotel Chevalier (03.01.2008) - Natalie Portman (09.06.1981) 26-208
A78: tt13651794 | B78: nm0000204 | C78: =_xlfn.XLOOKUP($A78,_xlfn.CHOOSECOLS(_xlfn.ANCHORARRAY(Filme!$G$1),2),_xlfn.CHOOSECOLS(_xlfn.ANCHORARRAY(Filme!$G$1),3),"",0,2) -> May December | D78: =_xlfn.XLOOKUP($A78,_xlfn.CHOOSECOLS(_xlfn.ANCHORARRAY(Filme!$G$1),2),_xlfn.CHOOSECOLS(_xlfn.ANCHORARRAY(Filme!$G$1),4),"",0,2) -> 2024-05-30 | E78: =_xlfn.XLOOKUP($B78,_xlfn.CHOOSECOLS(_xlfn.ANCHORARRAY(Leute!$F$1),2),_xlfn.CHOOSECOLS(_xlfn.ANCHORARRAY(Leute!$F$1),3),"x",0,2) -> Natalie Portman | F78: =_xlfn.XLOOKUP($B78,_xlfn.CHOOSECOLS(_xlfn.ANCHORARRAY(Leute!$F$1),2),_xlfn.CHOOSECOLS(_xlfn.ANCHORARRAY(Leute!$F$1),4),"x",0,2) -> 1981-06-09 | G78: =RANK(F78,F$1:F78,0) -> 1 | H78: =DATEDIF(F78,D78,"Y") -> 42 | I78: =DATEDIF(F78,D78,"YD") -> 355 | J78: =D78-F78 -> 15696 | K78: ="MRS "&TEXT(J78,"00000")&" "&SUBSTITUTE(C78,":","")&" ("&TEXT(D78,"TT.MM.JJJJ")&") - "&E78&" ("&TEXT(F78,"TT.MM.JJJJ")&") "&H78&"-"&I78 -> MRS 15696 May December (30.05.2024) - Natalie Portman (09.06.1981) 42-355
A79: tt1411238 | B79: nm0000204 | C79: =_xlfn.XLOOKUP($A79,_xlfn.CHOOSECOLS(_xlfn.ANCHORARRAY(Filme!$G$1),2),_xlfn.CHOOSECOLS(_xlfn.ANCHORARRAY(Filme!$G$1),3),"",0,2) -> No Strings Attached | D79: =_xlfn.XLOOKUP($A79,_xlfn.CHOOSECOLS(_xlfn.ANCHORARRAY(Filme!$G$1),2),_xlfn.CHOOSECOLS(_xlfn.ANCHORARRAY(Filme!$G$1),4),"",0,2) -> 2011-02-17 | E79: =_xlfn.XLOOKUP($B79,_xlfn.CHOOSECOLS(_xlfn.ANCHORARRAY(Leute!$F$1),2),_xlfn.CHOOSECOLS(_xlfn.ANCHORARRAY(Leute!$F$1),3),"x",0,2) -> Natalie Portman | F79: =_xlfn.XLOOKUP($B79,_xlfn.CHOOSECOLS(_xlfn.ANCHORARRAY(Leute!$F$1),2),_xlfn.CHOOSECOLS(_xlfn.ANCHORARRAY(Leute!$F$1),4),"x",0,2) -> 1981-06-09 | G79: =RANK(F79,F$1:F79,0) -> 1 | H79: =DATEDIF(F79,D79,"Y") -> 29 | I79: =DATEDIF(F79,D79,"YD") -> 253 | J79: =D79-F79 -> 10845 | K79: ="MRS "&TEXT(J79,"00000")&" "&SUBSTITUTE(C79,":","")&" ("&TEXT(D79,"TT.MM.JJJJ")&") - "&E79&" ("&TEXT(F79,"TT.MM.JJJJ")&") "&H79&"-"&I79 -> MRS 10845 No Strings Attached (17.02.2011) - Natalie Portman (09.06.1981) 29-253
A80: tt4680196 | B80: nm0000204 | C80: =_xlfn.XLOOKUP($A80,_xlfn.CHOOSECOLS(_xlfn.ANCHORARRAY(Filme!$G$1),2),_xlfn.CHOOSECOLS(_xlfn.ANCHORARRAY(Filme!$G$1),3),"",0,2) -> Planetarium | D80: =_xlfn.XLOOKUP($A80,_xlfn.CHOOSECOLS(_xlfn.ANCHORARRAY(Filme!$G$1),2),_xlfn.CHOOSECOLS(_xlfn.ANCHORARRAY(Filme!$G$1),4),"",0,2) -> 2016-11-16 | E80: =_xlfn.XLOOKUP($B80,_xlfn.CHOOSECOLS(_xlfn.ANCHORARRAY(Leute!$F$1),2),_xlfn.CHOOSECOLS(_xlfn.ANCHORARRAY(Leute!$F$1),3),"x",0,2) -> Natalie Portman | F80: =_xlfn.XLOOKUP($B80,_xlfn.CHOOSECOLS(_xlfn.ANCHORARRAY(Leute!$F$1),2),_xlfn.CHOOSECOLS(_xlfn.ANCHORARRAY(Leute!$F$1),4),"x",0,2) -> 1981-06-09 | G80: =RANK(F80,F$1:F80,0) -> 1 | H80: =DATEDIF(F80,D80,"Y") -> 35 | I80: =DATEDIF(F80,D80,"YD") -> 160 | J80: =D80-F80 -> 12944 | K80: ="MRS "&TEXT(J80,"00000")&" "&SUBSTITUTE(C80,":","")&" ("&TEXT(D80,"TT.MM.JJJJ")&") - "&E80&" ("&TEXT(F80,"TT.MM.JJJJ")&") "&H80&"-"&I80 -> MRS 12944 Planetarium (16.11.2016) - Natalie Portman (09.06.1981) 35-160
A81: tt0236640 | B81: nm0000207 | C81: =_xlfn.XLOOKUP($A81,_xlfn.CHOOSECOLS(_xlfn.ANCHORARRAY(Filme!$G$1),2),_xlfn.CHOOSECOLS(_xlfn.ANCHORARRAY(Filme!$G$1),3),"",0,2) -> Prozac Nation | D81: =_xlfn.XLOOKUP($A81,_xlfn.CHOOSECOLS(_xlfn.ANCHORARRAY(Filme!$G$1),2),_xlfn.CHOOSECOLS(_xlfn.ANCHORARRAY(Filme!$G$1),4),"",0,2) -> 2003-06-13 | E81: =_xlfn.XLOOKUP($B81,_xlfn.CHOOSECOLS(_xlfn.ANCHORARRAY(Leute!$F$1),2),_xlfn.CHOOSECOLS(_xlfn.ANCHORARRAY(Leute!$F$1),3),"x",0,2) -> Christina Ricci | F81: =_xlfn.XLOOKUP($B81,_xlfn.CHOOSECOLS(_xlfn.ANCHORARRAY(Leute!$F$1),2),_xlfn.CHOOSECOLS(_xlfn.ANCHORARRAY(Leute!$F$1),4),"x",0,2) -> 1980-02-12 | G81: =RANK(F81,F$1:F81,0) -> 8 | H81: =DATEDIF(F81,D81,"Y") -> 23 | I81: =DATEDIF(F81,D81,"YD") -> 122 | J81: =D81-F81 -> 8522 | K81: ="MRS "&TEXT(J81,"00000")&" "&SUBSTITUTE(C81,":","")&" ("&TEXT(D81,"TT.MM.JJJJ")&") - "&E81&" ("&TEXT(F81,"TT.MM.JJJJ")&") "&H81&"-"&I81 -> MRS 08522 Prozac Nation (13.06.2003) - Christina Ricci (12.02.1980) 23-122
A82: tt0340855 | B82: nm0000207 | C82: =_xlfn.XLOOKUP($A82,_xlfn.CHOOSECOLS(_xlfn.ANCHORARRAY(Filme!$G$1),2),_xlfn.CHOOSECOLS(_xlfn.ANCHORARRAY(Filme!$G$1),3),"",0,2) -> Monster | D82: =_xlfn.XLOOKUP($A82,_xlfn.CHOOSECOLS(_xlfn.ANCHORARRAY(Filme!$G$1),2),_xlfn.CHOOSECOLS(_xlfn.ANCHORARRAY(Filme!$G$1),4),"",0,2) -> 2004-04-15 | E82: =_xlfn.XLOOKUP($B82,_xlfn.CHOOSECOLS(_xlfn.ANCHORARRAY(Leute!$F$1),2),_xlfn.CHOOSECOLS(_xlfn.ANCHORARRAY(Leute!$F$1),3),"x",0,2) -> Christina Ricci | F82: =_xlfn.XLOOKUP($B82,_xlfn.CHOOSECOLS(_xlfn.ANCHORARRAY(Leute!$F$1),2),_xlfn.CHOOSECOLS(_xlfn.ANCHORARRAY(Leute!$F$1),4),"x",0,2) -> 1980-02-12 | G82: =RANK(F82,F$1:F82,0) -> 8 | H82: =DATEDIF(F82,D82,"Y") -> 24 | I82: =DATEDIF(F82,D82,"YD") -> 63 | J82: =D82-F82 -> 8829 | K82: ="MRS "&TEXT(J82,"00000")&" "&SUBSTITUTE(C82,":","")&" ("&TEXT(D82,"TT.MM.JJJJ")&") - "&E82&" ("&TEXT(F82,"TT.MM.JJJJ")&") "&H82&"-"&I82 -> MRS 08829 Monster (15.04.2004) - Christina Ricci (12.02.1980) 24-63
A83: tt0462200 | B83: nm0000207 | C83: =_xlfn.XLOOKUP($A83,_xlfn.CHOOSECOLS(_xlfn.ANCHORARRAY(Filme!$G$1),2),_xlfn.CHOOSECOLS(_xlfn.ANCHORARRAY(Filme!$G$1),3),"",0,2) -> Black Snake Moan | D83: =_xlfn.XLOOKUP($A83,_xlfn.CHOOSECOLS(_xlfn.ANCHORARRAY(Filme!$G$1),2),_xlfn.CHOOSECOLS(_xlfn.ANCHORARRAY(Filme!$G$1),4),"",0,2) -> 2007-07-05 | E83: =_xlfn.XLOOKUP($B83,_xlfn.CHOOSECOLS(_xlfn.ANCHORARRAY(Leute!$F$1),2),_xlfn.CHOOSECOLS(_xlfn.ANCHORARRAY(Leute!$F$1),3),"x",0,2) -> Christina Ricci | F83: =_xlfn.XLOOKUP($B83,_xlfn.CHOOSECOLS(_xlfn.ANCHORARRAY(Leute!$F$1),2),_xlfn.CHOOSECOLS(_xlfn.ANCHORARRAY(Leute!$F$1),4),"x",0,2) -> 1980-02-12 | G83: =RANK(F83,F$1:F83,0) -> 8 | H83: =DATEDIF(F83,D83,"Y") -> 27 | I83: =DATEDIF(F83,D83,"YD") -> 144 | J83: =D83-F83 -> 10005 | K83: ="MRS "&TEXT(J83,"00000")&" "&SUBSTITUTE(C83,":","")&" ("&TEXT(D83,"TT.MM.JJJJ")&") - "&E83&" ("&TEXT(F83,"TT.MM.JJJJ")&") "&H83&"-"&I83 -> MRS 10005 Black Snake Moan (05.07.2007) - Christina Ricci (12.02.1980) 27-144
A84: tt0838247 | B84: nm0000207 | C84: =_xlfn.XLOOKUP($A84,_xlfn.CHOOSECOLS(_xlfn.ANCHORARRAY(Filme!$G$1),2),_xlfn.CHOOSECOLS(_xlfn.ANCHORARRAY(Filme!$G$1),3),"",0,2) -> After.Life | D84: =_xlfn.XLOOKUP($A84,_xlfn.CHOOSECOLS(_xlfn.ANCHORARRAY(Filme!$G$1),2),_xlfn.CHOOSECOLS(_xlfn.ANCHORARRAY(Filme!$G$1),4),"",0,2) -> 2009-12-16 | E84: =_xlfn.XLOOKUP($B84,_xlfn.CHOOSECOLS(_xlfn.ANCHORARRAY(Leute!$F$1),2),_xlfn.CHOOSECOLS(_xlfn.ANCHORARRAY(Leute!$F$1),3),"x",0,2) -> Christina Ricci | F84: =_xlfn.XLOOKUP($B84,_xlfn.CHOOSECOLS(_xlfn.ANCHORARRAY(Leute!$F$1),2),_xlfn.CHOOSECOLS(_xlfn.ANCHORARRAY(Leute!$F$1),4),"x",0,2) -> 1980-02-12 | G84: =RANK(F84,F$1:F84,0) -> 8 | H84: =DATEDIF(F84,D84,"Y") -> 29 | I84: =DATEDIF(F84,D84,"YD") -> 308 | J84: =D84-F84 -> 10900 | K84: ="MRS "&TEXT(J84,"00000")&" "&SUBSTITUTE(C84,":","")&" ("&TEXT(D84,"TT.MM.JJJJ")&") - "&E84&" ("&TEXT(F84,"TT.MM.JJJJ")&") "&H84&"-"&I84 -> MRS 10900 After.Life (16.12.2009) - Christina Ricci (12.02.1980) 29-308
A85: tt1440732 | B85: nm0000207 | C85: =_xlfn.XLOOKUP($A85,_xlfn.CHOOSECOLS(_xlfn.ANCHORARRAY(Filme!$G$1),2),_xlfn.CHOOSECOLS(_xlfn.ANCHORARRAY(Filme!$G$1),3),"",0,2) -> Bel Ami | D85: =_xlfn.XLOOKUP($A85,_xlfn.CHOOSECOLS(_xlfn.ANCHORARRAY(Filme!$G$1),2),_xlfn.CHOOSECOLS(_xlfn.ANCHORARRAY(Filme!$G$1),4),"",0,2) -> 2012-05-03 | E85: =_xlfn.XLOOKUP($B85,_xlfn.CHOOSECOLS(_xlfn.ANCHORARRAY(Leute!$F$1),2),_xlfn.CHOOSECOLS(_xlfn.ANCHORARRAY(Leute!$F$1),3),"x",0,2) -> Christina Ricci | F85: =_xlfn.XLOOKUP($B85,_xlfn.CHOOSECOLS(_xlfn.ANCHORARRAY(Leute!$F$1),2),_xlfn.CHOOSECOLS(_xlfn.ANCHORARRAY(Leute!$F$1),4),"x",0,2) -> 1980-02-12 | G85: =RANK(F85,F$1:F85,0) -> 8 | H85: =DATEDIF(F85,D85,"Y") -> 32 | I85: =DATEDIF(F85,D85,"YD") -> 81 | J85: =D85-F85 -> 11769 | K85: ="MRS "&TEXT(J85,"00000")&" "&SUBSTITUTE(C85,":","")&" ("&TEXT(D85,"TT.MM.JJJJ")&") - "&E85&" ("&TEXT(F85,"TT.MM.JJJJ")&") "&H85&"-"&I85 -> MRS 11769 Bel Ami (03.05.2012) - Christina Ricci (12.02.1980) 32-81
A86: tt5313894 | B86: nm0000207 | C86: =_xlfn.XLOOKUP($A86,_xlfn.CHOOSECOLS(_xlfn.ANCHORARRAY(Filme!$G$1),2),_xlfn.CHOOSECOLS(_xlfn.ANCHORARRAY(Filme!$G$1),3),"",0,2) -> Z | D86: =_xlfn.XLOOKUP($A86,_xlfn.CHOOSECOLS(_xlfn.ANCHORARRAY(Filme!$G$1),2),_xlfn.CHOOSECOLS(_xlfn.ANCHORARRAY(Filme!$G$1),4),"",0,2) -> 2017-03-03 | E86: =_xlfn.XLOOKUP($B86,_xlfn.CHOOSECOLS(_xlfn.ANCHORARRAY(Leute!$F$1),2),_xlfn.CHOOSECOLS(_xlfn.ANCHORARRAY(Leute!$F$1),3),"x",0,2) -> Christina Ricci | F86: =_xlfn.XLOOKUP($B86,_xlfn.CHOOSECOLS(_xlfn.ANCHORARRAY(Leute!$F$1),2),_xlfn.CHOOSECOLS(_xlfn.ANCHORARRAY(Leute!$F$1),4),"x",0,2) -> 1980-02-12 | G86: =RANK(F86,F$1:F86,0) -> 8 | H86: =DATEDIF(F86,D86,"Y") -> 37 | I86: =DATEDIF(F86,D86,"YD") -> 19 | J86: =D86-F86 -> 13534 | K86: ="MRS "&TEXT(J86,"00000")&" "&SUBSTITUTE(C86,":","")&" ("&TEXT(D86,"TT.MM.JJJJ")&") - "&E86&" ("&TEXT(F86,"TT.MM.JJJJ")&") "&H86&"-"&I86 -> MRS 13534 Z (03.03.2017) - Christina Ricci (12.02.1980) 37-19
A87: tt0174480 | B87: nm0000213 | C87: =_xlfn.XLOOKUP($A87,_xlfn.CHOOSECOLS(_xlfn.ANCHORARRAY(Filme!$G$1),2),_xlfn.CHOOSECOLS(_xlfn.ANCHORARRAY(Filme!$G$1),3),"",0,2) -> Autumn in New York | D87: =_xlfn.XLOOKUP($A87,_xlfn.CHOOSECOLS(_xlfn.ANCHORARRAY(Filme!$G$1),2),_xlfn.CHOOSECOLS(_xlfn.ANCHORARRAY(Filme!$G$1),4),"",0,2) -> 2000-10-12 | E87: =_xlfn.XLOOKUP($B87,_xlfn.CHOOSECOLS(_xlfn.ANCHORARRAY(Leute!$F$1),2),_xlfn.CHOOSECOLS(_xlfn.ANCHORARRAY(Leute!$F$1),3),"x",0,2) -> Winona Ryder | F87: =_xlfn.XLOOKUP($B87,_xlfn.CHOOSECOLS(_xlfn.ANCHORARRAY(Leute!$F$1),2),_xlfn.CHOOSECOLS(_xlfn.ANCHORARRAY(Leute!$F$1),4),"x",0,2) -> 1971-10-29 | G87: =RANK(F87,F$1:F87,0) -> 21 | H87: =DATEDIF(F87,D87,"Y") -> 28 | I87: =DATEDIF(F87,D87,"YD") -> 349 | J87: =D87-F87 -> 10576 | K87: ="MRS "&TEXT(J87,"00000")&" "&SUBSTITUTE(C87,":","")&" ("&TEXT(D87,"TT.MM.JJJJ")&") - "&E87&" ("&TEXT(F87,"TT.MM.JJJJ")&") "&H87&"-"&I87 -> MRS 10576 Autumn in New York (12.10.2000) - Winona Ryder (29.10.1971) 28-349
A88: tt0497972 | B88: nm0000213 | C88: =_xlfn.XLOOKUP($A88,_xlfn.CHOOSECOLS(_xlfn.ANCHORARRAY(Filme!$G$1),2),_xlfn.CHOOSECOLS(_xlfn.ANCHORARRAY(Filme!$G$1),3),"",0,2) -> Sex and Death 101 | D88: =_xlfn.XLOOKUP($A88,_xlfn.CHOOSECOLS(_xlfn.ANCHORARRAY(Filme!$G$1),2),_xlfn.CHOOSECOLS(_xlfn.ANCHORARRAY(Filme!$G$1),4),"",0,2) -> 2008-02-22 | E88: =_xlfn.XLOOKUP($B88,_xlfn.CHOOSECOLS(_xlfn.ANCHORARRAY(Leute!$F$1),2),_xlfn.CHOOSECOLS(_xlfn.ANCHORARRAY(Leute!$F$1),3),"x",0,2) -> Winona Ryder | F88: =_xlfn.XLOOKUP($B88,_xlfn.CHOOSECOLS(_xlfn.ANCHORARRAY(Leute!$F$1),2),_xlfn.CHOOSECOLS(_xlfn.ANCHORARRAY(Leute!$F$1),4),"x",0,2) -> 1971-10-29 | G88: =RANK(F88,F$1:F88,0) -> 21 | H88: =DATEDIF(F88,D88,"Y") -> 36 | I88: =DATEDIF(F88,D88,"YD") -> 116 | J88: =D88-F88 -> 13265 | K88: ="MRS "&TEXT(J88,"00000")&" "&SUBSTITUTE(C88,":","")&" ("&TEXT(D88,"TT.MM.JJJJ")&") - "&E88&" ("&TEXT(F88,"TT.MM.JJJJ")&") "&H88&"-"&I88 -> MRS 13265 Sex and Death 101 (22.02.2008) - Winona Ryder (29.10.1971) 36-116
A89: tt0115438 | B89: nm0000234 | C89: =_xlfn.XLOOKUP($A89,_xlfn.CHOOSECOLS(_xlfn.ANCHORARRAY(Filme!$G$1),2),_xlfn.CHOOSECOLS(_xlfn.ANCHORARRAY(Filme!$G$1),3),"",0,2) -> 2 Days in the Valley | D89: =_xlfn.XLOOKUP($A89,_xlfn.CHOOSECOLS(_xlfn.ANCHORARRAY(Filme!$G$1),2),_xlfn.CHOOSECOLS(_xlfn.ANCHORARRAY(Filme!$G$1),4),"",0,2) -> 1997-05-22 | E89: =_xlfn.XLOOKUP($B89,_xlfn.CHOOSECOLS(_xlfn.ANCHORARRAY(Leute!$F$1),2),_xlfn.CHOOSECOLS(_xlfn.ANCHORARRAY(Leute!$F$1),3),"x",0,2) -> Charlize Theron | F89: =_xlfn.XLOOKUP($B89,_xlfn.CHOOSECOLS(_xlfn.ANCHORARRAY(Leute!$F$1),2),_xlfn.CHOOSECOLS(_xlfn.ANCHORARRAY(Leute!$F$1),4),"x",0,2) -> 1975-08-07 | G89: =RANK(F89,F$1:F89,0) -> 14 | H89: =DATEDIF(F89,D89,"Y") -> 21 | I89: =DATEDIF(F89,D89,"YD") -> 289 | J89: =D89-F89 -> 7959 | K89: ="MRS "&TEXT(J89,"00000")&" "&SUBSTITUTE(C89,":","")&" ("&TEXT(D89,"TT.MM.JJJJ")&") - "&E89&" ("&TEXT(F89,"TT.MM.JJJJ")&") "&H89&"-"&I89 -> MRS 07959 2 Days in the Valley (22.05.1997) - Charlize Theron (07.08.1975) 21-289
A90: tt0118971 | B90: nm0000234 | C90: =_xlfn.XLOOKUP($A90,_xlfn.CHOOSECOLS(_xlfn.ANCHORARRAY(Filme!$G$1),2),_xlfn.CHOOSECOLS(_xlfn.ANCHORARRAY(Filme!$G$1),3),"",0,2) -> The Devil's Advocate | D90: =_xlfn.XLOOKUP($A90,_xlfn.CHOOSECOLS(_xlfn.ANCHORARRAY(Filme!$G$1),2),_xlfn.CHOOSECOLS(_xlfn.ANCHORARRAY(Filme!$G$1),4),"",0,2) -> 1998-01-22 | E90: =_xlfn.XLOOKUP($B90,_xlfn.CHOOSECOLS(_xlfn.ANCHORARRAY(Leute!$F$1),2),_xlfn.CHOOSECOLS(_xlfn.ANCHORARRAY(Leute!$F$1),3),"x",0,2) -> Charlize Theron | F90: =_xlfn.XLOOKUP($B90,_xlfn.CHOOSECOLS(_xlfn.ANCHORARRAY(Leute!$F$1),2),_xlfn.CHOOSECOLS(_xlfn.ANCHORARRAY(Leute!$F$1),4),"x",0,2) -> 1975-08-07 | G90: =RANK(F90,F$1:F90,0) -> 14 | H90: =DATEDIF(F90,D90,"Y") -> 22 | I90: =DATEDIF(F90,D90,"YD") -> 168 | J90: =D90-F90 -> 8204 | K90: ="MRS "&TEXT(J90,"00000")&" "&SUBSTITUTE(C90,":","")&" ("&TEXT(D90,"TT.MM.JJJJ")&") - "&E90&" ("&TEXT(F90,"TT.MM.JJJJ")&") "&H90&"-"&I90 -> MRS 08204 The Devil's Advocate (22.01.1998) - Charlize Theron (07.08.1975) 22-168
A91: tt0124315 | B91: nm0000234 | C91: =_xlfn.XLOOKUP($A91,_xlfn.CHOOSECOLS(_xlfn.ANCHORARRAY(Filme!$G$1),2),_xlfn.CHOOSECOLS(_xlfn.ANCHORARRAY(Filme!$G$1),3),"",0,2) -> The Cider House Rules | D91: =_xlfn.XLOOKUP($A91,_xlfn.CHOOSECOLS(_xlfn.ANCHORARRAY(Filme!$G$1),2),_xlfn.CHOOSECOLS(_xlfn.ANCHORARRAY(Filme!$G$1),4),"",0,2) -> 2000-03-16 | E91: =_xlfn.XLOOKUP($B91,_xlfn.CHOOSECOLS(_xlfn.ANCHORARRAY(Leute!$F$1),2),_xlfn.CHOOSECOLS(_xlfn.ANCHORARRAY(Leute!$F$1),3),"x",0,2) -> Charlize Theron | F91: =_xlfn.XLOOKUP($B91,_xlfn.CHOOSECOLS(_xlfn.ANCHORARRAY(Leute!$F$1),2),_xlfn.CHOOSECOLS(_xlfn.ANCHORARRAY(Leute!$F$1),4),"x",0,2) -> 1975-08-07 | G91: =RANK(F91,F$1:F91,0) -> 14 | H91: =DATEDIF(F91,D91,"Y") -> 24 | I91: =DATEDIF(F91,D91,"YD") -> 222 | J91: =D91-F91 -> 8988 | K91: ="MRS "&TEXT(J91,"00000")&" "&SUBSTITUTE(C91,":","")&" ("&TEXT(D91,"TT.MM.JJJJ")&") - "&E91&" ("&TEXT(F91,"TT.MM.JJJJ")&") "&H91&"-"&I91 -> MRS 08988 The Cider House Rules (16.03.2000) - Charlize Theron (07.08.1975) 24-222
A92: tt0138946 | B92: nm0000234 | C92: =_xlfn.XLOOKUP($A92,_xlfn.CHOOSECOLS(_xlfn.ANCHORARRAY(Filme!$G$1),2),_xlfn.CHOOSECOLS(_xlfn.ANCHORARRAY(Filme!$G$1),3),"",0,2) -> The Yards | D92: =_xlfn.XLOOKUP($A92,_xlfn.CHOOSECOLS(_xlfn.ANCHORARRAY(Filme!$G$1),2),_xlfn.CHOOSECOLS(_xlfn.ANCHORARRAY(Filme!$G$1),4),"",0,2) -> 2000-04-27 | E92: =_xlfn.XLOOKUP($B92,_xlfn.CHOOSECOLS(_xlfn.ANCHORARRAY(Leute!$F$1),2),_xlfn.CHOOSECOLS(_xlfn.ANCHORARRAY(Leute!$F$1),3),"x",0,2) -> Charlize Theron | F92: =_xlfn.XLOOKUP($B92,_xlfn.CHOOSECOLS(_xlfn.ANCHORARRAY(Leute!$F$1),2),_xlfn.CHOOSECOLS(_xlfn.ANCHORARRAY(Leute!$F$1),4),"x",0,2) -> 1975-08-07 | G92: =RANK(F92,F$1:F92,0) -> 14 | H92: =DATEDIF(F92,D92,"Y") -> 24 | I92: =DATEDIF(F92,D92,"YD") -> 264 | J92: =D92-F92 -> 9030 | K92: ="MRS "&TEXT(J92,"00000")&" "&SUBSTITUTE(C92,":","")&" ("&TEXT(D92,"TT.MM.JJJJ")&") - "&E92&" ("&TEXT(F92,"TT.MM.JJJJ")&") "&H92&"-"&I92 -> MRS 09030 The Yards (27.04.2000) - Charlize Theron (07.08.1975) 24-264
A93: tt0184858 | B93: nm0000234 | C93: =_xlfn.XLOOKUP($A93,_xlfn.CHOOSECOLS(_xlfn.ANCHORARRAY(Filme!$G$1),2),_xlfn.CHOOSECOLS(_xlfn.ANCHORARRAY(Filme!$G$1),3),"",0,2) -> Reindeer Games | D93: =_xlfn.XLOOKUP($A93,_xlfn.CHOOSECOLS(_xlfn.ANCHORARRAY(Filme!$G$1),2),_xlfn.CHOOSECOLS(_xlfn.ANCHORARRAY(Filme!$G$1),4),"",0,2) -> 2000-12-07 | E93: =_xlfn.XLOOKUP($B93,_xlfn.CHOOSECOLS(_xlfn.ANCHORARRAY(Leute!$F$1),2),_xlfn.CHOOSECOLS(_xlfn.ANCHORARRAY(Leute!$F$1),3),"x",0,2) -> Charlize Theron | F93: =_xlfn.XLOOKUP($B93,_xlfn.CHOOSECOLS(_xlfn.ANCHORARRAY(Leute!$F$1),2),_xlfn.CHOOSECOLS(_xlfn.ANCHORARRAY(Leute!$F$1),4),"x",0,2) -> 1975-08-07 | G93: =RANK(F93,F$1:F93,0) -> 14 | H93: =DATEDIF(F93,D93,"Y") -> 25 | I93: =DATEDIF(F93,D93,"YD") -> 122 | J93: =D93-F93 -> 9254 | K93: ="MRS "&TEXT(J93,"00000")&" "&SUBSTITUTE(C93,":","")&" ("&TEXT(D93,"TT.MM.JJJJ")&") - "&E93&" ("&TEXT(F93,"TT.MM.JJJJ")&") "&H93&"-"&I93 -> MRS 09254 Reindeer Games (07.12.2000) - Charlize Theron (07.08.1975) 25-122
A94: tt0230838 | B94: nm0000234 | C94: =_xlfn.XLOOKUP($A94,_xlfn.CHOOSECOLS(_xlfn.ANCHORARRAY(Filme!$G$1),2),_xlfn.CHOOSECOLS(_xlfn.ANCHORARRAY(Filme!$G$1),3),"",0,2) -> Sweet November | D94: =_xlfn.XLOOKUP($A94,_xlfn.CHOOSECOLS(_xlfn.ANCHORARRAY(Filme!$G$1),2),_xlfn.CHOOSECOLS(_xlfn.ANCHORARRAY(Filme!$G$1),4),"",0,2) -> 2001-08-02 | E94: =_xlfn.XLOOKUP($B94,_xlfn.CHOOSECOLS(_xlfn.ANCHORARRAY(Leute!$F$1),2),_xlfn.CHOOSECOLS(_xlfn.ANCHORARRAY(Leute!$F$1),3),"x",0,2) -> Charlize Theron | F94: =_xlfn.XLOOKUP($B94,_xlfn.CHOOSECOLS(_xlfn.ANCHORARRAY(Leute!$F$1),2),_xlfn.CHOOSECOLS(_xlfn.ANCHORARRAY(Leute!$F$1),4),"x",0,2) -> 1975-08-07 | G94: =RANK(F94,F$1:F94,0) -> 14 | H94: =DATEDIF(F94,D94,"Y") -> 25 | I94: =DATEDIF(F94,D94,"YD") -> 361 | J94: =D94-F94 -> 9492 | K94: ="MRS "&TEXT(J94,"00000")&" "&SUBSTITUTE(C94,":","")&" ("&TEXT(D94,"TT.MM.JJJJ")&") - "&E94&" ("&TEXT(F94,"TT.MM.JJJJ")&") "&H94&"-"&I94 -> MRS 09492 Sweet November (02.08.2001) - Charlize Theron (07.08.1975) 25-361
A95: tt0280380 | B95: nm0000234 | C95: =_xlfn.XLOOKUP($A95,_xlfn.CHOOSECOLS(_xlfn.ANCHORARRAY(Filme!$G$1),2),_xlfn.CHOOSECOLS(_xlfn.ANCHORARRAY(Filme!$G$1),3),"",0,2) -> Trapped | D95: =_xlfn.XLOOKUP($A95,_xlfn.CHOOSECOLS(_xlfn.ANCHORARRAY(Filme!$G$1),2),_xlfn.CHOOSECOLS(_xlfn.ANCHORARRAY(Filme!$G$1),4),"",0,2) -> 2003-03-27 | E95: =_xlfn.XLOOKUP($B95,_xlfn.CHOOSECOLS(_xlfn.ANCHORARRAY(Leute!$F$1),2),_xlfn.CHOOSECOLS(_xlfn.ANCHORARRAY(Leute!$F$1),3),"x",0,2) -> Charlize Theron | F95: =_xlfn.XLOOKUP($B95,_xlfn.CHOOSECOLS(_xlfn.ANCHORARRAY(Leute!$F$1),2),_xlfn.CHOOSECOLS(_xlfn.ANCHORARRAY(Leute!$F$1),4),"x",0,2) -> 1975-08-07 | G95: =RANK(F95,F$1:F95,0) -> 14 | H95: =DATEDIF(F95,D95,"Y") -> 27 | I95: =DATEDIF(F95,D95,"YD") -> 233 | J95: =D95-F95 -> 10094 | K95: ="MRS "&TEXT(J95,"00000")&" "&SUBSTITUTE(C95,":","")&" ("&TEXT(D95,"TT.MM.JJJJ")&") - "&E95&" ("&TEXT(F95,"TT.MM.JJJJ")&") "&H95&"-"&I95 -> MRS 10094 Trapped (27.03.2003) - Charlize Theron (07.08.1975) 27-233
A96: tt0338097 | B96: nm0000234 | C96: =_xlfn.XLOOKUP($A96,_xlfn.CHOOSECOLS(_xlfn.ANCHORARRAY(Filme!$G$1),2),_xlfn.CHOOSECOLS(_xlfn.ANCHORARRAY(Filme!$G$1),3),"",0,2) -> Head in the Clouds | D96: =_xlfn.XLOOKUP($A96,_xlfn.CHOOSECOLS(_xlfn.ANCHORARRAY(Filme!$G$1),2),_xlfn.CHOOSECOLS(_xlfn.ANCHORARRAY(Filme!$G$1),4),"",0,2) -> 2004-11-18 | E96: =_xlfn.XLOOKUP($B96,_xlfn.CHOOSECOLS(_xlfn.ANCHORARRAY(Leute!$F$1),2),_xlfn.CHOOSECOLS(_xlfn.ANCHORARRAY(Leute!$F$1),3),"x",0,2) -> Charlize Theron | F96: =_xlfn.XLOOKUP($B96,_xlfn.CHOOSECOLS(_xlfn.ANCHORARRAY(Leute!$F$1),2),_xlfn.CHOOSECOLS(_xlfn.ANCHORARRAY(Leute!$F$1),4),"x",0,2) -> 1975-08-07 | G96: =RANK(F96,F$1:F96,0) -> 14 | H96: =DATEDIF(F96,D96,"Y") -> 29 | I96: =DATEDIF(F96,D96,"YD") -> 103 | J96: =D96-F96 -> 10696 | K96: ="MRS "&TEXT(J96,"00000")&" "&SUBSTITUTE(C96,":","")&" ("&TEXT(D96,"TT.MM.JJJJ")&") - "&E96&" ("&TEXT(F96,"TT.MM.JJJJ")&") "&H96&"-"&I96 -> MRS 10696 Head in the Clouds (18.11.2004) - Charlize Theron (07.08.1975) 29-103
A97: tt0340855 | B97: nm0000234 | C97: =_xlfn.XLOOKUP($A97,_xlfn.CHOOSECOLS(_xlfn.ANCHORARRAY(Filme!$G$1),2),_xlfn.CHOOSECOLS(_xlfn.ANCHORARRAY(Filme!$G$1),3),"",0,2) -> Monster | D97: =_xlfn.XLOOKUP($A97,_xlfn.CHOOSECOLS(_xlfn.ANCHORARRAY(Filme!$G$1),2),_xlfn.CHOOSECOLS(_xlfn.ANCHORARRAY(Filme!$G$1),4),"",0,2) -> 2004-04-15 | E97: =_xlfn.XLOOKUP($B97,_xlfn.CHOOSECOLS(_xlfn.ANCHORARRAY(Leute!$F$1),2),_xlfn.CHOOSECOLS(_xlfn.ANCHORARRAY(Leute!$F$1),3),"x",0,2) -> Charlize Theron | F97: =_xlfn.XLOOKUP($B97,_xlfn.CHOOSECOLS(_xlfn.ANCHORARRAY(Leute!$F$1),2),_xlfn.CHOOSECOLS(_xlfn.ANCHORARRAY(Leute!$F$1),4),"x",0,2) -> 1975-08-07 | G97: =RANK(F97,F$1:F97,0) -> 14 | H97: =DATEDIF(F97,D97,"Y") -> 28 | I97: =DATEDIF(F97,D97,"YD") -> 252 | J97: =D97-F97 -> 10479 | K97: ="MRS "&TEXT(J97,"00000")&" "&SUBSTITUTE(C97,":","")&" ("&TEXT(D97,"TT.MM.JJJJ")&") - "&E97&" ("&TEXT(F97,"TT.MM.JJJJ")&") "&H97&"-"&I97 -> MRS 10479 Monster (15.04.2004) - Charlize Theron (07.08.1975) 28-252
A98: tt0352520 | B98: nm0000234 | C98: =_xlfn.XLOOKUP($A98,_xlfn.CHOOSECOLS(_xlfn.ANCHORARRAY(Filme!$G$1),2),_xlfn.CHOOSECOLS(_xlfn.ANCHORARRAY(Filme!$G$1),3),"",0,2) -> The Life and Death of Peter Sellers | D98: =_xlfn.XLOOKUP($A98,_xlfn.CHOOSECOLS(_xlfn.ANCHORARRAY(Filme!$G$1),2),_xlfn.CHOOSECOLS(_xlfn.ANCHORARRAY(Filme!$G$1),4),"",0,2) -> 2005-04-28 | E98: =_xlfn.XLOOKUP($B98,_xlfn.CHOOSECOLS(_xlfn.ANCHORARRAY(Leute!$F$1),2),_xlfn.CHOOSECOLS(_xlfn.ANCHORARRAY(Leute!$F$1),3),"x",0,2) -> Charlize Theron | F98: =_xlfn.XLOOKUP($B98,_xlfn.CHOOSECOLS(_xlfn.ANCHORARRAY(Leute!$F$1),2),_xlfn.CHOOSECOLS(_xlfn.ANCHORARRAY(Leute!$F$1),4),"x",0,2) -> 1975-08-07 | G98: =RANK(F98,F$1:F98,0) -> 14 | H98: =DATEDIF(F98,D98,"Y") -> 29 | I98: =DATEDIF(F98,D98,"YD") -> 265 | J98: =D98-F98 -> 10857 | K98: ="MRS "&TEXT(J98,"00000")&" "&SUBSTITUTE(C98,":","")&" ("&TEXT(D98,"TT.MM.JJJJ")&") - "&E98&" ("&TEXT(F98,"TT.MM.JJJJ")&") "&H98&"-"&I98 -> MRS 10857 The Life and Death of Peter Sellers (28.04.2005) - Charlize Theron (07.08.1975) 29-265
A99: tt0402022 | B99: nm0000234 | C99: =_xlfn.XLOOKUP($A99,_xlfn.CHOOSECOLS(_xlfn.ANCHORARRAY(Filme!$G$1),2),_xlfn.CHOOSECOLS(_xlfn.ANCHORARRAY(Filme!$G$1),3),"",0,2) -> Æon Flux | D99: =_xlfn.XLOOKUP($A99,_xlfn.CHOOSECOLS(_xlfn.ANCHORARRAY(Filme!$G$1),2),_xlfn.CHOOSECOLS(_xlfn.ANCHORARRAY(Filme!$G$1),4),"",0,2) -> 2006-02-16 | E99: =_xlfn.XLOOKUP($B99,_xlfn.CHOOSECOLS(_xlfn.ANCHORARRAY(Leute!$F$1),2),_xlfn.CHOOSECOLS(_xlfn.ANCHORARRAY(Leute!$F$1),3),"x",0,2) -> Charlize Theron | F99: =_xlfn.XLOOKUP($B99,_xlfn.CHOOSECOLS(_xlfn.ANCHORARRAY(Leute!$F$1),2),_xlfn.CHOOSECOLS(_xlfn.ANCHORARRAY(Leute!$F$1),4),"x",0,2) -> 1975-08-07 | G99: =RANK(F99,F$1:F99,0) -> 14 | H99: =DATEDIF(F99,D99,"Y") -> 30 | I99: =DATEDIF(F99,D99,"YD") -> 193 | J99: =D99-F99 -> 11151 | K99: ="MRS "&TEXT(J99,"00000")&" "&SUBSTITUTE(C99,":","")&" ("&TEXT(D99,"TT.MM.JJJJ")&") - "&E99&" ("&TEXT(F99,"TT.MM.JJJJ")&") "&H99&"-"&I99 -> MRS 11151 Æon Flux (16.02.2006) - Charlize Theron (07.08.1975) 30-193
A100: tt1068641 | B100: nm0000234 | C100: =_xlfn.XLOOKUP($A100,_xlfn.CHOOSECOLS(_xlfn.ANCHORARRAY(Filme!$G$1),2),_xlfn.CHOOSECOLS(_xlfn.ANCHORARRAY(Filme!$G$1),3),"",0,2) -> The Burning Plain | D100: =_xlfn.XLOOKUP($A100,_xlfn.CHOOSECOLS(_xlfn.ANCHORARRAY(Filme!$G$1),2),_xlfn.CHOOSECOLS(_xlfn.ANCHORARRAY(Filme!$G$1),4),"",0,2) -> 2011-05-26 | E100: =_xlfn.XLOOKUP($B100,_xlfn.CHOOSECOLS(_xlfn.ANCHORARRAY(Leute!$F$1),2),_xlfn.CHOOSECOLS(_xlfn.ANCHORARRAY(Leute!$F$1),3),"x",0,2) -> Charlize Theron | F100: =_xlfn.XLOOKUP($B100,_xlfn.CHOOSECOLS(_xlfn.ANCHORARRAY(Leute!$F$1),2),_xlfn.CHOOSECOLS(_xlfn.ANCHORARRAY(Leute!$F$1),4),"x",0,2) -> 1975-08-07 | G100: =RANK(F100,F$1:F100,0) -> 14 | H100: =DATEDIF(F100,D100,"Y") -> 35 | I100: =DATEDIF(F100,D100,"YD") -> 293 | J100: =D100-F100 -> 13076 | K100: ="MRS "&TEXT(J100,"00000")&" "&SUBSTITUTE(C100,":","")&" ("&TEXT(D100,"TT.MM.JJJJ")&") - "&E100&" ("&TEXT(F100,"TT.MM.JJJJ")&") "&H100&"-"&I100 -> MRS 13076 The Burning Plain (26.05.2011) - Charlize Theron (07.08.1975) 35-293
A101: tt2406566 | B101: nm0000234 | C101: =_xlfn.XLOOKUP($A101,_xlfn.CHOOSECOLS(_xlfn.ANCHORARRAY(Filme!$G$1),2),_xlfn.CHOOSECOLS(_xlfn.ANCHORARRAY(Filme!$G$1),3),"",0,2) -> Atomic Blonde | D101: =_xlfn.XLOOKUP($A101,_xlfn.CHOOSECOLS(_xlfn.ANCHORARRAY(Filme!$G$1),2),_xlfn.CHOOSECOLS(_xlfn.ANCHORARRAY(Filme!$G$1),4),"",0,2) -> 2017-08-24 | E101: =_xlfn.XLOOKUP($B101,_xlfn.CHOOSECOLS(_xlfn.ANCHORARRAY(Leute!$F$1),2),_xlfn.CHOOSECOLS(_xlfn.ANCHORARRAY(Leute!$F$1),3),"x",0,2) -> Charlize Theron | F101: =_xlfn.XLOOKUP($B101,_xlfn.CHOOSECOLS(_xlfn.ANCHORARRAY(Leute!$F$1),2),_xlfn.CHOOSECOLS(_xlfn.ANCHORARRAY(Leute!$F$1),4),"x",0,2) -> 1975-08-07 | G101: =RANK(F101,F$1:F101,0) -> 14 | H101: =DATEDIF(F101,D101,"Y") -> 42 | I101: =DATEDIF(F101,D101,"YD") -> 17 | J101: =D101-F101 -> 15358 | K101: ="MRS "&TEXT(J101,"00000")&" "&SUBSTITUTE(C101,":","")&" ("&TEXT(D101,"TT.MM.JJJJ")&") - "&E101&" ("&TEXT(F101,"TT.MM.JJJJ")&") "&H101&"-"&I101 -> MRS 15358 Atomic Blonde (24.08.2017) - Charlize Theron (07.08.1975) 42-17
A102: tt3286560 | B102: nm0000234 | C102: =_xlfn.XLOOKUP($A102,_xlfn.CHOOSECOLS(_xlfn.ANCHORARRAY(Filme!$G$1),2),_xlfn.CHOOSECOLS(_xlfn.ANCHORARRAY(Filme!$G$1),3),"",0,2) -> The Last Face | D102: =_xlfn.XLOOKUP($A102,_xlfn.CHOOSECOLS(_xlfn.ANCHORARRAY(Filme!$G$1),2),_xlfn.CHOOSECOLS(_xlfn.ANCHORARRAY(Filme!$G$1),4),"",0,2) -> 2017-07-28 | E102: =_xlfn.XLOOKUP($B102,_xlfn.CHOOSECOLS(_xlfn.ANCHORARRAY(Leute!$F$1),2),_xlfn.CHOOSECOLS(_xlfn.ANCHORARRAY(Leute!$F$1),3),"x",0,2) -> Charlize Theron | F102: =_xlfn.XLOOKUP($B102,_xlfn.CHOOSECOLS(_xlfn.ANCHORARRAY(Leute!$F$1),2),_xlfn.CHOOSECOLS(_xlfn.ANCHORARRAY(Leute!$F$1),4),"x",0,2) -> 1975-08-07 | G102: =RANK(F102,F$1:F102,0) -> 14 | H102: =DATEDIF(F102,D102,"Y") -> 41 | I102: =DATEDIF(F102,D102,"YD") -> 356 | J102: =D102-F102 -> 15331 | K102: ="MRS "&TEXT(J102,"00000")&" "&SUBSTITUTE(C102,":","")&" ("&TEXT(D102,"TT.MM.JJJJ")&") - "&E102&" ("&TEXT(F102,"TT.MM.JJJJ")&") "&H102&"-"&I102 -> MRS 15331 The Last Face (28.07.2017) - Charlize Theron (07.08.1975) 41-356
A103: tt9196186 | B103: nm0000234 | C103: =_xlfn.XLOOKUP($A103,_xlfn.CHOOSECOLS(_xlfn.ANCHORARRAY(Filme!$G$1),2),_xlfn.CHOOSECOLS(_xlfn.ANCHORARRAY(Filme!$G$1),3),"",0,2) -> Dior J'adore: The New Absolu | D103: =_xlfn.XLOOKUP($A103,_xlfn.CHOOSECOLS(_xlfn.ANCHORARRAY(Filme!$G$1),2),_xlfn.CHOOSECOLS(_xlfn.ANCHORARRAY(Filme!$G$1),4),"",0,2) -> 2018-10-28 | E103: =_xlfn.XLOOKUP($B103,_xlfn.CHOOSECOLS(_xlfn.ANCHORARRAY(Leute!$F$1),2),_xlfn.CHOOSECOLS(_xlfn.ANCHORARRAY(Leute!$F$1),3),"x",0,2) -> Charlize Theron | F103: =_xlfn.XLOOKUP($B103,_xlfn.CHOOSECOLS(_xlfn.ANCHORARRAY(Leute!$F$1),2),_xlfn.CHOOSECOLS(_xlfn.ANCHORARRAY(Leute!$F$1),4),"x",0,2) -> 1975-08-07 | G103: =RANK(F103,F$1:F103,0) -> 14 | H103: =DATEDIF(F103,D103,"Y") -> 43 | I103: =DATEDIF(F103,D103,"YD") -> 82 | J103: =D103-F103 -> 15788 | K103: ="MRS "&TEXT(J103,"00000")&" "&SUBSTITUTE(C103,":","")&" ("&TEXT(D103,"TT.MM.JJJJ")&") - "&E103&" ("&TEXT(F103,"TT.MM.JJJJ")&") "&H103&"-"&I103 -> MRS 15788 Dior J'adore The New Absolu (28.10.2018) - Charlize Theron (07.08.1975) 43-82
A104: tt0117737 | B104: nm0000239 | C104: =_xlfn.XLOOKUP($A104,_xlfn.CHOOSECOLS(_xlfn.ANCHORARRAY(Filme!$G$1),2),_xlfn.CHOOSECOLS(_xlfn.ANCHORARRAY(Filme!$G$1),3),"",0,2) -> Stealing Beauty | D104: =_xlfn.XLOOKUP($A104,_xlfn.CHOOSECOLS(_xlfn.ANCHORARRAY(Filme!$G$1),2),_xlfn.CHOOSECOLS(_xlfn.ANCHORARRAY(Filme!$G$1),4),"",0,2) -> 1996-09-26 | E104: =_xlfn.XLOOKUP($B104,_xlfn.CHOOSECOLS(_xlfn.ANCHORARRAY(Leute!$F$1),2),_xlfn.CHOOSECOLS(_xlfn.ANCHORARRAY(Leute!$F$1),3),"x",0,2) -> Liv Tyler | F104: =_xlfn.XLOOKUP($B104,_xlfn.CHOOSECOLS(_xlfn.ANCHORARRAY(Leute!$F$1),2),_xlfn.CHOOSECOLS(_xlfn.ANCHORARRAY(Leute!$F$1),4),"x",0,2) -> 1977-07-01 | G104: =RANK(F104,F$1:F104,0) -> 14 | H104: =DATEDIF(F104,D104,"Y") -> 19 | I104: =DATEDIF(F104,D104,"YD") -> 87 | J104: =D104-F104 -> 7027 | K104: ="MRS "&TEXT(J104,"00000")&" "&SUBSTITUTE(C104,":","")&" ("&TEXT(D104,"TT.MM.JJJJ")&") - "&E104&" ("&TEXT(F104,"TT.MM.JJJJ")&") "&H104&"-"&I104 -> MRS 07027 Stealing Beauty (26.09.1996) - Liv Tyler (01.07.1977) 19-87
A105: tt0203755 | B105: nm0000239 | C105: =_xlfn.XLOOKUP($A105,_xlfn.CHOOSECOLS(_xlfn.ANCHORARRAY(Filme!$G$1),2),_xlfn.CHOOSECOLS(_xlfn.ANCHORARRAY(Filme!$G$1),3),"",0,2) -> One Night at McCool's | D105: =_xlfn.XLOOKUP($A105,_xlfn.CHOOSECOLS(_xlfn.ANCHORARRAY(Filme!$G$1),2),_xlfn.CHOOSECOLS(_xlfn.ANCHORARRAY(Filme!$G$1),4),"",0,2) -> 2001-04-26 | E105: =_xlfn.XLOOKUP($B105,_xlfn.CHOOSECOLS(_xlfn.ANCHORARRAY(Leute!$F$1),2),_xlfn.CHOOSECOLS(_xlfn.ANCHORARRAY(Leute!$F$1),3),"x",0,2) -> Liv Tyler | F105: =_xlfn.XLOOKUP($B105,_xlfn.CHOOSECOLS(_xlfn.ANCHORARRAY(Leute!$F$1),2),_xlfn.CHOOSECOLS(_xlfn.ANCHORARRAY(Leute!$F$1),4),"x",0,2) -> 1977-07-01 | G105: =RANK(F105,F$1:F105,0) -> 14 | H105: =DATEDIF(F105,D105,"Y") -> 23 | I105: =DATEDIF(F105,D105,"YD") -> 299 | J105: =D105-F105 -> 8700 | K105: ="MRS "&TEXT(J105,"00000")&" "&SUBSTITUTE(C105,":","")&" ("&TEXT(D105,"TT.MM.JJJJ")&") - "&E105&" ("&TEXT(F105,"TT.MM.JJJJ")&") "&H105&"-"&I105 -> MRS 08700 One Night at McCool's (26.04.2001) - Liv Tyler (01.07.1977) 23-299
A106: tt1535970 | B106: nm0000239 | C106: =_xlfn.XLOOKUP($A106,_xlfn.CHOOSECOLS(_xlfn.ANCHORARRAY(Filme!$G$1),2),_xlfn.CHOOSECOLS(_xlfn.ANCHORARRAY(Filme!$G$1),3),"",0,2) -> The Ledge | D106: =_xlfn.XLOOKUP($A106,_xlfn.CHOOSECOLS(_xlfn.ANCHORARRAY(Filme!$G$1),2),_xlfn.CHOOSECOLS(_xlfn.ANCHORARRAY(Filme!$G$1),4),"",0,2) -> 2011-05-26 | E106: =_xlfn.XLOOKUP($B106,_xlfn.CHOOSECOLS(_xlfn.ANCHORARRAY(Leute!$F$1),2),_xlfn.CHOOSECOLS(_xlfn.ANCHORARRAY(Leute!$F$1),3),"x",0,2) -> Liv Tyler | F106: =_xlfn.XLOOKUP($B106,_xlfn.CHOOSECOLS(_xlfn.ANCHORARRAY(Leute!$F$1),2),_xlfn.CHOOSECOLS(_xlfn.ANCHORARRAY(Leute!$F$1),4),"x",0,2) -> 1977-07-01 | G106: =RANK(F106,F$1:F106,0) -> 14 | H106: =DATEDIF(F106,D106,"Y") -> 33 | I106: =DATEDIF(F106,D106,"YD") -> 329 | J106: =D106-F106 -> 12382 | K106: ="MRS "&TEXT(J106,"00000")&" "&SUBSTITUTE(C106,":","")&" ("&TEXT(D106,"TT.MM.JJJJ")&") - "&E106&" ("&TEXT(F106,"TT.MM.JJJJ")&") "&H106&"-"&I106 -> MRS 12382 The Ledge (26.05.2011) - Liv Tyler (01.07.1977) 33-329
A107: tt4550136 | B107: nm0000239 | C107: =_xlfn.XLOOKUP($A107,_xlfn.CHOOSECOLS(_xlfn.ANCHORARRAY(Filme!$G$1),2),_xlfn.CHOOSECOLS(_xlfn.ANCHORARRAY(Filme!$G$1),3),"",0,2) -> The Leftovers | D107: =_xlfn.XLOOKUP($A107,_xlfn.CHOOSECOLS(_xlfn.ANCHORARRAY(Filme!$G$1),2),_xlfn.CHOOSECOLS(_xlfn.ANCHORARRAY(Filme!$G$1),4),"",0,2) -> 2016-01-01 | E107: =_xlfn.XLOOKUP($B107,_xlfn.CHOOSECOLS(_xlfn.ANCHORARRAY(Leute!$F$1),2),_xlfn.CHOOSECOLS(_xlfn.ANCHORARRAY(Leute!$F$1),3),"x",0,2) -> Liv Tyler | F107: =_xlfn.XLOOKUP($B107,_xlfn.CHOOSECOLS(_xlfn.ANCHORARRAY(Leute!$F$1),2),_xlfn.CHOOSECOLS(_xlfn.ANCHORARRAY(Leute!$F$1),4),"x",0,2) -> 1977-07-01 | G107: =RANK(F107,F$1:F107,0) -> 14 | H107: =DATEDIF(F107,D107,"Y") -> 38 | I107: =DATEDIF(F107,D107,"YD") -> 184 | J107: =D107-F107 -> 14063 | K107: ="MRS "&TEXT(J107,"00000")&" "&SUBSTITUTE(C107,":","")&" ("&TEXT(D107,"TT.MM.JJJJ")&") - "&E107&" ("&TEXT(F107,"TT.MM.JJJJ")&") "&H107&"-"&I107 -> MRS 14063 The Leftovers (01.01.2016) - Liv Tyler (01.07.1977) 38-184
A108: tt0243155 | B108: nm0000250 | C108: =_xlfn.XLOOKUP($A108,_xlfn.CHOOSECOLS(_xlfn.ANCHORARRAY(Filme!$G$1),2),_xlfn.CHOOSECOLS(_xlfn.ANCHORARRAY(Filme!$G$1),3),"",0,2) -> Bridget Jones's Diary | D108: =_xlfn.XLOOKUP($A108,_xlfn.CHOOSECOLS(_xlfn.ANCHORARRAY(Filme!$G$1),2),_xlfn.CHOOSECOLS(_xlfn.ANCHORARRAY(Filme!$G$1),4),"",0,2) -> 2001-08-23 | E108: =_xlfn.XLOOKUP($B108,_xlfn.CHOOSECOLS(_xlfn.ANCHORARRAY(Leute!$F$1),2),_xlfn.CHOOSECOLS(_xlfn.ANCHORARRAY(Leute!$F$1),3),"x",0,2) -> Renée Zellweger | F108: =_xlfn.XLOOKUP($B108,_xlfn.CHOOSECOLS(_xlfn.ANCHORARRAY(Leute!$F$1),2),_xlfn.CHOOSECOLS(_xlfn.ANCHORARRAY(Leute!$F$1),4),"x",0,2) -> 1969-04-25 | G108: =RANK(F108,F$1:F108,0) -> 51 | H108: =DATEDIF(F108,D108,"Y") -> 32 | I108: =DATEDIF(F108,D108,"YD") -> 120 | J108: =D108-F108 -> 11808 | K108: ="MRS "&TEXT(J108,"00000")&" "&SUBSTITUTE(C108,":","")&" ("&TEXT(D108,"TT.MM.JJJJ")&") - "&E108&" ("&TEXT(F108,"TT.MM.JJJJ")&") "&H108&"-"&I108 -> MRS 11808 Bridget Jones's Diary (23.08.2001) - Renée Zellweger (25.04.1969) 32-120
A109: tt0800308 | B109: nm0000250 | C109: =_xlfn.XLOOKUP($A109,_xlfn.CHOOSECOLS(_xlfn.ANCHORARRAY(Filme!$G$1),2),_xlfn.CHOOSECOLS(_xlfn.ANCHORARRAY(Filme!$G$1),3),"",0,2) -> Appaloosa | D109: =_xlfn.XLOOKUP($A109,_xlfn.CHOOSECOLS(_xlfn.ANCHORARRAY(Filme!$G$1),2),_xlfn.CHOOSECOLS(_xlfn.ANCHORARRAY(Filme!$G$1),4),"",0,2) -> 2008-10-03 | E109: =_xlfn.XLOOKUP($B109,_xlfn.CHOOSECOLS(_xlfn.ANCHORARRAY(Leute!$F$1),2),_xlfn.CHOOSECOLS(_xlfn.ANCHORARRAY(Leute!$F$1),3),"x",0,2) -> Renée Zellweger | F109: =_xlfn.XLOOKUP($B109,_xlfn.CHOOSECOLS(_xlfn.ANCHORARRAY(Leute!$F$1),2),_xlfn.CHOOSECOLS(_xlfn.ANCHORARRAY(Leute!$F$1),4),"x",0,2) -> 1969-04-25 | G109: =RANK(F109,F$1:F109,0) -> 51 | H109: =DATEDIF(F109,D109,"Y") -> 39 | I109: =DATEDIF(F109,D109,"YD") -> 161 | J109: =D109-F109 -> 14406 | K109: ="MRS "&TEXT(J109,"00000")&" "&SUBSTITUTE(C109,":","")&" ("&TEXT(D109,"TT.MM.JJJJ")&") - "&E109&" ("&TEXT(F109,"TT.MM.JJJJ")&") "&H109&"-"&I109 -> MRS 14406 Appaloosa (03.10.2008) - Renée Zellweger (25.04.1969) 39-161
A110: tt3503406 | B110: nm0000250 | C110: =_xlfn.XLOOKUP($A110,_xlfn.CHOOSECOLS(_xlfn.ANCHORARRAY(Filme!$G$1),2),_xlfn.CHOOSECOLS(_xlfn.ANCHORARRAY(Filme!$G$1),3),"",0,2) -> The Whole Truth | D110: =_xlfn.XLOOKUP($A110,_xlfn.CHOOSECOLS(_xlfn.ANCHORARRAY(Filme!$G$1),2),_xlfn.CHOOSECOLS(_xlfn.ANCHORARRAY(Filme!$G$1),4),"",0,2) -> 2016-10-21 | E110: =_xlfn.XLOOKUP($B110,_xlfn.CHOOSECOLS(_xlfn.ANCHORARRAY(Leute!$F$1),2),_xlfn.CHOOSECOLS(_xlfn.ANCHORARRAY(Leute!$F$1),3),"x",0,2) -> Renée Zellweger | F110: =_xlfn.XLOOKUP($B110,_xlfn.CHOOSECOLS(_xlfn.ANCHORARRAY(Leute!$F$1),2),_xlfn.CHOOSECOLS(_xlfn.ANCHORARRAY(Leute!$F$1),4),"x",0,2) -> 1969-04-25 | G110: =RANK(F110,F$1:F110,0) -> 51 | H110: =DATEDIF(F110,D110,"Y") -> 47 | I110: =DATEDIF(F110,D110,"YD") -> 179 | J110: =D110-F110 -> 17346 | K110: ="MRS "&TEXT(J110,"00000")&" "&SUBSTITUTE(C110,":","")&" ("&TEXT(D110,"TT.MM.JJJJ")&") - "&E110&" ("&TEXT(F110,"TT.MM.JJJJ")&") "&H110&"-"&I110 -> MRS 17346 The Whole Truth (21.10.2016) - Renée Zellweger (25.04.1969) 47-179
A111: tt0111549 | B111: nm0000295 | C111: =_xlfn.XLOOKUP($A111,_xlfn.CHOOSECOLS(_xlfn.ANCHORARRAY(Filme!$G$1),2),_xlfn.CHOOSECOLS(_xlfn.ANCHORARRAY(Filme!$G$1),3),"",0,2) -> Uncovered | D111: =_xlfn.XLOOKUP($A111,_xlfn.CHOOSECOLS(_xlfn.ANCHORARRAY(Filme!$G$1),2),_xlfn.CHOOSECOLS(_xlfn.ANCHORARRAY(Filme!$G$1),4),"",0,2) -> 1995-01-05 | E111: =_xlfn.XLOOKUP($B111,_xlfn.CHOOSECOLS(_xlfn.ANCHORARRAY(Leute!$F$1),2),_xlfn.CHOOSECOLS(_xlfn.ANCHORARRAY(Leute!$F$1),3),"x",0,2) -> Kate Beckinsale | F111: =_xlfn.XLOOKUP($B111,_xlfn.CHOOSECOLS(_xlfn.ANCHORARRAY(Leute!$F$1),2),_xlfn.CHOOSECOLS(_xlfn.ANCHORARRAY(Leute!$F$1),4),"x",0,2) -> 1973-07-26 | G111: =RANK(F111,F$1:F111,0) -> 35 | H111: =DATEDIF(F111,D111,"Y") -> 21 | I111: =DATEDIF(F111,D111,"YD") -> 163 | J111: =D111-F111 -> 7833 | K111: ="MRS "&TEXT(J111,"00000")&" "&SUBSTITUTE(C111,":","")&" ("&TEXT(D111,"TT.MM.JJJJ")&") - "&E111&" ("&TEXT(F111,"TT.MM.JJJJ")&") "&H111&"-"&I111 -> MRS 07833 Uncovered (05.01.1995) - Kate Beckinsale (26.07.1973) 21-163
A112: tt0113269 | B112: nm0000295 | C112: =_xlfn.XLOOKUP($A112,_xlfn.CHOOSECOLS(_xlfn.ANCHORARRAY(Filme!$G$1),2),_xlfn.CHOOSECOLS(_xlfn.ANCHORARRAY(Filme!$G$1),3),"",0,2) -> Haunted | D112: =_xlfn.XLOOKUP($A112,_xlfn.CHOOSECOLS(_xlfn.ANCHORARRAY(Filme!$G$1),2),_xlfn.CHOOSECOLS(_xlfn.ANCHORARRAY(Filme!$G$1),4),"",0,2) -> 1995-11-30 | E112: =_xlfn.XLOOKUP($B112,_xlfn.CHOOSECOLS(_xlfn.ANCHORARRAY(Leute!$F$1),2),_xlfn.CHOOSECOLS(_xlfn.ANCHORARRAY(Leute!$F$1),3),"x",0,2) -> Kate Beckinsale | F112: =_xlfn.XLOOKUP($B112,_xlfn.CHOOSECOLS(_xlfn.ANCHORARRAY(Leute!$F$1),2),_xlfn.CHOOSECOLS(_xlfn.ANCHORARRAY(Leute!$F$1),4),"x",0,2) -> 1973-07-26 | G112: =RANK(F112,F$1:F112,0) -> 35 | H112: =DATEDIF(F112,D112,"Y") -> 22 | I112: =DATEDIF(F112,D112,"YD") -> 127 | J112: =D112-F112 -> 8162 | K112: ="MRS "&TEXT(J112,"00000")&" "&SUBSTITUTE(C112,":","")&" ("&TEXT(D112,"TT.MM.JJJJ")&") - "&E112&" ("&TEXT(F112,"TT.MM.JJJJ")&") "&H112&"-"&I112 -> MRS 08162 Haunted (30.11.1995) - Kate Beckinsale (26.07.1973) 22-127
A113: tt0401855 | B113: nm0000295 | C113: =_xlfn.XLOOKUP($A113,_xlfn.CHOOSECOLS(_xlfn.ANCHORARRAY(Filme!$G$1),2),_xlfn.CHOOSECOLS(_xlfn.ANCHORARRAY(Filme!$G$1),3),"",0,2) -> Underworld: Evolution | D113: =_xlfn.XLOOKUP($A113,_xlfn.CHOOSECOLS(_xlfn.ANCHORARRAY(Filme!$G$1),2),_xlfn.CHOOSECOLS(_xlfn.ANCHORARRAY(Filme!$G$1),4),"",0,2) -> 2006-03-02 | E113: =_xlfn.XLOOKUP($B113,_xlfn.CHOOSECOLS(_xlfn.ANCHORARRAY(Leute!$F$1),2),_xlfn.CHOOSECOLS(_xlfn.ANCHORARRAY(Leute!$F$1),3),"x",0,2) -> Kate Beckinsale | F113: =_xlfn.XLOOKUP($B113,_xlfn.CHOOSECOLS(_xlfn.ANCHORARRAY(Leute!$F$1),2),_xlfn.CHOOSECOLS(_xlfn.ANCHORARRAY(Leute!$F$1),4),"x",0,2) -> 1973-07-26 | G113: =RANK(F113,F$1:F113,0) -> 35 | H113: =DATEDIF(F113,D113,"Y") -> 32 | I113: =DATEDIF(F113,D113,"YD") -> 219 | J113: =D113-F113 -> 11907 | K113: ="MRS "&TEXT(J113,"00000")&" "&SUBSTITUTE(C113,":","")&" ("&TEXT(D113,"TT.MM.JJJJ")&") - "&E113&" ("&TEXT(F113,"TT.MM.JJJJ")&") "&H113&"-"&I113 -> MRS 11907 Underworld Evolution (02.03.2006) - Kate Beckinsale (26.07.1973) 32-219
A114: tt0119517 | B114: nm0000312 | C114: =_xlfn.XLOOKUP($A114,_xlfn.CHOOSECOLS(_xlfn.ANCHORARRAY(Filme!$G$1),2),_xlfn.CHOOSECOLS(_xlfn.ANCHORARRAY(Filme!$G$1),3),"",0,2) -> Your Friends and Neighbors | D114: =_xlfn.XLOOKUP($A114,_xlfn.CHOOSECOLS(_xlfn.ANCHORARRAY(Filme!$G$1),2),_xlfn.CHOOSECOLS(_xlfn.ANCHORARRAY(Filme!$G$1),4),"",0,2) -> 1998-08-21 | E114: =_xlfn.XLOOKUP($B114,_xlfn.CHOOSECOLS(_xlfn.ANCHORARRAY(Leute!$F$1),2),_xlfn.CHOOSECOLS(_xlfn.ANCHORARRAY(Leute!$F$1),3),"x",0,2) -> Amy Brenneman | F114: =_xlfn.XLOOKUP($B114,_xlfn.CHOOSECOLS(_xlfn.ANCHORARRAY(Leute!$F$1),2),_xlfn.CHOOSECOLS(_xlfn.ANCHORARRAY(Leute!$F$1),4),"x",0,2) -> 1964-06-22 | G114: =RANK(F114,F$1:F114,0) -> 96 | H114: =DATEDIF(F114,D114,"Y") -> 34 | I114: =DATEDIF(F114,D114,"YD") -> 60 | J114: =D114-F114 -> 12478 | K114: ="MRS "&TEXT(J114,"00000")&" "&SUBSTITUTE(C114,":","")&" ("&TEXT(D114,"TT.MM.JJJJ")&") - "&E114&" ("&TEXT(F114,"TT.MM.JJJJ")&") "&H114&"-"&I114 -> MRS 12478 Your Friends and Neighbors (21.08.1998) - Amy Brenneman (22.06.1964) 34-60
A115: tt0656383 | B115: nm0000312 | C115: =_xlfn.XLOOKUP($A115,_xlfn.CHOOSECOLS(_xlfn.ANCHORARRAY(Filme!$G$1),2),_xlfn.CHOOSECOLS(_xlfn.ANCHORARRAY(Filme!$G$1),3),"",0,2) -> NYPD Blue | D115: =_xlfn.XLOOKUP($A115,_xlfn.CHOOSECOLS(_xlfn.ANCHORARRAY(Filme!$G$1),2),_xlfn.CHOOSECOLS(_xlfn.ANCHORARRAY(Filme!$G$1),4),"",0,2) -> 1994-09-05 | E115: =_xlfn.XLOOKUP($B115,_xlfn.CHOOSECOLS(_xlfn.ANCHORARRAY(Leute!$F$1),2),_xlfn.CHOOSECOLS(_xlfn.ANCHORARRAY(Leute!$F$1),3),"x",0,2) -> Amy Brenneman | F115: =_xlfn.XLOOKUP($B115,_xlfn.CHOOSECOLS(_xlfn.ANCHORARRAY(Leute!$F$1),2),_xlfn.CHOOSECOLS(_xlfn.ANCHORARRAY(Leute!$F$1),4),"x",0,2) -> 1964-06-22 | G115: =RANK(F115,F$1:F115,0) -> 96 | H115: =DATEDIF(F115,D115,"Y") -> 30 | I115: =DATEDIF(F115,D115,"YD") -> 75 | J115: =D115-F115 -> 11032 | K115: ="MRS "&TEXT(J115,"00000")&" "&SUBSTITUTE(C115,":","")&" ("&TEXT(D115,"TT.MM.JJJJ")&") - "&E115&" ("&TEXT(F115,"TT.MM.JJJJ")&") "&H115&"-"&I115 -> MRS 11032 NYPD Blue (05.09.1994) - Amy Brenneman (22.06.1964) 30-75
A116: tt0076033 | B116: nm0000350 | C116: =_xlfn.XLOOKUP($A116,_xlfn.CHOOSECOLS(_xlfn.ANCHORARRAY(Filme!$G$1),2),_xlfn.CHOOSECOLS(_xlfn.ANCHORARRAY(Filme!$G$1),3),"",0,2) -> First Love | D116: =_xlfn.XLOOKUP($A116,_xlfn.CHOOSECOLS(_xlfn.ANCHORARRAY(Filme!$G$1),2),_xlfn.CHOOSECOLS(_xlfn.ANCHORARRAY(Filme!$G$1),4),"",0,2) -> 1978-04-14 | E116: =_xlfn.XLOOKUP($B116,_xlfn.CHOOSECOLS(_xlfn.ANCHORARRAY(Leute!$F$1),2),_xlfn.CHOOSECOLS(_xlfn.ANCHORARRAY(Leute!$F$1),3),"x",0,2) -> Beverly D'Angelo | F116: =_xlfn.XLOOKUP($B116,_xlfn.CHOOSECOLS(_xlfn.ANCHORARRAY(Leute!$F$1),2),_xlfn.CHOOSECOLS(_xlfn.ANCHORARRAY(Leute!$F$1),4),"x",0,2) -> 1951-11-15 | G116: =RANK(F116,F$1:F116,0) -> 116 | H116: =DATEDIF(F116,D116,"Y") -> 26 | I116: =DATEDIF(F116,D116,"YD") -> 151 | J116: =D116-F116 -> 9647 | K116: ="MRS "&TEXT(J116,"00000")&" "&SUBSTITUTE(C116,":","")&" ("&TEXT(D116,"TT.MM.JJJJ")&") - "&E116&" ("&TEXT(F116,"TT.MM.JJJJ")&") "&H116&"-"&I116 -> MRS 09647 First Love (14.04.1978) - Beverly D'Angelo (15.11.1951) 26-151
A117: tt0076683 | B117: nm0000350 | C117: =_xlfn.XLOOKUP($A117,_xlfn.CHOOSECOLS(_xlfn.ANCHORARRAY(Filme!$G$1),2),_xlfn.CHOOSECOLS(_xlfn.ANCHORARRAY(Filme!$G$1),3),"",0,2) -> The Sentinel | D117: =_xlfn.XLOOKUP($A117,_xlfn.CHOOSECOLS(_xlfn.ANCHORARRAY(Filme!$G$1),2),_xlfn.CHOOSECOLS(_xlfn.ANCHORARRAY(Filme!$G$1),4),"",0,2) -> 1977-05-12 | E117: =_xlfn.XLOOKUP($B117,_xlfn.CHOOSECOLS(_xlfn.ANCHORARRAY(Leute!$F$1),2),_xlfn.CHOOSECOLS(_xlfn.ANCHORARRAY(Leute!$F$1),3),"x",0,2) -> Beverly D'Angelo | F117: =_xlfn.XLOOKUP($B117,_xlfn.CHOOSECOLS(_xlfn.ANCHORARRAY(Leute!$F$1),2),_xlfn.CHOOSECOLS(_xlfn.ANCHORARRAY(Leute!$F$1),4),"x",0,2) -> 1951-11-15 | G117: =RANK(F117,F$1:F117,0) -> 116 | H117: =DATEDIF(F117,D117,"Y") -> 25 | I117: =DATEDIF(F117,D117,"YD") -> 179 | J117: =D117-F117 -> 9310 | K117: ="MRS "&TEXT(J117,"00000")&" "&SUBSTITUTE(C117,":","")&" ("&TEXT(D117,"TT.MM.JJJJ")&") - "&E117&" ("&TEXT(F117,"TT.MM.JJJJ")&") "&H117&"-"&I117 -> MRS 09310 The Sentinel (12.05.1977) - Beverly D'Angelo (15.11.1951) 25-179
A118: tt0079261 | B118: nm0000350 | C118: =_xlfn.XLOOKUP($A118,_xlfn.CHOOSECOLS(_xlfn.ANCHORARRAY(Filme!$G$1),2),_xlfn.CHOOSECOLS(_xlfn.ANCHORARRAY(Filme!$G$1),3),"",0,2) -> Hair | D118: =_xlfn.XLOOKUP($A118,_xlfn.CHOOSECOLS(_xlfn.ANCHORARRAY(Filme!$G$1),2),_xlfn.CHOOSECOLS(_xlfn.ANCHORARRAY(Filme!$G$1),4),"",0,2) -> 1979-07-12 | E118: =_xlfn.XLOOKUP($B118,_xlfn.CHOOSECOLS(_xlfn.ANCHORARRAY(Leute!$F$1),2),_xlfn.CHOOSECOLS(_xlfn.ANCHORARRAY(Leute!$F$1),3),"x",0,2) -> Beverly D'Angelo | F118: =_xlfn.XLOOKUP($B118,_xlfn.CHOOSECOLS(_xlfn.ANCHORARRAY(Leute!$F$1),2),_xlfn.CHOOSECOLS(_xlfn.ANCHORARRAY(Leute!$F$1),4),"x",0,2) -> 1951-11-15 | G118: =RANK(F118,F$1:F118,0) -> 116 | H118: =DATEDIF(F118,D118,"Y") -> 27 | I118: =DATEDIF(F118,D118,"YD") -> 240 | J118: =D118-F118 -> 10101 | K118: ="MRS "&TEXT(J118,"00000")&" "&SUBSTITUTE(C118,":","")&" ("&TEXT(D118,"TT.MM.JJJJ")&") - "&E118&" ("&TEXT(F118,"TT.MM.JJJJ")&") "&H118&"-"&I118 -> MRS 10101 Hair (12.07.1979) - Beverly D'Angelo (15.11.1951) 27-240
A119: tt0085995 | B119: nm0000350 | C119: =_xlfn.XLOOKUP($A119,_xlfn.CHOOSECOLS(_xlfn.ANCHORARRAY(Filme!$G$1),2),_xlfn.CHOOSECOLS(_xlfn.ANCHORARRAY(Filme!$G$1),3),"",0,2) -> National Lampoon's Vacation | D119: =_xlfn.XLOOKUP($A119,_xlfn.CHOOSECOLS(_xlfn.ANCHORARRAY(Filme!$G$1),2),_xlfn.CHOOSECOLS(_xlfn.ANCHORARRAY(Filme!$G$1),4),"",0,2) -> 1984-06-08 | E119: =_xlfn.XLOOKUP($B119,_xlfn.CHOOSECOLS(_xlfn.ANCHORARRAY(Leute!$F$1),2),_xlfn.CHOOSECOLS(_xlfn.ANCHORARRAY(Leute!$F$1),3),"x",0,2) -> Beverly D'Angelo | F119: =_xlfn.XLOOKUP($B119,_xlfn.CHOOSECOLS(_xlfn.ANCHORARRAY(Leute!$F$1),2),_xlfn.CHOOSECOLS(_xlfn.ANCHORARRAY(Leute!$F$1),4),"x",0,2) -> 1951-11-15 | G119: =RANK(F119,F$1:F119,0) -> 116 | H119: =DATEDIF(F119,D119,"Y") -> 32 | I119: =DATEDIF(F119,D119,"YD") -> 206 | J119: =D119-F119 -> 11894 | K119: ="MRS "&TEXT(J119,"00000")&" "&SUBSTITUTE(C119,":","")&" ("&TEXT(D119,"TT.MM.JJJJ")&") - "&E119&" ("&TEXT(F119,"TT.MM.JJJJ")&") "&H119&"-"&I119 -> MRS 11894 National Lampoon's Vacation (08.06.1984) - Beverly D'Angelo (15.11.1951) 32-206
A120: tt0100318 | B120: nm0000350 | C120: =_xlfn.XLOOKUP($A120,_xlfn.CHOOSECOLS(_xlfn.ANCHORARRAY(Filme!$G$1),2),_xlfn.CHOOSECOLS(_xlfn.ANCHORARRAY(Filme!$G$1),3),"",0,2) -> Pacific Heights | D120: =_xlfn.XLOOKUP($A120,_xlfn.CHOOSECOLS(_xlfn.ANCHORARRAY(Filme!$G$1),2),_xlfn.CHOOSECOLS(_xlfn.ANCHORARRAY(Filme!$G$1),4),"",0,2) -> 1990-12-13 | E120: =_xlfn.XLOOKUP($B120,_xlfn.CHOOSECOLS(_xlfn.ANCHORARRAY(Leute!$F$1),2),_xlfn.CHOOSECOLS(_xlfn.ANCHORARRAY(Leute!$F$1),3),"x",0,2) -> Beverly D'Angelo | F120: =_xlfn.XLOOKUP($B120,_xlfn.CHOOSECOLS(_xlfn.ANCHORARRAY(Leute!$F$1),2),_xlfn.CHOOSECOLS(_xlfn.ANCHORARRAY(Leute!$F$1),4),"x",0,2) -> 1951-11-15 | G120: =RANK(F120,F$1:F120,0) -> 116 | H120: =DATEDIF(F120,D120,"Y") -> 39 | I120: =DATEDIF(F120,D120,"YD") -> 28 | J120: =D120-F120 -> 14273 | K120: ="MRS "&TEXT(J120,"00000")&" "&SUBSTITUTE(C120,":","")&" ("&TEXT(D120,"TT.MM.JJJJ")&") - "&E120&" ("&TEXT(F120,"TT.MM.JJJJ")&") "&H120&"-"&I120 -> MRS 14273 Pacific Heights (13.12.1990) - Beverly D'Angelo (15.11.1951) 39-28
A121: tt0102329 | B121: nm0000350 | C121: =_xlfn.XLOOKUP($A121,_xlfn.CHOOSECOLS(_xlfn.ANCHORARRAY(Filme!$G$1),2),_xlfn.CHOOSECOLS(_xlfn.ANCHORARRAY(Filme!$G$1),3),"",0,2) -> Lonely Hearts | D121: =_xlfn.XLOOKUP($A121,_xlfn.CHOOSECOLS(_xlfn.ANCHORARRAY(Filme!$G$1),2),_xlfn.CHOOSECOLS(_xlfn.ANCHORARRAY(Filme!$G$1),4),"",0,2) -> 1993-10-16 | E121: =_xlfn.XLOOKUP($B121,_xlfn.CHOOSECOLS(_xlfn.ANCHORARRAY(Leute!$F$1),2),_xlfn.CHOOSECOLS(_xlfn.ANCHORARRAY(Leute!$F$1),3),"x",0,2) -> Beverly D'Angelo | F121: =_xlfn.XLOOKUP($B121,_xlfn.CHOOSECOLS(_xlfn.ANCHORARRAY(Leute!$F$1),2),_xlfn.CHOOSECOLS(_xlfn.ANCHORARRAY(Leute!$F$1),4),"x",0,2) -> 1951-11-15 | G121: =RANK(F121,F$1:F121,0) -> 116 | H121: =DATEDIF(F121,D121,"Y") -> 41 | I121: =DATEDIF(F121,D121,"YD") -> 336 | J121: =D121-F121 -> 15311 | K121: ="MRS "&TEXT(J121,"00000")&" "&SUBSTITUTE(C121,":","")&" ("&TEXT(D121,"TT.MM.JJJJ")&") - "&E121&" ("&TEXT(F121,"TT.MM.JJJJ")&") "&H121&"-"&I121 -> MRS 15311 Lonely Hearts (16.10.1993) - Beverly D'Angelo (15.11.1951) 41-336
A122: tt0111711 | B122: nm0000350 | C122: =_xlfn.XLOOKUP($A122,_xlfn.CHOOSECOLS(_xlfn.ANCHORARRAY(Filme!$G$1),2),_xlfn.CHOOSECOLS(_xlfn.ANCHORARRAY(Filme!$G$1),3),"",0,2) -> Widow's Kiss | D122: =_xlfn.XLOOKUP($A122,_xlfn.CHOOSECOLS(_xlfn.ANCHORARRAY(Filme!$G$1),2),_xlfn.CHOOSECOLS(_xlfn.ANCHORARRAY(Filme!$G$1),4),"",0,2) -> 2005-11-08 | E122: =_xlfn.XLOOKUP($B122,_xlfn.CHOOSECOLS(_xlfn.ANCHORARRAY(Leute!$F$1),2),_xlfn.CHOOSECOLS(_xlfn.ANCHORARRAY(Leute!$F$1),3),"x",0,2) -> Beverly D'Angelo | F122: =_xlfn.XLOOKUP($B122,_xlfn.CHOOSECOLS(_xlfn.ANCHORARRAY(Leute!$F$1),2),_xlfn.CHOOSECOLS(_xlfn.ANCHORARRAY(Leute!$F$1),4),"x",0,2) -> 1951-11-15 | G122: =RANK(F122,F$1:F122,0) -> 116 | H122: =DATEDIF(F122,D122,"Y") -> 53 | I122: =DATEDIF(F122,D122,"YD") -> 359 | J122: =D122-F122 -> 19717 | K122: ="MRS "&TEXT(J122,"00000")&" "&SUBSTITUTE(C122,":","")&" ("&TEXT(D122,"TT.MM.JJJJ")&") - "&E122&" ("&TEXT(F122,"TT.MM.JJJJ")&") "&H122&"-"&I122 -> MRS 19717 Widow's Kiss (08.11.2005) - Beverly D'Angelo (15.11.1951) 53-359
A123: tt0247823 | B123: nm0000350 | C123: =_xlfn.XLOOKUP($A123,_xlfn.CHOOSECOLS(_xlfn.ANCHORARRAY(Filme!$G$1),2),_xlfn.CHOOSECOLS(_xlfn.ANCHORARRAY(Filme!$G$1),3),"",0,2) -> Women in Film | D123: =_xlfn.XLOOKUP($A123,_xlfn.CHOOSECOLS(_xlfn.ANCHORARRAY(Filme!$G$1),2),_xlfn.CHOOSECOLS(_xlfn.ANCHORARRAY(Filme!$G$1),4),"",0,2) -> 2001-01-24 | E123: =_xlfn.XLOOKUP($B123,_xlfn.CHOOSECOLS(_xlfn.ANCHORARRAY(Leute!$F$1),2),_xlfn.CHOOSECOLS(_xlfn.ANCHORARRAY(Leute!$F$1),3),"x",0,2) -> Beverly D'Angelo | F123: =_xlfn.XLOOKUP($B123,_xlfn.CHOOSECOLS(_xlfn.ANCHORARRAY(Leute!$F$1),2),_xlfn.CHOOSECOLS(_xlfn.ANCHORARRAY(Leute!$F$1),4),"x",0,2) -> 1951-11-15 | G123: =RANK(F123,F$1:F123,0) -> 116 | H123: =DATEDIF(F123,D123,"Y") -> 49 | I123: =DATEDIF(F123,D123,"YD") -> 70 | J123: =D123-F123 -> 17968 | K123: ="MRS "&TEXT(J123,"00000")&" "&SUBSTITUTE(C123,":","")&" ("&TEXT(D123,"TT.MM.JJJJ")&") - "&E123&" ("&TEXT(F123,"TT.MM.JJJJ")&") "&H123&"-"&I123 -> MRS 17968 Women in Film (24.01.2001) - Beverly D'Angelo (15.11.1951) 49-70
A124: tt1716851 | B124: nm0000350 | C124: =_xlfn.XLOOKUP($A124,_xlfn.CHOOSECOLS(_xlfn.ANCHORARRAY(Filme!$G$1),2),_xlfn.CHOOSECOLS(_xlfn.ANCHORARRAY(Filme!$G$1),3),"",0,2) -> Captains and the Kings | D124: =_xlfn.XLOOKUP($A124,_xlfn.CHOOSECOLS(_xlfn.ANCHORARRAY(Filme!$G$1),2),_xlfn.CHOOSECOLS(_xlfn.ANCHORARRAY(Filme!$G$1),4),"",0,2) -> 1976-10-14 | E124: =_xlfn.XLOOKUP($B124,_xlfn.CHOOSECOLS(_xlfn.ANCHORARRAY(Leute!$F$1),2),_xlfn.CHOOSECOLS(_xlfn.ANCHORARRAY(Leute!$F$1),3),"x",0,2) -> Beverly D'Angelo | F124: =_xlfn.XLOOKUP($B124,_xlfn.CHOOSECOLS(_xlfn.ANCHORARRAY(Leute!$F$1),2),_xlfn.CHOOSECOLS(_xlfn.ANCHORARRAY(Leute!$F$1),4),"x",0,2) -> 1951-11-15 | G124: =RANK(F124,F$1:F124,0) -> 116 | H124: =DATEDIF(F124,D124,"Y") -> 24 | I124: =DATEDIF(F124,D124,"YD") -> 334 | J124: =D124-F124 -> 9100 | K124: ="MRS "&TEXT(J124,"00000")&" "&SUBSTITUTE(C124,":","")&" ("&TEXT(D124,"TT.MM.JJJJ")&") - "&E124&" ("&TEXT(F124,"TT.MM.JJJJ")&") "&H124&"-"&I124 -> MRS 09100 Captains and the Kings (14.10.1976) - Beverly D'Angelo (15.11.1951) 24-334
A125: tt0422720 | B125: nm0000379 | C125: =_xlfn.XLOOKUP($A125,_xlfn.CHOOSECOLS(_xlfn.ANCHORARRAY(Filme!$G$1),2),_xlfn.CHOOSECOLS(_xlfn.ANCHORARRAY(Filme!$G$1),3),"",0,2) -> Marie Antoinette | D125: =_xlfn.XLOOKUP($A125,_xlfn.CHOOSECOLS(_xlfn.ANCHORARRAY(Filme!$G$1),2),_xlfn.CHOOSECOLS(_xlfn.ANCHORARRAY(Filme!$G$1),4),"",0,2) -> 2006-11-02 | E125: =_xlfn.XLOOKUP($B125,_xlfn.CHOOSECOLS(_xlfn.ANCHORARRAY(Leute!$F$1),2),_xlfn.CHOOSECOLS(_xlfn.ANCHORARRAY(Leute!$F$1),3),"x",0,2) -> Kirsten Dunst | F125: =_xlfn.XLOOKUP($B125,_xlfn.CHOOSECOLS(_xlfn.ANCHORARRAY(Leute!$F$1),2),_xlfn.CHOOSECOLS(_xlfn.ANCHORARRAY(Leute!$F$1),4),"x",0,2) -> 1982-04-30 | G125: =RANK(F125,F$1:F125,0) -> 1 | H125: =DATEDIF(F125,D125,"Y") -> 24 | I125: =DATEDIF(F125,D125,"YD") -> 186 | J125: =D125-F125 -> 8952 | K125: ="MRS "&TEXT(J125,"00000")&" "&SUBSTITUTE(C125,":","")&" ("&TEXT(D125,"TT.MM.JJJJ")&") - "&E125&" ("&TEXT(F125,"TT.MM.JJJJ")&") "&H125&"-"&I125 -> MRS 08952 Marie Antoinette (02.11.2006) - Kirsten Dunst (30.04.1982) 24-186
A126: tt1175709 | B126: nm0000379 | C126: =_xlfn.XLOOKUP($A126,_xlfn.CHOOSECOLS(_xlfn.ANCHORARRAY(Filme!$G$1),2),_xlfn.CHOOSECOLS(_xlfn.ANCHORARRAY(Filme!$G$1),3),"",0,2) -> All Good Things | D126: =_xlfn.XLOOKUP($A126,_xlfn.CHOOSECOLS(_xlfn.ANCHORARRAY(Filme!$G$1),2),_xlfn.CHOOSECOLS(_xlfn.ANCHORARRAY(Filme!$G$1),4),"",0,2) -> 2010-12-03 | E126: =_xlfn.XLOOKUP($B126,_xlfn.CHOOSECOLS(_xlfn.ANCHORARRAY(Leute!$F$1),2),_xlfn.CHOOSECOLS(_xlfn.ANCHORARRAY(Leute!$F$1),3),"x",0,2) -> Kirsten Dunst | F126: =_xlfn.XLOOKUP($B126,_xlfn.CHOOSECOLS(_xlfn.ANCHORARRAY(Leute!$F$1),2),_xlfn.CHOOSECOLS(_xlfn.ANCHORARRAY(Leute!$F$1),4),"x",0,2) -> 1982-04-30 | G126: =RANK(F126,F$1:F126,0) -> 1 | H126: =DATEDIF(F126,D126,"Y") -> 28 | I126: =DATEDIF(F126,D126,"YD") -> 217 | J126: =D126-F126 -> 10444 | K126: ="MRS "&TEXT(J126,"00000")&" "&SUBSTITUTE(C126,":","")&" ("&TEXT(D126,"TT.MM.JJJJ")&") - "&E126&" ("&TEXT(F126,"TT.MM.JJJJ")&") "&H126&"-"&I126 -> MRS 10444 All Good Things (03.12.2010) - Kirsten Dunst (30.04.1982) 28-217
A127: tt1527186 | B127: nm0000379 | C127: =_xlfn.XLOOKUP($A127,_xlfn.CHOOSECOLS(_xlfn.ANCHORARRAY(Filme!$G$1),2),_xlfn.CHOOSECOLS(_xlfn.ANCHORARRAY(Filme!$G$1),3),"",0,2) -> Melancholia | D127: =_xlfn.XLOOKUP($A127,_xlfn.CHOOSECOLS(_xlfn.ANCHORARRAY(Filme!$G$1),2),_xlfn.CHOOSECOLS(_xlfn.ANCHORARRAY(Filme!$G$1),4),"",0,2) -> 2011-10-06 | E127: =_xlfn.XLOOKUP($B127,_xlfn.CHOOSECOLS(_xlfn.ANCHORARRAY(Leute!$F$1),2),_xlfn.CHOOSECOLS(_xlfn.ANCHORARRAY(Leute!$F$1),3),"x",0,2) -> Kirsten Dunst | F127: =_xlfn.XLOOKUP($B127,_xlfn.CHOOSECOLS(_xlfn.ANCHORARRAY(Leute!$F$1),2),_xlfn.CHOOSECOLS(_xlfn.ANCHORARRAY(Leute!$F$1),4),"x",0,2) -> 1982-04-30 | G127: =RANK(F127,F$1:F127,0) -> 1 | H127: =DATEDIF(F127,D127,"Y") -> 29 | I127: =DATEDIF(F127,D127,"YD") -> 159 | J127: =D127-F127 -> 10751 | K127: ="MRS "&TEXT(J127,"00000")&" "&SUBSTITUTE(C127,":","")&" ("&TEXT(D127,"TT.MM.JJJJ")&") - "&E127&" ("&TEXT(F127,"TT.MM.JJJJ")&") "&H127&"-"&I127 -> MRS 10751 Melancholia (06.10.2011) - Kirsten Dunst (30.04.1982) 29-159
A128: tt0066096 | B128: nm0000414 | C128: =_xlfn.XLOOKUP($A128,_xlfn.CHOOSECOLS(_xlfn.ANCHORARRAY(Filme!$G$1),2),_xlfn.CHOOSECOLS(_xlfn.ANCHORARRAY(Filme!$G$1),3),"",0,2) -> The Moonshine War | D128: =_xlfn.XLOOKUP($A128,_xlfn.CHOOSECOLS(_xlfn.ANCHORARRAY(Filme!$G$1),2),_xlfn.CHOOSECOLS(_xlfn.ANCHORARRAY(Filme!$G$1),4),"",0,2) -> 1971-02-05 | E128: =_xlfn.XLOOKUP($B128,_xlfn.CHOOSECOLS(_xlfn.ANCHORARRAY(Leute!$F$1),2),_xlfn.CHOOSECOLS(_xlfn.ANCHORARRAY(Leute!$F$1),3),"x",0,2) -> Teri Garr | F128: =_xlfn.XLOOKUP($B128,_xlfn.CHOOSECOLS(_xlfn.ANCHORARRAY(Leute!$F$1),2),_xlfn.CHOOSECOLS(_xlfn.ANCHORARRAY(Leute!$F$1),4),"x",0,2) -> 1944-12-11 | G128: =RANK(F128,F$1:F128,0) -> 128 | H128: =DATEDIF(F128,D128,"Y") -> 26 | I128: =DATEDIF(F128,D128,"YD") -> 56 | J128: =D128-F128 -> 9552 | K128: ="MRS "&TEXT(J128,"00000")&" "&SUBSTITUTE(C128,":","")&" ("&TEXT(D128,"TT.MM.JJJJ")&") - "&E128&" ("&TEXT(F128,"TT.MM.JJJJ")&") "&H128&"-"&I128 -> MRS 09552 The Moonshine War (05.02.1971) - Teri Garr (11.12.1944) 26-56
A129: tt0084445 | B129: nm0000414 | C129: =_xlfn.XLOOKUP($A129,_xlfn.CHOOSECOLS(_xlfn.ANCHORARRAY(Filme!$G$1),2),_xlfn.CHOOSECOLS(_xlfn.ANCHORARRAY(Filme!$G$1),3),"",0,2) -> One from the Heart | D129: =_xlfn.XLOOKUP($A129,_xlfn.CHOOSECOLS(_xlfn.ANCHORARRAY(Filme!$G$1),2),_xlfn.CHOOSECOLS(_xlfn.ANCHORARRAY(Filme!$G$1),4),"",0,2) -> 1982-09-30 | E129: =_xlfn.XLOOKUP($B129,_xlfn.CHOOSECOLS(_xlfn.ANCHORARRAY(Leute!$F$1),2),_xlfn.CHOOSECOLS(_xlfn.ANCHORARRAY(Leute!$F$1),3),"x",0,2) -> Teri Garr | F129: =_xlfn.XLOOKUP($B129,_xlfn.CHOOSECOLS(_xlfn.ANCHORARRAY(Leute!$F$1),2),_xlfn.CHOOSECOLS(_xlfn.ANCHORARRAY(Leute!$F$1),4),"x",0,2) -> 1944-12-11 | G129: =RANK(F129,F$1:F129,0) -> 128 | H129: =DATEDIF(F129,D129,"Y") -> 37 | I129: =DATEDIF(F129,D129,"YD") -> 293 | J129: =D129-F129 -> 13807 | K129: ="MRS "&TEXT(J129,"00000")&" "&SUBSTITUTE(C129,":","")&" ("&TEXT(D129,"TT.MM.JJJJ")&") - "&E129&" ("&TEXT(F129,"TT.MM.JJJJ")&") "&H129&"-"&I129 -> MRS 13807 One from the Heart (30.09.1982) - Teri Garr (11.12.1944) 37-293
A130: tt0090693 | B130: nm0000452 | C130: =_xlfn.XLOOKUP($A130,_xlfn.CHOOSECOLS(_xlfn.ANCHORARRAY(Filme!$G$1),2),_xlfn.CHOOSECOLS(_xlfn.ANCHORARRAY(Filme!$G$1),3),"",0,2) -> Band of the Hand | D130: =_xlfn.XLOOKUP($A130,_xlfn.CHOOSECOLS(_xlfn.ANCHORARRAY(Filme!$G$1),2),_xlfn.CHOOSECOLS(_xlfn.ANCHORARRAY(Filme!$G$1),4),"",0,2) -> 1986-11-20 | E130: =_xlfn.XLOOKUP($B130,_xlfn.CHOOSECOLS(_xlfn.ANCHORARRAY(Leute!$F$1),2),_xlfn.CHOOSECOLS(_xlfn.ANCHORARRAY(Leute!$F$1),3),"x",0,2) -> Lauren Holly | F130: =_xlfn.XLOOKUP($B130,_xlfn.CHOOSECOLS(_xlfn.ANCHORARRAY(Leute!$F$1),2),_xlfn.CHOOSECOLS(_xlfn.ANCHORARRAY(Leute!$F$1),4),"x",0,2) -> 1963-10-28 | G130: =RANK(F130,F$1:F130,0) -> 101 | H130: =DATEDIF(F130,D130,"Y") -> 23 | I130: =DATEDIF(F130,D130,"YD") -> 23 | J130: =D130-F130 -> 8424 | K130: ="MRS "&TEXT(J130,"00000")&" "&SUBSTITUTE(C130,":","")&" ("&TEXT(D130,"TT.MM.JJJJ")&") - "&E130&" ("&TEXT(F130,"TT.MM.JJJJ")&") "&H130&"-"&I130 -> MRS 08424 Band of the Hand (20.11.1986) - Lauren Holly (28.10.1963) 23-23
A131: tt0106770 | B131: nm0000452 | C131: =_xlfn.XLOOKUP($A131,_xlfn.CHOOSECOLS(_xlfn.ANCHORARRAY(Filme!$G$1),2),_xlfn.CHOOSECOLS(_xlfn.ANCHORARRAY(Filme!$G$1),3),"",0,2) -> Dragon: The Bruce Lee Story | D131: =_xlfn.XLOOKUP($A131,_xlfn.CHOOSECOLS(_xlfn.ANCHORARRAY(Filme!$G$1),2),_xlfn.CHOOSECOLS(_xlfn.ANCHORARRAY(Filme!$G$1),4),"",0,2) -> 1993-06-17 | E131: =_xlfn.XLOOKUP($B131,_xlfn.CHOOSECOLS(_xlfn.ANCHORARRAY(Leute!$F$1),2),_xlfn.CHOOSECOLS(_xlfn.ANCHORARRAY(Leute!$F$1),3),"x",0,2) -> Lauren Holly | F131: =_xlfn.XLOOKUP($B131,_xlfn.CHOOSECOLS(_xlfn.ANCHORARRAY(Leute!$F$1),2),_xlfn.CHOOSECOLS(_xlfn.ANCHORARRAY(Leute!$F$1),4),"x",0,2) -> 1963-10-28 | G131: =RANK(F131,F$1:F131,0) -> 101 | H131: =DATEDIF(F131,D131,"Y") -> 29 | I131: =DATEDIF(F131,D131,"YD") -> 233 | J131: =D131-F131 -> 10825 | K131: ="MRS "&TEXT(J131,"00000")&" "&SUBSTITUTE(C131,":","")&" ("&TEXT(D131,"TT.MM.JJJJ")&") - "&E131&" ("&TEXT(F131,"TT.MM.JJJJ")&") "&H131&"-"&I131 -> MRS 10825 Dragon The Bruce Lee Story (17.06.1993) - Lauren Holly (28.10.1963) 29-233
A132: tt0109686 | B132: nm0000452 | C132: =_xlfn.XLOOKUP($A132,_xlfn.CHOOSECOLS(_xlfn.ANCHORARRAY(Filme!$G$1),2),_xlfn.CHOOSECOLS(_xlfn.ANCHORARRAY(Filme!$G$1),3),"",0,2) -> Dumb and Dumber | D132: =_xlfn.XLOOKUP($A132,_xlfn.CHOOSECOLS(_xlfn.ANCHORARRAY(Filme!$G$1),2),_xlfn.CHOOSECOLS(_xlfn.ANCHORARRAY(Filme!$G$1),4),"",0,2) -> 1995-04-06 | E132: =_xlfn.XLOOKUP($B132,_xlfn.CHOOSECOLS(_xlfn.ANCHORARRAY(Leute!$F$1),2),_xlfn.CHOOSECOLS(_xlfn.ANCHORARRAY(Leute!$F$1),3),"x",0,2) -> Lauren Holly | F132: =_xlfn.XLOOKUP($B132,_xlfn.CHOOSECOLS(_xlfn.ANCHORARRAY(Leute!$F$1),2),_xlfn.CHOOSECOLS(_xlfn.ANCHORARRAY(Leute!$F$1),4),"x",0,2) -> 1963-10-28 | G132: =RANK(F132,F$1:F132,0) -> 101 | H132: =DATEDIF(F132,D132,"Y") -> 31 | I132: =DATEDIF(F132,D132,"YD") -> 161 | J132: =D132-F132 -> 11483 | K132: ="MRS "&TEXT(J132,"00000")&" "&SUBSTITUTE(C132,":","")&" ("&TEXT(D132,"TT.MM.JJJJ")&") - "&E132&" ("&TEXT(F132,"TT.MM.JJJJ")&") "&H132&"-"&I132 -> MRS 11483 Dumb and Dumber (06.04.1995) - Lauren Holly (28.10.1963) 31-161
A133: tt0431058 | B133: nm0000452 | C133: =_xlfn.XLOOKUP($A133,_xlfn.CHOOSECOLS(_xlfn.ANCHORARRAY(Filme!$G$1),2),_xlfn.CHOOSECOLS(_xlfn.ANCHORARRAY(Filme!$G$1),3),"",0,2) -> Fatwa | D133: =_xlfn.XLOOKUP($A133,_xlfn.CHOOSECOLS(_xlfn.ANCHORARRAY(Filme!$G$1),2),_xlfn.CHOOSECOLS(_xlfn.ANCHORARRAY(Filme!$G$1),4),"",0,2) -> 2006-03-24 | E133: =_xlfn.XLOOKUP($B133,_xlfn.CHOOSECOLS(_xlfn.ANCHORARRAY(Leute!$F$1),2),_xlfn.CHOOSECOLS(_xlfn.ANCHORARRAY(Leute!$F$1),3),"x",0,2) -> Lauren Holly | F133: =_xlfn.XLOOKUP($B133,_xlfn.CHOOSECOLS(_xlfn.ANCHORARRAY(Leute!$F$1),2),_xlfn.CHOOSECOLS(_xlfn.ANCHORARRAY(Leute!$F$1),4),"x",0,2) -> 1963-10-28 | G133: =RANK(F133,F$1:F133,0) -> 101 | H133: =DATEDIF(F133,D133,"Y") -> 42 | I133: =DATEDIF(F133,D133,"YD") -> 147 | J133: =D133-F133 -> 15488 | K133: ="MRS "&TEXT(J133,"00000")&" "&SUBSTITUTE(C133,":","")&" ("&TEXT(D133,"TT.MM.JJJJ")&") - "&E133&" ("&TEXT(F133,"TT.MM.JJJJ")&") "&H133&"-"&I133 -> MRS 15488 Fatwa (24.03.2006) - Lauren Holly (28.10.1963) 42-147
A134: tt1331329 | B134: nm0000452 | C134: =_xlfn.XLOOKUP($A134,_xlfn.CHOOSECOLS(_xlfn.ANCHORARRAY(Filme!$G$1),2),_xlfn.CHOOSECOLS(_xlfn.ANCHORARRAY(Filme!$G$1),3),"",0,2) -> The Final Storm | D134: =_xlfn.XLOOKUP($A134,_xlfn.CHOOSECOLS(_xlfn.ANCHORARRAY(Filme!$G$1),2),_xlfn.CHOOSECOLS(_xlfn.ANCHORARRAY(Filme!$G$1),4),"",0,2) -> 2010-04-26 | E134: =_xlfn.XLOOKUP($B134,_xlfn.CHOOSECOLS(_xlfn.ANCHORARRAY(Leute!$F$1),2),_xlfn.CHOOSECOLS(_xlfn.ANCHORARRAY(Leute!$F$1),3),"x",0,2) -> Lauren Holly | F134: =_xlfn.XLOOKUP($B134,_xlfn.CHOOSECOLS(_xlfn.ANCHORARRAY(Leute!$F$1),2),_xlfn.CHOOSECOLS(_xlfn.ANCHORARRAY(Leute!$F$1),4),"x",0,2) -> 1963-10-28 | G134: =RANK(F134,F$1:F134,0) -> 101 | H134: =DATEDIF(F134,D134,"Y") -> 46 | I134: =DATEDIF(F134,D134,"YD") -> 181 | J134: =D134-F134 -> 16982 | K134: ="MRS "&TEXT(J134,"00000")&" "&SUBSTITUTE(C134,":","")&" ("&TEXT(D134,"TT.MM.JJJJ")&") - "&E134&" ("&TEXT(F134,"TT.MM.JJJJ")&") "&H134&"-"&I134 -> MRS 16982 The Final Storm (26.04.2010) - Lauren Holly (28.10.1963) 46-181
A135: tt0113690 | B135: nm0000463 | C135: =_xlfn.XLOOKUP($A135,_xlfn.CHOOSECOLS(_xlfn.ANCHORARRAY(Filme!$G$1),2),_xlfn.CHOOSECOLS(_xlfn.ANCHORARRAY(Filme!$G$1),3),"",0,2) -> Lord of Illusions | D135: =_xlfn.XLOOKUP($A135,_xlfn.CHOOSECOLS(_xlfn.ANCHORARRAY(Filme!$G$1),2),_xlfn.CHOOSECOLS(_xlfn.ANCHORARRAY(Filme!$G$1),4),"",0,2) -> 1995-08-25 | E135: =_xlfn.XLOOKUP($B135,_xlfn.CHOOSECOLS(_xlfn.ANCHORARRAY(Leute!$F$1),2),_xlfn.CHOOSECOLS(_xlfn.ANCHORARRAY(Leute!$F$1),3),"x",0,2) -> Famke Janssen | F135: =_xlfn.XLOOKUP($B135,_xlfn.CHOOSECOLS(_xlfn.ANCHORARRAY(Leute!$F$1),2),_xlfn.CHOOSECOLS(_xlfn.ANCHORARRAY(Leute!$F$1),4),"x",0,2) -> 1964-11-05 | G135: =RANK(F135,F$1:F135,0) -> 99 | H135: =DATEDIF(F135,D135,"Y") -> 30 | I135: =DATEDIF(F135,D135,"YD") -> 293 | J135: =D135-F135 -> 11250 | K135: ="MRS "&TEXT(J135,"00000")&" "&SUBSTITUTE(C135,":","")&" ("&TEXT(D135,"TT.MM.JJJJ")&") - "&E135&" ("&TEXT(F135,"TT.MM.JJJJ")&") "&H135&"-"&I135 -> MRS 11250 Lord of Illusions (25.08.1995) - Famke Janssen (05.11.1964) 30-293
A136: tt0082352 | B136: nm0000492 | C136: =_xlfn.XLOOKUP($A136,_xlfn.CHOOSECOLS(_xlfn.ANCHORARRAY(Filme!$G$1),2),_xlfn.CHOOSECOLS(_xlfn.ANCHORARRAY(Filme!$G$1),3),"",0,2) -> Eyes of a Stranger | D136: =_xlfn.XLOOKUP($A136,_xlfn.CHOOSECOLS(_xlfn.ANCHORARRAY(Filme!$G$1),2),_xlfn.CHOOSECOLS(_xlfn.ANCHORARRAY(Filme!$G$1),4),"",0,2) -> 1981-08-28 | E136: =_xlfn.XLOOKUP($B136,_xlfn.CHOOSECOLS(_xlfn.ANCHORARRAY(Leute!$F$1),2),_xlfn.CHOOSECOLS(_xlfn.ANCHORARRAY(Leute!$F$1),3),"x",0,2) -> Jennifer Jason Leigh | F136: =_xlfn.XLOOKUP($B136,_xlfn.CHOOSECOLS(_xlfn.ANCHORARRAY(Leute!$F$1),2),_xlfn.CHOOSECOLS(_xlfn.ANCHORARRAY(Leute!$F$1),4),"x",0,2) -> 1962-02-05 | G136: =RANK(F136,F$1:F136,0) -> 125 | H136: =DATEDIF(F136,D136,"Y") -> 19 | I136: =DATEDIF(F136,D136,"YD") -> 204 | J136: =D136-F136 -> 7144 | K136: ="MRS "&TEXT(J136,"00000")&" "&SUBSTITUTE(C136,":","")&" ("&TEXT(D136,"TT.MM.JJJJ")&") - "&E136&" ("&TEXT(F136,"TT.MM.JJJJ")&") "&H136&"-"&I136 -> MRS 07144 Eyes of a Stranger (28.08.1981) - Jennifer Jason Leigh (05.02.1962) 19-204
A137: tt0083929 | B137: nm0000492 | C137: =_xlfn.XLOOKUP($A137,_xlfn.CHOOSECOLS(_xlfn.ANCHORARRAY(Filme!$G$1),2),_xlfn.CHOOSECOLS(_xlfn.ANCHORARRAY(Filme!$G$1),3),"",0,2) -> Fast Times at Ridgemont High | D137: =_xlfn.XLOOKUP($A137,_xlfn.CHOOSECOLS(_xlfn.ANCHORARRAY(Filme!$G$1),2),_xlfn.CHOOSECOLS(_xlfn.ANCHORARRAY(Filme!$G$1),4),"",0,2) -> 1982-12-16 | E137: =_xlfn.XLOOKUP($B137,_xlfn.CHOOSECOLS(_xlfn.ANCHORARRAY(Leute!$F$1),2),_xlfn.CHOOSECOLS(_xlfn.ANCHORARRAY(Leute!$F$1),3),"x",0,2) -> Jennifer Jason Leigh | F137: =_xlfn.XLOOKUP($B137,_xlfn.CHOOSECOLS(_xlfn.ANCHORARRAY(Leute!$F$1),2),_xlfn.CHOOSECOLS(_xlfn.ANCHORARRAY(Leute!$F$1),4),"x",0,2) -> 1962-02-05 | G137: =RANK(F137,F$1:F137,0) -> 125 | H137: =DATEDIF(F137,D137,"Y") -> 20 | I137: =DATEDIF(F137,D137,"YD") -> 314 | J137: =D137-F137 -> 7619 | K137: ="MRS "&TEXT(J137,"00000")&" "&SUBSTITUTE(C137,":","")&" ("&TEXT(D137,"TT.MM.JJJJ")&") - "&E137&" ("&TEXT(F137,"TT.MM.JJJJ")&") "&H137&"-"&I137 -> MRS 07619 Fast Times at Ridgemont High (16.12.1982) - Jennifer Jason Leigh (05.02.1962) 20-314
A138: tt0085595 | B138: nm0000492 | C138: =_xlfn.XLOOKUP($A138,_xlfn.CHOOSECOLS(_xlfn.ANCHORARRAY(Filme!$G$1),2),_xlfn.CHOOSECOLS(_xlfn.ANCHORARRAY(Filme!$G$1),3),"",0,2) -> Girls of the White Orchid | D138: =_xlfn.XLOOKUP($A138,_xlfn.CHOOSECOLS(_xlfn.ANCHORARRAY(Filme!$G$1),2),_xlfn.CHOOSECOLS(_xlfn.ANCHORARRAY(Filme!$G$1),4),"",0,2) -> 1983-11-28 | E138: =_xlfn.XLOOKUP($B138,_xlfn.CHOOSECOLS(_xlfn.ANCHORARRAY(Leute!$F$1),2),_xlfn.CHOOSECOLS(_xlfn.ANCHORARRAY(Leute!$F$1),3),"x",0,2) -> Jennifer Jason Leigh | F138: =_xlfn.XLOOKUP($B138,_xlfn.CHOOSECOLS(_xlfn.ANCHORARRAY(Leute!$F$1),2),_xlfn.CHOOSECOLS(_xlfn.ANCHORARRAY(Leute!$F$1),4),"x",0,2) -> 1962-02-05 | G138: =RANK(F138,F$1:F138,0) -> 125 | H138: =DATEDIF(F138,D138,"Y") -> 21 | I138: =DATEDIF(F138,D138,"YD") -> 296 | J138: =D138-F138 -> 7966 | K138: ="MRS "&TEXT(J138,"00000")&" "&SUBSTITUTE(C138,":","")&" ("&TEXT(D138,"TT.MM.JJJJ")&") - "&E138&" ("&TEXT(F138,"TT.MM.JJJJ")&") "&H138&"-"&I138 -> MRS 07966 Girls of the White Orchid (28.11.1983) - Jennifer Jason Leigh (05.02.1962) 21-296
A139: tt0089153 | B139: nm0000492 | C139: =_xlfn.XLOOKUP($A139,_xlfn.CHOOSECOLS(_xlfn.ANCHORARRAY(Filme!$G$1),2),_xlfn.CHOOSECOLS(_xlfn.ANCHORARRAY(Filme!$G$1),3),"",0,2) -> Flesh+Blood | D139: =_xlfn.XLOOKUP($A139,_xlfn.CHOOSECOLS(_xlfn.ANCHORARRAY(Filme!$G$1),2),_xlfn.CHOOSECOLS(_xlfn.ANCHORARRAY(Filme!$G$1),4),"",0,2) -> 1987-01-29 | E139: =_xlfn.XLOOKUP($B139,_xlfn.CHOOSECOLS(_xlfn.ANCHORARRAY(Leute!$F$1),2),_xlfn.CHOOSECOLS(_xlfn.ANCHORARRAY(Leute!$F$1),3),"x",0,2) -> Jennifer Jason Leigh | F139: =_xlfn.XLOOKUP($B139,_xlfn.CHOOSECOLS(_xlfn.ANCHORARRAY(Leute!$F$1),2),_xlfn.CHOOSECOLS(_xlfn.ANCHORARRAY(Leute!$F$1),4),"x",0,2) -> 1962-02-05 | G139: =RANK(F139,F$1:F139,0) -> 125 | H139: =DATEDIF(F139,D139,"Y") -> 24 | I139: =DATEDIF(F139,D139,"YD") -> 358 | J139: =D139-F139 -> 9124 | K139: ="MRS "&TEXT(J139,"00000")&" "&SUBSTITUTE(C139,":","")&" ("&TEXT(D139,"TT.MM.JJJJ")&") - "&E139&" ("&TEXT(F139,"TT.MM.JJJJ")&") "&H139&"-"&I139 -> MRS 09124 Flesh+Blood (29.01.1987) - Jennifer Jason Leigh (05.02.1962) 24-358
A140: tt0093980 | B140: nm0000492 | C140: =_xlfn.XLOOKUP($A140,_xlfn.CHOOSECOLS(_xlfn.ANCHORARRAY(Filme!$G$1),2),_xlfn.CHOOSECOLS(_xlfn.ANCHORARRAY(Filme!$G$1),3),"",0,2) -> Sister Sister | D140: =_xlfn.XLOOKUP($A140,_xlfn.CHOOSECOLS(_xlfn.ANCHORARRAY(Filme!$G$1),2),_xlfn.CHOOSECOLS(_xlfn.ANCHORARRAY(Filme!$G$1),4),"",0,2) -> 1988-05-05 | E140: =_xlfn.XLOOKUP($B140,_xlfn.CHOOSECOLS(_xlfn.ANCHORARRAY(Leute!$F$1),2),_xlfn.CHOOSECOLS(_xlfn.ANCHORARRAY(Leute!$F$1),3),"x",0,2) -> Jennifer Jason Leigh | F140: =_xlfn.XLOOKUP($B140,_xlfn.CHOOSECOLS(_xlfn.ANCHORARRAY(Leute!$F$1),2),_xlfn.CHOOSECOLS(_xlfn.ANCHORARRAY(Leute!$F$1),4),"x",0,2) -> 1962-02-05 | G140: =RANK(F140,F$1:F140,0) -> 125 | H140: =DATEDIF(F140,D140,"Y") -> 26 | I140: =DATEDIF(F140,D140,"YD") -> 89 | J140: =D140-F140 -> 9586 | K140: ="MRS "&TEXT(J140,"00000")&" "&SUBSTITUTE(C140,":","")&" ("&TEXT(D140,"TT.MM.JJJJ")&") - "&E140&" ("&TEXT(F140,"TT.MM.JJJJ")&") "&H140&"-"&I140 -> MRS 09586 Sister Sister (05.05.1988) - Jennifer Jason Leigh (05.02.1962) 26-89
A141: tt0095286 | B141: nm0000492 | C141: =_xlfn.XLOOKUP($A141,_xlfn.CHOOSECOLS(_xlfn.ANCHORARRAY(Filme!$G$1),2),_xlfn.CHOOSECOLS(_xlfn.ANCHORARRAY(Filme!$G$1),3),"",0,2) -> Heart of Midnight | D141: =_xlfn.XLOOKUP($A141,_xlfn.CHOOSECOLS(_xlfn.ANCHORARRAY(Filme!$G$1),2),_xlfn.CHOOSECOLS(_xlfn.ANCHORARRAY(Filme!$G$1),4),"",0,2) -> 1988-11-10 | E141: =_xlfn.XLOOKUP($B141,_xlfn.CHOOSECOLS(_xlfn.ANCHORARRAY(Leute!$F$1),2),_xlfn.CHOOSECOLS(_xlfn.ANCHORARRAY(Leute!$F$1),3),"x",0,2) -> Jennifer Jason Leigh | F141: =_xlfn.XLOOKUP($B141,_xlfn.CHOOSECOLS(_xlfn.ANCHORARRAY(Leute!$F$1),2),_xlfn.CHOOSECOLS(_xlfn.ANCHORARRAY(Leute!$F$1),4),"x",0,2) -> 1962-02-05 | G141: =RANK(F141,F$1:F141,0) -> 125 | H141: =DATEDIF(F141,D141,"Y") -> 26 | I141: =DATEDIF(F141,D141,"YD") -> 278 | J141: =D141-F141 -> 9775 | K141: ="MRS "&TEXT(J141,"00000")&" "&SUBSTITUTE(C141,":","")&" ("&TEXT(D141,"TT.MM.JJJJ")&") - "&E141&" ("&TEXT(F141,"TT.MM.JJJJ")&") "&H141&"-"&I141 -> MRS 09775 Heart of Midnight (10.11.1988) - Jennifer Jason Leigh (05.02.1962) 26-278
A142: tt0097714 | B142: nm0000492 | C142: =_xlfn.XLOOKUP($A142,_xlfn.CHOOSECOLS(_xlfn.ANCHORARRAY(Filme!$G$1),2),_xlfn.CHOOSECOLS(_xlfn.ANCHORARRAY(Filme!$G$1),3),"",0,2) -> Last Exit to Brooklyn | D142: =_xlfn.XLOOKUP($A142,_xlfn.CHOOSECOLS(_xlfn.ANCHORARRAY(Filme!$G$1),2),_xlfn.CHOOSECOLS(_xlfn.ANCHORARRAY(Filme!$G$1),4),"",0,2) -> 1989-10-12 | E142: =_xlfn.XLOOKUP($B142,_xlfn.CHOOSECOLS(_xlfn.ANCHORARRAY(Leute!$F$1),2),_xlfn.CHOOSECOLS(_xlfn.ANCHORARRAY(Leute!$F$1),3),"x",0,2) -> Jennifer Jason Leigh | F142: =_xlfn.XLOOKUP($B142,_xlfn.CHOOSECOLS(_xlfn.ANCHORARRAY(Leute!$F$1),2),_xlfn.CHOOSECOLS(_xlfn.ANCHORARRAY(Leute!$F$1),4),"x",0,2) -> 1962-02-05 | G142: =RANK(F142,F$1:F142,0) -> 125 | H142: =DATEDIF(F142,D142,"Y") -> 27 | I142: =DATEDIF(F142,D142,"YD") -> 249 | J142: =D142-F142 -> 10111 | K142: ="MRS "&TEXT(J142,"00000")&" "&SUBSTITUTE(C142,":","")&" ("&TEXT(D142,"TT.MM.JJJJ")&") - "&E142&" ("&TEXT(F142,"TT.MM.JJJJ")&") "&H142&"-"&I142 -> MRS 10111 Last Exit to Brooklyn (12.10.1989) - Jennifer Jason Leigh (05.02.1962) 27-249
A143: tt0100143 | B143: nm0000492 | C143: =_xlfn.XLOOKUP($A143,_xlfn.CHOOSECOLS(_xlfn.ANCHORARRAY(Filme!$G$1),2),_xlfn.CHOOSECOLS(_xlfn.ANCHORARRAY(Filme!$G$1),3),"",0,2) -> Miami Blues | D143: =_xlfn.XLOOKUP($A143,_xlfn.CHOOSECOLS(_xlfn.ANCHORARRAY(Filme!$G$1),2),_xlfn.CHOOSECOLS(_xlfn.ANCHORARRAY(Filme!$G$1),4),"",0,2) -> 1990-08-23 | E143: =_xlfn.XLOOKUP($B143,_xlfn.CHOOSECOLS(_xlfn.ANCHORARRAY(Leute!$F$1),2),_xlfn.CHOOSECOLS(_xlfn.ANCHORARRAY(Leute!$F$1),3),"x",0,2) -> Jennifer Jason Leigh | F143: =_xlfn.XLOOKUP($B143,_xlfn.CHOOSECOLS(_xlfn.ANCHORARRAY(Leute!$F$1),2),_xlfn.CHOOSECOLS(_xlfn.ANCHORARRAY(Leute!$F$1),4),"x",0,2) -> 1962-02-05 | G143: =RANK(F143,F$1:F143,0) -> 125 | H143: =DATEDIF(F143,D143,"Y") -> 28 | I143: =DATEDIF(F143,D143,"YD") -> 199 | J143: =D143-F143 -> 10426 | K143: ="MRS "&TEXT(J143,"00000")&" "&SUBSTITUTE(C143,":","")&" ("&TEXT(D143,"TT.MM.JJJJ")&") - "&E143&" ("&TEXT(F143,"TT.MM.JJJJ")&") "&H143&"-"&I143 -> MRS 10426 Miami Blues (23.08.1990) - Jennifer Jason Leigh (05.02.1962) 28-199
A144: tt0101393 | B144: nm0000492 | C144: =_xlfn.XLOOKUP($A144,_xlfn.CHOOSECOLS(_xlfn.ANCHORARRAY(Filme!$G$1),2),_xlfn.CHOOSECOLS(_xlfn.ANCHORARRAY(Filme!$G$1),3),"",0,2) -> Backdraft | D144: =_xlfn.XLOOKUP($A144,_xlfn.CHOOSECOLS(_xlfn.ANCHORARRAY(Filme!$G$1),2),_xlfn.CHOOSECOLS(_xlfn.ANCHORARRAY(Filme!$G$1),4),"",0,2) -> 1991-08-22 | E144: =_xlfn.XLOOKUP($B144,_xlfn.CHOOSECOLS(_xlfn.ANCHORARRAY(Leute!$F$1),2),_xlfn.CHOOSECOLS(_xlfn.ANCHORARRAY(Leute!$F$1),3),"x",0,2) -> Jennifer Jason Leigh | F144: =_xlfn.XLOOKUP($B144,_xlfn.CHOOSECOLS(_xlfn.ANCHORARRAY(Leute!$F$1),2),_xlfn.CHOOSECOLS(_xlfn.ANCHORARRAY(Leute!$F$1),4),"x",0,2) -> 1962-02-05 | G144: =RANK(F144,F$1:F144,0) -> 125 | H144: =DATEDIF(F144,D144,"Y") -> 29 | I144: =DATEDIF(F144,D144,"YD") -> 198 | J144: =D144-F144 -> 10790 | K144: ="MRS "&TEXT(J144,"00000")&" "&SUBSTITUTE(C144,":","")&" ("&TEXT(D144,"TT.MM.JJJJ")&") - "&E144&" ("&TEXT(F144,"TT.MM.JJJJ")&") "&H144&"-"&I144 -> MRS 10790 Backdraft (22.08.1991) - Jennifer Jason Leigh (05.02.1962) 29-198
A145: tt0101629 | B145: nm0000492 | C145: =_xlfn.XLOOKUP($A145,_xlfn.CHOOSECOLS(_xlfn.ANCHORARRAY(Filme!$G$1),2),_xlfn.CHOOSECOLS(_xlfn.ANCHORARRAY(Filme!$G$1),3),"",0,2) -> Crooked Hearts | D145: =_xlfn.XLOOKUP($A145,_xlfn.CHOOSECOLS(_xlfn.ANCHORARRAY(Filme!$G$1),2),_xlfn.CHOOSECOLS(_xlfn.ANCHORARRAY(Filme!$G$1),4),"",0,2) -> 1991-09-06 | E145: =_xlfn.XLOOKUP($B145,_xlfn.CHOOSECOLS(_xlfn.ANCHORARRAY(Leute!$F$1),2),_xlfn.CHOOSECOLS(_xlfn.ANCHORARRAY(Leute!$F$1),3),"x",0,2) -> Jennifer Jason Leigh | F145: =_xlfn.XLOOKUP($B145,_xlfn.CHOOSECOLS(_xlfn.ANCHORARRAY(Leute!$F$1),2),_xlfn.CHOOSECOLS(_xlfn.ANCHORARRAY(Leute!$F$1),4),"x",0,2) -> 1962-02-05 | G145: =RANK(F145,F$1:F145,0) -> 125 | H145: =DATEDIF(F145,D145,"Y") -> 29 | I145: =DATEDIF(F145,D145,"YD") -> 213 | J145: =D145-F145 -> 10805 | K145: ="MRS "&TEXT(J145,"00000")&" "&SUBSTITUTE(C145,":","")&" ("&TEXT(D145,"TT.MM.JJJJ")&") - "&E145&" ("&TEXT(F145,"TT.MM.JJJJ")&") "&H145&"-"&I145 -> MRS 10805 Crooked Hearts (06.09.1991) - Jennifer Jason Leigh (05.02.1962) 29-213
A146: tt0102820 | B146: nm0000492 | C146: =_xlfn.XLOOKUP($A146,_xlfn.CHOOSECOLS(_xlfn.ANCHORARRAY(Filme!$G$1),2),_xlfn.CHOOSECOLS(_xlfn.ANCHORARRAY(Filme!$G$1),3),"",0,2) -> Rush | D146: =_xlfn.XLOOKUP($A146,_xlfn.CHOOSECOLS(_xlfn.ANCHORARRAY(Filme!$G$1),2),_xlfn.CHOOSECOLS(_xlfn.ANCHORARRAY(Filme!$G$1),4),"",0,2) -> 1993-01-29 | E146: =_xlfn.XLOOKUP($B146,_xlfn.CHOOSECOLS(_xlfn.ANCHORARRAY(Leute!$F$1),2),_xlfn.CHOOSECOLS(_xlfn.ANCHORARRAY(Leute!$F$1),3),"x",0,2) -> Jennifer Jason Leigh | F146: =_xlfn.XLOOKUP($B146,_xlfn.CHOOSECOLS(_xlfn.ANCHORARRAY(Leute!$F$1),2),_xlfn.CHOOSECOLS(_xlfn.ANCHORARRAY(Leute!$F$1),4),"x",0,2) -> 1962-02-05 | G146: =RANK(F146,F$1:F146,0) -> 125 | H146: =DATEDIF(F146,D146,"Y") -> 30 | I146: =DATEDIF(F146,D146,"YD") -> 358 | J146: =D146-F146 -> 11316 | K146: ="MRS "&TEXT(J146,"00000")&" "&SUBSTITUTE(C146,":","")&" ("&TEXT(D146,"TT.MM.JJJJ")&") - "&E146&" ("&TEXT(F146,"TT.MM.JJJJ")&") "&H146&"-"&I146 -> MRS 11316 Rush (29.01.1993) - Jennifer Jason Leigh (05.02.1962) 30-358
A147: tt0105414 | B147: nm0000492 | C147: =_xlfn.XLOOKUP($A147,_xlfn.CHOOSECOLS(_xlfn.ANCHORARRAY(Filme!$G$1),2),_xlfn.CHOOSECOLS(_xlfn.ANCHORARRAY(Filme!$G$1),3),"",0,2) -> Single White Female | D147: =_xlfn.XLOOKUP($A147,_xlfn.CHOOSECOLS(_xlfn.ANCHORARRAY(Filme!$G$1),2),_xlfn.CHOOSECOLS(_xlfn.ANCHORARRAY(Filme!$G$1),4),"",0,2) -> 1992-10-01 | E147: =_xlfn.XLOOKUP($B147,_xlfn.CHOOSECOLS(_xlfn.ANCHORARRAY(Leute!$F$1),2),_xlfn.CHOOSECOLS(_xlfn.ANCHORARRAY(Leute!$F$1),3),"x",0,2) -> Jennifer Jason Leigh | F147: =_xlfn.XLOOKUP($B147,_xlfn.CHOOSECOLS(_xlfn.ANCHORARRAY(Leute!$F$1),2),_xlfn.CHOOSECOLS(_xlfn.ANCHORARRAY(Leute!$F$1),4),"x",0,2) -> 1962-02-05 | G147: =RANK(F147,F$1:F147,0) -> 125 | H147: =DATEDIF(F147,D147,"Y") -> 30 | I147: =DATEDIF(F147,D147,"YD") -> 238 | J147: =D147-F147 -> 11196 | K147: ="MRS "&TEXT(J147,"00000")&" "&SUBSTITUTE(C147,":","")&" ("&TEXT(D147,"TT.MM.JJJJ")&") - "&E147&" ("&TEXT(F147,"TT.MM.JJJJ")&") "&H147&"-"&I147 -> MRS 11196 Single White Female (01.10.1992) - Jennifer Jason Leigh (05.02.1962) 30-238
A148: tt0110588 | B148: nm0000492 | C148: =_xlfn.XLOOKUP($A148,_xlfn.CHOOSECOLS(_xlfn.ANCHORARRAY(Filme!$G$1),2),_xlfn.CHOOSECOLS(_xlfn.ANCHORARRAY(Filme!$G$1),3),"",0,2) -> Mrs. Parker and the Vicious Circle | D148: =_xlfn.XLOOKUP($A148,_xlfn.CHOOSECOLS(_xlfn.ANCHORARRAY(Filme!$G$1),2),_xlfn.CHOOSECOLS(_xlfn.ANCHORARRAY(Filme!$G$1),4),"",0,2) -> 1995-07-27 | E148: =_xlfn.XLOOKUP($B148,_xlfn.CHOOSECOLS(_xlfn.ANCHORARRAY(Leute!$F$1),2),_xlfn.CHOOSECOLS(_xlfn.ANCHORARRAY(Leute!$F$1),3),"x",0,2) -> Jennifer Jason Leigh | F148: =_xlfn.XLOOKUP($B148,_xlfn.CHOOSECOLS(_xlfn.ANCHORARRAY(Leute!$F$1),2),_xlfn.CHOOSECOLS(_xlfn.ANCHORARRAY(Leute!$F$1),4),"x",0,2) -> 1962-02-05 | G148: =RANK(F148,F$1:F148,0) -> 125 | H148: =DATEDIF(F148,D148,"Y") -> 33 | I148: =DATEDIF(F148,D148,"YD") -> 172 | J148: =D148-F148 -> 12225 | K148: ="MRS "&TEXT(J148,"00000")&" "&SUBSTITUTE(C148,":","")&" ("&TEXT(D148,"TT.MM.JJJJ")&") - "&E148&" ("&TEXT(F148,"TT.MM.JJJJ")&") "&H148&"-"&I148 -> MRS 12225 Mrs. Parker and the Vicious Circle (27.07.1995) - Jennifer Jason Leigh (05.02.1962) 33-172
A149: tt0113158 | B149: nm0000492 | C149: =_xlfn.XLOOKUP($A149,_xlfn.CHOOSECOLS(_xlfn.ANCHORARRAY(Filme!$G$1),2),_xlfn.CHOOSECOLS(_xlfn.ANCHORARRAY(Filme!$G$1),3),"",0,2) -> Georgia | D149: =_xlfn.XLOOKUP($A149,_xlfn.CHOOSECOLS(_xlfn.ANCHORARRAY(Filme!$G$1),2),_xlfn.CHOOSECOLS(_xlfn.ANCHORARRAY(Filme!$G$1),4),"",0,2) -> 1996-09-19 | E149: =_xlfn.XLOOKUP($B149,_xlfn.CHOOSECOLS(_xlfn.ANCHORARRAY(Leute!$F$1),2),_xlfn.CHOOSECOLS(_xlfn.ANCHORARRAY(Leute!$F$1),3),"x",0,2) -> Jennifer Jason Leigh | F149: =_xlfn.XLOOKUP($B149,_xlfn.CHOOSECOLS(_xlfn.ANCHORARRAY(Leute!$F$1),2),_xlfn.CHOOSECOLS(_xlfn.ANCHORARRAY(Leute!$F$1),4),"x",0,2) -> 1962-02-05 | G149: =RANK(F149,F$1:F149,0) -> 125 | H149: =DATEDIF(F149,D149,"Y") -> 34 | I149: =DATEDIF(F149,D149,"YD") -> 226 | J149: =D149-F149 -> 12645 | K149: ="MRS "&TEXT(J149,"00000")&" "&SUBSTITUTE(C149,":","")&" ("&TEXT(D149,"TT.MM.JJJJ")&") - "&E149&" ("&TEXT(F149,"TT.MM.JJJJ")&") "&H149&"-"&I149 -> MRS 12645 Georgia (19.09.1996) - Jennifer Jason Leigh (05.02.1962) 34-226
A150: tt0142911 | B150: nm0000492 | C150: =_xlfn.XLOOKUP($A150,_xlfn.CHOOSECOLS(_xlfn.ANCHORARRAY(Filme!$G$1),2),_xlfn.CHOOSECOLS(_xlfn.ANCHORARRAY(Filme!$G$1),3),"",0,2) -> Thanks of a Grateful Nation | D150: =_xlfn.XLOOKUP($A150,_xlfn.CHOOSECOLS(_xlfn.ANCHORARRAY(Filme!$G$1),2),_xlfn.CHOOSECOLS(_xlfn.ANCHORARRAY(Filme!$G$1),4),"",0,2) -> 1998-05-31 | E150: =_xlfn.XLOOKUP($B150,_xlfn.CHOOSECOLS(_xlfn.ANCHORARRAY(Leute!$F$1),2),_xlfn.CHOOSECOLS(_xlfn.ANCHORARRAY(Leute!$F$1),3),"x",0,2) -> Jennifer Jason Leigh | F150: =_xlfn.XLOOKUP($B150,_xlfn.CHOOSECOLS(_xlfn.ANCHORARRAY(Leute!$F$1),2),_xlfn.CHOOSECOLS(_xlfn.ANCHORARRAY(Leute!$F$1),4),"x",0,2) -> 1962-02-05 | G150: =RANK(F150,F$1:F150,0) -> 125 | H150: =DATEDIF(F150,D150,"Y") -> 36 | I150: =DATEDIF(F150,D150,"YD") -> 115 | J150: =D150-F150 -> 13264 | K150: ="MRS "&TEXT(J150,"00000")&" "&SUBSTITUTE(C150,":","")&" ("&TEXT(D150,"TT.MM.JJJJ")&") - "&E150&" ("&TEXT(F150,"TT.MM.JJJJ")&") "&H150&"-"&I150 -> MRS 13264 Thanks of a Grateful Nation (31.05.1998) - Jennifer Jason Leigh (05.02.1962) 36-115
A151: tt0208911 | B151: nm0000492 | C151: =_xlfn.XLOOKUP($A151,_xlfn.CHOOSECOLS(_xlfn.ANCHORARRAY(Filme!$G$1),2),_xlfn.CHOOSECOLS(_xlfn.ANCHORARRAY(Filme!$G$1),3),"",0,2) -> The King Is Alive | D151: =_xlfn.XLOOKUP($A151,_xlfn.CHOOSECOLS(_xlfn.ANCHORARRAY(Filme!$G$1),2),_xlfn.CHOOSECOLS(_xlfn.ANCHORARRAY(Filme!$G$1),4),"",0,2) -> 2001-01-05 | E151: =_xlfn.XLOOKUP($B151,_xlfn.CHOOSECOLS(_xlfn.ANCHORARRAY(Leute!$F$1),2),_xlfn.CHOOSECOLS(_xlfn.ANCHORARRAY(Leute!$F$1),3),"x",0,2) -> Jennifer Jason Leigh | F151: =_xlfn.XLOOKUP($B151,_xlfn.CHOOSECOLS(_xlfn.ANCHORARRAY(Leute!$F$1),2),_xlfn.CHOOSECOLS(_xlfn.ANCHORARRAY(Leute!$F$1),4),"x",0,2) -> 1962-02-05 | G151: =RANK(F151,F$1:F151,0) -> 125 | H151: =DATEDIF(F151,D151,"Y") -> 38 | I151: =DATEDIF(F151,D151,"YD") -> 334 | J151: =D151-F151 -> 14214 | K151: ="MRS "&TEXT(J151,"00000")&" "&SUBSTITUTE(C151,":","")&" ("&TEXT(D151,"TT.MM.JJJJ")&") - "&E151&" ("&TEXT(F151,"TT.MM.JJJJ")&") "&H151&"-"&I151 -> MRS 14214 The King Is Alive (05.01.2001) - Jennifer Jason Leigh (05.02.1962) 38-334
A152: tt0209322 | B152: nm0000492 | C152: =_xlfn.XLOOKUP($A152,_xlfn.CHOOSECOLS(_xlfn.ANCHORARRAY(Filme!$G$1),2),_xlfn.CHOOSECOLS(_xlfn.ANCHORARRAY(Filme!$G$1),3),"",0,2) -> Skipped Parts | D152: =_xlfn.XLOOKUP($A152,_xlfn.CHOOSECOLS(_xlfn.ANCHORARRAY(Filme!$G$1),2),_xlfn.CHOOSECOLS(_xlfn.ANCHORARRAY(Filme!$G$1),4),"",0,2) -> 2001-12-06 | E152: =_xlfn.XLOOKUP($B152,_xlfn.CHOOSECOLS(_xlfn.ANCHORARRAY(Leute!$F$1),2),_xlfn.CHOOSECOLS(_xlfn.ANCHORARRAY(Leute!$F$1),3),"x",0,2) -> Jennifer Jason Leigh | F152: =_xlfn.XLOOKUP($B152,_xlfn.CHOOSECOLS(_xlfn.ANCHORARRAY(Leute!$F$1),2),_xlfn.CHOOSECOLS(_xlfn.ANCHORARRAY(Leute!$F$1),4),"x",0,2) -> 1962-02-05 | G152: =RANK(F152,F$1:F152,0) -> 125 | H152: =DATEDIF(F152,D152,"Y") -> 39 | I152: =DATEDIF(F152,D152,"YD") -> 304 | J152: =D152-F152 -> 14549 | K152: ="MRS "&TEXT(J152,"00000")&" "&SUBSTITUTE(C152,":","")&" ("&TEXT(D152,"TT.MM.JJJJ")&") - "&E152&" ("&TEXT(F152,"TT.MM.JJJJ")&") "&H152&"-"&I152 -> MRS 14549 Skipped Parts (06.12.2001) - Jennifer Jason Leigh (05.02.1962) 39-304
A153: tt0361862 | B153: nm0000492 | C153: =_xlfn.XLOOKUP($A153,_xlfn.CHOOSECOLS(_xlfn.ANCHORARRAY(Filme!$G$1),2),_xlfn.CHOOSECOLS(_xlfn.ANCHORARRAY(Filme!$G$1),3),"",0,2) -> The Machinist | D153: =_xlfn.XLOOKUP($A153,_xlfn.CHOOSECOLS(_xlfn.ANCHORARRAY(Filme!$G$1),2),_xlfn.CHOOSECOLS(_xlfn.ANCHORARRAY(Filme!$G$1),4),"",0,2) -> 2004-11-11 | E153: =_xlfn.XLOOKUP($B153,_xlfn.CHOOSECOLS(_xlfn.ANCHORARRAY(Leute!$F$1),2),_xlfn.CHOOSECOLS(_xlfn.ANCHORARRAY(Leute!$F$1),3),"x",0,2) -> Jennifer Jason Leigh | F153: =_xlfn.XLOOKUP($B153,_xlfn.CHOOSECOLS(_xlfn.ANCHORARRAY(Leute!$F$1),2),_xlfn.CHOOSECOLS(_xlfn.ANCHORARRAY(Leute!$F$1),4),"x",0,2) -> 1962-02-05 | G153: =RANK(F153,F$1:F153,0) -> 125 | H153: =DATEDIF(F153,D153,"Y") -> 42 | I153: =DATEDIF(F153,D153,"YD") -> 279 | J153: =D153-F153 -> 15620 | K153: ="MRS "&TEXT(J153,"00000")&" "&SUBSTITUTE(C153,":","")&" ("&TEXT(D153,"TT.MM.JJJJ")&") - "&E153&" ("&TEXT(F153,"TT.MM.JJJJ")&") "&H153&"-"&I153 -> MRS 15620 The Machinist (11.11.2004) - Jennifer Jason Leigh (05.02.1962) 42-279
A154: tt0757361 | B154: nm0000492 | C154: =_xlfn.XLOOKUP($A154,_xlfn.CHOOSECOLS(_xlfn.ANCHORARRAY(Filme!$G$1),2),_xlfn.CHOOSECOLS(_xlfn.ANCHORARRAY(Filme!$G$1),3),"",0,2) -> Margot at the Wedding | D154: =_xlfn.XLOOKUP($A154,_xlfn.CHOOSECOLS(_xlfn.ANCHORARRAY(Filme!$G$1),2),_xlfn.CHOOSECOLS(_xlfn.ANCHORARRAY(Filme!$G$1),4),"",0,2) -> 2012-08-17 | E154: =_xlfn.XLOOKUP($B154,_xlfn.CHOOSECOLS(_xlfn.ANCHORARRAY(Leute!$F$1),2),_xlfn.CHOOSECOLS(_xlfn.ANCHORARRAY(Leute!$F$1),3),"x",0,2) -> Jennifer Jason Leigh | F154: =_xlfn.XLOOKUP($B154,_xlfn.CHOOSECOLS(_xlfn.ANCHORARRAY(Leute!$F$1),2),_xlfn.CHOOSECOLS(_xlfn.ANCHORARRAY(Leute!$F$1),4),"x",0,2) -> 1962-02-05 | G154: =RANK(F154,F$1:F154,0) -> 125 | H154: =DATEDIF(F154,D154,"Y") -> 50 | I154: =DATEDIF(F154,D154,"YD") -> 193 | J154: =D154-F154 -> 18456 | K154: ="MRS "&TEXT(J154,"00000")&" "&SUBSTITUTE(C154,":","")&" ("&TEXT(D154,"TT.MM.JJJJ")&") - "&E154&" ("&TEXT(F154,"TT.MM.JJJJ")&") "&H154&"-"&I154 -> MRS 18456 Margot at the Wedding (17.08.2012) - Jennifer Jason Leigh (05.02.1962) 50-193
A155: tt2271671 | B155: nm0000492 | C155: =_xlfn.XLOOKUP($A155,_xlfn.CHOOSECOLS(_xlfn.ANCHORARRAY(Filme!$G$1),2),_xlfn.CHOOSECOLS(_xlfn.ANCHORARRAY(Filme!$G$1),3),"",0,2) -> The Moment | D155: =_xlfn.XLOOKUP($A155,_xlfn.CHOOSECOLS(_xlfn.ANCHORARRAY(Filme!$G$1),2),_xlfn.CHOOSECOLS(_xlfn.ANCHORARRAY(Filme!$G$1),4),"",0,2) -> 2013-04-21 | E155: =_xlfn.XLOOKUP($B155,_xlfn.CHOOSECOLS(_xlfn.ANCHORARRAY(Leute!$F$1),2),_xlfn.CHOOSECOLS(_xlfn.ANCHORARRAY(Leute!$F$1),3),"x",0,2) -> Jennifer Jason Leigh | F155: =_xlfn.XLOOKUP($B155,_xlfn.CHOOSECOLS(_xlfn.ANCHORARRAY(Leute!$F$1),2),_xlfn.CHOOSECOLS(_xlfn.ANCHORARRAY(Leute!$F$1),4),"x",0,2) -> 1962-02-05 | G155: =RANK(F155,F$1:F155,0) -> 125 | H155: =DATEDIF(F155,D155,"Y") -> 51 | I155: =DATEDIF(F155,D155,"YD") -> 75 | J155: =D155-F155 -> 18703 | K155: ="MRS "&TEXT(J155,"00000")&" "&SUBSTITUTE(C155,":","")&" ("&TEXT(D155,"TT.MM.JJJJ")&") - "&E155&" ("&TEXT(F155,"TT.MM.JJJJ")&") "&H155&"-"&I155 -> MRS 18703 The Moment (21.04.2013) - Jennifer Jason Leigh (05.02.1962) 51-75
A156: tt0371246 | B156: nm0000495 | C156: =_xlfn.XLOOKUP($A156,_xlfn.CHOOSECOLS(_xlfn.ANCHORARRAY(Filme!$G$1),2),_xlfn.CHOOSECOLS(_xlfn.ANCHORARRAY(Filme!$G$1),3),"",0,2) -> Spanglish | D156: =_xlfn.XLOOKUP($A156,_xlfn.CHOOSECOLS(_xlfn.ANCHORARRAY(Filme!$G$1),2),_xlfn.CHOOSECOLS(_xlfn.ANCHORARRAY(Filme!$G$1),4),"",0,2) -> 2005-04-07 | E156: =_xlfn.XLOOKUP($B156,_xlfn.CHOOSECOLS(_xlfn.ANCHORARRAY(Leute!$F$1),2),_xlfn.CHOOSECOLS(_xlfn.ANCHORARRAY(Leute!$F$1),3),"x",0,2) -> Téa Leoni | F156: =_xlfn.XLOOKUP($B156,_xlfn.CHOOSECOLS(_xlfn.ANCHORARRAY(Leute!$F$1),2),_xlfn.CHOOSECOLS(_xlfn.ANCHORARRAY(Leute!$F$1),4),"x",0,2) -> 1966-02-25 | G156: =RANK(F156,F$1:F156,0) -> 99 | H156: =DATEDIF(F156,D156,"Y") -> 39 | I156: =DATEDIF(F156,D156,"YD") -> 41 | J156: =D156-F156 -> 14286 | K156: ="MRS "&TEXT(J156,"00000")&" "&SUBSTITUTE(C156,":","")&" ("&TEXT(D156,"TT.MM.JJJJ")&") - "&E156&" ("&TEXT(F156,"TT.MM.JJJJ")&") "&H156&"-"&I156 -> MRS 14286 Spanglish (07.04.2005) - Téa Leoni (25.02.1966) 39-41
A157: tt0105691 | B157: nm0000624 | C157: =_xlfn.XLOOKUP($A157,_xlfn.CHOOSECOLS(_xlfn.ANCHORARRAY(Filme!$G$1),2),_xlfn.CHOOSECOLS(_xlfn.ANCHORARRAY(Filme!$G$1),3),"",0,2) -> Under Suspicion | D157: =_xlfn.XLOOKUP($A157,_xlfn.CHOOSECOLS(_xlfn.ANCHORARRAY(Filme!$G$1),2),_xlfn.CHOOSECOLS(_xlfn.ANCHORARRAY(Filme!$G$1),4),"",0,2) -> 1992-07-09 | E157: =_xlfn.XLOOKUP($B157,_xlfn.CHOOSECOLS(_xlfn.ANCHORARRAY(Leute!$F$1),2),_xlfn.CHOOSECOLS(_xlfn.ANCHORARRAY(Leute!$F$1),3),"x",0,2) -> Laura San Giacomo | F157: =_xlfn.XLOOKUP($B157,_xlfn.CHOOSECOLS(_xlfn.ANCHORARRAY(Leute!$F$1),2),_xlfn.CHOOSECOLS(_xlfn.ANCHORARRAY(Leute!$F$1),4),"x",0,2) -> 1961-11-14 | G157: =RANK(F157,F$1:F157,0) -> 146 | H157: =DATEDIF(F157,D157,"Y") -> 30 | I157: =DATEDIF(F157,D157,"YD") -> 237 | J157: =D157-F157 -> 11195 | K157: ="MRS "&TEXT(J157,"00000")&" "&SUBSTITUTE(C157,":","")&" ("&TEXT(D157,"TT.MM.JJJJ")&") - "&E157&" ("&TEXT(F157,"TT.MM.JJJJ")&") "&H157&"-"&I157 -> MRS 11195 Under Suspicion (09.07.1992) - Laura San Giacomo (14.11.1961) 30-237
A158: tt0108451 | B158: nm0000673 | C158: =_xlfn.XLOOKUP($A158,_xlfn.CHOOSECOLS(_xlfn.ANCHORARRAY(Filme!$G$1),2),_xlfn.CHOOSECOLS(_xlfn.ANCHORARRAY(Filme!$G$1),3),"",0,2) -> Untamed Heart | D158: =_xlfn.XLOOKUP($A158,_xlfn.CHOOSECOLS(_xlfn.ANCHORARRAY(Filme!$G$1),2),_xlfn.CHOOSECOLS(_xlfn.ANCHORARRAY(Filme!$G$1),4),"",0,2) -> 1993-02-12 | E158: =_xlfn.XLOOKUP($B158,_xlfn.CHOOSECOLS(_xlfn.ANCHORARRAY(Leute!$F$1),2),_xlfn.CHOOSECOLS(_xlfn.ANCHORARRAY(Leute!$F$1),3),"x",0,2) -> Marisa Tomei | F158: =_xlfn.XLOOKUP($B158,_xlfn.CHOOSECOLS(_xlfn.ANCHORARRAY(Leute!$F$1),2),_xlfn.CHOOSECOLS(_xlfn.ANCHORARRAY(Leute!$F$1),4),"x",0,2) -> 1964-12-04 | G158: =RANK(F158,F$1:F158,0) -> 100 | H158: =DATEDIF(F158,D158,"Y") -> 28 | I158: =DATEDIF(F158,D158,"YD") -> 70 | J158: =D158-F158 -> 10297 | K158: ="MRS "&TEXT(J158,"00000")&" "&SUBSTITUTE(C158,":","")&" ("&TEXT(D158,"TT.MM.JJJJ")&") - "&E158&" ("&TEXT(F158,"TT.MM.JJJJ")&") "&H158&"-"&I158 -> MRS 10297 Untamed Heart (12.02.1993) - Marisa Tomei (04.12.1964) 28-70
A159: tt0292963 | B159: nm0000673 | C159: =_xlfn.XLOOKUP($A159,_xlfn.CHOOSECOLS(_xlfn.ANCHORARRAY(Filme!$G$1),2),_xlfn.CHOOSECOLS(_xlfn.ANCHORARRAY(Filme!$G$1),3),"",0,2) -> Before the Devil Knows You're Dead | D159: =_xlfn.XLOOKUP($A159,_xlfn.CHOOSECOLS(_xlfn.ANCHORARRAY(Filme!$G$1),2),_xlfn.CHOOSECOLS(_xlfn.ANCHORARRAY(Filme!$G$1),4),"",0,2) -> 2008-04-10 | E159: =_xlfn.XLOOKUP($B159,_xlfn.CHOOSECOLS(_xlfn.ANCHORARRAY(Leute!$F$1),2),_xlfn.CHOOSECOLS(_xlfn.ANCHORARRAY(Leute!$F$1),3),"x",0,2) -> Marisa Tomei | F159: =_xlfn.XLOOKUP($B159,_xlfn.CHOOSECOLS(_xlfn.ANCHORARRAY(Leute!$F$1),2),_xlfn.CHOOSECOLS(_xlfn.ANCHORARRAY(Leute!$F$1),4),"x",0,2) -> 1964-12-04 | G159: =RANK(F159,F$1:F159,0) -> 100 | H159: =DATEDIF(F159,D159,"Y") -> 43 | I159: =DATEDIF(F159,D159,"YD") -> 127 | J159: =D159-F159 -> 15833 | K159: ="MRS "&TEXT(J159,"00000")&" "&SUBSTITUTE(C159,":","")&" ("&TEXT(D159,"TT.MM.JJJJ")&") - "&E159&" ("&TEXT(F159,"TT.MM.JJJJ")&") "&H159&"-"&I159 -> MRS 15833 Before the Devil Knows You're Dead (10.04.2008) - Marisa Tomei (04.12.1964) 43-127
A160: tt0388213 | B160: nm0000673 | C160: =_xlfn.XLOOKUP($A160,_xlfn.CHOOSECOLS(_xlfn.ANCHORARRAY(Filme!$G$1),2),_xlfn.CHOOSECOLS(_xlfn.ANCHORARRAY(Filme!$G$1),3),"",0,2) -> Loverboy | D160: =_xlfn.XLOOKUP($A160,_xlfn.CHOOSECOLS(_xlfn.ANCHORARRAY(Filme!$G$1),2),_xlfn.CHOOSECOLS(_xlfn.ANCHORARRAY(Filme!$G$1),4),"",0,2) -> 2005-04-28 | E160: =_xlfn.XLOOKUP($B160,_xlfn.CHOOSECOLS(_xlfn.ANCHORARRAY(Leute!$F$1),2),_xlfn.CHOOSECOLS(_xlfn.ANCHORARRAY(Leute!$F$1),3),"x",0,2) -> Marisa Tomei | F160: =_xlfn.XLOOKUP($B160,_xlfn.CHOOSECOLS(_xlfn.ANCHORARRAY(Leute!$F$1),2),_xlfn.CHOOSECOLS(_xlfn.ANCHORARRAY(Leute!$F$1),4),"x",0,2) -> 1964-12-04 | G160: =RANK(F160,F$1:F160,0) -> 100 | H160: =DATEDIF(F160,D160,"Y") -> 40 | I160: =DATEDIF(F160,D160,"YD") -> 145 | J160: =D160-F160 -> 14755 | K160: ="MRS "&TEXT(J160,"00000")&" "&SUBSTITUTE(C160,":","")&" ("&TEXT(D160,"TT.MM.JJJJ")&") - "&E160&" ("&TEXT(F160,"TT.MM.JJJJ")&") "&H160&"-"&I160 -> MRS 14755 Loverboy (28.04.2005) - Marisa Tomei (04.12.1964) 40-145
A161: tt0417658 | B161: nm0000673 | C161: =_xlfn.XLOOKUP($A161,_xlfn.CHOOSECOLS(_xlfn.ANCHORARRAY(Filme!$G$1),2),_xlfn.CHOOSECOLS(_xlfn.ANCHORARRAY(Filme!$G$1),3),"",0,2) -> Factotum | D161: =_xlfn.XLOOKUP($A161,_xlfn.CHOOSECOLS(_xlfn.ANCHORARRAY(Filme!$G$1),2),_xlfn.CHOOSECOLS(_xlfn.ANCHORARRAY(Filme!$G$1),4),"",0,2) -> 2005-12-08 | E161: =_xlfn.XLOOKUP($B161,_xlfn.CHOOSECOLS(_xlfn.ANCHORARRAY(Leute!$F$1),2),_xlfn.CHOOSECOLS(_xlfn.ANCHORARRAY(Leute!$F$1),3),"x",0,2) -> Marisa Tomei | F161: =_xlfn.XLOOKUP($B161,_xlfn.CHOOSECOLS(_xlfn.ANCHORARRAY(Leute!$F$1),2),_xlfn.CHOOSECOLS(_xlfn.ANCHORARRAY(Leute!$F$1),4),"x",0,2) -> 1964-12-04 | G161: =RANK(F161,F$1:F161,0) -> 100 | H161: =DATEDIF(F161,D161,"Y") -> 41 | I161: =DATEDIF(F161,D161,"YD") -> 4 | J161: =D161-F161 -> 14979 | K161: ="MRS "&TEXT(J161,"00000")&" "&SUBSTITUTE(C161,":","")&" ("&TEXT(D161,"TT.MM.JJJJ")&") - "&E161&" ("&TEXT(F161,"TT.MM.JJJJ")&") "&H161&"-"&I161 -> MRS 14979 Factotum (08.12.2005) - Marisa Tomei (04.12.1964) 41-4
A162: tt1125849 | B162: nm0000673 | C162: =_xlfn.XLOOKUP($A162,_xlfn.CHOOSECOLS(_xlfn.ANCHORARRAY(Filme!$G$1),2),_xlfn.CHOOSECOLS(_xlfn.ANCHORARRAY(Filme!$G$1),3),"",0,2) -> The Wrestler | D162: =_xlfn.XLOOKUP($A162,_xlfn.CHOOSECOLS(_xlfn.ANCHORARRAY(Filme!$G$1),2),_xlfn.CHOOSECOLS(_xlfn.ANCHORARRAY(Filme!$G$1),4),"",0,2) -> 2009-02-26 | E162: =_xlfn.XLOOKUP($B162,_xlfn.CHOOSECOLS(_xlfn.ANCHORARRAY(Leute!$F$1),2),_xlfn.CHOOSECOLS(_xlfn.ANCHORARRAY(Leute!$F$1),3),"x",0,2) -> Marisa Tomei | F162: =_xlfn.XLOOKUP($B162,_xlfn.CHOOSECOLS(_xlfn.ANCHORARRAY(Leute!$F$1),2),_xlfn.CHOOSECOLS(_xlfn.ANCHORARRAY(Leute!$F$1),4),"x",0,2) -> 1964-12-04 | G162: =RANK(F162,F$1:F162,0) -> 100 | H162: =DATEDIF(F162,D162,"Y") -> 44 | I162: =DATEDIF(F162,D162,"YD") -> 84 | J162: =D162-F162 -> 16155 | K162: ="MRS "&TEXT(J162,"00000")&" "&SUBSTITUTE(C162,":","")&" ("&TEXT(D162,"TT.MM.JJJJ")&") - "&E162&" ("&TEXT(F162,"TT.MM.JJJJ")&") "&H162&"-"&I162 -> MRS 16155 The Wrestler (26.02.2009) - Marisa Tomei (04.12.1964) 44-84
A163: tt2390994 | B163: nm0000673 | C163: =_xlfn.XLOOKUP($A163,_xlfn.CHOOSECOLS(_xlfn.ANCHORARRAY(Filme!$G$1),2),_xlfn.CHOOSECOLS(_xlfn.ANCHORARRAY(Filme!$G$1),3),"",0,2) -> Loitering with Intent | D163: =_xlfn.XLOOKUP($A163,_xlfn.CHOOSECOLS(_xlfn.ANCHORARRAY(Filme!$G$1),2),_xlfn.CHOOSECOLS(_xlfn.ANCHORARRAY(Filme!$G$1),4),"",0,2) -> 2014-12-16 | E163: =_xlfn.XLOOKUP($B163,_xlfn.CHOOSECOLS(_xlfn.ANCHORARRAY(Leute!$F$1),2),_xlfn.CHOOSECOLS(_xlfn.ANCHORARRAY(Leute!$F$1),3),"x",0,2) -> Marisa Tomei | F163: =_xlfn.XLOOKUP($B163,_xlfn.CHOOSECOLS(_xlfn.ANCHORARRAY(Leute!$F$1),2),_xlfn.CHOOSECOLS(_xlfn.ANCHORARRAY(Leute!$F$1),4),"x",0,2) -> 1964-12-04 | G163: =RANK(F163,F$1:F163,0) -> 100 | H163: =DATEDIF(F163,D163,"Y") -> 50 | I163: =DATEDIF(F163,D163,"YD") -> 12 | J163: =D163-F163 -> 18274 | K163: ="MRS "&TEXT(J163,"00000")&" "&SUBSTITUTE(C163,":","")&" ("&TEXT(D163,"TT.MM.JJJJ")&") - "&E163&" ("&TEXT(F163,"TT.MM.JJJJ")&") "&H163&"-"&I163 -> MRS 18274 Loitering with Intent (16.12.2014) - Marisa Tomei (04.12.1964) 50-12
A164: tt0110005 | B164: nm0000701 | C164: =_xlfn.XLOOKUP($A164,_xlfn.CHOOSECOLS(_xlfn.ANCHORARRAY(Filme!$G$1),2),_xlfn.CHOOSECOLS(_xlfn.ANCHORARRAY(Filme!$G$1),3),"",0,2) -> Heavenly Creatures | D164: =_xlfn.XLOOKUP($A164,_xlfn.CHOOSECOLS(_xlfn.ANCHORARRAY(Filme!$G$1),2),_xlfn.CHOOSECOLS(_xlfn.ANCHORARRAY(Filme!$G$1),4),"",0,2) -> 1995-01-12 | E164: =_xlfn.XLOOKUP($B164,_xlfn.CHOOSECOLS(_xlfn.ANCHORARRAY(Leute!$F$1),2),_xlfn.CHOOSECOLS(_xlfn.ANCHORARRAY(Leute!$F$1),3),"x",0,2) -> Kate Winslet | F164: =_xlfn.XLOOKUP($B164,_xlfn.CHOOSECOLS(_xlfn.ANCHORARRAY(Leute!$F$1),2),_xlfn.CHOOSECOLS(_xlfn.ANCHORARRAY(Leute!$F$1),4),"x",0,2) -> 1975-10-05 | G164: =RANK(F164,F$1:F164,0) -> 21 | H164: =DATEDIF(F164,D164,"Y") -> 19 | I164: =DATEDIF(F164,D164,"YD") -> 99 | J164: =D164-F164 -> 7039 | K164: ="MRS "&TEXT(J164,"00000")&" "&SUBSTITUTE(C164,":","")&" ("&TEXT(D164,"TT.MM.JJJJ")&") - "&E164&" ("&TEXT(F164,"TT.MM.JJJJ")&") "&H164&"-"&I164 -> MRS 07039 Heavenly Creatures (12.01.1995) - Kate Winslet (05.10.1975) 19-99
A165: tt0116477 | B165: nm0000701 | C165: =_xlfn.XLOOKUP($A165,_xlfn.CHOOSECOLS(_xlfn.ANCHORARRAY(Filme!$G$1),2),_xlfn.CHOOSECOLS(_xlfn.ANCHORARRAY(Filme!$G$1),3),"",0,2) -> Hamlet | D165: =_xlfn.XLOOKUP($A165,_xlfn.CHOOSECOLS(_xlfn.ANCHORARRAY(Filme!$G$1),2),_xlfn.CHOOSECOLS(_xlfn.ANCHORARRAY(Filme!$G$1),4),"",0,2) -> 1997-06-05 | E165: =_xlfn.XLOOKUP($B165,_xlfn.CHOOSECOLS(_xlfn.ANCHORARRAY(Leute!$F$1),2),_xlfn.CHOOSECOLS(_xlfn.ANCHORARRAY(Leute!$F$1),3),"x",0,2) -> Kate Winslet | F165: =_xlfn.XLOOKUP($B165,_xlfn.CHOOSECOLS(_xlfn.ANCHORARRAY(Leute!$F$1),2),_xlfn.CHOOSECOLS(_xlfn.ANCHORARRAY(Leute!$F$1),4),"x",0,2) -> 1975-10-05 | G165: =RANK(F165,F$1:F165,0) -> 21 | H165: =DATEDIF(F165,D165,"Y") -> 21 | I165: =DATEDIF(F165,D165,"YD") -> 244 | J165: =D165-F165 -> 7914 | K165: ="MRS "&TEXT(J165,"00000")&" "&SUBSTITUTE(C165,":","")&" ("&TEXT(D165,"TT.MM.JJJJ")&") - "&E165&" ("&TEXT(F165,"TT.MM.JJJJ")&") "&H165&"-"&I165 -> MRS 07914 Hamlet (05.06.1997) - Kate Winslet (05.10.1975) 21-244
A166: tt0116722 | B166: nm0000701 | C166: =_xlfn.XLOOKUP($A166,_xlfn.CHOOSECOLS(_xlfn.ANCHORARRAY(Filme!$G$1),2),_xlfn.CHOOSECOLS(_xlfn.ANCHORARRAY(Filme!$G$1),3),"",0,2) -> Jude | D166: =_xlfn.XLOOKUP($A166,_xlfn.CHOOSECOLS(_xlfn.ANCHORARRAY(Filme!$G$1),2),_xlfn.CHOOSECOLS(_xlfn.ANCHORARRAY(Filme!$G$1),4),"",0,2) -> 1997-02-06 | E166: =_xlfn.XLOOKUP($B166,_xlfn.CHOOSECOLS(_xlfn.ANCHORARRAY(Leute!$F$1),2),_xlfn.CHOOSECOLS(_xlfn.ANCHORARRAY(Leute!$F$1),3),"x",0,2) -> Kate Winslet | F166: =_xlfn.XLOOKUP($B166,_xlfn.CHOOSECOLS(_xlfn.ANCHORARRAY(Leute!$F$1),2),_xlfn.CHOOSECOLS(_xlfn.ANCHORARRAY(Leute!$F$1),4),"x",0,2) -> 1975-10-05 | G166: =RANK(F166,F$1:F166,0) -> 21 | H166: =DATEDIF(F166,D166,"Y") -> 21 | I166: =DATEDIF(F166,D166,"YD") -> 124 | J166: =D166-F166 -> 7795 | K166: ="MRS "&TEXT(J166,"00000")&" "&SUBSTITUTE(C166,":","")&" ("&TEXT(D166,"TT.MM.JJJJ")&") - "&E166&" ("&TEXT(F166,"TT.MM.JJJJ")&") "&H166&"-"&I166 -> MRS 07795 Jude (06.02.1997) - Kate Winslet (05.10.1975) 21-124
A167: tt0120338 | B167: nm0000701 | C167: =_xlfn.XLOOKUP($A167,_xlfn.CHOOSECOLS(_xlfn.ANCHORARRAY(Filme!$G$1),2),_xlfn.CHOOSECOLS(_xlfn.ANCHORARRAY(Filme!$G$1),3),"",0,2) -> Titanic | D167: =_xlfn.XLOOKUP($A167,_xlfn.CHOOSECOLS(_xlfn.ANCHORARRAY(Filme!$G$1),2),_xlfn.CHOOSECOLS(_xlfn.ANCHORARRAY(Filme!$G$1),4),"",0,2) -> 1998-01-08 | E167: =_xlfn.XLOOKUP($B167,_xlfn.CHOOSECOLS(_xlfn.ANCHORARRAY(Leute!$F$1),2),_xlfn.CHOOSECOLS(_xlfn.ANCHORARRAY(Leute!$F$1),3),"x",0,2) -> Kate Winslet | F167: =_xlfn.XLOOKUP($B167,_xlfn.CHOOSECOLS(_xlfn.ANCHORARRAY(Leute!$F$1),2),_xlfn.CHOOSECOLS(_xlfn.ANCHORARRAY(Leute!$F$1),4),"x",0,2) -> 1975-10-05 | G167: =RANK(F167,F$1:F167,0) -> 21 | H167: =DATEDIF(F167,D167,"Y") -> 22 | I167: =DATEDIF(F167,D167,"YD") -> 95 | J167: =D167-F167 -> 8131 | K167: ="MRS "&TEXT(J167,"00000")&" "&SUBSTITUTE(C167,":","")&" ("&TEXT(D167,"TT.MM.JJJJ")&") - "&E167&" ("&TEXT(F167,"TT.MM.JJJJ")&") "&H167&"-"&I167 -> MRS 08131 Titanic (08.01.1998) - Kate Winslet (05.10.1975) 22-95
A168: tt0136244 | B168: nm0000701 | C168: =_xlfn.XLOOKUP($A168,_xlfn.CHOOSECOLS(_xlfn.ANCHORARRAY(Filme!$G$1),2),_xlfn.CHOOSECOLS(_xlfn.ANCHORARRAY(Filme!$G$1),3),"",0,2) -> Hideous Kinky | D168: =_xlfn.XLOOKUP($A168,_xlfn.CHOOSECOLS(_xlfn.ANCHORARRAY(Filme!$G$1),2),_xlfn.CHOOSECOLS(_xlfn.ANCHORARRAY(Filme!$G$1),4),"",0,2) -> 1999-04-15 | E168: =_xlfn.XLOOKUP($B168,_xlfn.CHOOSECOLS(_xlfn.ANCHORARRAY(Leute!$F$1),2),_xlfn.CHOOSECOLS(_xlfn.ANCHORARRAY(Leute!$F$1),3),"x",0,2) -> Kate Winslet | F168: =_xlfn.XLOOKUP($B168,_xlfn.CHOOSECOLS(_xlfn.ANCHORARRAY(Leute!$F$1),2),_xlfn.CHOOSECOLS(_xlfn.ANCHORARRAY(Leute!$F$1),4),"x",0,2) -> 1975-10-05 | G168: =RANK(F168,F$1:F168,0) -> 21 | H168: =DATEDIF(F168,D168,"Y") -> 23 | I168: =DATEDIF(F168,D168,"YD") -> 193 | J168: =D168-F168 -> 8593 | K168: ="MRS "&TEXT(J168,"00000")&" "&SUBSTITUTE(C168,":","")&" ("&TEXT(D168,"TT.MM.JJJJ")&") - "&E168&" ("&TEXT(F168,"TT.MM.JJJJ")&") "&H168&"-"&I168 -> MRS 08593 Hideous Kinky (15.04.1999) - Kate Winslet (05.10.1975) 23-193
A169: tt0144715 | B169: nm0000701 | C169: =_xlfn.XLOOKUP($A169,_xlfn.CHOOSECOLS(_xlfn.ANCHORARRAY(Filme!$G$1),2),_xlfn.CHOOSECOLS(_xlfn.ANCHORARRAY(Filme!$G$1),3),"",0,2) -> Holy Smoke | D169: =_xlfn.XLOOKUP($A169,_xlfn.CHOOSECOLS(_xlfn.ANCHORARRAY(Filme!$G$1),2),_xlfn.CHOOSECOLS(_xlfn.ANCHORARRAY(Filme!$G$1),4),"",0,2) -> 1999-12-26 | E169: =_xlfn.XLOOKUP($B169,_xlfn.CHOOSECOLS(_xlfn.ANCHORARRAY(Leute!$F$1),2),_xlfn.CHOOSECOLS(_xlfn.ANCHORARRAY(Leute!$F$1),3),"x",0,2) -> Kate Winslet | F169: =_xlfn.XLOOKUP($B169,_xlfn.CHOOSECOLS(_xlfn.ANCHORARRAY(Leute!$F$1),2),_xlfn.CHOOSECOLS(_xlfn.ANCHORARRAY(Leute!$F$1),4),"x",0,2) -> 1975-10-05 | G169: =RANK(F169,F$1:F169,0) -> 21 | H169: =DATEDIF(F169,D169,"Y") -> 24 | I169: =DATEDIF(F169,D169,"YD") -> 82 | J169: =D169-F169 -> 8848 | K169: ="MRS "&TEXT(J169,"00000")&" "&SUBSTITUTE(C169,":","")&" ("&TEXT(D169,"TT.MM.JJJJ")&") - "&E169&" ("&TEXT(F169,"TT.MM.JJJJ")&") "&H169&"-"&I169 -> MRS 08848 Holy Smoke (26.12.1999) - Kate Winslet (05.10.1975) 24-82
A170: tt0180073 | B170: nm0000701 | C170: =_xlfn.XLOOKUP($A170,_xlfn.CHOOSECOLS(_xlfn.ANCHORARRAY(Filme!$G$1),2),_xlfn.CHOOSECOLS(_xlfn.ANCHORARRAY(Filme!$G$1),3),"",0,2) -> Quills | D170: =_xlfn.XLOOKUP($A170,_xlfn.CHOOSECOLS(_xlfn.ANCHORARRAY(Filme!$G$1),2),_xlfn.CHOOSECOLS(_xlfn.ANCHORARRAY(Filme!$G$1),4),"",0,2) -> 2001-03-08 | E170: =_xlfn.XLOOKUP($B170,_xlfn.CHOOSECOLS(_xlfn.ANCHORARRAY(Leute!$F$1),2),_xlfn.CHOOSECOLS(_xlfn.ANCHORARRAY(Leute!$F$1),3),"x",0,2) -> Kate Winslet | F170: =_xlfn.XLOOKUP($B170,_xlfn.CHOOSECOLS(_xlfn.ANCHORARRAY(Leute!$F$1),2),_xlfn.CHOOSECOLS(_xlfn.ANCHORARRAY(Leute!$F$1),4),"x",0,2) -> 1975-10-05 | G170: =RANK(F170,F$1:F170,0) -> 21 | H170: =DATEDIF(F170,D170,"Y") -> 25 | I170: =DATEDIF(F170,D170,"YD") -> 155 | J170: =D170-F170 -> 9286 | K170: ="MRS "&TEXT(J170,"00000")&" "&SUBSTITUTE(C170,":","")&" ("&TEXT(D170,"TT.MM.JJJJ")&") - "&E170&" ("&TEXT(F170,"TT.MM.JJJJ")&") "&H170&"-"&I170 -> MRS 09286 Quills (08.03.2001) - Kate Winslet (05.10.1975) 25-155
A171: tt0280778 | B171: nm0000701 | C171: =_xlfn.XLOOKUP($A171,_xlfn.CHOOSECOLS(_xlfn.ANCHORARRAY(Filme!$G$1),2),_xlfn.CHOOSECOLS(_xlfn.ANCHORARRAY(Filme!$G$1),3),"",0,2) -> Iris | D171: =_xlfn.XLOOKUP($A171,_xlfn.CHOOSECOLS(_xlfn.ANCHORARRAY(Filme!$G$1),2),_xlfn.CHOOSECOLS(_xlfn.ANCHORARRAY(Filme!$G$1),4),"",0,2) -> 2002-05-16 | E171: =_xlfn.XLOOKUP($B171,_xlfn.CHOOSECOLS(_xlfn.ANCHORARRAY(Leute!$F$1),2),_xlfn.CHOOSECOLS(_xlfn.ANCHORARRAY(Leute!$F$1),3),"x",0,2) -> Kate Winslet | F171: =_xlfn.XLOOKUP($B171,_xlfn.CHOOSECOLS(_xlfn.ANCHORARRAY(Leute!$F$1),2),_xlfn.CHOOSECOLS(_xlfn.ANCHORARRAY(Leute!$F$1),4),"x",0,2) -> 1975-10-05 | G171: =RANK(F171,F$1:F171,0) -> 21 | H171: =DATEDIF(F171,D171,"Y") -> 26 | I171: =DATEDIF(F171,D171,"YD") -> 224 | J171: =D171-F171 -> 9720 | K171: ="MRS "&TEXT(J171,"00000")&" "&SUBSTITUTE(C171,":","")&" ("&TEXT(D171,"TT.MM.JJJJ")&") - "&E171&" ("&TEXT(F171,"TT.MM.JJJJ")&") "&H171&"-"&I171 -> MRS 09720 Iris (16.05.2002) - Kate Winslet (05.10.1975) 26-224
A172: tt0404203 | B172: nm0000701 | C172: =_xlfn.XLOOKUP($A172,_xlfn.CHOOSECOLS(_xlfn.ANCHORARRAY(Filme!$G$1),2),_xlfn.CHOOSECOLS(_xlfn.ANCHORARRAY(Filme!$G$1),3),"",0,2) -> Little Children | D172: =_xlfn.XLOOKUP($A172,_xlfn.CHOOSECOLS(_xlfn.ANCHORARRAY(Filme!$G$1),2),_xlfn.CHOOSECOLS(_xlfn.ANCHORARRAY(Filme!$G$1),4),"",0,2) -> 2007-04-26 | E172: =_xlfn.XLOOKUP($B172,_xlfn.CHOOSECOLS(_xlfn.ANCHORARRAY(Leute!$F$1),2),_xlfn.CHOOSECOLS(_xlfn.ANCHORARRAY(Leute!$F$1),3),"x",0,2) -> Kate Winslet | F172: =_xlfn.XLOOKUP($B172,_xlfn.CHOOSECOLS(_xlfn.ANCHORARRAY(Leute!$F$1),2),_xlfn.CHOOSECOLS(_xlfn.ANCHORARRAY(Leute!$F$1),4),"x",0,2) -> 1975-10-05 | G172: =RANK(F172,F$1:F172,0) -> 21 | H172: =DATEDIF(F172,D172,"Y") -> 31 | I172: =DATEDIF(F172,D172,"YD") -> 204 | J172: =D172-F172 -> 11526 | K172: ="MRS "&TEXT(J172,"00000")&" "&SUBSTITUTE(C172,":","")&" ("&TEXT(D172,"TT.MM.JJJJ")&") - "&E172&" ("&TEXT(F172,"TT.MM.JJJJ")&") "&H172&"-"&I172 -> MRS 11526 Little Children (26.04.2007) - Kate Winslet (05.10.1975) 31-204
A173: tt0976051 | B173: nm0000701 | C173: =_xlfn.XLOOKUP($A173,_xlfn.CHOOSECOLS(_xlfn.ANCHORARRAY(Filme!$G$1),2),_xlfn.CHOOSECOLS(_xlfn.ANCHORARRAY(Filme!$G$1),3),"",0,2) -> The Reader | D173: =_xlfn.XLOOKUP($A173,_xlfn.CHOOSECOLS(_xlfn.ANCHORARRAY(Filme!$G$1),2),_xlfn.CHOOSECOLS(_xlfn.ANCHORARRAY(Filme!$G$1),4),"",0,2) -> 2009-02-26 | E173: =_xlfn.XLOOKUP($B173,_xlfn.CHOOSECOLS(_xlfn.ANCHORARRAY(Leute!$F$1),2),_xlfn.CHOOSECOLS(_xlfn.ANCHORARRAY(Leute!$F$1),3),"x",0,2) -> Kate Winslet | F173: =_xlfn.XLOOKUP($B173,_xlfn.CHOOSECOLS(_xlfn.ANCHORARRAY(Leute!$F$1),2),_xlfn.CHOOSECOLS(_xlfn.ANCHORARRAY(Leute!$F$1),4),"x",0,2) -> 1975-10-05 | G173: =RANK(F173,F$1:F173,0) -> 21 | H173: =DATEDIF(F173,D173,"Y") -> 33 | I173: =DATEDIF(F173,D173,"YD") -> 144 | J173: =D173-F173 -> 12198 | K173: ="MRS "&TEXT(J173,"00000")&" "&SUBSTITUTE(C173,":","")&" ("&TEXT(D173,"TT.MM.JJJJ")&") - "&E173&" ("&TEXT(F173,"TT.MM.JJJJ")&") "&H173&"-"&I173 -> MRS 12198 The Reader (26.02.2009) - Kate Winslet (05.10.1975) 33-144
A174: tt11033898 | B174: nm0000701 | C174: =_xlfn.XLOOKUP($A174,_xlfn.CHOOSECOLS(_xlfn.ANCHORARRAY(Filme!$G$1),2),_xlfn.CHOOSECOLS(_xlfn.ANCHORARRAY(Filme!$G$1),3),"",0,2) -> Mare of Easttown | D174: =_xlfn.XLOOKUP($A174,_xlfn.CHOOSECOLS(_xlfn.ANCHORARRAY(Filme!$G$1),2),_xlfn.CHOOSECOLS(_xlfn.ANCHORARRAY(Filme!$G$1),4),"",0,2) -> 2021-05-21 | E174: =_xlfn.XLOOKUP($B174,_xlfn.CHOOSECOLS(_xlfn.ANCHORARRAY(Leute!$F$1),2),_xlfn.CHOOSECOLS(_xlfn.ANCHORARRAY(Leute!$F$1),3),"x",0,2) -> Kate Winslet | F174: =_xlfn.XLOOKUP($B174,_xlfn.CHOOSECOLS(_xlfn.ANCHORARRAY(Leute!$F$1),2),_xlfn.CHOOSECOLS(_xlfn.ANCHORARRAY(Leute!$F$1),4),"x",0,2) -> 1975-10-05 | G174: =RANK(F174,F$1:F174,0) -> 21 | H174: =DATEDIF(F174,D174,"Y") -> 45 | I174: =DATEDIF(F174,D174,"YD") -> 229 | J174: =D174-F174 -> 16665 | K174: ="MRS "&TEXT(J174,"00000")&" "&SUBSTITUTE(C174,":","")&" ("&TEXT(D174,"TT.MM.JJJJ")&") - "&E174&" ("&TEXT(F174,"TT.MM.JJJJ")&") "&H174&"-"&I174 -> MRS 16665 Mare of Easttown (21.05.2021) - Kate Winslet (05.10.1975) 45-229
A175: tt1679750 | B175: nm0000701 | C175: =_xlfn.XLOOKUP($A175,_xlfn.CHOOSECOLS(_xlfn.ANCHORARRAY(Filme!$G$1),2),_xlfn.CHOOSECOLS(_xlfn.ANCHORARRAY(Filme!$G$1),3),"",0,2) -> Mildred Pierce | D175: =_xlfn.XLOOKUP($A175,_xlfn.CHOOSECOLS(_xlfn.ANCHORARRAY(Filme!$G$1),2),_xlfn.CHOOSECOLS(_xlfn.ANCHORARRAY(Filme!$G$1),4),"",0,2) -> 2012-03-11 | E175: =_xlfn.XLOOKUP($B175,_xlfn.CHOOSECOLS(_xlfn.ANCHORARRAY(Leute!$F$1),2),_xlfn.CHOOSECOLS(_xlfn.ANCHORARRAY(Leute!$F$1),3),"x",0,2) -> Kate Winslet | F175: =_xlfn.XLOOKUP($B175,_xlfn.CHOOSECOLS(_xlfn.ANCHORARRAY(Leute!$F$1),2),_xlfn.CHOOSECOLS(_xlfn.ANCHORARRAY(Leute!$F$1),4),"x",0,2) -> 1975-10-05 | G175: =RANK(F175,F$1:F175,0) -> 21 | H175: =DATEDIF(F175,D175,"Y") -> 36 | I175: =DATEDIF(F175,D175,"YD") -> 158 | J175: =D175-F175 -> 13307 | K175: ="MRS "&TEXT(J175,"00000")&" "&SUBSTITUTE(C175,":","")&" ("&TEXT(D175,"TT.MM.JJJJ")&") - "&E175&" ("&TEXT(F175,"TT.MM.JJJJ")&") "&H175&"-"&I175 -> MRS 13307 Mildred Pierce (11.03.2012) - Kate Winslet (05.10.1975) 36-158
A176: tt2226597 | B176: nm0000701 | C176: =_xlfn.XLOOKUP($A176,_xlfn.CHOOSECOLS(_xlfn.ANCHORARRAY(Filme!$G$1),2),_xlfn.CHOOSECOLS(_xlfn.ANCHORARRAY(Filme!$G$1),3),"",0,2) -> The Mountain Between Us | D176: =_xlfn.XLOOKUP($A176,_xlfn.CHOOSECOLS(_xlfn.ANCHORARRAY(Filme!$G$1),2),_xlfn.CHOOSECOLS(_xlfn.ANCHORARRAY(Filme!$G$1),4),"",0,2) -> 2017-12-07 | E176: =_xlfn.XLOOKUP($B176,_xlfn.CHOOSECOLS(_xlfn.ANCHORARRAY(Leute!$F$1),2),_xlfn.CHOOSECOLS(_xlfn.ANCHORARRAY(Leute!$F$1),3),"x",0,2) -> Kate Winslet | F176: =_xlfn.XLOOKUP($B176,_xlfn.CHOOSECOLS(_xlfn.ANCHORARRAY(Leute!$F$1),2),_xlfn.CHOOSECOLS(_xlfn.ANCHORARRAY(Leute!$F$1),4),"x",0,2) -> 1975-10-05 | G176: =RANK(F176,F$1:F176,0) -> 21 | H176: =DATEDIF(F176,D176,"Y") -> 42 | I176: =DATEDIF(F176,D176,"YD") -> 63 | J176: =D176-F176 -> 15404 | K176: ="MRS "&TEXT(J176,"00000")&" "&SUBSTITUTE(C176,":","")&" ("&TEXT(D176,"TT.MM.JJJJ")&") - "&E176&" ("&TEXT(F176,"TT.MM.JJJJ")&") "&H176&"-"&I176 -> MRS 15404 The Mountain Between Us (07.12.2017) - Kate Winslet (05.10.1975) 42-63
A177: tt5112584 | B177: nm0000701 | C177: =_xlfn.XLOOKUP($A177,_xlfn.CHOOSECOLS(_xlfn.ANCHORARRAY(Filme!$G$1),2),_xlfn.CHOOSECOLS(_xlfn.ANCHORARRAY(Filme!$G$1),3),"",0,2) -> Lee | D177: =_xlfn.XLOOKUP($A177,_xlfn.CHOOSECOLS(_xlfn.ANCHORARRAY(Filme!$G$1),2),_xlfn.CHOOSECOLS(_xlfn.ANCHORARRAY(Filme!$G$1),4),"",0,2) -> 2024-09-19 | E177: =_xlfn.XLOOKUP($B177,_xlfn.CHOOSECOLS(_xlfn.ANCHORARRAY(Leute!$F$1),2),_xlfn.CHOOSECOLS(_xlfn.ANCHORARRAY(Leute!$F$1),3),"x",0,2) -> Kate Winslet | F177: =_xlfn.XLOOKUP($B177,_xlfn.CHOOSECOLS(_xlfn.ANCHORARRAY(Leute!$F$1),2),_xlfn.CHOOSECOLS(_xlfn.ANCHORARRAY(Leute!$F$1),4),"x",0,2) -> 1975-10-05 | G177: =RANK(F177,F$1:F177,0) -> 21 | H177: =DATEDIF(F177,D177,"Y") -> 48 | I177: =DATEDIF(F177,D177,"YD") -> 350 | J177: =D177-F177 -> 17882 | K177: ="MRS "&TEXT(J177,"00000")&" "&SUBSTITUTE(C177,":","")&" ("&TEXT(D177,"TT.MM.JJJJ")&") - "&E177&" ("&TEXT(F177,"TT.MM.JJJJ")&") "&H177&"-"&I177 -> MRS 17882 Lee (19.09.2024) - Kate Winslet (05.10.1975) 48-350
A178: tt7983894 | B178: nm0000701 | C178: =_xlfn.XLOOKUP($A178,_xlfn.CHOOSECOLS(_xlfn.ANCHORARRAY(Filme!$G$1),2),_xlfn.CHOOSECOLS(_xlfn.ANCHORARRAY(Filme!$G$1),3),"",0,2) -> Ammonite | D178: =_xlfn.XLOOKUP($A178,_xlfn.CHOOSECOLS(_xlfn.ANCHORARRAY(Filme!$G$1),2),_xlfn.CHOOSECOLS(_xlfn.ANCHORARRAY(Filme!$G$1),4),"",0,2) -> 2021-11-04 | E178: =_xlfn.XLOOKUP($B178,_xlfn.CHOOSECOLS(_xlfn.ANCHORARRAY(Leute!$F$1),2),_xlfn.CHOOSECOLS(_xlfn.ANCHORARRAY(Leute!$F$1),3),"x",0,2) -> Kate Winslet | F178: =_xlfn.XLOOKUP($B178,_xlfn.CHOOSECOLS(_xlfn.ANCHORARRAY(Leute!$F$1),2),_xlfn.CHOOSECOLS(_xlfn.ANCHORARRAY(Leute!$F$1),4),"x",0,2) -> 1975-10-05 | G178: =RANK(F178,F$1:F178,0) -> 21 | H178: =DATEDIF(F178,D178,"Y") -> 46 | I178: =DATEDIF(F178,D178,"YD") -> 30 | J178: =D178-F178 -> 16832 | K178: ="MRS "&TEXT(J178,"00000")&" "&SUBSTITUTE(C178,":","")&" ("&TEXT(D178,"TT.MM.JJJJ")&") - "&E178&" ("&TEXT(F178,"TT.MM.JJJJ")&") "&H178&"-"&I178 -> MRS 16832 Ammonite (04.11.2021) - Kate Winslet (05.10.1975) 46-30
A179: tt0119594 | B179: nm0000702 | C179: =_xlfn.XLOOKUP($A179,_xlfn.CHOOSECOLS(_xlfn.ANCHORARRAY(Filme!$G$1),2),_xlfn.CHOOSECOLS(_xlfn.ANCHORARRAY(Filme!$G$1),3),"",0,2) -> Twilight | D179: =_xlfn.XLOOKUP($A179,_xlfn.CHOOSECOLS(_xlfn.ANCHORARRAY(Filme!$G$1),2),_xlfn.CHOOSECOLS(_xlfn.ANCHORARRAY(Filme!$G$1),4),"",0,2) -> 1998-08-06 | E179: =_xlfn.XLOOKUP($B179,_xlfn.CHOOSECOLS(_xlfn.ANCHORARRAY(Leute!$F$1),2),_xlfn.CHOOSECOLS(_xlfn.ANCHORARRAY(Leute!$F$1),3),"x",0,2) -> Reese Witherspoon | F179: =_xlfn.XLOOKUP($B179,_xlfn.CHOOSECOLS(_xlfn.ANCHORARRAY(Leute!$F$1),2),_xlfn.CHOOSECOLS(_xlfn.ANCHORARRAY(Leute!$F$1),4),"x",0,2) -> 1976-03-22 | G179: =RANK(F179,F$1:F179,0) -> 21 | H179: =DATEDIF(F179,D179,"Y") -> 22 | I179: =DATEDIF(F179,D179,"YD") -> 137 | J179: =D179-F179 -> 8172 | K179: ="MRS "&TEXT(J179,"00000")&" "&SUBSTITUTE(C179,":","")&" ("&TEXT(D179,"TT.MM.JJJJ")&") - "&E179&" ("&TEXT(F179,"TT.MM.JJJJ")&") "&H179&"-"&I179 -> MRS 08172 Twilight (06.08.1998) - Reese Witherspoon (22.03.1976) 22-137
A180: tt2305051 | B180: nm0000702 | C180: =_xlfn.XLOOKUP($A180,_xlfn.CHOOSECOLS(_xlfn.ANCHORARRAY(Filme!$G$1),2),_xlfn.CHOOSECOLS(_xlfn.ANCHORARRAY(Filme!$G$1),3),"",0,2) -> Wild | D180: =_xlfn.XLOOKUP($A180,_xlfn.CHOOSECOLS(_xlfn.ANCHORARRAY(Filme!$G$1),2),_xlfn.CHOOSECOLS(_xlfn.ANCHORARRAY(Filme!$G$1),4),"",0,2) -> 2015-01-15 | E180: =_xlfn.XLOOKUP($B180,_xlfn.CHOOSECOLS(_xlfn.ANCHORARRAY(Leute!$F$1),2),_xlfn.CHOOSECOLS(_xlfn.ANCHORARRAY(Leute!$F$1),3),"x",0,2) -> Reese Witherspoon | F180: =_xlfn.XLOOKUP($B180,_xlfn.CHOOSECOLS(_xlfn.ANCHORARRAY(Leute!$F$1),2),_xlfn.CHOOSECOLS(_xlfn.ANCHORARRAY(Leute!$F$1),4),"x",0,2) -> 1976-03-22 | G180: =RANK(F180,F$1:F180,0) -> 21 | H180: =DATEDIF(F180,D180,"Y") -> 38 | I180: =DATEDIF(F180,D180,"YD") -> 299 | J180: =D180-F180 -> 14178 | K180: ="MRS "&TEXT(J180,"00000")&" "&SUBSTITUTE(C180,":","")&" ("&TEXT(D180,"TT.MM.JJJJ")&") - "&E180&" ("&TEXT(F180,"TT.MM.JJJJ")&") "&H180&"-"&I180 -> MRS 14178 Wild (15.01.2015) - Reese Witherspoon (22.03.1976) 38-299
A181: tt1850784 | B181: nm0000868 | C181: =_xlfn.XLOOKUP($A181,_xlfn.CHOOSECOLS(_xlfn.ANCHORARRAY(Filme!$G$1),2),_xlfn.CHOOSECOLS(_xlfn.ANCHORARRAY(Filme!$G$1),3),"",0,2) -> Out of Order | D181: =_xlfn.XLOOKUP($A181,_xlfn.CHOOSECOLS(_xlfn.ANCHORARRAY(Filme!$G$1),2),_xlfn.CHOOSECOLS(_xlfn.ANCHORARRAY(Filme!$G$1),4),"",0,2) -> 2003-06-16 | E181: =_xlfn.XLOOKUP($B181,_xlfn.CHOOSECOLS(_xlfn.ANCHORARRAY(Leute!$F$1),2),_xlfn.CHOOSECOLS(_xlfn.ANCHORARRAY(Leute!$F$1),3),"x",0,2) -> Justine Bateman | F181: =_xlfn.XLOOKUP($B181,_xlfn.CHOOSECOLS(_xlfn.ANCHORARRAY(Leute!$F$1),2),_xlfn.CHOOSECOLS(_xlfn.ANCHORARRAY(Leute!$F$1),4),"x",0,2) -> 1966-02-19 | G181: =RANK(F181,F$1:F181,0) -> 117 | H181: =DATEDIF(F181,D181,"Y") -> 37 | I181: =DATEDIF(F181,D181,"YD") -> 117 | J181: =D181-F181 -> 13631 | K181: ="MRS "&TEXT(J181,"00000")&" "&SUBSTITUTE(C181,":","")&" ("&TEXT(D181,"TT.MM.JJJJ")&") - "&E181&" ("&TEXT(F181,"TT.MM.JJJJ")&") "&H181&"-"&I181 -> MRS 13631 Out of Order (16.06.2003) - Justine Bateman (19.02.1966) 37-117
A182: tt0101373 | B182: nm0000870 | C182: =_xlfn.XLOOKUP($A182,_xlfn.CHOOSECOLS(_xlfn.ANCHORARRAY(Filme!$G$1),2),_xlfn.CHOOSECOLS(_xlfn.ANCHORARRAY(Filme!$G$1),3),"",0,2) -> At Play in the Fields of the Lord | D182: =_xlfn.XLOOKUP($A182,_xlfn.CHOOSECOLS(_xlfn.ANCHORARRAY(Filme!$G$1),2),_xlfn.CHOOSECOLS(_xlfn.ANCHORARRAY(Filme!$G$1),4),"",0,2) -> 1992-12-17 | E182: =_xlfn.XLOOKUP($B182,_xlfn.CHOOSECOLS(_xlfn.ANCHORARRAY(Leute!$F$1),2),_xlfn.CHOOSECOLS(_xlfn.ANCHORARRAY(Leute!$F$1),3),"x",0,2) -> Kathy Bates | F182: =_xlfn.XLOOKUP($B182,_xlfn.CHOOSECOLS(_xlfn.ANCHORARRAY(Leute!$F$1),2),_xlfn.CHOOSECOLS(_xlfn.ANCHORARRAY(Leute!$F$1),4),"x",0,2) -> 1948-06-28 | G182: =RANK(F182,F$1:F182,0) -> 180 | H182: =DATEDIF(F182,D182,"Y") -> 44 | I182: =DATEDIF(F182,D182,"YD") -> 172 | J182: =D182-F182 -> 16243 | K182: ="MRS "&TEXT(J182,"00000")&" "&SUBSTITUTE(C182,":","")&" ("&TEXT(D182,"TT.MM.JJJJ")&") - "&E182&" ("&TEXT(F182,"TT.MM.JJJJ")&") "&H182&"-"&I182 -> MRS 16243 At Play in the Fields of the Lord (17.12.1992) - Kathy Bates (28.06.1948) 44-172
A183: tt0257360 | B183: nm0000870 | C183: =_xlfn.XLOOKUP($A183,_xlfn.CHOOSECOLS(_xlfn.ANCHORARRAY(Filme!$G$1),2),_xlfn.CHOOSECOLS(_xlfn.ANCHORARRAY(Filme!$G$1),3),"",0,2) -> About Schmidt | D183: =_xlfn.XLOOKUP($A183,_xlfn.CHOOSECOLS(_xlfn.ANCHORARRAY(Filme!$G$1),2),_xlfn.CHOOSECOLS(_xlfn.ANCHORARRAY(Filme!$G$1),4),"",0,2) -> 2003-02-27 | E183: =_xlfn.XLOOKUP($B183,_xlfn.CHOOSECOLS(_xlfn.ANCHORARRAY(Leute!$F$1),2),_xlfn.CHOOSECOLS(_xlfn.ANCHORARRAY(Leute!$F$1),3),"x",0,2) -> Kathy Bates | F183: =_xlfn.XLOOKUP($B183,_xlfn.CHOOSECOLS(_xlfn.ANCHORARRAY(Leute!$F$1),2),_xlfn.CHOOSECOLS(_xlfn.ANCHORARRAY(Leute!$F$1),4),"x",0,2) -> 1948-06-28 | G183: =RANK(F183,F$1:F183,0) -> 180 | H183: =DATEDIF(F183,D183,"Y") -> 54 | I183: =DATEDIF(F183,D183,"YD") -> 244 | J183: =D183-F183 -> 19967 | K183: ="MRS "&TEXT(J183,"00000")&" "&SUBSTITUTE(C183,":","")&" ("&TEXT(D183,"TT.MM.JJJJ")&") - "&E183&" ("&TEXT(F183,"TT.MM.JJJJ")&") "&H183&"-"&I183 -> MRS 19967 About Schmidt (27.02.2003) - Kathy Bates (28.06.1948) 54-244
A184: tt0103874 | B184: nm0000899 | C184: =_xlfn.XLOOKUP($A184,_xlfn.CHOOSECOLS(_xlfn.ANCHORARRAY(Filme!$G$1),2),_xlfn.CHOOSECOLS(_xlfn.ANCHORARRAY(Filme!$G$1),3),"",0,2) -> Bram Stoker's Dracula | D184: =_xlfn.XLOOKUP($A184,_xlfn.CHOOSECOLS(_xlfn.ANCHORARRAY(Filme!$G$1),2),_xlfn.CHOOSECOLS(_xlfn.ANCHORARRAY(Filme!$G$1),4),"",0,2) -> 1993-02-11 | E184: =_xlfn.XLOOKUP($B184,_xlfn.CHOOSECOLS(_xlfn.ANCHORARRAY(Leute!$F$1),2),_xlfn.CHOOSECOLS(_xlfn.ANCHORARRAY(Leute!$F$1),3),"x",0,2) -> Monica Bellucci | F184: =_xlfn.XLOOKUP($B184,_xlfn.CHOOSECOLS(_xlfn.ANCHORARRAY(Leute!$F$1),2),_xlfn.CHOOSECOLS(_xlfn.ANCHORARRAY(Leute!$F$1),4),"x",0,2) -> 1964-09-30 | G184: =RANK(F184,F$1:F184,0) -> 125 | H184: =DATEDIF(F184,D184,"Y") -> 28 | I184: =DATEDIF(F184,D184,"YD") -> 134 | J184: =D184-F184 -> 10361 | K184: ="MRS "&TEXT(J184,"00000")&" "&SUBSTITUTE(C184,":","")&" ("&TEXT(D184,"TT.MM.JJJJ")&") - "&E184&" ("&TEXT(F184,"TT.MM.JJJJ")&") "&H184&"-"&I184 -> MRS 10361 Bram Stoker's Dracula (11.02.1993) - Monica Bellucci (30.09.1964) 28-134
A185: tt0119633 | B185: nm0000899 | C185: =_xlfn.XLOOKUP($A185,_xlfn.CHOOSECOLS(_xlfn.ANCHORARRAY(Filme!$G$1),2),_xlfn.CHOOSECOLS(_xlfn.ANCHORARRAY(Filme!$G$1),3),"",0,2) -> Mauvais genre | D185: =_xlfn.XLOOKUP($A185,_xlfn.CHOOSECOLS(_xlfn.ANCHORARRAY(Filme!$G$1),2),_xlfn.CHOOSECOLS(_xlfn.ANCHORARRAY(Filme!$G$1),4),"",0,2) -> 1997-07-09 | E185: =_xlfn.XLOOKUP($B185,_xlfn.CHOOSECOLS(_xlfn.ANCHORARRAY(Leute!$F$1),2),_xlfn.CHOOSECOLS(_xlfn.ANCHORARRAY(Leute!$F$1),3),"x",0,2) -> Monica Bellucci | F185: =_xlfn.XLOOKUP($B185,_xlfn.CHOOSECOLS(_xlfn.ANCHORARRAY(Leute!$F$1),2),_xlfn.CHOOSECOLS(_xlfn.ANCHORARRAY(Leute!$F$1),4),"x",0,2) -> 1964-09-30 | G185: =RANK(F185,F$1:F185,0) -> 125 | H185: =DATEDIF(F185,D185,"Y") -> 32 | I185: =DATEDIF(F185,D185,"YD") -> 282 | J185: =D185-F185 -> 11970 | K185: ="MRS "&TEXT(J185,"00000")&" "&SUBSTITUTE(C185,":","")&" ("&TEXT(D185,"TT.MM.JJJJ")&") - "&E185&" ("&TEXT(F185,"TT.MM.JJJJ")&") "&H185&"-"&I185 -> MRS 11970 Mauvais genre (09.07.1997) - Monica Bellucci (30.09.1964) 32-282
A186: tt0134057 | B186: nm0000899 | C186: =_xlfn.XLOOKUP($A186,_xlfn.CHOOSECOLS(_xlfn.ANCHORARRAY(Filme!$G$1),2),_xlfn.CHOOSECOLS(_xlfn.ANCHORARRAY(Filme!$G$1),3),"",0,2) -> La riffa | D186: =_xlfn.XLOOKUP($A186,_xlfn.CHOOSECOLS(_xlfn.ANCHORARRAY(Filme!$G$1),2),_xlfn.CHOOSECOLS(_xlfn.ANCHORARRAY(Filme!$G$1),4),"",0,2) -> 1991-11-15 | E186: =_xlfn.XLOOKUP($B186,_xlfn.CHOOSECOLS(_xlfn.ANCHORARRAY(Leute!$F$1),2),_xlfn.CHOOSECOLS(_xlfn.ANCHORARRAY(Leute!$F$1),3),"x",0,2) -> Monica Bellucci | F186: =_xlfn.XLOOKUP($B186,_xlfn.CHOOSECOLS(_xlfn.ANCHORARRAY(Leute!$F$1),2),_xlfn.CHOOSECOLS(_xlfn.ANCHORARRAY(Leute!$F$1),4),"x",0,2) -> 1964-09-30 | G186: =RANK(F186,F$1:F186,0) -> 125 | H186: =DATEDIF(F186,D186,"Y") -> 27 | I186: =DATEDIF(F186,D186,"YD") -> 46 | J186: =D186-F186 -> 9907 | K186: ="MRS "&TEXT(J186,"00000")&" "&SUBSTITUTE(C186,":","")&" ("&TEXT(D186,"TT.MM.JJJJ")&") - "&E186&" ("&TEXT(F186,"TT.MM.JJJJ")&") "&H186&"-"&I186 -> MRS 09907 La riffa (15.11.1991) - Monica Bellucci (30.09.1964) 27-46
A187: tt0137142 | B187: nm0000899 | C187: =_xlfn.XLOOKUP($A187,_xlfn.CHOOSECOLS(_xlfn.ANCHORARRAY(Filme!$G$1),2),_xlfn.CHOOSECOLS(_xlfn.ANCHORARRAY(Filme!$G$1),3),"",0,2) -> Ostinato destino | D187: =_xlfn.XLOOKUP($A187,_xlfn.CHOOSECOLS(_xlfn.ANCHORARRAY(Filme!$G$1),2),_xlfn.CHOOSECOLS(_xlfn.ANCHORARRAY(Filme!$G$1),4),"",0,2) -> 1992-05-28 | E187: =_xlfn.XLOOKUP($B187,_xlfn.CHOOSECOLS(_xlfn.ANCHORARRAY(Leute!$F$1),2),_xlfn.CHOOSECOLS(_xlfn.ANCHORARRAY(Leute!$F$1),3),"x",0,2) -> Monica Bellucci | F187: =_xlfn.XLOOKUP($B187,_xlfn.CHOOSECOLS(_xlfn.ANCHORARRAY(Leute!$F$1),2),_xlfn.CHOOSECOLS(_xlfn.ANCHORARRAY(Leute!$F$1),4),"x",0,2) -> 1964-09-30 | G187: =RANK(F187,F$1:F187,0) -> 125 | H187: =DATEDIF(F187,D187,"Y") -> 27 | I187: =DATEDIF(F187,D187,"YD") -> 240 | J187: =D187-F187 -> 10102 | K187: ="MRS "&TEXT(J187,"00000")&" "&SUBSTITUTE(C187,":","")&" ("&TEXT(D187,"TT.MM.JJJJ")&") - "&E187&" ("&TEXT(F187,"TT.MM.JJJJ")&") "&H187&"-"&I187 -> MRS 10102 Ostinato destino (28.05.1992) - Monica Bellucci (30.09.1964) 27-240
A188: tt0137258 | B188: nm0000899 | C188: =_xlfn.XLOOKUP($A188,_xlfn.CHOOSECOLS(_xlfn.ANCHORARRAY(Filme!$G$1),2),_xlfn.CHOOSECOLS(_xlfn.ANCHORARRAY(Filme!$G$1),3),"",0,2) -> Vita coi figli | D188: =_xlfn.XLOOKUP($A188,_xlfn.CHOOSECOLS(_xlfn.ANCHORARRAY(Filme!$G$1),2),_xlfn.CHOOSECOLS(_xlfn.ANCHORARRAY(Filme!$G$1),4),"",0,2) -> 1991-05-28 | E188: =_xlfn.XLOOKUP($B188,_xlfn.CHOOSECOLS(_xlfn.ANCHORARRAY(Leute!$F$1),2),_xlfn.CHOOSECOLS(_xlfn.ANCHORARRAY(Leute!$F$1),3),"x",0,2) -> Monica Bellucci | F188: =_xlfn.XLOOKUP($B188,_xlfn.CHOOSECOLS(_xlfn.ANCHORARRAY(Leute!$F$1),2),_xlfn.CHOOSECOLS(_xlfn.ANCHORARRAY(Leute!$F$1),4),"x",0,2) -> 1964-09-30 | G188: =RANK(F188,F$1:F188,0) -> 125 | H188: =DATEDIF(F188,D188,"Y") -> 26 | I188: =DATEDIF(F188,D188,"YD") -> 240 | J188: =D188-F188 -> 9736 | K188: ="MRS "&TEXT(J188,"00000")&" "&SUBSTITUTE(C188,":","")&" ("&TEXT(D188,"TT.MM.JJJJ")&") - "&E188&" ("&TEXT(F188,"TT.MM.JJJJ")&") "&H188&"-"&I188 -> MRS 09736 Vita coi figli (28.05.1991) - Monica Bellucci (30.09.1964) 26-240
A189: tt0140653 | B189: nm0000899 | C189: =_xlfn.XLOOKUP($A189,_xlfn.CHOOSECOLS(_xlfn.ANCHORARRAY(Filme!$G$1),2),_xlfn.CHOOSECOLS(_xlfn.ANCHORARRAY(Filme!$G$1),3),"",0,2) -> L'ultimo capodanno | D189: =_xlfn.XLOOKUP($A189,_xlfn.CHOOSECOLS(_xlfn.ANCHORARRAY(Filme!$G$1),2),_xlfn.CHOOSECOLS(_xlfn.ANCHORARRAY(Filme!$G$1),4),"",0,2) -> 1998-03-06 | E189: =_xlfn.XLOOKUP($B189,_xlfn.CHOOSECOLS(_xlfn.ANCHORARRAY(Leute!$F$1),2),_xlfn.CHOOSECOLS(_xlfn.ANCHORARRAY(Leute!$F$1),3),"x",0,2) -> Monica Bellucci | F189: =_xlfn.XLOOKUP($B189,_xlfn.CHOOSECOLS(_xlfn.ANCHORARRAY(Leute!$F$1),2),_xlfn.CHOOSECOLS(_xlfn.ANCHORARRAY(Leute!$F$1),4),"x",0,2) -> 1964-09-30 | G189: =RANK(F189,F$1:F189,0) -> 125 | H189: =DATEDIF(F189,D189,"Y") -> 33 | I189: =DATEDIF(F189,D189,"YD") -> 157 | J189: =D189-F189 -> 12210 | K189: ="MRS "&TEXT(J189,"00000")&" "&SUBSTITUTE(C189,":","")&" ("&TEXT(D189,"TT.MM.JJJJ")&") - "&E189&" ("&TEXT(F189,"TT.MM.JJJJ")&") "&H189&"-"&I189 -> MRS 12210 L'ultimo capodanno (06.03.1998) - Monica Bellucci (30.09.1964) 33-157
A190: tt0160075 | B190: nm0000899 | C190: =_xlfn.XLOOKUP($A190,_xlfn.CHOOSECOLS(_xlfn.ANCHORARRAY(Filme!$G$1),2),_xlfn.CHOOSECOLS(_xlfn.ANCHORARRAY(Filme!$G$1),3),"",0,2) -> Briganti: Amore e libertà | D190: =_xlfn.XLOOKUP($A190,_xlfn.CHOOSECOLS(_xlfn.ANCHORARRAY(Filme!$G$1),2),_xlfn.CHOOSECOLS(_xlfn.ANCHORARRAY(Filme!$G$1),4),"",0,2) -> 1994-12-31 | E190: =_xlfn.XLOOKUP($B190,_xlfn.CHOOSECOLS(_xlfn.ANCHORARRAY(Leute!$F$1),2),_xlfn.CHOOSECOLS(_xlfn.ANCHORARRAY(Leute!$F$1),3),"x",0,2) -> Monica Bellucci | F190: =_xlfn.XLOOKUP($B190,_xlfn.CHOOSECOLS(_xlfn.ANCHORARRAY(Leute!$F$1),2),_xlfn.CHOOSECOLS(_xlfn.ANCHORARRAY(Leute!$F$1),4),"x",0,2) -> 1964-09-30 | G190: =RANK(F190,F$1:F190,0) -> 125 | H190: =DATEDIF(F190,D190,"Y") -> 30 | I190: =DATEDIF(F190,D190,"YD") -> 92 | J190: =D190-F190 -> 11049 | K190: ="MRS "&TEXT(J190,"00000")&" "&SUBSTITUTE(C190,":","")&" ("&TEXT(D190,"TT.MM.JJJJ")&") - "&E190&" ("&TEXT(F190,"TT.MM.JJJJ")&") "&H190&"-"&I190 -> MRS 11049 Briganti Amore e libertà (31.12.1994) - Monica Bellucci (30.09.1964) 30-92
A191: tt0164212 | B191: nm0000899 | C191: =_xlfn.XLOOKUP($A191,_xlfn.CHOOSECOLS(_xlfn.ANCHORARRAY(Filme!$G$1),2),_xlfn.CHOOSECOLS(_xlfn.ANCHORARRAY(Filme!$G$1),3),"",0,2) -> Under Suspicion | D191: =_xlfn.XLOOKUP($A191,_xlfn.CHOOSECOLS(_xlfn.ANCHORARRAY(Filme!$G$1),2),_xlfn.CHOOSECOLS(_xlfn.ANCHORARRAY(Filme!$G$1),4),"",0,2) -> 2001-05-03 | E191: =_xlfn.XLOOKUP($B191,_xlfn.CHOOSECOLS(_xlfn.ANCHORARRAY(Leute!$F$1),2),_xlfn.CHOOSECOLS(_xlfn.ANCHORARRAY(Leute!$F$1),3),"x",0,2) -> Monica Bellucci | F191: =_xlfn.XLOOKUP($B191,_xlfn.CHOOSECOLS(_xlfn.ANCHORARRAY(Leute!$F$1),2),_xlfn.CHOOSECOLS(_xlfn.ANCHORARRAY(Leute!$F$1),4),"x",0,2) -> 1964-09-30 | G191: =RANK(F191,F$1:F191,0) -> 125 | H191: =DATEDIF(F191,D191,"Y") -> 36 | I191: =DATEDIF(F191,D191,"YD") -> 215 | J191: =D191-F191 -> 13364 | K191: ="MRS "&TEXT(J191,"00000")&" "&SUBSTITUTE(C191,":","")&" ("&TEXT(D191,"TT.MM.JJJJ")&") - "&E191&" ("&TEXT(F191,"TT.MM.JJJJ")&") "&H191&"-"&I191 -> MRS 13364 Under Suspicion (03.05.2001) - Monica Bellucci (30.09.1964) 36-215
A192: tt0166199 | B192: nm0000899 | C192: =_xlfn.XLOOKUP($A192,_xlfn.CHOOSECOLS(_xlfn.ANCHORARRAY(Filme!$G$1),2),_xlfn.CHOOSECOLS(_xlfn.ANCHORARRAY(Filme!$G$1),3),"",0,2) -> Franck Spadone | D192: =_xlfn.XLOOKUP($A192,_xlfn.CHOOSECOLS(_xlfn.ANCHORARRAY(Filme!$G$1),2),_xlfn.CHOOSECOLS(_xlfn.ANCHORARRAY(Filme!$G$1),4),"",0,2) -> 2000-07-19 | E192: =_xlfn.XLOOKUP($B192,_xlfn.CHOOSECOLS(_xlfn.ANCHORARRAY(Leute!$F$1),2),_xlfn.CHOOSECOLS(_xlfn.ANCHORARRAY(Leute!$F$1),3),"x",0,2) -> Monica Bellucci | F192: =_xlfn.XLOOKUP($B192,_xlfn.CHOOSECOLS(_xlfn.ANCHORARRAY(Leute!$F$1),2),_xlfn.CHOOSECOLS(_xlfn.ANCHORARRAY(Leute!$F$1),4),"x",0,2) -> 1964-09-30 | G192: =RANK(F192,F$1:F192,0) -> 125 | H192: =DATEDIF(F192,D192,"Y") -> 35 | I192: =DATEDIF(F192,D192,"YD") -> 292 | J192: =D192-F192 -> 13076 | K192: ="MRS "&TEXT(J192,"00000")&" "&SUBSTITUTE(C192,":","")&" ("&TEXT(D192,"TT.MM.JJJJ")&") - "&E192&" ("&TEXT(F192,"TT.MM.JJJJ")&") "&H192&"-"&I192 -> MRS 13076 Franck Spadone (19.07.2000) - Monica Bellucci (30.09.1964) 35-292
A193: tt0213847 | B193: nm0000899 | C193: =_xlfn.XLOOKUP($A193,_xlfn.CHOOSECOLS(_xlfn.ANCHORARRAY(Filme!$G$1),2),_xlfn.CHOOSECOLS(_xlfn.ANCHORARRAY(Filme!$G$1),3),"",0,2) -> Malèna | D193: =_xlfn.XLOOKUP($A193,_xlfn.CHOOSECOLS(_xlfn.ANCHORARRAY(Filme!$G$1),2),_xlfn.CHOOSECOLS(_xlfn.ANCHORARRAY(Filme!$G$1),4),"",0,2) -> 2001-03-01 | E193: =_xlfn.XLOOKUP($B193,_xlfn.CHOOSECOLS(_xlfn.ANCHORARRAY(Leute!$F$1),2),_xlfn.CHOOSECOLS(_xlfn.ANCHORARRAY(Leute!$F$1),3),"x",0,2) -> Monica Bellucci | F193: =_xlfn.XLOOKUP($B193,_xlfn.CHOOSECOLS(_xlfn.ANCHORARRAY(Leute!$F$1),2),_xlfn.CHOOSECOLS(_xlfn.ANCHORARRAY(Leute!$F$1),4),"x",0,2) -> 1964-09-30 | G193: =RANK(F193,F$1:F193,0) -> 125 | H193: =DATEDIF(F193,D193,"Y") -> 36 | I193: =DATEDIF(F193,D193,"YD") -> 152 | J193: =D193-F193 -> 13301 | K193: ="MRS "&TEXT(J193,"00000")&" "&SUBSTITUTE(C193,":","")&" ("&TEXT(D193,"TT.MM.JJJJ")&") - "&E193&" ("&TEXT(F193,"TT.MM.JJJJ")&") "&H193&"-"&I193 -> MRS 13301 Malèna (01.03.2001) - Monica Bellucci (30.09.1964) 36-152
A194: tt0237534 | B194: nm0000899 | C194: =_xlfn.XLOOKUP($A194,_xlfn.CHOOSECOLS(_xlfn.ANCHORARRAY(Filme!$G$1),2),_xlfn.CHOOSECOLS(_xlfn.ANCHORARRAY(Filme!$G$1),3),"",0,2) -> Le pacte des loups | D194: =_xlfn.XLOOKUP($A194,_xlfn.CHOOSECOLS(_xlfn.ANCHORARRAY(Filme!$G$1),2),_xlfn.CHOOSECOLS(_xlfn.ANCHORARRAY(Filme!$G$1),4),"",0,2) -> 2002-02-14 | E194: =_xlfn.XLOOKUP($B194,_xlfn.CHOOSECOLS(_xlfn.ANCHORARRAY(Leute!$F$1),2),_xlfn.CHOOSECOLS(_xlfn.ANCHORARRAY(Leute!$F$1),3),"x",0,2) -> Monica Bellucci | F194: =_xlfn.XLOOKUP($B194,_xlfn.CHOOSECOLS(_xlfn.ANCHORARRAY(Leute!$F$1),2),_xlfn.CHOOSECOLS(_xlfn.ANCHORARRAY(Leute!$F$1),4),"x",0,2) -> 1964-09-30 | G194: =RANK(F194,F$1:F194,0) -> 125 | H194: =DATEDIF(F194,D194,"Y") -> 37 | I194: =DATEDIF(F194,D194,"YD") -> 137 | J194: =D194-F194 -> 13651 | K194: ="MRS "&TEXT(J194,"00000")&" "&SUBSTITUTE(C194,":","")&" ("&TEXT(D194,"TT.MM.JJJJ")&") - "&E194&" ("&TEXT(F194,"TT.MM.JJJJ")&") "&H194&"-"&I194 -> MRS 13651 Le pacte des loups (14.02.2002) - Monica Bellucci (30.09.1964) 37-137
A195: tt0250223 | B195: nm0000899 | C195: =_xlfn.XLOOKUP($A195,_xlfn.CHOOSECOLS(_xlfn.ANCHORARRAY(Filme!$G$1),2),_xlfn.CHOOSECOLS(_xlfn.ANCHORARRAY(Filme!$G$1),3),"",0,2) -> Astérix & Obélix : Mission Cléopâtre | D195: =_xlfn.XLOOKUP($A195,_xlfn.CHOOSECOLS(_xlfn.ANCHORARRAY(Filme!$G$1),2),_xlfn.CHOOSECOLS(_xlfn.ANCHORARRAY(Filme!$G$1),4),"",0,2) -> 2002-03-07 | E195: =_xlfn.XLOOKUP($B195,_xlfn.CHOOSECOLS(_xlfn.ANCHORARRAY(Leute!$F$1),2),_xlfn.CHOOSECOLS(_xlfn.ANCHORARRAY(Leute!$F$1),3),"x",0,2) -> Monica Bellucci | F195: =_xlfn.XLOOKUP($B195,_xlfn.CHOOSECOLS(_xlfn.ANCHORARRAY(Leute!$F$1),2),_xlfn.CHOOSECOLS(_xlfn.ANCHORARRAY(Leute!$F$1),4),"x",0,2) -> 1964-09-30 | G195: =RANK(F195,F$1:F195,0) -> 125 | H195: =DATEDIF(F195,D195,"Y") -> 37 | I195: =DATEDIF(F195,D195,"YD") -> 158 | J195: =D195-F195 -> 13672 | K195: ="MRS "&TEXT(J195,"00000")&" "&SUBSTITUTE(C195,":","")&" ("&TEXT(D195,"TT.MM.JJJJ")&") - "&E195&" ("&TEXT(F195,"TT.MM.JJJJ")&") "&H195&"-"&I195 -> MRS 13672 Astérix & Obélix Mission Cléopâtre (07.03.2002) - Monica Bellucci (30.09.1964) 37-158
A196: tt0290673 | B196: nm0000899 | C196: =_xlfn.XLOOKUP($A196,_xlfn.CHOOSECOLS(_xlfn.ANCHORARRAY(Filme!$G$1),2),_xlfn.CHOOSECOLS(_xlfn.ANCHORARRAY(Filme!$G$1),3),"",0,2) -> Irréversible | D196: =_xlfn.XLOOKUP($A196,_xlfn.CHOOSECOLS(_xlfn.ANCHORARRAY(Filme!$G$1),2),_xlfn.CHOOSECOLS(_xlfn.ANCHORARRAY(Filme!$G$1),4),"",0,2) -> 2003-09-11 | E196: =_xlfn.XLOOKUP($B196,_xlfn.CHOOSECOLS(_xlfn.ANCHORARRAY(Leute!$F$1),2),_xlfn.CHOOSECOLS(_xlfn.ANCHORARRAY(Leute!$F$1),3),"x",0,2) -> Monica Bellucci | F196: =_xlfn.XLOOKUP($B196,_xlfn.CHOOSECOLS(_xlfn.ANCHORARRAY(Leute!$F$1),2),_xlfn.CHOOSECOLS(_xlfn.ANCHORARRAY(Leute!$F$1),4),"x",0,2) -> 1964-09-30 | G196: =RANK(F196,F$1:F196,0) -> 125 | H196: =DATEDIF(F196,D196,"Y") -> 38 | I196: =DATEDIF(F196,D196,"YD") -> 346 | J196: =D196-F196 -> 14225 | K196: ="MRS "&TEXT(J196,"00000")&" "&SUBSTITUTE(C196,":","")&" ("&TEXT(D196,"TT.MM.JJJJ")&") - "&E196&" ("&TEXT(F196,"TT.MM.JJJJ")&") "&H196&"-"&I196 -> MRS 14225 Irréversible (11.09.2003) - Monica Bellucci (30.09.1964) 38-346
A197: tt0356336 | B197: nm0000899 | C197: =_xlfn.XLOOKUP($A197,_xlfn.CHOOSECOLS(_xlfn.ANCHORARRAY(Filme!$G$1),2),_xlfn.CHOOSECOLS(_xlfn.ANCHORARRAY(Filme!$G$1),3),"",0,2) -> Agents secrets | D197: =_xlfn.XLOOKUP($A197,_xlfn.CHOOSECOLS(_xlfn.ANCHORARRAY(Filme!$G$1),2),_xlfn.CHOOSECOLS(_xlfn.ANCHORARRAY(Filme!$G$1),4),"",0,2) -> 2004-03-31 | E197: =_xlfn.XLOOKUP($B197,_xlfn.CHOOSECOLS(_xlfn.ANCHORARRAY(Leute!$F$1),2),_xlfn.CHOOSECOLS(_xlfn.ANCHORARRAY(Leute!$F$1),3),"x",0,2) -> Monica Bellucci | F197: =_xlfn.XLOOKUP($B197,_xlfn.CHOOSECOLS(_xlfn.ANCHORARRAY(Leute!$F$1),2),_xlfn.CHOOSECOLS(_xlfn.ANCHORARRAY(Leute!$F$1),4),"x",0,2) -> 1964-09-30 | G197: =RANK(F197,F$1:F197,0) -> 125 | H197: =DATEDIF(F197,D197,"Y") -> 39 | I197: =DATEDIF(F197,D197,"YD") -> 182 | J197: =D197-F197 -> 14427 | K197: ="MRS "&TEXT(J197,"00000")&" "&SUBSTITUTE(C197,":","")&" ("&TEXT(D197,"TT.MM.JJJJ")&") - "&E197&" ("&TEXT(F197,"TT.MM.JJJJ")&") "&H197&"-"&I197 -> MRS 14427 Agents secrets (31.03.2004) - Monica Bellucci (30.09.1964) 39-182
A198: tt0420555 | B198: nm0000899 | C198: =_xlfn.XLOOKUP($A198,_xlfn.CHOOSECOLS(_xlfn.ANCHORARRAY(Filme!$G$1),2),_xlfn.CHOOSECOLS(_xlfn.ANCHORARRAY(Filme!$G$1),3),"",0,2) -> Combien tu m'aimes? | D198: =_xlfn.XLOOKUP($A198,_xlfn.CHOOSECOLS(_xlfn.ANCHORARRAY(Filme!$G$1),2),_xlfn.CHOOSECOLS(_xlfn.ANCHORARRAY(Filme!$G$1),4),"",0,2) -> 2006-08-31 | E198: =_xlfn.XLOOKUP($B198,_xlfn.CHOOSECOLS(_xlfn.ANCHORARRAY(Leute!$F$1),2),_xlfn.CHOOSECOLS(_xlfn.ANCHORARRAY(Leute!$F$1),3),"x",0,2) -> Monica Bellucci | F198: =_xlfn.XLOOKUP($B198,_xlfn.CHOOSECOLS(_xlfn.ANCHORARRAY(Leute!$F$1),2),_xlfn.CHOOSECOLS(_xlfn.ANCHORARRAY(Leute!$F$1),4),"x",0,2) -> 1964-09-30 | G198: =RANK(F198,F$1:F198,0) -> 125 | H198: =DATEDIF(F198,D198,"Y") -> 41 | I198: =DATEDIF(F198,D198,"YD") -> 335 | J198: =D198-F198 -> 15310 | K198: ="MRS "&TEXT(J198,"00000")&" "&SUBSTITUTE(C198,":","")&" ("&TEXT(D198,"TT.MM.JJJJ")&") - "&E198&" ("&TEXT(F198,"TT.MM.JJJJ")&") "&H198&"-"&I198 -> MRS 15310 Combien tu m'aimes? (31.08.2006) - Monica Bellucci (30.09.1964) 41-335
A199: tt0447619 | B199: nm0000899 | C199: =_xlfn.XLOOKUP($A199,_xlfn.CHOOSECOLS(_xlfn.ANCHORARRAY(Filme!$G$1),2),_xlfn.CHOOSECOLS(_xlfn.ANCHORARRAY(Filme!$G$1),3),"",0,2) -> Le Concile de Pierre | D199: =_xlfn.XLOOKUP($A199,_xlfn.CHOOSECOLS(_xlfn.ANCHORARRAY(Filme!$G$1),2),_xlfn.CHOOSECOLS(_xlfn.ANCHORARRAY(Filme!$G$1),4),"",0,2) -> 2006-11-15 | E199: =_xlfn.XLOOKUP($B199,_xlfn.CHOOSECOLS(_xlfn.ANCHORARRAY(Leute!$F$1),2),_xlfn.CHOOSECOLS(_xlfn.ANCHORARRAY(Leute!$F$1),3),"x",0,2) -> Monica Bellucci | F199: =_xlfn.XLOOKUP($B199,_xlfn.CHOOSECOLS(_xlfn.ANCHORARRAY(Leute!$F$1),2),_xlfn.CHOOSECOLS(_xlfn.ANCHORARRAY(Leute!$F$1),4),"x",0,2) -> 1964-09-30 | G199: =RANK(F199,F$1:F199,0) -> 125 | H199: =DATEDIF(F199,D199,"Y") -> 42 | I199: =DATEDIF(F199,D199,"YD") -> 46 | J199: =D199-F199 -> 15386 | K199: ="MRS "&TEXT(J199,"00000")&" "&SUBSTITUTE(C199,":","")&" ("&TEXT(D199,"TT.MM.JJJJ")&") - "&E199&" ("&TEXT(F199,"TT.MM.JJJJ")&") "&H199&"-"&I199 -> MRS 15386 Le Concile de Pierre (15.11.2006) - Monica Bellucci (30.09.1964) 42-46
A200: tt0462002 | B200: nm0000899 | C200: =_xlfn.XLOOKUP($A200,_xlfn.CHOOSECOLS(_xlfn.ANCHORARRAY(Filme!$G$1),2),_xlfn.CHOOSECOLS(_xlfn.ANCHORARRAY(Filme!$G$1),3),"",0,2) -> N (Io e Napoleone) | D200: =_xlfn.XLOOKUP($A200,_xlfn.CHOOSECOLS(_xlfn.ANCHORARRAY(Filme!$G$1),2),_xlfn.CHOOSECOLS(_xlfn.ANCHORARRAY(Filme!$G$1),4),"",0,2) -> 2006-10-13 | E200: =_xlfn.XLOOKUP($B200,_xlfn.CHOOSECOLS(_xlfn.ANCHORARRAY(Leute!$F$1),2),_xlfn.CHOOSECOLS(_xlfn.ANCHORARRAY(Leute!$F$1),3),"x",0,2) -> Monica Bellucci | F200: =_xlfn.XLOOKUP($B200,_xlfn.CHOOSECOLS(_xlfn.ANCHORARRAY(Leute!$F$1),2),_xlfn.CHOOSECOLS(_xlfn.ANCHORARRAY(Leute!$F$1),4),"x",0,2) -> 1964-09-30 | G200: =RANK(F200,F$1:F200,0) -> 125 | H200: =DATEDIF(F200,D200,"Y") -> 42 | I200: =DATEDIF(F200,D200,"YD") -> 13 | J200: =D200-F200 -> 15353 | K200: ="MRS "&TEXT(J200,"00000")&" "&SUBSTITUTE(C200,":","")&" ("&TEXT(D200,"TT.MM.JJJJ")&") - "&E200&" ("&TEXT(F200,"TT.MM.JJJJ")&") "&H200&"-"&I200 -> MRS 15353 N (Io e Napoleone) (13.10.2006) - Monica Bellucci (30.09.1964) 42-13
... 565 more rows

Sheet Filme
A1: Position | B1: Const | C1: Original Title | D1: Release Date | E1: Title Type | G1: =_xlfn._xlws.SORT(Filme1[],2) -> 1 | H1: tt0022867 | I1: Ekstase | J1: 12792 | K1: Film
A2: 672 | B2: tt11687002 | C2: The Outrun | D2: 2024-12-05 | E2: Film | G2: 2 | H2: tt0066096 | I2: The Moonshine War | J2: 25969 | K2: Film
A3: 746 | B3: tt31407487 | C3: Cross | D3: 2024-11-14 | E3: Fernsehepisode | G3: 3 | H3: tt0068290 | I3: Blood from the Mummy's Tomb | J3: 26220 | K3: Film
A4: 736 | B4: tt23475134 | C4: Bad Sisters | D4: 2024-11-13 | E4: Fernsehepisode | G4: 4 | H4: tt0076033 | I4: First Love | J4: 28594 | K4: Film
A5: 748 | B5: tt33336389 | C5: Lioness | D5: 2024-11-10 | E5: Fernsehepisode | G5: 5 | H5: tt0076683 | I5: The Sentinel | J5: 28257 | K5: Film
A6: 500 | B6: tt3234122 | C6: Widow Clicquot | D6: 2024-11-07 | E6: Film | G6: 6 | H6: tt0079261 | I6: Hair | J6: 29048 | K6: Film
A7: 747 | B7: tt33295778 | C7: Lioness | D7: 2024-11-03 | E7: Fernsehepisode | G7: 7 | H7: tt0082352 | I7: Eyes of a Stranger | J7: 29826 | K7: Film
A8: 741 | B8: tt27410895 | C8: Släpp taget | D8: 2024-11-01 | E8: Film | G8: 8 | H8: tt0083929 | I8: Fast Times at Ridgemont High | J8: 30301 | K8: Film
A9: 732 | B9: tt22052952 | C9: Rivals | D9: 2024-10-18 | E9: Fernsehepisode | G9: 9 | H9: tt0084445 | I9: One from the Heart | J9: 30224 | K9: Film
A10: 716 | B10: tt18228830 | C10: Disclaimer | D10: 2024-10-11 | E10: Fernsehepisode | G10: 10 | H10: tt0085595 | I10: Girls of the White Orchid | J10: 30648 | K10: Fernsehfilm
A11: 695 | B11: tt14407336 | C11: La bête | D11: 2024-10-10 | E11: Film | G11: 11 | H11: tt0085995 | I11: National Lampoon's Vacation | J11: 30841 | K11: Film
A12: 743 | B12: tt27766711 | C12: Citadel | D12: 2024-10-10 | E12: Fernsehepisode | G12: 12 | H12: tt0086973 | I12: Blame It on Rio | J12: 31107 | K12: Film
A13: 726 | B13: tt19864828 | C13: Memory | D13: 2024-10-03 | E13: Film | G13: 13 | H13: tt0087810 | I13: No Small Affair | J13: 31184 | K13: Film
A14: 744 | B14: tt28991140 | C14: Joan | D14: 2024-09-29 | E14: Fernsehepisode | G14: 14 | H14: tt0089153 | I14: Flesh+Blood | J14: 31806 | K14: Film
A15: 742 | B15: tt27419292 | C15: Killer Heat | D15: 2024-09-26 | E15: Film | G15: 15 | H15: tt0090583 | I15: About Last Night... | J15: 31680 | K15: Film
A16: 558 | B16: tt5112584 | C16: Lee | D16: 2024-09-19 | E16: Film | G16: 16 | H16: tt0090693 | I16: Band of the Hand | J16: 31736 | K16: Film
A17: 715 | B17: tt17526714 | C17: The Substance | D17: 2024-09-19 | E17: Film | G17: 17 | H17: tt0092220 | I17: Windrider | J17: 31772 | K17: Film
A18: 713 | B18: tt16491682 | C18: Agatha All Along | D18: 2024-09-18 | E18: Fernsehepisode | G18: 18 | H18: tt0093980 | I18: Sister Sister | J18: 32268 | K18: Film
A19: 685 | B19: tt13457790 | C19: The Critic | D19: 2024-09-13 | E19: Film | G19: 19 | H19: tt0094087 | I19: Sweet Revenge | J19: 31836 | K19: Film
A20: 720 | B20: tt18559464 | C20: My Old Ass | D20: 2024-09-13 | E20: Film | G20: 20 | H20: tt0094889 | I20: Cocktail | J20: 32520 | K20: Film
A21: 737 | B21: tt24871974 | C21: Subservience | D21: 2024-09-13 | E21: Film | G21: 21 | H21: tt0095286 | I21: Heart of Midnight | J21: 32457 | K21: Film
A22: 723 | B22: tt19637052 | C22: Love Lies Bleeding | D22: 2024-07-18 | E22: Film | G22: 22 | H22: tt0096270 | I22: Time Out | J22: 32185 | K22: Film
A23: 731 | B23: tt22048412 | C23: MaXXXine | D23: 2024-07-04 | E23: Film | G23: 23 | H23: tt0096824 | I23: Another Chance | J23: 32633 | K23: Film
A24: 735 | B24: tt22408160 | C24: Kinds of Kindness | D24: 2024-07-04 | E24: Film | G24: 24 | H24: tt0097162 | I24: Dead Calm | J24: 32716 | K24: Film
A25: 689 | B25: tt13651794 | C25: May December | D25: 2024-05-30 | E25: Film | G25: 25 | H25: tt0097216 | I25: Do the Right Thing | J25: 32702 | K25: Film
A26: 729 | B26: tt21810682 | C26: The End We Start From | D26: 2024-05-30 | E26: Film | G26: 26 | H26: tt0097714 | I26: Last Exit to Brooklyn | J26: 32793 | K26: Film
A27: 728 | B27: tt20415224 | C27: Drift | D27: 2024-03-26 | E27: Film | G27: 27 | H27: tt0098625 | I27: We're No Angels | J27: 32857 | K27: Film
A28: 722 | B28: tt19356262 | C28: Drive-Away Dolls | D28: 2024-03-07 | E28: Film | G28: 28 | H28: tt0099797 | I28: The Hot Spot | J28: 33255 | K28: Film
A29: 727 | B29: tt20412522 | C29: Sexy Beast | D29: 2024-01-25 | E29: Fernsehepisode | G29: 29 | H29: tt0100143 | I29: Miami Blues | J29: 33108 | K29: Film
A30: 694 | B30: tt14230458 | C30: Poor Things | D30: 2024-01-18 | E30: Film | G30: 30 | H30: tt0100196 | I30: Mountains of the Moon | J30: 33003 | K30: Film
A31: 738 | B31: tt26047818 | C31: Anyone But You | D31: 2024-01-18 | E31: Film | G31: 31 | H31: tt0100318 | I31: Pacific Heights | J31: 33220 | K31: Film
A32: 745 | B32: tt30984038 | C32: Bleachers: Tiny Moves | D32: 2024-01-17 | E32: Musik Video | G32: 32 | H32: tt0101373 | I32: At Play in the Fields of the Lord | J32: 33955 | K32: Film
A33: 710 | B33: tt15768848 | C33: The Pod Generation | D33: 2024-01-11 | E33: Film | G33: 33 | H33: tt0101393 | I33: Backdraft | J33: 33472 | K33: Film
A34: 635 | B34: tt8258502 | C34: Foe | D34: 2024-01-05 | E34: Film | G34: 34 | H34: tt0101453 | I34: Billy Bathgate | J34: 33654 | K34: Film
A35: 699 | B35: tt14633464 | C35: Desperation Road | D35: 2023-12-14 | E35: Film | G35: 35 | H35: tt0101629 | I35: Crooked Hearts | J35: 33487 | K35: Film
A36: 709 | B36: tt15744914 | C36: Three Women | D36: 2023-12-13 | E36: Fernsehepisode | G36: 36 | H36: tt0101676 | I36: Dead Women in Lingerie | J36: 33543 | K36: Film
A37: 683 | B37: tt13287846 | C37: Napoleon | D37: 2023-11-23 | E37: Film | G37: 37 | H37: tt0102208 | I37: Killer Instinct | J37: 33933 | K37: Film
A38: 739 | B38: tt26921534 | C38: The Morning Show | D38: 2023-10-11 | E38: Fernsehepisode | G38: 38 | H38: tt0102329 | I38: Lonely Hearts | J38: 34258 | K38: Film
A39: 657 | B39: tt10354106 | C39: Stars at Noon | D39: 2023-10-05 | E39: Film | G39: 39 | H39: tt0102685 | I39: Point Break | J39: 33500 | K39: Film
A40: 651 | B40: tt9738716 | C40: The World to Come | D40: 2023-09-17 | E40: Film | G40: 40 | H40: tt0102820 | I40: Rush | J40: 33998 | K40: Film
A41: 304 | B41: tt0850677 | C41: Jack & Diane | D41: 2023-09-14 | E41: Film | G41: 41 | H41: tt0103266 | I41: Wildflower | J41: 35220 | K41: Fernsehfilm
A42: 733 | B42: tt22073596 | C42: El cuerpo en llamas | D42: 2023-09-08 | E42: Fernsehepisode | G42: 42 | H42: tt0103874 | I42: Bram Stoker's Dracula | J42: 34011 | K42: Film
A43: 730 | B43: tt21950462 | C43: Visions | D43: 2023-09-06 | E43: Film | G43: 43 | H43: tt0105414 | I43: Single White Female | J43: 33878 | K43: Film
A44: 717 | B44: tt18258952 | C44: Lioness | D44: 2023-07-23 | E44: Fernsehepisode | G44: 44 | H44: tt0105691 | I44: Under Suspicion | J44: 33794 | K44: Film
A45: 705 | B45: tt15398776 | C45: Oppenheimer | D45: 2023-07-20 | E45: Film | G45: 45 | H45: tt0105812 | I45: White Men Can't Jump | J45: 33990 | K45: Film
A46: 671 | B46: tt11454876 | C46: The Pursuit of Love | D46: 2023-07-01 | E46: Fernsehepisode | G46: 46 | H46: tt0106639 | I46: Cyborg 2: Glass Shadow | J46: 34303 | K46: Video
A47: 708 | B47: tt15671028 | C47: No Hard Feelings | D47: 2023-06-22 | E47: Film | G47: 47 | H47: tt0106770 | I47: Dragon: The Bruce Lee Story | J47: 34137 | K47: Film
A48: 608 | B48: tt6875952 | C48: Carmen | D48: 2023-06-14 | E48: Film | G48: 48 | H48: tt0107211 | I48: Indecent Proposal | J48: 34109 | K48: Film
A49: 721 | B49: tt18925334 | C49: Pearl | D49: 2023-06-01 | E49: Film | G49: 49 | H49: tt0107449 | I49: Love Matters | J49: 34245 | K49: Fernsehfilm
A50: 707 | B50: tt15532666 | C50: Love & Death | D50: 2023-05-11 | E50: Fernsehepisode | G50: 50 | H50: tt0107497 | I50: Malice | J50: 34473 | K50: Film
A51: 703 | B51: tt15326988 | C51: Ghosted | D51: 2023-04-21 | E51: Film | G51: 51 | H51: tt0108169 | I51: Snapdragon | J51: 34304 | K51: Film
A52: 658 | B52: tt10365998 | C52: Infinity Pool | D52: 2023-04-20 | E52: Film | G52: 52 | H52: tt0108399 | I52: True Romance | J52: 34361 | K52: Film
A53: 718 | B53: tt18265122 | C53: The Diplomat | D53: 2023-04-20 | E53: Fernsehepisode | G53: 53 | H53: tt0108451 | I53: Untamed Heart | J53: 34012 | K53: Film
A54: 696 | B54: tt14444726 | C54: Tár | D54: 2023-03-02 | E54: Film | G54: 54 | H54: tt0109686 | I54: Dumb and Dumber | J54: 34795 | K54: Film
A55: 740 | B55: tt26940835 | C55: Hot Ones | D55: 2023-03-02 | E55: Fernsehepisode | G55: 55 | H55: tt0109702 | I55: L'eau froide | J55: 34521 | K55: Film
A56: 706 | B56: tt15444524 | C56: La legge di Lidia Poët | D56: 2023-02-15 | E56: Fernsehepisode | G56: 56 | H56: tt0110005 | I56: Heavenly Creatures | J56: 34711 | K56: Film
A57: 704 | B57: tt15333984 | C57: Somebody I Used to Know | D57: 2023-02-10 | E57: Film | G57: 57 | H57: tt0110588 | I57: Mrs. Parker and the Vicious Circle | J57: 34907 | K57: Film
A58: 719 | B58: tt18376122 | C58: Pamela, a Love Story | D58: 2023-01-31 | E58: Film | G58: 58 | H58: tt0110712 | I58: Of Love and Shadows | J58: 34613 | K58: Film
A59: 661 | B59: tt10640346 | C59: Babylon | D59: 2023-01-19 | E59: Film | G59: 59 | H59: tt0110948 | I59: Raw Justice | J59: 34485 | K59: Film
A60: 663 | B60: tt10931784 | C60: Nanny | D60: 2022-12-16 | E60: Film | G60: 60 | H60: tt0111549 | I60: Uncovered | J60: 34704 | K60: Film
A61: 712 | B61: tt16375606 | C61: George & Tammy | D61: 2022-12-11 | E61: Fernsehepisode | G61: 61 | H61: tt0111711 | I61: Widow's Kiss | J61: 38664 | K61: Fernsehfilm
A62: 686 | B62: tt13482828 | C62: Un beau matin | D62: 2022-12-08 | E62: Film | G62: 62 | H62: tt0113158 | I62: Georgia | J62: 35327 | K62: Film
A63: 734 | B63: tt22333372 | C63: The White Lotus | D63: 2022-12-04 | E63: Fernsehepisode | G63: 63 | H63: tt0113243 | I63: Hackers | J63: 35229 | K63: Film
A64: 714 | B64: tt17202326 | C64: Matriarch | D64: 2022-11-25 | E64: Film | G64: 64 | H64: tt0113269 | I64: Haunted | J64: 35033 | K64: Film
A65: 693 | B65: tt14148006 | C65: Leopard Skin | D65: 2022-11-17 | E65: Fernsehepisode | G65: 65 | H65: tt0113690 | I65: Lord of Illusions | J65: 34936 | K65: Film
A66: 662 | B66: tt10730028 | C66: Dangerous Liaisons | D66: 2022-11-16 | E66: Fernsehepisode | G66: 66 | H66: tt0113926 | I66: Naked Souls | J66: 35203 | K66: Film
A67: 677 | B67: tt12440892 | C67: Step Up | D67: 2022-11-13 | E67: Fernsehepisode | G67: 67 | H67: tt0114345 | I67: The Scarlet Letter | J67: 35173 | K67: Film
A68: 697 | B68: tt14549466 | C68: Crimes of the Future | D68: 2022-11-03 | E68: Film | G68: 68 | H68: tt0114436 | I68: Showgirls | J68: 35089 | K68: Film
A69: 702 | B69: tt15219362 | C69: Reboot | D69: 2022-11-02 | E69: Fernsehepisode | G69: 69 | H69: tt0115438 | I69: 2 Days in the Valley | J69: 35572 | K69: Film
A70: 582 | B70: tt5914642 | C70: Youtopia | D70: 2022-10-14 | E70: Film | G70: 70 | H70: tt0115624 | I70: Barb Wire | J70: 35362 | K70: Film
A71: 392 | B71: tt1655389 | C71: Blonde | D71: 2022-09-28 | E71: Film | G71: 71 | H71: tt0115736 | I71: Bound | J71: 35369 | K71: Film
A72: 680 | B72: tt12873562 | C72: The Invitation | D72: 2022-08-25 | E72: Film | G72: 72 | H72: tt0115751 | I72: Breaking the Waves | J72: 35341 | K72: Film
A73: 450 | B73: tt2304637 | C73: Flag Day | D73: 2022-07-20 | E73: Film | G73: 73 | H73: tt0116032 | I73: Darkdrive | J73: 37979 | K73: Film
A74: 701 | B74: tt15195758 | C74: Animal Kingdom | D74: 2022-07-10 | E74: Fernsehepisode | G74: 74 | H74: tt0116289 | I74: Feeling Minnesota | J74: 35321 | K74: Film
A75: 724 | B75: tt19838660 | C75: Irma Vep | D75: 2022-06-20 | E75: Fernsehepisode | G75: 75 | H75: tt0116353 | I75: Foxfire | J75: 35300 | K75: Film
A76: 687 | B76: tt13560574 | C76: X | D76: 2022-05-05 | E76: Film | G76: 76 | H76: tt0116477 | I76: Hamlet | J76: 35586 | K76: Film
A77: 725 | B77: tt19857674 | C77: The Tonight Show Starring Jimmy Fallon | D77: 2022-05-03 | E77: Fernsehepisode | G77: 77 | H77: tt0116675 | I77: Jaded | J77: 36650 | K77: Film
A78: 666 | B78: tt11138512 | C78: The Northman | D78: 2022-04-28 | E78: Film | G78: 78 | H78: tt0116722 | I78: Jude | J78: 35467 | K78: Film
A79: 700 | B79: tt14948318 | C79: Made for Love | D79: 2022-04-28 | E79: Fernsehepisode | G79: 79 | H79: tt0116778 | I79: Kingpin | J79: 35376 | K79: Film
A80: 424 | B80: tt1929297 | C80: Last Moment of Clarity | D80: 2022-04-21 | E80: Film | G80: 80 | H80: tt0116922 | I80: Lost Highway | J80: 35530 | K80: Film
A81: 438 | B81: tt2180339 | C81: Deep Water | D81: 2022-03-18 | E81: Film | G81: 81 | H81: tt0117070 | I81: Mojave Moon | J81: 35369 | K81: Film
A82: 655 | B82: tt9907782 | C82: Eight for Silver | D82: 2022-02-18 | E82: Film | G82: 82 | H82: tt0117107 | I82: Mulholland Falls | J82: 35355 | K82: Film
A83: 692 | B83: tt14128670 | C83: Kimi | D83: 2022-02-10 | E83: Film | G83: 83 | H83: tt0117364 | I83: The Portrait of a Lady | J83: 35439 | K83: Film
A84: 711 | B84: tt15792596 | C84: Reacher | D84: 2022-02-04 | E84: Fernsehepisode | G84: 84 | H84: tt0117737 | I84: Stealing Beauty | J84: 35334 | K84: Film
A85: 690 | B85: tt13848844 | C85: Pam & Tommy | D85: 2022-02-02 | E85: Fernsehepisode | G85: 85 | H85: tt0117765 | I85: Striptease | J85: 35292 | K85: Film
A86: 688 | B86: tt13613056 | C86: Tromperie | D86: 2021-12-29 | E86: Film | G86: 86 | H86: tt0117898 | I86: This World, Then the Fireworks | J86: 35622 | K86: Film
A87: 681 | B87: tt12921090 | C87: Close to Me | D87: 2021-11-07 | E87: Fernsehepisode | G87: 87 | H87: tt0118859 | I87: City of Industry | J87: 35943 | K87: Film
A88: 630 | B88: tt7983894 | C88: Ammonite | D88: 2021-11-04 | E88: Film | G88: 88 | H88: tt0118971 | I88: The Devil's Advocate | J88: 35817 | K88: Film
A89: 644 | B89: tt8847712 | C89: The French Dispatch of the Liberty, Kansas Evening Sun | D89: 2021-10-21 | E89: Film | G89: 89 | H89: tt0119042 | I89: Eat Your Heart Out | J89: 36823 | K89: Film
A90: 682 | B90: tt13281554 | C90: Maid | D90: 2021-10-01 | E90: Fernsehepisode | G90: 90 | H90: tt0119054 | I90: Eight Days a Week | J90: 36217 | K90: Film
A91: 698 | B91: tt14587680 | C91: Scenes from a Marriage | D91: 2021-09-19 | E91: Fernsehepisode | G91: 91 | H91: tt0119173 | I91: G.I. Jane | J91: 35852 | K91: Film
A92: 668 | B92: tt11235772 | C92: The Voyeurs | D92: 2021-09-10 | E92: Film | G92: 92 | H92: tt0119342 | I92: Héroïnes | J92: 35669 | K92: Film
A93: 679 | B93: tt12758346 | C93: Nine Perfect Strangers | D93: 2021-08-25 | E93: Fernsehepisode | G93: 93 | H93: tt0119381 | I93: Inventing the Abbotts | J93: 36255 | K93: Film
A94: 669 | B94: tt11354464 | C94: Brand New Cherry Flavor | D94: 2021-08-13 | E94: Fernsehepisode | G94: 94 | H94: tt0119517 | I94: Your Friends and Neighbors | J94: 36028 | K94: Film
A95: 691 | B95: tt13868046 | C95: The White Lotus | D95: 2021-07-18 | E95: Fernsehepisode | G95: 95 | H95: tt0119594 | I95: Twilight | J95: 36013 | K95: Film
A96: 638 | B96: tt8338762 | C96: The Nest | D96: 2021-07-08 | E96: Film | G96: 96 | H96: tt0119633 | I96: Mauvais genre | J96: 35620 | K96: Film
A97: 673 | B97: tt11723816 | C97: Sex/Life | D97: 2021-06-25 | E97: Fernsehepisode | G97: 97 | H97: tt0119665 | I97: Metroland | J97: 36881 | K97: Film
A98: 619 | B98: tt7374926 | C98: Proxima | D98: 2021-06-24 | E98: Film | G98: 98 | H98: tt0119879 | I98: Perdita Durango | J98: 36097 | K98: Film
A99: 641 | B99: tt8419594 | C99: Rare Beasts | D99: 2021-05-21 | E99: Film | G99: 99 | H99: tt0120338 | I99: Titanic | J99: 35803 | K99: Film
A100: 665 | B100: tt11033898 | C100: Mare of Easttown | D100: 2021-05-21 | E100: Fernsehepisode | G100: 100 | H100: tt0120663 | I100: Eyes Wide Shut | J100: 36412 | K100: Film
A101: 563 | B101: tt5294522 | C101: Dreamland | D101: 2021-04-09 | E101: Film | G101: 101 | H101: tt0120797 | I101: Pushing Tin | J101: 36706 | K101: Film
A102: 660 | B102: tt10487972 | C102: Little Birds | D102: 2021-04-01 | E102: Fernsehepisode | G102: 102 | H102: tt0123865 | I102: Gia | J102: 36060 | K102: Fernsehfilm
A103: 499 | B103: tt3227442 | C103: To Whom It May Concern | D103: 2021-03-26 | E103: Film | G103: 103 | H103: tt0123923 | I103: Jeanne et le garçon formidable | J103: 35907 | K103: Film
A104: 646 | B104: tt9104094 | C104: Leonardo | D104: 2021-03-23 | E104: Fernsehepisode | G104: 104 | H104: tt0124315 | I104: The Cider House Rules | J104: 36601 | K104: Film
A105: 674 | B105: tt11734264 | C105: Sentinelle | D105: 2021-03-05 | E105: Film | G105: 105 | H105: tt0127349 | I105: Waking the Dead | J105: 36609 | K105: Film
A106: 560 | B106: tt5212808 | C106: Heavy | D106: 2021-02-09 | E106: Film | G106: 106 | H106: tt0127536 | I106: Elizabeth | J106: 36097 | K106: Film
A107: 647 | B107: tt9147456 | C107: Endings, Beginnings | D107: 2021-02-05 | E107: Film | G107: 107 | H107: tt0129136 | I107: Hell's Kitchen | J107: 36910 | K107: Film
A108: 591 | B108: tt6108178 | C108: Disobedience | D108: 2021-01-31 | E108: Film | G108: 108 | H108: tt0132165 | I108: Flypaper | J108: 36359 | K108: Film
A109: 607 | B109: tt6857376 | C109: Palmer | D109: 2021-01-29 | E109: Film | G109: 109 | H109: tt0134057 | I109: La riffa | J109: 33557 | K109: Film
A110: 667 | B110: tt11161474 | C110: Pieces of a Woman | D110: 2021-01-07 | E110: Film | G110: 110 | H110: tt0136244 | I110: Hideous Kinky | J110: 36265 | K110: Film
A111: 650 | B111: tt9601220 | C111: Black Bear | D111: 2020-12-04 | E111: Film | G111: 111 | H111: tt0137142 | I111: Ostinato destino | J111: 33752 | K111: Film
A112: 649 | B112: tt9256866 | C112: The Undoing | D112: 2020-11-30 | E112: Fernsehepisode | G112: 112 | H112: tt0137258 | I112: Vita coi figli | J112: 33386 | K112: Fernsehfilm
A113: 621 | B113: tt7529124 | C113: Yellowstone | D113: 2020-11-24 | E113: Fernsehepisode | G113: 113 | H113: tt0138279 | I113: The 24 Hour Woman | J113: 36189 | K113: Film
A114: 632 | B114: tt8075156 | C114: Yellowstone | D114: 2020-11-24 | E114: Fernsehepisode | G114: 114 | H114: tt0138541 | I114: Judas Kiss | J114: 36273 | K114: Film
A115: 664 | B115: tt10994994 | C115: Black Narcissus | D115: 2020-11-23 | E115: Fernsehepisode | G115: 115 | H115: tt0138946 | I115: The Yards | J115: 36643 | K115: Film
A116: 684 | B116: tt13334024 | C116: Rainsford: Love Me Like You Hate Me | D116: 2020-10-24 | E116: Musik Video | G116: 116 | H116: tt0139362 | I116: High Art | J116: 36279 | K116: Film
A117: 605 | B117: tt6819848 | C117: All Roads to Pearla | D117: 2020-09-25 | E117: Film | G117: 117 | H117: tt0140653 | I117: L'ultimo capodanno | J117: 35860 | K117: Film
A118: 410 | B118: tt1780967 | C118: Seberg | D118: 2020-09-17 | E118: Film | G118: 118 | H118: tt0142911 | I118: Thanks of a Grateful Nation | J118: 35946 | K118: Fernsehfilm
A119: 645 | B119: tt9046346 | C119: High Fidelity | D119: 2020-09-10 | E119: Fernsehepisode | G119: 119 | H119: tt0144715 | I119: Holy Smoke | J119: 36520 | K119: Film
A120: 678 | B120: tt12680898 | C120: Woke | D120: 2020-09-09 | E120: Fernsehepisode | G120: 120 | H120: tt0145531 | I120: Stigmata | J120: 36538 | K120: Film
A121: 656 | B121: tt10069528 | C121: Perry Mason | D121: 2020-07-31 | E121: Fernsehepisode | G121: 121 | H121: tt0149178 | I121: Stricken | J121: 35687 | K121: Film
A122: 676 | B122: tt11877330 | C122: Absentia | D122: 2020-07-17 | E122: Fernsehepisode | G122: 122 | H122: tt0149898 | I122: Black and White | J122: 37006 | K122: Film
A123: 586 | B123: tt6017756 | C123: Radioactive | D123: 2020-07-16 | E123: Film | G123: 123 | H123: tt0150340 | I123: Divorce: A Contemporary Western | J123: 0 | K123: Film
A124: 604 | B124: tt6760876 | C124: Wasp Network | D124: 2020-06-19 | E124: Film | G124: 124 | H124: tt0150464 | I124: En plein coeur | J124: 36124 | K124: Film
A125: 675 | B125: tt11777690 | C125: Romance | D125: 2020-06-05 | E125: Fernsehepisode | G125: 125 | H125: tt0158062 | I125: Pam & Tommy Lee: Stolen Honeymoon | J125: 36160 | K125: Video
A126: 659 | B126: tt10418594 | C126: Normal People | D126: 2020-04-26 | E126: Fernsehepisode | G126: 126 | H126: tt0159365 | I126: Cold Mountain | J126: 38036 | K126: Film
A127: 643 | B127: tt8750570 | C127: Sergio | D127: 2020-04-17 | E127: Film | G127: 127 | H127: tt0160075 | I127: Briganti: Amore e libertà | J127: 34699 | K127: Film
A128: 467 | B128: tt2505294 | C128: Ask Me Anything | D128: 2020-04-02 | E128: Film | G128: 128 | H128: tt0162677 | I128: Summer of Sam | J128: 36839 | K128: Film
A129: 616 | B129: tt7205316 | C129: MILF | D129: 2020-03-16 | E129: Film | G129: 129 | H129: tt0162711 | I129: Trixie | J129: 36756 | K129: Film
A130: 620 | B130: tt7456312 | C130: The Last Thing He Wanted | D130: 2020-02-21 | E130: Film | G130: 130 | H130: tt0163978 | I130: The Beach | J130: 36573 | K130: Film
A131: 629 | B131: tt7979142 | C131: The Night Clerk | D131: 2020-02-21 | E131: Film | G131: 131 | H131: tt0164212 | I131: Under Suspicion | J131: 37014 | K131: Film
A132: 670 | B132: tt11388406 | C132: Horse Girl | D132: 2020-02-07 | E132: Film | G132: 132 | H132: tt0166199 | I132: Franck Spadone | J132: 36726 | K132: Film
A133: 594 | B133: tt6219314 | C133: The Party's Just Beginning | D133: 2019-12-31 | E133: Film | G133: 133 | H133: tt0167925 | I133: Fin août, début septembre | J133: 36440 | K133: Film
A134: 584 | B134: tt6012380 | C134: Ordinary Love | D134: 2019-12-06 | E134: Film | G134: 134 | H134: tt0168631 | I134: Dark Summer | J134: 37293 | K134: Film
A135: 634 | B135: tt8178486 | C135: Earthquake Bird | D135: 2019-11-15 | E135: Film | G135: 135 | H135: tt0174480 | I135: Autumn in New York | J135: 36811 | K135: Film
A136: 642 | B136: tt8485364 | C136: The Room | D136: 2019-11-06 | E136: Film | G136: 136 | H136: tt0180073 | I136: Quills | J136: 36958 | K136: Film
A137: 654 | B137: tt9885684 | C137: Mrs. Fletcher | D137: 2019-11-03 | E137: Fernsehepisode | G137: 137 | H137: tt0180093 | I137: Requiem for a Dream | J137: 37259 | K137: Film
A138: 633 | B138: tt8135530 | C138: Euphoria | D138: 2019-10-16 | E138: Fernsehepisode | G138: 138 | H138: tt0181151 | I138: What Planet Are You From? | J138: 36678 | K138: Film
A139: 472 | B139: tt2707810 | C139: Submission | D139: 2019-09-19 | E139: Film | G139: 139 | H139: tt0184805 | I139: Le paradis absolument | J139: 34342 | K139: Fernsehfilm
A140: 631 | B140: tt8000718 | C140: The Operative | D140: 2019-08-29 | E140: Film | G140: 140 | H140: tt0184858 | I140: Reindeer Games | J140: 36867 | K140: Film
A141: 539 | B141: tt4426738 | C141: Animals | D141: 2019-08-02 | E141: Film | G141: 141 | H141: tt0188453 | I141: Birthday Girl | J141: 37497 | K141: Film
A142: 639 | B142: tt8369856 | C142: Another Life | D142: 2019-07-25 | E142: Fernsehepisode | G142: 142 | H142: tt0203009 | I142: Moulin Rouge! | J142: 37182 | K142: Film
A143: 636 | B143: tt8299506 | C143: La casa de papel | D143: 2019-07-19 | E143: Fernsehepisode | G143: 143 | H143: tt0203755 | I143: One Night at McCool's | J143: 37007 | K143: Film
A144: 628 | B144: tt7874702 | C144: Big Little Lies | D144: 2019-07-15 | E144: Fernsehepisode | G144: 144 | H144: tt0205991 | I144: Guests of Hotel Astoria | J144: 32822 | K144: Film
A145: 640 | B145: tt8396294 | C145: Darlin' | D145: 2019-07-12 | E145: Film | G145: 145 | H145: tt0206226 | I145: Psycho Beach Party | J145: 37294 | K145: Film
A146: 652 | B146: tt9777408 | C146: Jett | D146: 2019-07-12 | E146: Fernsehepisode | G146: 146 | H146: tt0208911 | I146: The King Is Alive | J146: 36896 | K146: Film
A147: 566 | B147: tt5328006 | C147: Phil | D147: 2019-07-05 | E147: Film | G147: 147 | H147: tt0209322 | I147: Skipped Parts | J147: 37231 | K147: Film
A148: 553 | B148: tt4827558 | C148: High Life | D148: 2019-05-30 | E148: Film | G148: 148 | H148: tt0213847 | I148: Malèna | J148: 36951 | K148: Film
A149: 503 | B149: tt3263946 | C149: Trial by Fire | D149: 2019-05-17 | E149: Film | G149: 149 | H149: tt0216851 | I149: Järngänget | J149: 37375 | K149: Film
A150: 599 | B150: tt6476140 | C150: Serenity | D150: 2019-05-02 | E150: Film | G150: 150 | H150: tt0217505 | I150: Gangs of New York | J150: 37672 | K150: Film
A151: 571 | B151: tt5460522 | C151: Jeremiah Terminator LeRoy | D151: 2019-04-26 | E151: Film | G151: 151 | H151: tt0218922 | I151: Original Sin | J151: 37084 | K151: Film
A152: 520 | B152: tt3722062 | C152: Bokeh | D152: 2019-03-24 | E152: Film | G152: 152 | H152: tt0219822 | I152: Human Nature | J152: 38148 | K152: Film
A153: 615 | B153: tt7087210 | C153: Donnybrook | D153: 2019-02-15 | E153: Film | G153: 153 | H153: tt0227984 | I153: The 51st State | J153: 37232 | K153: Film
A154: 596 | B154: tt6433832 | C154: El árbol de la sangre | D154: 2019-02-08 | E154: Film | G154: 154 | H154: tt0230838 | I154: Sweet November | J154: 37105 | K154: Film
A155: 600 | B155: tt6516314 | C155: Piercing | D155: 2019-02-01 | E155: Film | G155: 155 | H155: tt0234641 | I155: La règle de l'homme | J155: 34470 | K155: Fernsehfilm
A156: 556 | B156: tt5083738 | C156: The Favourite | D156: 2019-01-24 | E156: Film | G156: 156 | H156: tt0236640 | I156: Prozac Nation | J156: 37785 | K156: Film
A157: 502 | B157: tt3256226 | C157: IO | D157: 2019-01-18 | E157: Film | G157: 157 | H157: tt0237534 | I157: Le pacte des loups | J157: 37301 | K157: Film
A158: 570 | B158: tt5437928 | C158: Colette | D158: 2019-01-03 | E158: Film | G158: 158 | H158: tt0242888 | I158: The Sleeping Dictionary | J158: 37652 | K158: Film
A159: 474 | B159: tt2737304 | C159: Bird Box | D159: 2018-12-21 | E159: Film | G159: 159 | H159: tt0243155 | I159: Bridget Jones's Diary | J159: 37126 | K159: Film
A160: 611 | B160: tt6967186 | C160: Escape at Dannemora | D160: 2018-12-19 | E160: Fernsehepisode | G160: 160 | H160: tt0245238 | I160: Lost and Delirious | J160: 37154 | K160: Film
A161: 627 | B161: tt7852170 | C161: Kidding | D161: 2018-12-03 | E161: Fernsehepisode | G161: 161 | H161: tt0247823 | I161: Women in Film | J161: 36915 | K161: Film
A162: 530 | B162: tt4154916 | C162: Replicas | D162: 2018-11-23 | E162: Film | G162: 162 | H162: tt0250223 | I162: Astérix & Obélix : Mission Cléopâtre | J162: 37322 | K162: Film
A163: 637 | B163: tt8329696 | C163: The Little Drummer Girl | D163: 2018-11-21 | E163: Fernsehepisode | G163: 163 | H163: tt0257360 | I163: About Schmidt | J163: 37679 | K163: Film
A164: 457 | B164: tt2368254 | C164: A Private War | D164: 2018-11-16 | E164: Film | G164: 164 | H164: tt0258273 | I164: Lovely & Amazing | J164: 37470 | K164: Film
A165: 319 | B165: tt1034415 | C165: Suspiria | D165: 2018-11-15 | E165: Film | G165: 165 | H165: tt0259711 | I165: Vanilla Sky | J165: 37280 | K165: Film
A166: 603 | B166: tt6679794 | C166: Outlaw King | D166: 2018-11-09 | E166: Film | G166: 166 | H166: tt0268126 | I166: Adaptation. | J166: 37693 | K166: Film
A167: 614 | B167: tt7040874 | C167: A Simple Favor | D167: 2018-11-08 | E167: Film | G167: 167 | H167: tt0269138 | I167: De l'amour | J167: 36992 | K167: Film
A168: 648 | B168: tt9196186 | C168: Dior J'adore: The New Absolu | D168: 2018-10-28 | E168: Video | G168: 168 | H168: tt0272283 | I168: The Safe House | J168: 37557 | K168: Fernsehfilm
A169: 573 | B169: tt5536610 | C169: Private Life | D169: 2018-10-05 | E169: Film | G169: 169 | H169: tt0279113 | I169: The Good Girl | J169: 37498 | K169: Film
A170: 622 | B170: tt7542576 | C170: All About Nina | D170: 2018-09-28 | E170: Film | G170: 170 | H170: tt0280380 | I170: Trapped | J170: 37707 | K170: Film
A171: 559 | B171: tt5160938 | C171: Lizzie | D171: 2018-09-14 | E171: Film | G171: 171 | H171: tt0280424 | I171: Amy's Orgasm | J171: 38281 | K171: Film
A172: 576 | B172: tt5670152 | C172: Traffik | D172: 2018-08-31 | E172: Film | G172: 172 | H172: tt0280778 | I172: Iris | J172: 37392 | K172: Film
A173: 606 | B173: tt6852872 | C173: Elizabeth Harvest | D173: 2018-08-10 | E173: Film | G173: 173 | H173: tt0280970 | I173: My Name Is Tanino | J173: 37771 | K173: Film
A174: 589 | B174: tt6069126 | C174: The Escape | D174: 2018-08-03 | E174: Film | G174: 174 | H174: tt0285175 | I174: Havoc | J174: 38641 | K174: Film
A175: 514 | B175: tt3563262 | C175: Submergence | D175: 2018-08-02 | E175: Film | G175: 175 | H175: tt0289635 | I175: Young Adam | J175: 38330 | K175: Film
A176: 595 | B176: tt6306064 | C176: Adrift | D176: 2018-07-12 | E176: Film | G176: 176 | H176: tt0290095 | I176: The Tuxedo | J176: 37595 | K176: Film
A177: 574 | B177: tt5612280 | C177: Sharp Objects | D177: 2018-07-09 | E177: Fernsehepisode | G177: 177 | H177: tt0290673 | I177: Irréversible | J177: 37875 | K177: Film
A178: 610 | B178: tt6958014 | C178: Duck Butter | D178: 2018-07-01 | E178: Film | G178: 178 | H178: tt0292963 | I178: Before the Devil Knows You're Dead | J178: 39548 | K178: Film
A179: 396 | B179: tt1667321 | C179: On Chesil Beach | D179: 2018-06-21 | E179: Film | G179: 179 | H179: tt0293509 | I179: The Piano Player | J179: 38142 | K179: Film
A180: 609 | B180: tt6917272 | C180: Una vita spericolata | D180: 2018-06-21 | E180: Film | G180: 180 | H180: tt0294357 | I180: Beyond Borders | J180: 38043 | K180: Film
A181: 623 | B181: tt7558424 | C181: Bad Peter | D181: 2018-06-21 | E181: Kurzfilm | G181: 181 | H181: tt0300109 | I181: The Last Great Wilderness | J181: 37750 | K181: Film
A182: 626 | B182: tt7834082 | C182: I'm Dying Up Here | D182: 2018-05-27 | E182: Fernsehepisode | G182: 182 | H182: tt0306047 | I182: Scary Movie 3 | J182: 38043 | K182: Film
A183: 624 | B183: tt7578438 | C183: Sweetbitter | D183: 2018-05-20 | E183: Fernsehepisode | G183: 183 | H183: tt0307058 | I183: Midsomer Murders | J183: 39259 | K183: Fernsehepisode
A184: 625 | B184: tt7740226 | C184: Vida | D184: 2018-05-20 | E184: Fernsehepisode | G184: 184 | H184: tt0308383 | I184: The Human Stain | J184: 37973 | K184: Film
A185: 588 | B185: tt6055060 | C185: Picnic at Hanging Rock | D185: 2018-05-06 | E185: Fernsehepisode | G185: 185 | H185: tt0309872 | I185: Mon idole | J185: 37607 | K185: Film
A186: 617 | B186: tt7246778 | C186: Legion | D186: 2018-05-02 | E186: Fernsehepisode | G186: 186 | H186: tt0309987 | I186: The Dreamers | J186: 38008 | K186: Film
A187: 468 | B187: tt2531344 | C187: Blockers | D187: 2018-04-12 | E187: Film | G187: 187 | H187: tt0315983 | I187: House of Sand and Fog | J187: 38400 | K187: Film
A188: 581 | B188: tt5903088 | C188: Dead on Arrival | D188: 2018-03-23 | E188: Film | G188: 188 | H188: tt0318411 | I188: The Magdalene Sisters | J188: 37630 | K188: Film
A189: 484 | B189: tt2873282 | C189: Red Sparrow | D189: 2018-03-01 | E189: Film | G189: 189 | H189: tt0332280 | I189: The Notebook | J189: 38232 | K189: Film
A190: 568 | B190: tt5362988 | C190: Wind River | D190: 2018-02-08 | E190: Film | G190: 190 | H190: tt0332452 | I190: Troy | J190: 38120 | K190: Film
A191: 587 | B191: tt6035650 | C191: Britannia | D191: 2018-01-18 | E191: Fernsehepisode | G191: 191 | H191: tt0337692 | I191: On the Road | J191: 41186 | K191: Film
A192: 578 | B192: tt5715874 | C192: The Killing of a Sacred Deer | D192: 2017-12-28 | E192: Film | G192: 192 | H192: tt0337876 | I192: Birth | J192: 38344 | K192: Film
A193: 442 | B193: tt2226597 | C193: The Mountain Between Us | D193: 2017-12-07 | E193: Film | G193: 193 | H193: tt0338097 | I193: Head in the Clouds | J193: 38309 | K193: Film
A194: 554 | B194: tt4848010 | C194: Fits and Starts | D194: 2017-12-05 | E194: Film | G194: 194 | H194: tt0340855 | I194: Monster | J194: 38092 | K194: Film
A195: 612 | B195: tt6976488 | C195: SMILF | D195: 2017-11-24 | E195: Fernsehepisode | G195: 195 | H195: tt0342272 | I195: Dear Wendy | J195: 38631 | K195: Film
A196: 618 | B196: tt7255148 | C196: SMILF | D196: 2017-11-19 | E196: Fernsehepisode | G196: 196 | H196: tt0342735 | I196: Manderlay | J196: 38666 | K196: Film
A197: 593 | B197: tt6211328 | C197: Longmire | D197: 2017-11-17 | E197: Fernsehepisode | G197: 197 | H197: tt0348333 | I197: Waiting... | J197: 38632 | K197: Film
A198: 598 | B198: tt6472152 | C198: The Girlfriend Experience | D198: 2017-11-12 | E198: Fernsehepisode | G198: 198 | H198: tt0349340 | I198: Dead Bodies | J198: 37736 | K198: Film
A199: 580 | B199: tt5825052 | C199: Tout nous sépare | D199: 2017-11-08 | E199: Film | G199: 199 | H199: tt0352520 | I199: The Life and Death of Peter Sellers | J199: 38470 | K199: Film
A200: 535 | B200: tt4291600 | C200: Lady Macbeth | D200: 2017-11-02 | E200: Film | G200: 200 | H200: tt0356336 | I200: Agents secrets | J200: 38077 | K200: Film
... 549 more rows

Sheet Leute
A1: Position | B1: Const | C1: Name | D1: Birth Date | F1: =_xlfn._xlws.SORT(Leute1[],2) -> 1 | G1: nm0000038 | H1: Grace Kelly | I1: 10909
A2: 285 | B2: nm6862942 | C2: Raegan Revord | D2: 2008-01-03 | F2: 2 | G2: nm0000043 | H2: Veronica Lake | I2: 8354
A3: 264 | B3: nm5085683 | C3: Mckenna Grace | D3: 2006-06-25 | F3: 3 | G3: nm0000097 | H3: Pamela Anderson | I3: 24654
A4: 284 | B4: nm6748436 | C4: Dafne Keen | D4: 2005-01-04 | F4: 4 | G4: nm0000098 | H4: Jennifer Aniston | I4: 25245
A5: 271 | B5: nm5611121 | C5: Millie Bobby Brown | D5: 2004-02-19 | F5: 5 | G5: nm0000099 | H5: Patricia Arquette | I5: 24936
A6: 266 | B6: nm5204873 | C6: Maisy Stella | D6: 2003-12-13 | F6: 6 | G6: nm0000113 | H6: Sandra Bullock | I6: 23584
A7: 289 | B7: nm7344528 | C7: Hannah Cheramy | D7: 2003-07-13 | F7: 7 | G7: nm0000117 | H7: Neve Campbell | I7: 26940
A8: 276 | B8: nm5925374 | C8: Rayna Vallandingham | D8: 2003-01-18 | F8: 8 | G8: nm0000124 | H8: Jennifer Connelly | I8: 25914
A9: 237 | B9: nm3385478 | C9: Nikki Hahn | D9: 2002-11-13 | F9: 9 | G9: nm0000139 | H9: Cameron Diaz | I9: 26541
A10: 257 | B10: nm4675650 | C10: Maddie Ziegler | D10: 2002-09-30 | F10: 10 | G10: nm0000153 | H10: Gina Gershon | I10: 22807
A11: 261 | B11: nm4911194 | C11: Jenna Ortega | D11: 2002-09-27 | F11: 11 | G11: nm0000173 | H11: Nicole Kidman | I11: 24643
A12: 300 | B12: nm12601699 | C12: Autumn Best | D12: 2002-09-17 | F12: 12 | G12: nm0000193 | H12: Demi Moore | I12: 22961
A13: 214 | B13: nm2371805 | C13: Scarlet Rose Stallone | D13: 2002-05-25 | F13: 13 | G13: nm0000204 | H13: Natalie Portman | I13: 29746
A14: 281 | B14: nm6096118 | C14: Sophia Lillis | D14: 2002-02-13 | F14: 14 | G14: nm0000207 | H14: Christina Ricci | I14: 29263
A15: 293 | B15: nm8037342 | C15: Lukita Maxwell | D15: 2001-10-27 | F15: 15 | G15: nm0000213 | H15: Winona Ryder | I15: 26235
A16: 297 | B16: nm8463347 | C16: Freya Allan | D16: 2001-09-06 | F16: 16 | G16: nm0000234 | H16: Charlize Theron | I16: 27613
A17: 265 | B17: nm5097044 | C17: Isabela Merced | D17: 2001-07-10 | F17: 17 | G17: nm0000239 | H17: Liv Tyler | I17: 28307
A18: 299 | B18: nm10399505 | C18: Rachel Zegler | D18: 2001-05-03 | F18: 18 | G18: nm0000250 | H18: Renée Zellweger | I18: 25318
A19: 292 | B19: nm7635388 | C19: Auli'i Cravalho | D19: 2000-11-22 | F19: 19 | G19: nm0000295 | H19: Kate Beckinsale | I19: 26871
A20: 298 | B20: nm8908475 | C20: Isabel May | D20: 2000-11-21 | F20: 20 | G20: nm0000312 | H20: Amy Brenneman | I20: 23550
A21: 235 | B21: nm3237775 | C21: Mackenzie Foy | D21: 2000-11-10 | F21: 21 | G21: nm0000327 | H21: Lacey Chabert | I21: 30224
A22: 290 | B22: nm7393303 | C22: Sophie Thatcher | D22: 2000-10-18 | F22: 22 | G22: nm0000350 | H22: Beverly D'Angelo | I22: 18947
A23: 208 | B23: nm2215143 | C23: Kiernan Shipka | D23: 1999-11-10 | F23: 23 | G23: nm0000379 | H23: Kirsten Dunst | I23: 30071
A24: 193 | B24: nm1933128 | C24: Bailee Madison | D24: 1999-10-15 | F24: 24 | G24: nm0000414 | H24: Teri Garr | I24: 16417
A25: 277 | B25: nm5944803 | C25: Alison Thornton | D25: 1999-08-14 | F25: 25 | G25: nm0000452 | H25: Lauren Holly | I25: 23312
A26: 253 | B26: nm4248775 | C26: Sabrina Carpenter | D26: 1999-05-11 | F26: 26 | G26: nm0000463 | H26: Famke Janssen | I26: 23686
A27: 272 | B27: nm5700898 | C27: Mikey Madison | D27: 1999-03-25 | F27: 27 | G27: nm0000492 | H27: Jennifer Jason Leigh | I27: 22682
A28: 278 | B28: nm6045536 | C28: Madison Bailey | D28: 1999-01-29 | F28: 28 | G28: nm0000495 | H28: Téa Leoni | I28: 24163
A29: 294 | B29: nm8314228 | C29: Cailee Spaeny | D29: 1998-07-24 | F29: 29 | G29: nm0000624 | H29: Laura San Giacomo | I29: 22599
A30: 296 | B30: nm8402992 | C30: Daisy Edgar-Jones | D30: 1998-05-24 | F30: 30 | G30: nm0000673 | H30: Marisa Tomei | I30: 23715
A31: 221 | B31: nm2572554 | C31: Peyton List | D31: 1998-04-06 | F31: 31 | G31: nm0000701 | H31: Kate Winslet | I31: 27672
A32: 182 | B32: nm1736769 | C32: Ariel Winter | D32: 1998-01-28 | F32: 32 | G32: nm0000702 | H32: Reese Witherspoon | I32: 27841
A33: 251 | B33: nm4107867 | C33: Eliana Jones | D33: 1997-10-28 | F33: 33 | G33: nm0000868 | H33: Justine Bateman | I33: 24157
A34: 228 | B34: nm2858875 | C34: Sydney Sweeney | D34: 1997-09-12 | F34: 34 | G34: nm0000870 | H34: Kathy Bates | I34: 17712
A35: 178 | B35: nm1631269 | C35: Chloë Grace Moretz | D35: 1997-02-10 | F35: 35 | G35: nm0000899 | H35: Monica Bellucci | I35: 23650
A36: 238 | B36: nm3480246 | C36: Ella Purnell | D36: 1996-09-17 | F36: 36 | G36: nm0000949 | H36: Cate Blanchett | I36: 25337
A37: 247 | B37: nm3918035 | C37: Zendaya | D37: 1996-09-01 | F37: 37 | G37: nm0001222 | H37: Calista Flockhart | I37: 23692
A38: 282 | B38: nm6552202 | C38: Brianna Hildebrand | D38: 1996-08-14 | F38: 38 | G38: nm0001303 | H38: Carla Gugino | I38: 26174
A39: 177 | B39: nm1630669 | C39: Saleka Shyamalan | D39: 1996-08-01 | F39: 39 | G39: nm0001349 | H39: Jennifer Love Hewitt | I39: 28907
A40: 275 | B40: nm5896355 | C40: Anya Taylor-Joy | D40: 1996-04-16 | F40: 40 | G40: nm0001372 | H40: Bonnie Hunt | I40: 22546
A41: 234 | B41: nm3188162 | C41: Lilli Kay | D41: 1996-03-18 | F41: 41 | G41: nm0001401 | H41: Angelina Jolie | I41: 27549
A42: 246 | B42: nm3849842 | C42: Sophie Turner | D42: 1996-02-21 | F42: 42 | G42: nm0001443 | H42: Hedy Lamarr | I42: 5427
A43: 279 | B43: nm6073955 | C43: Florence Pugh | D43: 1996-01-03 | F43: 43 | G43: nm0001461 | H43: Virginie Ledoyen | I43: 28079
A44: 287 | B44: nm7006860 | C44: Matilda De Angelis | D44: 1995-09-11 | F44: 44 | G44: nm0001491 | H44: Melanie Lynskey | I44: 28261
A45: 223 | B45: nm2730808 | C45: Emma Dumont | D45: 1994-11-15 | F45: 45 | G45: nm0001567 | H45: Connie Nielsen | I45: 23926
A46: 242 | B46: nm3614913 | C46: Zoey Deutch | D46: 1994-11-10 | F46: 46 | G46: nm0001609 | H46: Rosie Perez | I46: 23626
A47: 262 | B47: nm4960279 | C47: Margaret Qualley | D47: 1994-10-23 | F47: 47 | G47: nm0001614 | H47: Lori Petty | I47: 23298
A48: 295 | B48: nm8367841 | C48: Lauren LaVera | D48: 1994-06-14 | F48: 48 | G48: nm0001833 | H48: Emily Watson | I48: 24486
A49: 171 | B49: nm1519680 | C49: Saoirse Ronan | D49: 1994-04-12 | F49: 49 | G49: nm0001860 | H49: Alicia Witt | I49: 27627
A50: 82 | B50: nm0266824 | C50: Dakota Fanning | D50: 1994-02-23 | F50: 50 | G50: nm0004266 | H50: Anne Hathaway | I50: 30267
A51: 263 | B51: nm4970145 | C51: Kathryn Kelly | D51: 1993-10-31 | F51: 51 | G51: nm0004748 | H51: Julie Benz | I51: 26420
A52: 268 | B52: nm5301405 | C52: Mia Goth | D52: 1993-10-25 | F52: 52 | G52: nm0004802 | H52: Linda Cardellini | I52: 27570
A53: 110 | B53: nm0597410 | C53: Taylor Momsen | D53: 1993-07-26 | F53: 53 | G53: nm0004950 | H53: Jennifer Garner | I53: 26406
A54: 245 | B54: nm3812858 | C54: Ariana Grande | D54: 1993-06-26 | F54: 54 | G54: nm0005049 | H54: Allison Janney | I54: 21873
A55: 206 | B55: nm2140860 | C55: Maika Monroe | D55: 1993-05-29 | F55: 55 | G55: nm0005067 | H55: Tamala Jones | I55: 27345
A56: 254 | B56: nm4305463 | C56: Naomi Scott | D56: 1993-05-06 | F56: 56 | G56: nm0005123 | H56: Ali Larter | I56: 27818
A57: 233 | B57: nm3069650 | C57: Jodie Comer | D57: 1993-03-11 | F57: 57 | G57: nm0005154 | H57: Lucy Liu | I57: 25174
A58: 283 | B58: nm6568724 | C58: Mariel Molino | D58: 1992-12-18 | F58: 58 | G58: nm0005176 | H58: Wendie Malick | I58: 18610
A59: 229 | B59: nm2913280 | C59: Ashleigh Cummings | D59: 1992-11-11 | F59: 59 | G59: nm0005261 | H59: Brittany Murphy | I59: 28439
A60: 166 | B60: nm1411125 | C60: Selena Gomez | D60: 1992-07-22 | F60: 60 | G60: nm0005305 | H60: Piper Perabo | I60: 28064
A61: 267 | B61: nm5245722 | C61: Adria Arjona | D61: 1992-04-25 | F61: 61 | G61: nm0005392 | H61: Keri Russell | I61: 27842
A62: 250 | B62: nm4032297 | C62: Chloe Bennet | D62: 1992-04-18 | F62: 62 | G62: nm0005491 | H62: Maura Tierney | I62: 23776
A63: 270 | B63: nm5397459 | C63: Daisy Ridley | D63: 1992-04-10 | F63: 63 | G63: nm0005513 | H63: Alanna Ubach | I63: 27670
A64: 273 | B64: nm5772354 | C64: Leila George | D64: 1992-03-20 | F64: 64 | G64: nm0006969 | H64: Elizabeth Banks | I64: 27070
A65: 218 | B65: nm2546012 | C65: Kaya Scodelario | D65: 1992-03-13 | F65: 65 | G65: nm0010736 | H65: Amy Adams | I65: 27261
A66: 116 | B66: nm0652089 | C66: Emily Osment | D66: 1992-03-10 | F66: 66 | G66: nm0013037 | H66: Shohreh Aghdashloo | I66: 19125
A67: 230 | B67: nm3034977 | C67: Samara Weaving | D67: 1992-02-23 | F67: 67 | G67: nm0029502 | H67: Vanessa Angel | I67: 24421
A68: 269 | B68: nm5315658 | C68: Laysla De Oliveira | D68: 1992-01-11 | F68: 68 | G68: nm0068338 | H68: Kristen Bell | I68: 29420
A69: 135 | B69: nm0940362 | C69: Shailene Woodley | D69: 1991-11-15 | F69: 69 | G69: nm0088127 | H69: Alexis Bledel | I69: 29845
A70: 174 | B70: nm1568512 | C70: Christa B. Allen | D70: 1991-11-11 | F70: 70 | G70: nm0094039 | H70: Samantha Bond | I70: 22612
A71: 146 | B71: nm1068777 | C71: Genevieve Buechner | D71: 1991-11-10 | F71: 71 | G71: nm0097077 | H71: Josephine Bornebusch | I71: 29841
A72: 201 | B72: nm2080328 | C72: Kelsey Asbille | D72: 1991-09-09 | F72: 72 | G72: nm0100866 | H72: Julie Bowen | I72: 25630
A73: 198 | B73: nm2016723 | C73: Eve Hewson | D73: 1991-07-07 | F73: 73 | G73: nm0124208 | H73: Sophia Bush | I73: 30140
A74: 185 | B74: nm1789970 | C74: Addison Timlin | D74: 1991-06-29 | F74: 74 | G74: nm0192505 | H74: Kaley Cuoco | I74: 31381
A75: 220 | B75: nm2560618 | C75: Willa Fitzgerald | D75: 1991-01-17 | F75: 75 | G75: nm0193846 | H75: Elisha Cuthbert | I75: 30285
A76: 210 | B76: nm2225369 | C76: Jennifer Lawrence | D76: 1990-08-15 | F76: 76 | G76: nm0199603 | H76: Cynthia Daniel | I76: 27836
A77: 256 | B77: nm4574440 | C77: Melissa Barrera | D77: 1990-07-04 | F77: 77 | G77: nm0221046 | H77: Zooey Deschanel | I77: 29237
A78: 232 | B78: nm3053338 | C78: Margot Robbie | D78: 1990-07-02 | F78: 78 | G78: nm0225483 | H78: Kate Dickie | I78: 26047
A79: 243 | B79: nm3627601 | C79: Meghann Fahy | D79: 1990-04-25 | F79: 79 | G79: nm0233145 | H79: Alison Doody | I79: 24422
A80: 168 | B80: nm1429380 | C80: Britt Robertson | D80: 1990-04-18 | F80: 80 | G80: nm0240359 | H80: Anne-Marie Duff | I80: 25849
A81: 131 | B81: nm0914612 | C81: Emma Watson | D81: 1990-04-15 | F81: 81 | G81: nm0252238 | H81: Carmen Ejogo | I81: 26959
A82: 130 | B82: nm0829576 | C82: Kristen Stewart | D82: 1990-04-09 | F82: 82 | G82: nm0266824 | H82: Dakota Fanning | I82: 34388
A83: 280 | B83: nm6076950 | C83: Hassie Harrison | D83: 1990-03-20 | F83: 83 | G83: nm0267287 | H83: Coralie Fargeat | I83: 28088
A84: 219 | B84: nm2555462 | C84: Eiza González | D84: 1990-01-30 | F84: 84 | G84: nm0272581 | H84: Rebecca Ferguson | I84: 30608
A85: 260 | B85: nm4859097 | C85: Kelly Rohrbach | D85: 1990-01-21 | F85: 85 | G85: nm0310966 | H85: Ari Graynor | I85: 30433
A86: 190 | B86: nm1886524 | C86: Stella Maeve | D86: 1989-11-14 | F86: 86 | G86: nm0339460 | H86: Judy Greer | I86: 27595
A87: 291 | B87: nm7508235 | C87: Tatiana Zappardino | D87: 1989-10-02 | F87: 87 | G87: nm0376716 | H87: Christina Hendricks | I87: 27517
A88: 259 | B88: nm4789912 | C88: Hannah John-Kamen | D88: 1989-09-07 | F88: 88 | G88: nm0397171 | H88: Bryce Dallas Howard | I88: 29647
A89: 209 | B89: nm2216549 | C89: Úrsula Corberó | D89: 1989-08-11 | F89: 89 | G89: nm0399981 | H89: Toni Hudson | I89: 22229
A90: 186 | B90: nm1790970 | C90: Jessica Williams | D90: 1989-07-31 | F90: 90 | G90: nm0424060 | H90: Scarlett Johansson | I90: 31008
A91: 139 | B91: nm1017334 | C91: Juno Temple | D91: 1989-07-21 | F91: 91 | G91: nm0424534 | H91: Ashley Johnson | I91: 30537
A92: 255 | B92: nm4419771 | C92: Justine Lupe | D92: 1989-05-31 | F92: 92 | G92: nm0429069 | H92: Rashida Jones | I92: 27815
A93: 128 | B93: nm0790057 | C93: Alia Shawkat | D93: 1989-04-18 | F93: 93 | G93: nm0444223 | H93: Arielle Kebbel | I93: 31097
A94: 252 | B94: nm4141252 | C94: Lily James | D94: 1989-04-05 | F94: 94 | G94: nm0447695 | H94: Anna Kendrick | I94: 31268
A95: 226 | B95: nm2812026 | C95: Nathalie Emmanuel | D95: 1989-03-02 | F95: 95 | G95: nm0461136 | H95: Keira Knightley | I95: 31132
A96: 114 | B96: nm0647634 | C96: Elizabeth Olsen | D96: 1989-02-16 | F96: 96 | G96: nm0471036 | H96: Kristin Kreuk | I96: 30315
A97: 286 | B97: nm6884042 | C97: Katy O'Brian | D97: 1989-02-12 | F97: 97 | G97: nm0472595 | H97: Kelly Kruger | I97: 30267
A98: 197 | B98: nm2007030 | C98: Emily Meade | D98: 1989-01-10 | F98: 98 | G98: nm0502342 | H98: Bethany Joy Lenz | I98: 29678
A99: 213 | B99: nm2368789 | C99: Zoë Kravitz | D99: 1988-12-01 | F99: 99 | G99: nm0502538 | H99: Valerie Leon | I99: 16022
A100: 159 | B100: nm1297015 | C100: Emma Stone | D100: 1988-11-06 | F100: 100 | G100: nm0515116 | H100: Blake Lively | I100: 32014
A101: 104 | B101: nm0570860 | C101: Rose McIver | D101: 1988-10-10 | F101: 101 | G101: nm0521753 | H101: Lori Loughlin | I101: 23586
A102: 217 | B102: nm2539953 | C102: Alicia Vikander | D102: 1988-10-03 | F102: 102 | G102: nm0526985 | H102: Patti LuPone | I102: 18009
A103: 189 | B103: nm1869101 | C103: Ana de Armas | D103: 1988-04-30 | F103: 103 | G103: nm0544334 | H103: Lesley Manville | I103: 20526
A104: 248 | B104: nm3948952 | C104: Vanessa Kirby | D104: 1988-04-18 | F104: 104 | G104: nm0570860 | H104: Rose McIver | I104: 32426
A105: 200 | B105: nm2031749 | C105: Fiona Rene | D105: 1988-04-05 | F105: 105 | G105: nm0587396 | H105: Christina Milian | I105: 29855
A106: 120 | B106: nm0713389 | C106: Tania Raymonde | D106: 1988-03-22 | F106: 106 | G106: nm0588096 | H106: Christa Miller | I106: 23525
A107: 212 | B107: nm2247245 | C107: Haley Bennett | D107: 1988-01-07 | F107: 107 | G107: nm0591373 | H107: Vanessa Lachey | I107: 29534
A108: 239 | B108: nm3512758 | C108: Sarah Snook | D108: 1987-12-01 | F108: 108 | G108: nm0593310 | H108: Elizabeth Mitchell | I108: 25654
A109: 215 | B109: nm2394794 | C109: Karen Gillan | D109: 1987-11-28 | F109: 109 | G109: nm0593664 | H109: Radha Mitchell | I109: 26980
A110: 224 | B110: nm2736476 | C110: Lashana Lynch | D110: 1987-11-27 | F110: 110 | G110: nm0597410 | H110: Taylor Momsen | I110: 34176
A111: 227 | B111: nm2855957 | C111: Rachele Brooke Smith | D111: 1987-11-07 | F111: 111 | G111: nm0598166 | H111: Wendy Moniz | I111: 25222
A112: 100 | B112: nm0515116 | C112: Blake Lively | D112: 1987-08-25 | F112: 112 | G112: nm0607865 | H112: Emily Mortimer | I112: 26212
A113: 179 | B113: nm1648520 | C113: Katie Leung | D113: 1987-08-08 | F113: 113 | G113: nm0640055 | H113: Deirdre O'Connell | I113: 19539
A114: 132 | B114: nm0933798 | C114: Mara Wilson | D114: 1987-07-24 | F114: 114 | G114: nm0647634 | H114: Elizabeth Olsen | I114: 32555
A115: 241 | B115: nm3606487 | C115: Samantha Ruth Prabhu | D115: 1987-04-28 | F115: 115 | G115: nm0647698 | H115: Kaitlin Olson | I115: 27624
A116: 288 | B116: nm7248827 | C116: Cynthia Erivo | D116: 1987-01-08 | F116: 116 | G116: nm0652089 | H116: Emily Osment | I116: 33673
A117: 194 | B117: nm1951390 | C117: Frankie Shaw | D117: 1986-11-11 | F117: 117 | G117: nm0683253 | H117: Rosamund Pike | I117: 28882
A118: 240 | B118: nm3592338 | C118: Emilia Clarke | D118: 1986-10-23 | F118: 118 | G118: nm0683467 | H118: Alison Pill | I118: 31378
A119: 231 | B119: nm3037833 | C119: Eloise Mumford | D119: 1986-09-24 | F119: 119 | G119: nm0690186 | H119: Ellen Pompeo | I119: 25517
A120: 151 | B120: nm1177914 | C120: Megan Park | D120: 1986-07-24 | F120: 120 | G120: nm0713389 | H120: Tania Raymonde | I120: 32224
A121: 137 | B121: nm0993507 | C121: Kat Dennings | D121: 1986-06-13 | F121: 121 | G121: nm0717709 | H121: Kelly Reilly | I121: 28324
A122: 148 | B122: nm1083271 | C122: Megan Fox | D122: 1986-05-16 | F122: 122 | G122: nm0745186 | H122: Teryl Rothery | I122: 22959
A123: 138 | B123: nm1015262 | C123: Leighton Meester | D123: 1986-04-09 | F123: 123 | G123: nm0755267 | H123: Katee Sackhoff | I123: 29319
A124: 156 | B124: nm1275259 | C124: Alexandra Daddario | D124: 1986-03-16 | F124: 124 | G124: nm0757855 | H124: Zoe Saldana | I124: 28660
A125: 195 | B125: nm1954240 | C125: Teresa Palmer | D125: 1986-02-26 | F125: 125 | G125: nm0781029 | H125: Jean Seberg | I125: 14197
A126: 222 | B126: nm2605345 | C126: Gemma Arterton | D126: 1986-02-02 | F126: 126 | G126: nm0781899 | H126: Pamela Adlon | I126: 24297
A127: 74 | B127: nm0192505 | C127: Kaley Cuoco | D127: 1985-11-30 | F127: 127 | G127: nm0789716 | H127: Fiona Shaw | I127: 21376
A128: 118 | B128: nm0683467 | C128: Alison Pill | D128: 1985-11-27 | F128: 128 | G128: nm0790057 | H128: Alia Shawkat | I128: 32616
A129: 136 | B129: nm0956526 | C129: Madeline Zima | D129: 1985-09-16 | F129: 129 | G129: nm0810729 | H129: Victoria Smurfit | I129: 27119
A130: 205 | B130: nm2129662 | C130: Cristin Milioti | D130: 1985-08-16 | F130: 130 | G130: nm0829576 | H130: Kristen Stewart | I130: 32972
A131: 94 | B131: nm0447695 | C131: Anna Kendrick | D131: 1985-08-09 | F131: 131 | G131: nm0914612 | H131: Emma Watson | I131: 32978
A132: 167 | B132: nm1416900 | C132: Shantel VanSanten | D132: 1985-07-25 | F132: 132 | G132: nm0933798 | H132: Mara Wilson | I132: 31982
A133: 249 | B133: nm4023073 | C133: Rosa Salazar | D133: 1985-07-16 | F133: 133 | G133: nm0935395 | H133: Katheryn Winnick | I133: 28476
A134: 211 | B134: nm2244205 | C134: Léa Seydoux | D134: 1985-07-01 | F134: 134 | G134: nm0935541 | H134: Mary Elizabeth Winstead | I134: 31014
A135: 95 | B135: nm0461136 | C135: Keira Knightley | D135: 1985-03-26 | F135: 135 | G135: nm0940362 | H135: Shailene Woodley | I135: 33557
A136: 93 | B136: nm0444223 | C136: Arielle Kebbel | D136: 1985-02-19 | F136: 136 | G136: nm0956526 | H136: Madeline Zima | I136: 31306
A137: 134 | B137: nm0935541 | C137: Mary Elizabeth Winstead | D137: 1984-11-28 | F137: 137 | G137: nm0993507 | H137: Kat Dennings | I137: 31576
A138: 90 | B138: nm0424060 | C138: Scarlett Johansson | D138: 1984-11-22 | F138: 138 | G138: nm1015262 | H138: Leighton Meester | I138: 31511
A139: 202 | B139: nm2083022 | C139: Ruth Kearney | D139: 1984-11-10 | F139: 139 | G139: nm1017334 | H139: Juno Temple | I139: 32710
A140: 216 | B140: nm2497366 | C140: Sarah Greene | D140: 1984-07-24 | F140: 140 | G140: nm1018488 | H140: Wendi McLendon-Covey | I140: 25486
A141: 204 | B141: nm2100657 | C141: Serinda Swan | D141: 1984-07-11 | F141: 141 | G141: nm1035423 | H141: Karla Sofía Gascón | I141: 26389
A142: 207 | B142: nm2201555 | C142: Aubrey Plaza | D142: 1984-06-26 | F142: 299 | G142: nm10399505 | H142: Rachel Zegler | I142: 37014
A143: 160 | B143: nm1312575 | C143: Olivia Wilde | D143: 1984-03-10 | F143: 142 | G143: nm1046097 | H143: Rachel McAdams | I143: 28811
A144: 274 | B144: nm5857106 | C144: Natasia Demetriou | D144: 1984-01-15 | F144: 143 | G144: nm1063517 | H144: Kathryn Hahn | I144: 26868
A145: 184 | B145: nm1775214 | C145: Alona Tal | D145: 1983-10-20 | F145: 144 | G145: nm1065454 | H145: Tricia Helfer | I145: 27130
A146: 84 | B146: nm0272581 | C146: Rebecca Ferguson | D146: 1983-10-19 | F146: 145 | G146: nm1065664 | H146: Stana Katic | I146: 28606
A147: 91 | B147: nm0424534 | C147: Ashley Johnson | D147: 1983-08-09 | F147: 146 | G147: nm1068777 | H147: Genevieve Buechner | I147: 33552
A148: 192 | B148: nm1915282 | C148: Eleanor Matsuura | D148: 1983-07-16 | F148: 147 | G148: nm1072555 | H148: Morena Baccarin | I148: 29008
A149: 85 | B149: nm0310966 | C149: Ari Graynor | D149: 1983-04-27 | F149: 148 | G149: nm1083271 | H149: Megan Fox | I149: 31548
A150: 158 | B150: nm1289434 | C150: Emily Blunt | D150: 1983-02-23 | F150: 149 | G150: nm1083404 | H150: Sarah Shahi | I150: 29230
A151: 96 | B151: nm0471036 | C151: Kristin Kreuk | D151: 1982-12-30 | F151: 150 | G151: nm1157358 | H151: Michelle Monaghan | I151: 27842
A152: 172 | B152: nm1555340 | C152: Alison Brie | D152: 1982-12-29 | F152: 151 | G152: nm1177914 | H152: Megan Park | I152: 31617
A153: 75 | B153: nm0193846 | C153: Elisha Cuthbert | D153: 1982-11-30 | F153: 152 | G153: nm1182048 | H153: Becki Newton | I153: 28675
A154: 188 | B154: nm1861624 | C154: Yaya DaCosta | D154: 1982-11-15 | F154: 153 | G154: nm1200692 | H154: Eva Green | I154: 29408
A155: 162 | B155: nm1377561 | C155: Laura Ramsey | D155: 1982-11-14 | F155: 154 | G155: nm1208167 | H155: Diane Kruger | I155: 27956
A156: 161 | B156: nm1330324 | C156: Sibylla Deen | D156: 1982-11-12 | F156: 300 | G156: nm12601699 | H156: Autumn Best | I156: 37516
A157: 50 | B157: nm0004266 | C157: Anne Hathaway | D157: 1982-11-12 | F157: 155 | G157: nm1269412 | H157: Anna Maxwell Martin | I157: 28255
A158: 97 | B158: nm0472595 | C158: Kelly Kruger | D158: 1982-11-12 | F158: 156 | G158: nm1275259 | H158: Alexandra Daddario | I158: 31487
A159: 21 | B159: nm0000327 | C159: Lacey Chabert | D159: 1982-09-30 | F159: 157 | G159: nm1279721 | H159: Sharon Horgan | I159: 25762
A160: 203 | B160: nm2088803 | C160: Yvonne Strahovski | D160: 1982-07-30 | F160: 158 | G160: nm1289434 | H160: Emily Blunt | I160: 30370
A161: 73 | B161: nm0124208 | C161: Sophia Bush | D161: 1982-07-08 | F161: 159 | G161: nm1297015 | H161: Emma Stone | I161: 32453
A162: 23 | B162: nm0000379 | C162: Kirsten Dunst | D162: 1982-04-30 | F162: 160 | G162: nm1312575 | H162: Olivia Wilde | I162: 30751
A163: 199 | B163: nm2017943 | C163: Hayley Atwell | D163: 1982-04-05 | F163: 161 | G163: nm1330324 | H163: Sibylla Deen | I163: 30267
A164: 165 | B164: nm1404408 | C164: Alice Eve | D164: 1982-02-06 | F164: 162 | G164: nm1377561 | H164: Laura Ramsey | I164: 30269
A165: 225 | B165: nm2798112 | C165: Allison Tolman | D165: 1981-11-18 | F165: 163 | G165: nm1385871 | H165: Olga Kurylenko | I165: 29173
A166: 236 | B166: nm3364779 | C166: Vanessa Bayer | D166: 1981-11-14 | F166: 164 | G166: nm1396022 | H166: Anna Torv | I166: 29013
A167: 244 | B167: nm3680560 | C167: Skye P. Marshall | D167: 1981-10-21 | F167: 165 | G167: nm1404408 | H167: Alice Eve | I167: 29988
A168: 105 | B168: nm0587396 | C168: Christina Milian | D168: 1981-09-26 | F168: 166 | G168: nm1411125 | H168: Selena Gomez | I168: 33807
A169: 69 | B169: nm0088127 | C169: Alexis Bledel | D169: 1981-09-16 | F169: 167 | G169: nm1416900 | H169: Shantel VanSanten | I169: 31253
A170: 71 | B170: nm0097077 | C170: Josephine Bornebusch | D170: 1981-09-12 | F170: 168 | G170: nm1429380 | H170: Britt Robertson | I170: 32981
A171: 13 | B171: nm0000204 | C171: Natalie Portman | D171: 1981-06-09 | F171: 169 | G171: nm1431940 | H171: Evangeline Lilly | I171: 29070
A172: 98 | B172: nm0502342 | C172: Bethany Joy Lenz | D172: 1981-04-02 | F172: 170 | G172: nm1489978 | H172: Jill Wagner | I172: 28868
A173: 88 | B173: nm0397171 | C173: Bryce Dallas Howard | D173: 1981-03-02 | F173: 171 | G173: nm1519680 | H173: Saoirse Ronan | I173: 34436
A174: 180 | B174: nm1685408 | C174: Dawn Olivieri | D174: 1981-02-08 | F174: 172 | G174: nm1555340 | H174: Alison Brie | I174: 30314
A175: 258 | B175: nm4689420 | C175: Carrie Coon | D175: 1981-01-24 | F175: 173 | G175: nm1567113 | H175: Jessica Chastain | I175: 28208
A176: 107 | B176: nm0591373 | C176: Vanessa Lachey | D176: 1980-11-09 | F176: 174 | G176: nm1568512 | H176: Christa B. Allen | I176: 33553
A177: 68 | B177: nm0068338 | C177: Kristen Bell | D177: 1980-07-18 | F177: 175 | G177: nm1580243 | H177: Cote de Pablo | I177: 29171
A178: 153 | B178: nm1200692 | C178: Eva Green | D178: 1980-07-06 | F178: 176 | G178: nm1601397 | H178: Olivia Munn | I178: 29405
A179: 176 | B179: nm1601397 | C179: Olivia Munn | D179: 1980-07-03 | F179: 177 | G179: nm1630669 | H179: Saleka Shyamalan | I179: 35278
A180: 123 | B180: nm0755267 | C180: Katee Sackhoff | D180: 1980-04-08 | F180: 178 | G180: nm1631269 | H180: Chloë Grace Moretz | I180: 35471
A181: 14 | B181: nm0000207 | C181: Christina Ricci | D181: 1980-02-12 | F181: 179 | G181: nm1648520 | H181: Katie Leung | I181: 31997
A182: 77 | B182: nm0221046 | C182: Zooey Deschanel | D182: 1980-01-17 | F182: 180 | G182: nm1685408 | H182: Dawn Olivieri | I182: 29625
A183: 149 | B183: nm1083404 | C183: Sarah Shahi | D183: 1980-01-10 | F183: 181 | G183: nm1717573 | H183: Pollyanna McIntosh | I183: 28929
A184: 163 | B184: nm1385871 | C184: Olga Kurylenko | D184: 1979-11-14 | F184: 182 | G184: nm1736769 | H184: Ariel Winter | I184: 35823
A185: 175 | B185: nm1580243 | C185: Cote de Pablo | D185: 1979-11-12 | F185: 183 | G185: nm1745736 | H185: Paula Patton | I185: 27733
A186: 169 | B186: nm1431940 | C186: Evangeline Lilly | D186: 1979-08-03 | F186: 184 | G186: nm1775214 | H186: Alona Tal | I186: 30609
A187: 164 | B187: nm1396022 | C187: Anna Torv | D187: 1979-06-07 | F187: 185 | G187: nm1789970 | H187: Addison Timlin | I187: 33418
A188: 147 | B188: nm1072555 | C188: Morena Baccarin | D188: 1979-06-02 | F188: 186 | G188: nm1790970 | H188: Jessica Williams | I188: 32720
A189: 181 | B189: nm1717573 | C189: Pollyanna McIntosh | D189: 1979-03-15 | F189: 187 | G189: nm1821446 | H189: Hannah Waddingham | I189: 27238
A190: 39 | B190: nm0001349 | C190: Jennifer Love Hewitt | D190: 1979-02-21 | F190: 188 | G190: nm1861624 | H190: Yaya DaCosta | I190: 30270
A191: 117 | B191: nm0683253 | C191: Rosamund Pike | D191: 1979-01-27 | F191: 189 | G191: nm1869101 | H191: Ana de Armas | I191: 32263
A192: 170 | B192: nm1489978 | C192: Jill Wagner | D192: 1979-01-13 | F192: 190 | G192: nm1886524 | H192: Stella Maeve | I192: 32826
A193: 142 | B193: nm1046097 | C193: Rachel McAdams | D193: 1978-11-17 | F193: 191 | G193: nm1900397 | H193: Sutton Foster | I193: 27471
A194: 152 | B194: nm1182048 | C194: Becki Newton | D194: 1978-07-04 | F194: 192 | G194: nm1915282 | H194: Eleanor Matsuura | I194: 30513
A195: 124 | B195: nm0757855 | C195: Zoe Saldana | D195: 1978-06-19 | F195: 193 | G195: nm1933128 | H195: Bailee Madison | I195: 36448
A196: 145 | B196: nm1065664 | C196: Stana Katic | D196: 1978-04-26 | F196: 194 | G196: nm1951390 | H196: Frankie Shaw | I196: 31727
A197: 133 | B197: nm0935395 | C197: Katheryn Winnick | D197: 1977-12-17 | F197: 195 | G197: nm1954240 | H197: Teresa Palmer | I197: 31469
A198: 59 | B198: nm0005261 | C198: Brittany Murphy | D198: 1977-11-10 | F198: 196 | G198: nm1978694 | H198: Maria Dizzia | I198: 27392
A199: 121 | B199: nm0717709 | C199: Kelly Reilly | D199: 1977-07-18 | F199: 197 | G199: nm2007030 | H199: Emily Meade | I199: 32518
A200: 17 | B200: nm0000239 | C200: Liv Tyler | D200: 1977-07-01 | F200: 198 | G200: nm2016723 | H200: Eve Hewson | I200: 33426
... 101 more rows
